Workbook

Sheet Instructions
A1: INSTRUCTIONS Food Waste Assesment Results
A6: Step 1 | C6: Hit the Enable Content button at the top of the screen.
A10: Step 2 | C10: Enter customer volume & capacity information in the Customer Info tab.
C12: These values are used to scale the results.
A14: Step 3 | C14: Enter data from the log sheet into the Log Sheet tab. . Enter tray/plate counts and assumptions into the table at the top of the sheet.
A18: Step 4 | C18: Click the "VIEW RESULTS" button.
A22: Step 5 | C22: Review the (5) green tabs to see results.

Sheet Customer Info
A1: Food Waste Assessment
A6: Customer Volume Information
B9: General Information | H9: Color Code | L9: Approx Weeks Open Per Year: | M9: =IF(E10="College/University",35,IF(E10="Elementary/Secondary School",36,52)) -> 35
B10: What kind of Facility / Area is being studied? | E10: College/University | H10: Required Information
B11: Minimum Daily Diners: | E11: 1800 | H11: Optional Information
B12: Maximum Daily Diners: | E12: 2600
B13: Day of Assesment: | E13: Wednesday
B15: Total Meals Served on Assessment Day | L15: Scale using the waste per person
B16: Meal | D16: Dining Area1 | E16: College Town | F16: Dining Area2 | G16: Coffee Bar | H16: Dining Area3 | I16: Catered Lunch | L16: Average Diner Volume | M16: =J33 -> 2117.142857
B17: Breakfast | D17: 659 | F17: 80 | L17: Assessment Day Diner Volume | M17: =H22 -> 2223
B18: Lunch | D18: 688 | F18: 56 | H18: 65 | L18: Pre-Consumer Scaling Factor | M18: =IF(M17=0,1,M16/M17) -> 0.9523809524
B19: Dinner | D19: 522 | F19: 43 | L19: # of Days Open Check | M19: =IF(J33=0,"FAIL",IF(AND(L38=0,L39=0),"PASS",IF(AND(L37=L38,L39=0),"PASS",IF(AND(L37=L38,L37=L39),"PASS","FAIL")))) -> PASS
B20: Other Meal | D20: 110
B21: Total | D21: =SUM(D17:E20) -> 1979 | F21: =SUM(F17:G20) -> 179 | H21: =SUM(H17:I20) -> 65
G22: Assessment day total meals | H22: =SUM(D21:I21) -> 2223
B28: Average Number of Daily Meals | L28: Post Consumer
C29: Sunday | D29: Monday | E29: Tuesday | F29: Wednesday | G29: Thursday | H29: Friday | I29: Saturday | J29: Average day | L29: Scaling Value
B30: Dining Area1 | C30: 1224 | D30: 1836 | E30: 1836 | F30: 1836 | G30: 1836 | H30: 1836 | I30: 1836 | J30: =IF(L37=0,0,SUM(C30:I30)/L37) -> 1748.571429 | L30: =IF(D21=0,1,J30/D21) -> 0.8835631271
B31: Dining Area2 | C31: 300 | D31: 250 | E31: 250 | F31: 250 | G31: 250 | H31: 250 | I31: 400 | J31: =IF(L38=0,0,SUM(C31:I31)/L38) -> 278.5714286 | L31: =IF(F21=0,1,J31/F21) -> 1.556264964
B32: Dining Area3 | C32: 90 | D32: 90 | E32: 90 | F32: 90 | G32: 90 | H32: 90 | I32: 90 | J32: =IF(L39=0,0,SUM(C32:I32)/L39) -> 90 | L32: =IF(H21=0,1,J32/H21) -> 1.384615385
I33: Total Average Daily Meals | J33: =J30+J31+J32 -> 2117.142857
B35: =IF(M19="FAIL","STOP!","GOOD TO GO!") -> GOOD TO GO! | L35: Open (1) / Closed (0) Table
B36: =IF(B35="Good to go!","You've entered the data correctly.","Verify that the number of days open per dining area are the same and that all required cells are filled in. When everything is entered correctly, this message will give you the go ahead.") -> You've entered the data correctly. | L36: Average days open per week | M36: Sunday | N36: Monday | O36: Tuesday | P36: Wednesday | Q36: Thursday | R36: Friday | S36: Saturday
L37: =SUM(M37:S37) -> 7 | M37: =IF(C30=0,0,1) -> 1 | N37: 1 | O37: 1 | P37: 1 | Q37: 1 | R37: 1 | S37: 1
L38: =SUM(M38:S38) -> 7 | M38: 1 | N38: 1 | O38: 1 | P38: 1 | Q38: 1 | R38: 1 | S38: 1
L39: =SUM(M39:S39) -> 7 | M39: 1 | N39: 1 | O39: 1 | P39: 1 | Q39: 1 | R39: 1 | S39: 1

Sheet Log Sheet
A2: Color Code: | D2: Section B: TRAY/PLATE WASTE SAMPLE COUNTS
A3: Required Information | D3: ="Dining Area1: "&'Customer Info'!$E$16 -> Dining Area1: College Town | E3: Tray/Plate Count | F3: Same Per Person Waste As… | G3: Estimated Count
A4: Sample Data (must enter data in one of the columns) | D4: Breakfast | E4: 41 | G4: =IF(F4="lunch",E5,IF(F4="dinner",E6,IF(F4="other",E7,IF(OR(F4="n/a",F4=""),"")))) -> 
D5: Lunch | E5: 82 | G5: =IF(F5="dinner",E6,IF(F5="breakfast",E4,IF(F5="other",E7,IF(OR(F5="n/a",F5=""),"")))) -> 
D6: Dinner | E6: 96 | G6: =IF(F6="lunch",E5,IF(F6="breakfast",E4,IF(F6="other",E7,IF(OR(F6="n/a",F6=""),"")))) -> 
A7: Optional Information | D7: Other Meal | E7: 26 | G7: =IF(F7="breakfast",E4,IF(F7="lunch",E5,IF(F7="dinner",E6,IF(OR(F7="",F7="n/a"),"")))) ->  | K7: Loss Reasons: | L7: If kitchen, other1 or other2 | M7: If donation | N7: All other disposal methods
L8: prep waste | M8: surplus | N8: prep waste
A9: Assessment Date: | D9: ="Dining Area2: "&'Customer Info'!$G$16 -> Dining Area2: Coffee Bar | E9: Tray/Plate Count | F9: Same Per Person Waste As… | G9: Estimated Count | L9: expired | N9: expired
A10: 2017-10-16 | D10: Breakfast | E10: 20 | G10: =IF(F10="lunch",E11,IF(F10="dinner",E12,IF(F10="other",E13,IF(OR(F10="n/a",F10=""),"")))) ->  | L10: surplus | N10: plate waste
A11: Hours Studied: | D11: Lunch | F11: breakfast | G11: =IF(F11="dinner",E12,IF(F11="breakfast",E10,IF(F11="other",E13,IF(OR(F11="n/a",F11=""),"")))) -> 20 | L11: quality | N11: surplus
A12: 24 | D12: Dinner | F12: breakfast | G12: =IF(F12="lunch",E11,IF(F12="breakfast",E10,IF(F12="other",E13,IF(OR(F12="n/a",F12=""),"")))) -> 20 | L12: other | N12: quality
A13: Team Members: | D13: Other Meal | G13: =IF(F13="breakfast",E10,IF(F13="lunch",E11,IF(F13="dinner",E12,IF(OR(F13="",F13="n/a"),"")))) ->  | N13: other
A14: T. Jones, M. Evans
D15: ="Dining Area3: "&'Customer Info'!$I$16 -> Dining Area3: Catered Lunch | E15: Tray/Plate Count | F15: Same Per Person Waste As… | G15: Estimated Count
D16: Breakfast | G16: =IF(F16="lunch",E17,IF(F16="dinner",E18,IF(F16="other",E19,IF(OR(F16="n/a",F16=""),"")))) -> 
D17: Lunch | E17: 65 | G17: =IF(F17="dinner",E18,IF(F17="breakfast",E16,IF(F17="other",E19,IF(OR(F17="n/a",F17=""),"")))) -> 
D18: Dinner | G18: =IF(F18="lunch",E17,IF(F18="breakfast",E16,IF(F18="other",E19,IF(OR(F18="n/a",F18=""),"")))) -> 
D19: Other Meal | G19: =IF(F19="breakfast",E16,IF(F19="lunch",E17,IF(F19="dinner",E18,IF(OR(F19="",F19="n/a"),"")))) -> 
AS21: Making up for Missing Data
A22: Section A: LOG SHEET | L22: Sample Size Scaling Formulas | AS22: dining area1 | BI22: dining area2 | BY22: Dining Area3 | CO22: Pre vs. Post
A23: Meal Service | B23: Time Frame (hrs) | C23: Source Location | D23: Disposal Method | E23: Loss Reason | F23: Food Description | G23: Container Weight (lbs) | H23: Total Weight (lbs) | I23: Notes | J23: Food Weight (lbs) | K23: Scaled Food Weight (lbs/day) | L23: IF(plate waste) | M23: IF(dining area1) | N23: IF(dining area2) | O23: IF(Dining Area3) | P23: If dining area1 and breakfast | Q23: If dining area1 and lunch | R23: If dining area1 and dinner | S23: If dining area1 and other | T23: If dining area2 and breakfast | U23: If dining area2 and lunch | V23: IF dining area2 and dinner | W23: dining area2 and other | X23: If Dining Area3 and breakfast | Y23: If Dining Area3 and lunch | Z23: If Dining Area3 and dinner | AA23: Dining Area3 and other | AB23: Scale dining area1 breakfast | AC23: Scale dining area1 Lunch | AD23: Scale dining area1 Dinner | AE23: Scale dining area1 Other | AF23: Scale dining area2 breakfast | AG23: Scale dining area2 lunch | AH23: Scale dining area2 dinner | AI23: Scale dining area2 other | AJ23: Scale Dining Area3 breakfast | AK23: Scale Dining Area3 lunch | AL23: Scale Dining Area3 dinner | AM23: Scale Dining Area3 other | AN23: Scaled by Tray Count | AO23: Scaled by Time Frame | AP23: Scaling Factor Pre | AQ23: Scaling Factor Post | AR23: Shown Scaled Food Weight | AS23: Breakfast assuming lunch | AT23: Breakfast assuming dinner | AU23: Breakfast assuming other | AV23: Sum of Breakfast | AW23: Lunch assuming breakfast | AX23: Lunch assuming dinner | AY23: Lunch assuming other | AZ23: Sum of Lunch | BA23: Dinner assuming breakfast | BB23: Dinner assuming lunch | BC23: Dinner assuming other | BD23: Sum of Dinner | BE23: Other assuming breakfast | BF23: Other assuming lunch | BG23: Other assuming dinner | BH23: Sum of Other | BI23: Breakfast assuming lunch | BJ23: Breakfast assuming dinner | BK23: Breakfast assuming other | BL23: Sum of Breakfast | BM23: Lunch assuming breakfast | BN23: Lunch assuming dinner | BO23: Lunch assuming other | BP23: Sum of Lunch | BQ23: Dinner assuming breakfast | BR23: Dinner assuming lunch | BS23: Dinner assuming other | BT23: Sum of Dinner | BU23: Other assuming breakfast | BV23: Other assuming lunch | BW23: Other assuming dinner | BX23: Sum of Other | BY23: Breakfast assuming lunch | BZ23: Breakfast assuming dinner | CA23: Breakfast assuming other | CB23: Sum of Breakfast | CC23: Lunch assuming breakfast | CD23: Lunch assuming dinner | CE23: Lunch assuming other | CF23: Sum of Lunch | CG23: Dinner assuming breakfast | CH23: Dinner assuming lunch | CI23: Dinner assuming other | CJ23: Sum of Dinner | CK23: Other assuming breakfast | CL23: Other assuming lunch | CM23: Other assuming dinner | CN23: Sum of Other | CO23: Post Consumer (lbs) | CP23: Pre Consumer (lbs)
A24: dinner | C24: kitchen | D24: compost | E24: prep waste | F24: Vegetable trimmings | G24: 2 | H24: 104.8 | J24: =H24-G24 -> 102.8 | K24: =AR24 -> 97.9047619 | L24: =IF(E24="plate waste",J24,) -> 0 | M24: =IF(L24=0,,IF(C24="dining area1",J24,)) -> 0 | N24: =IF(L24=0,,IF(C24="dining area2",J24,)) -> 0 | O24: =IF(L24=0,,IF(C24="other",J24,)) -> 0 | P24: =IF(M24=0,,IF(A24="breakfast",J24,)) -> 0 | Q24: =IF(M24=0,,IF(A24="lunch",J24,)) -> 0 | R24: =IF(M24=0,,IF(A24="dinner",J24,)) -> 0 | S24: =IF(M24=0,,IF(A24="other",J24,)) -> 0 | T24: =IF(N24=0,,IF(A24="breakfast",J24,)) -> 0 | U24: =IF(N24=0,,IF(A24="lunch",J24,)) -> 0 | V24: =IF(N24=0,,IF(A24="dinner",J24,)) -> 0 | W24: =IF(N24=0,,IF(A24="other",J24,)) -> 0 | X24: =IF(O24=0,,IF(A24="breakfast",J24,)) -> 0 | Y24: =IF(O24=0,,IF(A24="lunch",J24,)) -> 0 | Z24: =IF(O24=0,,IF(A24="dinner",J24,)) -> 0 | AA24: =IF(O24=0,,IF(A24="other",J24,)) -> 0 | AB24: =IF((OR($F$4=0,$F$4="none")),IF(P24=0,,IF(OR($E$4='Customer Info'!$D$17,$E$4=0),P24,(P24/$E$4)*'Customer Info'!$D$17)),) -> 0 | AC24: =IF((OR($F$5=0,$F$5="none")),IF(Q24=0,,IF(OR($E$5='Customer Info'!$D$18,$E$5=0),Q24,(Q24/$E$5)*'Customer Info'!$D$18)),) -> 0 | AD24: =IF((OR($F$6=0,$F$6="none")),IF(R24=0,,IF(OR($E$6='Customer Info'!$D$19,$E$6=0),R24,(R24/$E$6)*'Customer Info'!$D$19)),) -> 0 | AE24: =IF((OR($F$7=0,$F$7="none")),IF(S24=0,,IF(OR($E$7='Customer Info'!$D$20,$E$7=0),S24,(S24/$E$7)*'Customer Info'!$D$20)),) -> 0 | AF24: =IF((OR($F$10=0,$F$10="none")),IF(T24=0,,IF(OR($E$10='Customer Info'!$F$17,$E$10=0),T24,(T24/$E$10)*'Customer Info'!$F$17)),) -> 0 | AG24: =IF((OR($F$11=0,$F$11="none")),IF(U24=0,,IF(OR($E$11='Customer Info'!$F$18,$E$11=0),U24,(U24/$E$11)*'Customer Info'!$F$18)),) -> 0 | AH24: =IF((OR($F$12=0,$F$12="none")),IF(V24=0,,IF(OR($E$12='Customer Info'!$F$19,$E$12=0),V24,(V24/$E$12)*'Customer Info'!$F$19)),) -> 0 | AI24: =IF((OR($F$13=0,$F$13="none")),IF(W24=0,,IF(OR($E$13='Customer Info'!$F$20,$E$13=0),W24,(W24/$E$13)*'Customer Info'!$F$20)),) -> 0 | AJ24: =IF((OR($F$16=0,$F$16="none")),IF(X24=0,,IF(($E$16='Customer Info'!$H$17,$E$16=0),X24,(X24/$E$16)*'Customer Info'!$H$17)),) -> 0 | AK24: =IF((OR($F$17=0,$F$17="none")),IF(Y24=0,,IF(OR($E$17='Customer Info'!$H$18, $E$17=0),Y24,(Y24/$E$17)*'Customer Info'!$H$18)),) -> 0 | AL24: =IF((OR($F$18=0,$F$18="none")),IF(Z24=0,,IF(OR($E$18='Customer Info'!$H$19, $E$18=0),Z24,(Z24/$E$18)*'Customer Info'!$H$19)),) -> 0 | AM24: =IF((OR($F$19=0,$F$19="none")),IF(AA24=0,,IF(OR($E$19='Customer Info'!$H$20,$E$19=0),AA24,(AA24/$E$19)*'Customer Info'!$H$20)),) -> 0 | AN24: =SUM(AB24:AM24) -> 0 | AO24: =IF(AN24=0,(IF(B24=0, J24,J24*24/B24)),(IF(B24=0, AN24,AN24*24/B24))) -> 102.8 | AP24: =IF(E24="plate waste",,IF('Customer Info'!$M$18=0,'Log Sheet'!AO24,'Customer Info'!$M$18*'Log Sheet'!AO24)) -> 97.9047619 | AQ24: =IF(E24="plate waste",IF(C24="dining area1",IF('Customer Info'!$L$30=0,AO24*'Customer Info'!$M$18,AO24*'Customer Info'!$L$30),IF(C24="dining area2",IF('Customer Info'!$L$31=0,AO24*'Customer Info'!$M$18,AO24*'Customer Info'!$L$31),IF(C24="Dining Area3",IF('Customer Info'!$L$32=0,AO24*'Customer Info'!$M$18,AO24*'Customer Info'!$L$32),))),) -> 0 | AR24: =SUM(AP24:AQ24) -> 97.9047619 | AS24: =IF($F$4="lunch",IF(Q24=0,,(Q24/$E$5)*'Customer Info'!$D$17),) -> 0 | AT24: =IF($F$4="dinner",IF(R24=0,,(R24/$E$6)*'Customer Info'!$D$17),) -> 0 | AU24: =IF($F$4="other",IF(S24=0,,(S24/$E$7)*'Customer Info'!$D$17),) -> 0 | AV24: =SUM(AS24:AU24) -> 0 | AW24: =IF($F$5="breakfast",IF(P24=0,,(P24/$E$4)*'Customer Info'!$D$18),) -> 0 | AX24: =IF($F$5="dinner",IF(R24=0,,(R24/$E$6)*'Customer Info'!$D$18),) -> 0 | AY24: =IF($F$5="other",IF(S24=0,,(S24/$E$7)*'Customer Info'!$D$18),) -> 0 | AZ24: =SUM(AW24:AY24) -> 0 | BA24: =IF($F$6="breakfast",IF(P24=0,,(P24/$E$4)*'Customer Info'!$D$19),) -> 0 | BB24: =IF($F$6="lunch",IF(Q24=0,,(Q24/$E$5)*'Customer Info'!$D$19),) -> 0 | BC24: =IF($F$6="other",IF(S24=0,,(S24/$E$7)*'Customer Info'!$D$19),) -> 0 | BD24: =SUM(BA24:BC24) -> 0 | BE24: =IF($F$7="breakfast",IF(P24=0,,(P24/$E$4)*'Customer Info'!$D$20),) -> 0 | BF24: =IF($F$7="lunch",IF(Q24=0,,(Q24/$E$5)*'Customer Info'!$D$20),) -> 0 | BG24: =IF($F$7="dinner",IF(R24=0,,(R24/$E$6)*'Customer Info'!$D$20),) -> 0 | BH24: =SUM(BE24:BG24) -> 0 | BI24: =IF($F$10="lunch",IF(U24=0,,(U24/$E$11)*'Customer Info'!$F$17),) -> 0 | BJ24: =IF($F$10="dinner",IF(V24=0,,(V24/$E$12)*'Customer Info'!$F$17),) -> 0 | BK24: =IF($F$10="other",IF(W24=0,,(W24/$E$13)*'Customer Info'!$F$17),) -> 0 | BL24: =SUM(BI24:BK24) -> 0 | BM24: =IF($F$11="breakfast",IF(T24=0,,(T24/$E$10)*'Customer Info'!$F$18),) -> 0 | BN24: =IF($F$11="dinner",IF(V24=0,,(V24/$E$12)*'Customer Info'!$F$18),) -> 0 | BO24: =IF($F$11="other",IF(W24=0,,(W24/$E$13)*'Customer Info'!$F$18),) -> 0 | BP24: =SUM(BM24:BO24) -> 0 | BQ24: =IF($F$12="breakfast",IF(T24=0,,(T24/$E$10)*'Customer Info'!$F$19),) -> 0 | BR24: =IF($F$12="lunch",IF(U24=0,,(U24/$E$11)*'Customer Info'!$F$19),) -> 0 | BS24: =IF($F$12="other",IF(W24=0,,(W24/$E$13)*'Customer Info'!$F$19),) -> 0 | BT24: =SUM(BQ24:BS24) -> 0 | BU24: =IF($F$13="breakfast",IF(T24=0,,(T24/$E$10)*'Customer Info'!$F$20),) -> 0 | BV24: =IF($F$13="lunch",IF(U24=0,,(U24/$E$11)*'Customer Info'!$F$20),) -> 0 | BW24: =IF($F$13="dinner",IF(V24=0,,(V24/$E$12)*'Customer Info'!$F$20),) -> 0 | BX24: =SUM(BU24:BW24) -> 0 | BY24: =IF($F$16="lunch",IF(Y24=0,,(Y24/$E$17)*'Customer Info'!$H$17),) -> 0 | BZ24: =IF($F$16="dinner",IF(Z24=0,,(Z24/$E$18)*'Customer Info'!$H$17),) -> 0 | CA24: =IF($F$16="other",IF(AA24=0,,(AA24/$E$19)*'Customer Info'!$H$17),) -> 0 | CB24: =SUM(BY24:CA24) -> 0 | CC24: =IF($F$17="breakfast",IF(X24=0,,(X24/$E$16)*'Customer Info'!$H$18),) -> 0 | CD24: =IF($F$17="dinner",IF(Z24=0,,(Z24/$E$18)*'Customer Info'!$H$18),) -> 0 | CE24: =IF($F$17="other",IF(AA24=0,,(AA24/$E$19)*'Customer Info'!$H$18),) -> 0 | CF24: =SUM(CC24:CE24) -> 0 | CG24: =IF($F$18="breakfast",IF(X24=0,,(X24/$E$16)*'Customer Info'!$H$19),) -> 0 | CH24: =IF($F$18="lunch",IF(Y24=0,,(Y24/$E$17)*'Customer Info'!$H$19),) -> 0 | CI24: =IF($F$18="other",IF(AA24=0,,(AA24/$E$19)*'Customer Info'!$H$19),) -> 0 | CJ24: =SUM(CG24:CI24) -> 0 | CK24: =IF($F$19="breakfast",IF(X24=0,,(X24/$E$16)*'Customer Info'!$H$20),) -> 0 | CL24: =IF($F$19="lunch",IF(Y24=0,,(Y24/$E$17)*'Customer Info'!$H$20),) -> 0 | CM24: =IF($F$19="dinner",IF(Z24=0,,(Z24/$E$18)*'Customer Info'!$H$20),) -> 0 | CN24: =SUM(CK24:CM24) -> 0 | CO24: =IF(E24="plate waste",AR24,) -> 0 | CP24: =IF(E24="plate waste",,AR24) -> 97.9047619
A25: dinner | C25: kitchen | D25: landfill | E25: surplus | F25: Steamed rice and veggie mix | G25: 2 | H25: 25.6 | J25: 23.6 | K25: =AR25 -> 22.47619048 | L25: 0 | M25: 0 | N25: 0 | O25: 0 | P25: 0 | Q25: 0 | R25: 0 | S25: 0 | T25: 0 | U25: 0 | V25: 0 | W25: 0 | X25: 0 | Y25: 0 | Z25: 0 | AA25: 0 | AB25: =IF((OR($F$4=0,$F$4="none")),IF(P25=0,,IF(OR($E$4='Customer Info'!$D$17,$E$4=0),P25,(P25/$E$4)*'Customer Info'!$D$17)),) -> 0 | AC25: =IF((OR($F$5=0,$F$5="none")),IF(Q25=0,,IF(OR($E$5='Customer Info'!$D$18,$E$5=0),Q25,(Q25/$E$5)*'Customer Info'!$D$18)),) -> 0 | AD25: =IF((OR($F$6=0,$F$6="none")),IF(R25=0,,IF(OR($E$6='Customer Info'!$D$19,$E$6=0),R25,(R25/$E$6)*'Customer Info'!$D$19)),) -> 0 | AE25: =IF((OR($F$7=0,$F$7="none")),IF(S25=0,,IF(OR($E$7='Customer Info'!$D$20,$E$7=0),S25,(S25/$E$7)*'Customer Info'!$D$20)),) -> 0 | AF25: =IF((OR($F$10=0,$F$10="none")),IF(T25=0,,IF(OR($E$10='Customer Info'!$F$17,$E$10=0),T25,(T25/$E$10)*'Customer Info'!$F$17)),) -> 0 | AG25: =IF((OR($F$11=0,$F$11="none")),IF(U25=0,,IF(OR($E$11='Customer Info'!$F$18,$E$11=0),U25,(U25/$E$11)*'Customer Info'!$F$18)),) -> 0 | AH25: =IF((OR($F$12=0,$F$12="none")),IF(V25=0,,IF(OR($E$12='Customer Info'!$F$19,$E$12=0),V25,(V25/$E$12)*'Customer Info'!$F$19)),) -> 0 | AI25: =IF((OR($F$13=0,$F$13="none")),IF(W25=0,,IF(OR($E$13='Customer Info'!$F$20,$E$13=0),W25,(W25/$E$13)*'Customer Info'!$F$20)),) -> 0 | AJ25: =IF((OR($F$16=0,$F$16="none")),IF(X25=0,,IF(($E$16='Customer Info'!$H$17,$E$16=0),X25,(X25/$E$16)*'Customer Info'!$H$17)),) -> 0 | AK25: =IF((OR($F$17=0,$F$17="none")),IF(Y25=0,,IF(OR($E$17='Customer Info'!$H$18, $E$17=0),Y25,(Y25/$E$17)*'Customer Info'!$H$18)),) -> 0 | AL25: =IF((OR($F$18=0,$F$18="none")),IF(Z25=0,,IF(OR($E$18='Customer Info'!$H$19, $E$18=0),Z25,(Z25/$E$18)*'Customer Info'!$H$19)),) -> 0 | AM25: =IF((OR($F$19=0,$F$19="none")),IF(AA25=0,,IF(OR($E$19='Customer Info'!$H$20,$E$19=0),AA25,(AA25/$E$19)*'Customer Info'!$H$20)),) -> 0 | AN25: =SUM(AB25:AM25) -> 0 | AO25: 23.6 | AP25: =IF(E25="plate waste",,IF('Customer Info'!$M$18=0,'Log Sheet'!AO25,'Customer Info'!$M$18*'Log Sheet'!AO25)) -> 22.47619048 | AQ25: =IF(E25="plate waste",IF(C25="dining area1",IF('Customer Info'!$L$30=0,AO25*'Customer Info'!$M$18,AO25*'Customer Info'!$L$30),IF(C25="dining area2",IF('Customer Info'!$L$31=0,AO25*'Customer Info'!$M$18,AO25*'Customer Info'!$L$31),IF(C25="Dining Area3",IF('Customer Info'!$L$32=0,AO25*'Customer Info'!$M$18,AO25*'Customer Info'!$L$32),))),) -> 0 | AR25: =SUM(AP25:AQ25) -> 22.47619048 | AS25: =IF($F$4="lunch",IF(Q25=0,,(Q25/$E$5)*'Customer Info'!$D$17),) -> 0 | AT25: =IF($F$4="dinner",IF(R25=0,,(R25/$E$6)*'Customer Info'!$D$17),) -> 0 | AU25: =IF($F$4="other",IF(S25=0,,(S25/$E$7)*'Customer Info'!$D$17),) -> 0 | AV25: =SUM(AS25:AU25) -> 0 | AW25: =IF($F$5="breakfast",IF(P25=0,,(P25/$E$4)*'Customer Info'!$D$18),) -> 0 | AX25: =IF($F$5="dinner",IF(R25=0,,(R25/$E$6)*'Customer Info'!$D$18),) -> 0 | AY25: =IF($F$5="other",IF(S25=0,,(S25/$E$7)*'Customer Info'!$D$18),) -> 0 | AZ25: =SUM(AW25:AY25) -> 0 | BA25: =IF($F$6="breakfast",IF(P25=0,,(P25/$E$4)*'Customer Info'!$D$19),) -> 0 | BB25: =IF($F$6="lunch",IF(Q25=0,,(Q25/$E$5)*'Customer Info'!$D$19),) -> 0 | BC25: =IF($F$6="other",IF(S25=0,,(S25/$E$7)*'Customer Info'!$D$19),) -> 0 | BD25: =SUM(BA25:BC25) -> 0 | BE25: =IF($F$7="breakfast",IF(P25=0,,(P25/$E$4)*'Customer Info'!$D$20),) -> 0 | BF25: =IF($F$7="lunch",IF(Q25=0,,(Q25/$E$5)*'Customer Info'!$D$20),) -> 0 | BG25: =IF($F$7="dinner",IF(R25=0,,(R25/$E$6)*'Customer Info'!$D$20),) -> 0 | BH25: =SUM(BE25:BG25) -> 0 | BI25: =IF($F$10="lunch",IF(U25=0,,(U25/$E$11)*'Customer Info'!$F$17),) -> 0 | BJ25: =IF($F$10="dinner",IF(V25=0,,(V25/$E$12)*'Customer Info'!$F$17),) -> 0 | BK25: =IF($F$10="other",IF(W25=0,,(W25/$E$13)*'Customer Info'!$F$17),) -> 0 | BL25: =SUM(BI25:BK25) -> 0 | BM25: =IF($F$11="breakfast",IF(T25=0,,(T25/$E$10)*'Customer Info'!$F$18),) -> 0 | BN25: =IF($F$11="dinner",IF(V25=0,,(V25/$E$12)*'Customer Info'!$F$18),) -> 0 | BO25: =IF($F$11="other",IF(W25=0,,(W25/$E$13)*'Customer Info'!$F$18),) -> 0 | BP25: =SUM(BM25:BO25) -> 0 | BQ25: =IF($F$12="breakfast",IF(T25=0,,(T25/$E$10)*'Customer Info'!$F$19),) -> 0 | BR25: =IF($F$12="lunch",IF(U25=0,,(U25/$E$11)*'Customer Info'!$F$19),) -> 0 | BS25: =IF($F$12="other",IF(W25=0,,(W25/$E$13)*'Customer Info'!$F$19),) -> 0 | BT25: =SUM(BQ25:BS25) -> 0 | BU25: =IF($F$13="breakfast",IF(T25=0,,(T25/$E$10)*'Customer Info'!$F$20),) -> 0 | BV25: =IF($F$13="lunch",IF(U25=0,,(U25/$E$11)*'Customer Info'!$F$20),) -> 0 | BW25: =IF($F$13="dinner",IF(V25=0,,(V25/$E$12)*'Customer Info'!$F$20),) -> 0 | BX25: =SUM(BU25:BW25) -> 0 | BY25: =IF($F$16="lunch",IF(Y25=0,,(Y25/$E$17)*'Customer Info'!$H$17),) -> 0 | BZ25: =IF($F$16="dinner",IF(Z25=0,,(Z25/$E$18)*'Customer Info'!$H$17),) -> 0 | CA25: =IF($F$16="other",IF(AA25=0,,(AA25/$E$19)*'Customer Info'!$H$17),) -> 0 | CB25: =SUM(BY25:CA25) -> 0 | CC25: =IF($F$17="breakfast",IF(X25=0,,(X25/$E$16)*'Customer Info'!$H$18),) -> 0 | CD25: =IF($F$17="dinner",IF(Z25=0,,(Z25/$E$18)*'Customer Info'!$H$18),) -> 0 | CE25: =IF($F$17="other",IF(AA25=0,,(AA25/$E$19)*'Customer Info'!$H$18),) -> 0 | CF25: =SUM(CC25:CE25) -> 0 | CG25: =IF($F$18="breakfast",IF(X25=0,,(X25/$E$16)*'Customer Info'!$H$19),) -> 0 | CH25: =IF($F$18="lunch",IF(Y25=0,,(Y25/$E$17)*'Customer Info'!$H$19),) -> 0 | CI25: =IF($F$18="other",IF(AA25=0,,(AA25/$E$19)*'Customer Info'!$H$19),) -> 0 | CJ25: =SUM(CG25:CI25) -> 0 | CK25: =IF($F$19="breakfast",IF(X25=0,,(X25/$E$16)*'Customer Info'!$H$20),) -> 0 | CL25: =IF($F$19="lunch",IF(Y25=0,,(Y25/$E$17)*'Customer Info'!$H$20),) -> 0 | CM25: =IF($F$19="dinner",IF(Z25=0,,(Z25/$E$18)*'Customer Info'!$H$20),) -> 0 | CN25: =SUM(CK25:CM25) -> 0 | CO25: =IF(E25="plate waste",AR25,) -> 0 | CP25: =IF(E25="plate waste",,AR25) -> 22.47619048
A26: breakfast | C26: kitchen | D26: compost | E26: prep waste | F26: Waffle batter, fruit trimmings | G26: 1 | H26: 66 | J26: 65 | K26: =AR26 -> 61.9047619 | L26: 0 | M26: 0 | N26: 0 | O26: 0 | P26: 0 | Q26: 0 | R26: 0 | S26: 0 | T26: 0 | U26: 0 | V26: 0 | W26: 0 | X26: 0 | Y26: 0 | Z26: 0 | AA26: 0 | AB26: =IF((OR($F$4=0,$F$4="none")),IF(P26=0,,IF(OR($E$4='Customer Info'!$D$17,$E$4=0),P26,(P26/$E$4)*'Customer Info'!$D$17)),) -> 0 | AC26: =IF((OR($F$5=0,$F$5="none")),IF(Q26=0,,IF(OR($E$5='Customer Info'!$D$18,$E$5=0),Q26,(Q26/$E$5)*'Customer Info'!$D$18)),) -> 0 | AD26: =IF((OR($F$6=0,$F$6="none")),IF(R26=0,,IF(OR($E$6='Customer Info'!$D$19,$E$6=0),R26,(R26/$E$6)*'Customer Info'!$D$19)),) -> 0 | AE26: =IF((OR($F$7=0,$F$7="none")),IF(S26=0,,IF(OR($E$7='Customer Info'!$D$20,$E$7=0),S26,(S26/$E$7)*'Customer Info'!$D$20)),) -> 0 | AF26: =IF((OR($F$10=0,$F$10="none")),IF(T26=0,,IF(OR($E$10='Customer Info'!$F$17,$E$10=0),T26,(T26/$E$10)*'Customer Info'!$F$17)),) -> 0 | AG26: =IF((OR($F$11=0,$F$11="none")),IF(U26=0,,IF(OR($E$11='Customer Info'!$F$18,$E$11=0),U26,(U26/$E$11)*'Customer Info'!$F$18)),) -> 0 | AH26: =IF((OR($F$12=0,$F$12="none")),IF(V26=0,,IF(OR($E$12='Customer Info'!$F$19,$E$12=0),V26,(V26/$E$12)*'Customer Info'!$F$19)),) -> 0 | AI26: =IF((OR($F$13=0,$F$13="none")),IF(W26=0,,IF(OR($E$13='Customer Info'!$F$20,$E$13=0),W26,(W26/$E$13)*'Customer Info'!$F$20)),) -> 0 | AJ26: =IF((OR($F$16=0,$F$16="none")),IF(X26=0,,IF(($E$16='Customer Info'!$H$17,$E$16=0),X26,(X26/$E$16)*'Customer Info'!$H$17)),) -> 0 | AK26: =IF((OR($F$17=0,$F$17="none")),IF(Y26=0,,IF(OR($E$17='Customer Info'!$H$18, $E$17=0),Y26,(Y26/$E$17)*'Customer Info'!$H$18)),) -> 0 | AL26: =IF((OR($F$18=0,$F$18="none")),IF(Z26=0,,IF(OR($E$18='Customer Info'!$H$19, $E$18=0),Z26,(Z26/$E$18)*'Customer Info'!$H$19)),) -> 0 | AM26: =IF((OR($F$19=0,$F$19="none")),IF(AA26=0,,IF(OR($E$19='Customer Info'!$H$20,$E$19=0),AA26,(AA26/$E$19)*'Customer Info'!$H$20)),) -> 0 | AN26: 0 | AO26: 65 | AP26: =IF(E26="plate waste",,IF('Customer Info'!$M$18=0,'Log Sheet'!AO26,'Customer Info'!$M$18*'Log Sheet'!AO26)) -> 61.9047619 | AQ26: =IF(E26="plate waste",IF(C26="dining area1",IF('Customer Info'!$L$30=0,AO26*'Customer Info'!$M$18,AO26*'Customer Info'!$L$30),IF(C26="dining area2",IF('Customer Info'!$L$31=0,AO26*'Customer Info'!$M$18,AO26*'Customer Info'!$L$31),IF(C26="Dining Area3",IF('Customer Info'!$L$32=0,AO26*'Customer Info'!$M$18,AO26*'Customer Info'!$L$32),))),) -> 0 | AR26: 61.9047619 | AS26: =IF($F$4="lunch",IF(Q26=0,,(Q26/$E$5)*'Customer Info'!$D$17),) -> 0 | AT26: =IF($F$4="dinner",IF(R26=0,,(R26/$E$6)*'Customer Info'!$D$17),) -> 0 | AU26: =IF($F$4="other",IF(S26=0,,(S26/$E$7)*'Customer Info'!$D$17),) -> 0 | AV26: 0 | AW26: =IF($F$5="breakfast",IF(P26=0,,(P26/$E$4)*'Customer Info'!$D$18),) -> 0 | AX26: =IF($F$5="dinner",IF(R26=0,,(R26/$E$6)*'Customer Info'!$D$18),) -> 0 | AY26: =IF($F$5="other",IF(S26=0,,(S26/$E$7)*'Customer Info'!$D$18),) -> 0 | AZ26: 0 | BA26: =IF($F$6="breakfast",IF(P26=0,,(P26/$E$4)*'Customer Info'!$D$19),) -> 0 | BB26: =IF($F$6="lunch",IF(Q26=0,,(Q26/$E$5)*'Customer Info'!$D$19),) -> 0 | BC26: =IF($F$6="other",IF(S26=0,,(S26/$E$7)*'Customer Info'!$D$19),) -> 0 | BD26: 0 | BE26: =IF($F$7="breakfast",IF(P26=0,,(P26/$E$4)*'Customer Info'!$D$20),) -> 0 | BF26: =IF($F$7="lunch",IF(Q26=0,,(Q26/$E$5)*'Customer Info'!$D$20),) -> 0 | BG26: =IF($F$7="dinner",IF(R26=0,,(R26/$E$6)*'Customer Info'!$D$20),) -> 0 | BH26: 0 | BI26: =IF($F$10="lunch",IF(U26=0,,(U26/$E$11)*'Customer Info'!$F$17),) -> 0 | BJ26: =IF($F$10="dinner",IF(V26=0,,(V26/$E$12)*'Customer Info'!$F$17),) -> 0 | BK26: =IF($F$10="other",IF(W26=0,,(W26/$E$13)*'Customer Info'!$F$17),) -> 0 | BL26: 0 | BM26: =IF($F$11="breakfast",IF(T26=0,,(T26/$E$10)*'Customer Info'!$F$18),) -> 0 | BN26: =IF($F$11="dinner",IF(V26=0,,(V26/$E$12)*'Customer Info'!$F$18),) -> 0 | BO26: =IF($F$11="other",IF(W26=0,,(W26/$E$13)*'Customer Info'!$F$18),) -> 0 | BP26: 0 | BQ26: =IF($F$12="breakfast",IF(T26=0,,(T26/$E$10)*'Customer Info'!$F$19),) -> 0 | BR26: =IF($F$12="lunch",IF(U26=0,,(U26/$E$11)*'Customer Info'!$F$19),) -> 0 | BS26: =IF($F$12="other",IF(W26=0,,(W26/$E$13)*'Customer Info'!$F$19),) -> 0 | BT26: 0 | BU26: =IF($F$13="breakfast",IF(T26=0,,(T26/$E$10)*'Customer Info'!$F$20),) -> 0 | BV26: =IF($F$13="lunch",IF(U26=0,,(U26/$E$11)*'Customer Info'!$F$20),) -> 0 | BW26: =IF($F$13="dinner",IF(V26=0,,(V26/$E$12)*'Customer Info'!$F$20),) -> 0 | BX26: 0 | BY26: =IF($F$16="lunch",IF(Y26=0,,(Y26/$E$17)*'Customer Info'!$H$17),) -> 0 | BZ26: =IF($F$16="dinner",IF(Z26=0,,(Z26/$E$18)*'Customer Info'!$H$17),) -> 0 | CA26: =IF($F$16="other",IF(AA26=0,,(AA26/$E$19)*'Customer Info'!$H$17),) -> 0 | CB26: 0 | CC26: =IF($F$17="breakfast",IF(X26=0,,(X26/$E$16)*'Customer Info'!$H$18),) -> 0 | CD26: =IF($F$17="dinner",IF(Z26=0,,(Z26/$E$18)*'Customer Info'!$H$18),) -> 0 | CE26: =IF($F$17="other",IF(AA26=0,,(AA26/$E$19)*'Customer Info'!$H$18),) -> 0 | CF26: 0 | CG26: =IF($F$18="breakfast",IF(X26=0,,(X26/$E$16)*'Customer Info'!$H$19),) -> 0 | CH26: =IF($F$18="lunch",IF(Y26=0,,(Y26/$E$17)*'Customer Info'!$H$19),) -> 0 | CI26: =IF($F$18="other",IF(AA26=0,,(AA26/$E$19)*'Customer Info'!$H$19),) -> 0 | CJ26: 0 | CK26: =IF($F$19="breakfast",IF(X26=0,,(X26/$E$16)*'Customer Info'!$H$20),) -> 0 | CL26: =IF($F$19="lunch",IF(Y26=0,,(Y26/$E$17)*'Customer Info'!$H$20),) -> 0 | CM26: =IF($F$19="dinner",IF(Z26=0,,(Z26/$E$18)*'Customer Info'!$H$20),) -> 0 | CN26: 0 | CO26: 0 | CP26: 61.9047619
A27: breakfast | C27: kitchen | D27: donation | E27: surplus | F27: Breakfast pizza | G27: 2 | H27: 17.6 | J27: 15.6 | K27: 14.85714286 | L27: 0 | M27: 0 | N27: 0 | O27: 0 | P27: 0 | Q27: 0 | R27: 0 | S27: 0 | T27: 0 | U27: 0 | V27: 0 | W27: 0 | X27: 0 | Y27: 0 | Z27: 0 | AA27: 0 | AB27: =IF((OR($F$4=0,$F$4="none")),IF(P27=0,,IF(OR($E$4='Customer Info'!$D$17,$E$4=0),P27,(P27/$E$4)*'Customer Info'!$D$17)),) -> 0 | AC27: =IF((OR($F$5=0,$F$5="none")),IF(Q27=0,,IF(OR($E$5='Customer Info'!$D$18,$E$5=0),Q27,(Q27/$E$5)*'Customer Info'!$D$18)),) -> 0 | AD27: =IF((OR($F$6=0,$F$6="none")),IF(R27=0,,IF(OR($E$6='Customer Info'!$D$19,$E$6=0),R27,(R27/$E$6)*'Customer Info'!$D$19)),) -> 0 | AE27: =IF((OR($F$7=0,$F$7="none")),IF(S27=0,,IF(OR($E$7='Customer Info'!$D$20,$E$7=0),S27,(S27/$E$7)*'Customer Info'!$D$20)),) -> 0 | AF27: =IF((OR($F$10=0,$F$10="none")),IF(T27=0,,IF(OR($E$10='Customer Info'!$F$17,$E$10=0),T27,(T27/$E$10)*'Customer Info'!$F$17)),) -> 0 | AG27: =IF((OR($F$11=0,$F$11="none")),IF(U27=0,,IF(OR($E$11='Customer Info'!$F$18,$E$11=0),U27,(U27/$E$11)*'Customer Info'!$F$18)),) -> 0 | AH27: =IF((OR($F$12=0,$F$12="none")),IF(V27=0,,IF(OR($E$12='Customer Info'!$F$19,$E$12=0),V27,(V27/$E$12)*'Customer Info'!$F$19)),) -> 0 | AI27: =IF((OR($F$13=0,$F$13="none")),IF(W27=0,,IF(OR($E$13='Customer Info'!$F$20,$E$13=0),W27,(W27/$E$13)*'Customer Info'!$F$20)),) -> 0 | AJ27: =IF((OR($F$16=0,$F$16="none")),IF(X27=0,,IF(($E$16='Customer Info'!$H$17,$E$16=0),X27,(X27/$E$16)*'Customer Info'!$H$17)),) -> 0 | AK27: =IF((OR($F$17=0,$F$17="none")),IF(Y27=0,,IF(OR($E$17='Customer Info'!$H$18, $E$17=0),Y27,(Y27/$E$17)*'Customer Info'!$H$18)),) -> 0 | AL27: =IF((OR($F$18=0,$F$18="none")),IF(Z27=0,,IF(OR($E$18='Customer Info'!$H$19, $E$18=0),Z27,(Z27/$E$18)*'Customer Info'!$H$19)),) -> 0 | AM27: =IF((OR($F$19=0,$F$19="none")),IF(AA27=0,,IF(OR($E$19='Customer Info'!$H$20,$E$19=0),AA27,(AA27/$E$19)*'Customer Info'!$H$20)),) -> 0 | AN27: 0 | AO27: 15.6 | AP27: =IF(E27="plate waste",,IF('Customer Info'!$M$18=0,'Log Sheet'!AO27,'Customer Info'!$M$18*'Log Sheet'!AO27)) -> 14.85714286 | AQ27: =IF(E27="plate waste",IF(C27="dining area1",IF('Customer Info'!$L$30=0,AO27*'Customer Info'!$M$18,AO27*'Customer Info'!$L$30),IF(C27="dining area2",IF('Customer Info'!$L$31=0,AO27*'Customer Info'!$M$18,AO27*'Customer Info'!$L$31),IF(C27="Dining Area3",IF('Customer Info'!$L$32=0,AO27*'Customer Info'!$M$18,AO27*'Customer Info'!$L$32),))),) -> 0 | AR27: 14.85714286 | AS27: =IF($F$4="lunch",IF(Q27=0,,(Q27/$E$5)*'Customer Info'!$D$17),) -> 0 | AT27: =IF($F$4="dinner",IF(R27=0,,(R27/$E$6)*'Customer Info'!$D$17),) -> 0 | AU27: =IF($F$4="other",IF(S27=0,,(S27/$E$7)*'Customer Info'!$D$17),) -> 0 | AV27: 0 | AW27: =IF($F$5="breakfast",IF(P27=0,,(P27/$E$4)*'Customer Info'!$D$18),) -> 0 | AX27: =IF($F$5="dinner",IF(R27=0,,(R27/$E$6)*'Customer Info'!$D$18),) -> 0 | AY27: =IF($F$5="other",IF(S27=0,,(S27/$E$7)*'Customer Info'!$D$18),) -> 0 | AZ27: 0 | BA27: =IF($F$6="breakfast",IF(P27=0,,(P27/$E$4)*'Customer Info'!$D$19),) -> 0 | BB27: =IF($F$6="lunch",IF(Q27=0,,(Q27/$E$5)*'Customer Info'!$D$19),) -> 0 | BC27: =IF($F$6="other",IF(S27=0,,(S27/$E$7)*'Customer Info'!$D$19),) -> 0 | BD27: 0 | BE27: =IF($F$7="breakfast",IF(P27=0,,(P27/$E$4)*'Customer Info'!$D$20),) -> 0 | BF27: =IF($F$7="lunch",IF(Q27=0,,(Q27/$E$5)*'Customer Info'!$D$20),) -> 0 | BG27: =IF($F$7="dinner",IF(R27=0,,(R27/$E$6)*'Customer Info'!$D$20),) -> 0 | BH27: 0 | BI27: =IF($F$10="lunch",IF(U27=0,,(U27/$E$11)*'Customer Info'!$F$17),) -> 0 | BJ27: =IF($F$10="dinner",IF(V27=0,,(V27/$E$12)*'Customer Info'!$F$17),) -> 0 | BK27: =IF($F$10="other",IF(W27=0,,(W27/$E$13)*'Customer Info'!$F$17),) -> 0 | BL27: 0 | BM27: =IF($F$11="breakfast",IF(T27=0,,(T27/$E$10)*'Customer Info'!$F$18),) -> 0 | BN27: =IF($F$11="dinner",IF(V27=0,,(V27/$E$12)*'Customer Info'!$F$18),) -> 0 | BO27: =IF($F$11="other",IF(W27=0,,(W27/$E$13)*'Customer Info'!$F$18),) -> 0 | BP27: 0 | BQ27: =IF($F$12="breakfast",IF(T27=0,,(T27/$E$10)*'Customer Info'!$F$19),) -> 0 | BR27: =IF($F$12="lunch",IF(U27=0,,(U27/$E$11)*'Customer Info'!$F$19),) -> 0 | BS27: =IF($F$12="other",IF(W27=0,,(W27/$E$13)*'Customer Info'!$F$19),) -> 0 | BT27: 0 | BU27: =IF($F$13="breakfast",IF(T27=0,,(T27/$E$10)*'Customer Info'!$F$20),) -> 0 | BV27: =IF($F$13="lunch",IF(U27=0,,(U27/$E$11)*'Customer Info'!$F$20),) -> 0 | BW27: =IF($F$13="dinner",IF(V27=0,,(V27/$E$12)*'Customer Info'!$F$20),) -> 0 | BX27: 0 | BY27: =IF($F$16="lunch",IF(Y27=0,,(Y27/$E$17)*'Customer Info'!$H$17),) -> 0 | BZ27: =IF($F$16="dinner",IF(Z27=0,,(Z27/$E$18)*'Customer Info'!$H$17),) -> 0 | CA27: =IF($F$16="other",IF(AA27=0,,(AA27/$E$19)*'Customer Info'!$H$17),) -> 0 | CB27: 0 | CC27: =IF($F$17="breakfast",IF(X27=0,,(X27/$E$16)*'Customer Info'!$H$18),) -> 0 | CD27: =IF($F$17="dinner",IF(Z27=0,,(Z27/$E$18)*'Customer Info'!$H$18),) -> 0 | CE27: =IF($F$17="other",IF(AA27=0,,(AA27/$E$19)*'Customer Info'!$H$18),) -> 0 | CF27: 0 | CG27: =IF($F$18="breakfast",IF(X27=0,,(X27/$E$16)*'Customer Info'!$H$19),) -> 0 | CH27: =IF($F$18="lunch",IF(Y27=0,,(Y27/$E$17)*'Customer Info'!$H$19),) -> 0 | CI27: =IF($F$18="other",IF(AA27=0,,(AA27/$E$19)*'Customer Info'!$H$19),) -> 0 | CJ27: 0 | CK27: =IF($F$19="breakfast",IF(X27=0,,(X27/$E$16)*'Customer Info'!$H$20),) -> 0 | CL27: =IF($F$19="lunch",IF(Y27=0,,(Y27/$E$17)*'Customer Info'!$H$20),) -> 0 | CM27: =IF($F$19="dinner",IF(Z27=0,,(Z27/$E$18)*'Customer Info'!$H$20),) -> 0 | CN27: 0 | CO27: 0 | CP27: 14.85714286
A28: lunch | B28: 48 | C28: kitchen | D28: landfill | E28: expired | F28: Pre-made Sandwiches | G28: 2 | H28: 26 | J28: 24 | K28: 11.42857143 | L28: 0 | M28: 0 | N28: 0 | O28: 0 | P28: 0 | Q28: 0 | R28: 0 | S28: 0 | T28: 0 | U28: 0 | V28: 0 | W28: 0 | X28: 0 | Y28: 0 | Z28: 0 | AA28: 0 | AB28: =IF((OR($F$4=0,$F$4="none")),IF(P28=0,,IF(OR($E$4='Customer Info'!$D$17,$E$4=0),P28,(P28/$E$4)*'Customer Info'!$D$17)),) -> 0 | AC28: =IF((OR($F$5=0,$F$5="none")),IF(Q28=0,,IF(OR($E$5='Customer Info'!$D$18,$E$5=0),Q28,(Q28/$E$5)*'Customer Info'!$D$18)),) -> 0 | AD28: =IF((OR($F$6=0,$F$6="none")),IF(R28=0,,IF(OR($E$6='Customer Info'!$D$19,$E$6=0),R28,(R28/$E$6)*'Customer Info'!$D$19)),) -> 0 | AE28: =IF((OR($F$7=0,$F$7="none")),IF(S28=0,,IF(OR($E$7='Customer Info'!$D$20,$E$7=0),S28,(S28/$E$7)*'Customer Info'!$D$20)),) -> 0 | AF28: =IF((OR($F$10=0,$F$10="none")),IF(T28=0,,IF(OR($E$10='Customer Info'!$F$17,$E$10=0),T28,(T28/$E$10)*'Customer Info'!$F$17)),) -> 0 | AG28: =IF((OR($F$11=0,$F$11="none")),IF(U28=0,,IF(OR($E$11='Customer Info'!$F$18,$E$11=0),U28,(U28/$E$11)*'Customer Info'!$F$18)),) -> 0 | AH28: =IF((OR($F$12=0,$F$12="none")),IF(V28=0,,IF(OR($E$12='Customer Info'!$F$19,$E$12=0),V28,(V28/$E$12)*'Customer Info'!$F$19)),) -> 0 | AI28: =IF((OR($F$13=0,$F$13="none")),IF(W28=0,,IF(OR($E$13='Customer Info'!$F$20,$E$13=0),W28,(W28/$E$13)*'Customer Info'!$F$20)),) -> 0 | AJ28: =IF((OR($F$16=0,$F$16="none")),IF(X28=0,,IF(($E$16='Customer Info'!$H$17,$E$16=0),X28,(X28/$E$16)*'Customer Info'!$H$17)),) -> 0 | AK28: =IF((OR($F$17=0,$F$17="none")),IF(Y28=0,,IF(OR($E$17='Customer Info'!$H$18, $E$17=0),Y28,(Y28/$E$17)*'Customer Info'!$H$18)),) -> 0 | AL28: =IF((OR($F$18=0,$F$18="none")),IF(Z28=0,,IF(OR($E$18='Customer Info'!$H$19, $E$18=0),Z28,(Z28/$E$18)*'Customer Info'!$H$19)),) -> 0 | AM28: =IF((OR($F$19=0,$F$19="none")),IF(AA28=0,,IF(OR($E$19='Customer Info'!$H$20,$E$19=0),AA28,(AA28/$E$19)*'Customer Info'!$H$20)),) -> 0 | AN28: 0 | AO28: 12 | AP28: =IF(E28="plate waste",,IF('Customer Info'!$M$18=0,'Log Sheet'!AO28,'Customer Info'!$M$18*'Log Sheet'!AO28)) -> 11.42857143 | AQ28: =IF(E28="plate waste",IF(C28="dining area1",IF('Customer Info'!$L$30=0,AO28*'Customer Info'!$M$18,AO28*'Customer Info'!$L$30),IF(C28="dining area2",IF('Customer Info'!$L$31=0,AO28*'Customer Info'!$M$18,AO28*'Customer Info'!$L$31),IF(C28="Dining Area3",IF('Customer Info'!$L$32=0,AO28*'Customer Info'!$M$18,AO28*'Customer Info'!$L$32),))),) -> 0 | AR28: 11.42857143 | AS28: =IF($F$4="lunch",IF(Q28=0,,(Q28/$E$5)*'Customer Info'!$D$17),) -> 0 | AT28: =IF($F$4="dinner",IF(R28=0,,(R28/$E$6)*'Customer Info'!$D$17),) -> 0 | AU28: =IF($F$4="other",IF(S28=0,,(S28/$E$7)*'Customer Info'!$D$17),) -> 0 | AV28: 0 | AW28: =IF($F$5="breakfast",IF(P28=0,,(P28/$E$4)*'Customer Info'!$D$18),) -> 0 | AX28: =IF($F$5="dinner",IF(R28=0,,(R28/$E$6)*'Customer Info'!$D$18),) -> 0 | AY28: =IF($F$5="other",IF(S28=0,,(S28/$E$7)*'Customer Info'!$D$18),) -> 0 | AZ28: 0 | BA28: =IF($F$6="breakfast",IF(P28=0,,(P28/$E$4)*'Customer Info'!$D$19),) -> 0 | BB28: =IF($F$6="lunch",IF(Q28=0,,(Q28/$E$5)*'Customer Info'!$D$19),) -> 0 | BC28: =IF($F$6="other",IF(S28=0,,(S28/$E$7)*'Customer Info'!$D$19),) -> 0 | BD28: 0 | BE28: =IF($F$7="breakfast",IF(P28=0,,(P28/$E$4)*'Customer Info'!$D$20),) -> 0 | BF28: =IF($F$7="lunch",IF(Q28=0,,(Q28/$E$5)*'Customer Info'!$D$20),) -> 0 | BG28: =IF($F$7="dinner",IF(R28=0,,(R28/$E$6)*'Customer Info'!$D$20),) -> 0 | BH28: 0 | BI28: =IF($F$10="lunch",IF(U28=0,,(U28/$E$11)*'Customer Info'!$F$17),) -> 0 | BJ28: =IF($F$10="dinner",IF(V28=0,,(V28/$E$12)*'Customer Info'!$F$17),) -> 0 | BK28: =IF($F$10="other",IF(W28=0,,(W28/$E$13)*'Customer Info'!$F$17),) -> 0 | BL28: 0 | BM28: =IF($F$11="breakfast",IF(T28=0,,(T28/$E$10)*'Customer Info'!$F$18),) -> 0 | BN28: =IF($F$11="dinner",IF(V28=0,,(V28/$E$12)*'Customer Info'!$F$18),) -> 0 | BO28: =IF($F$11="other",IF(W28=0,,(W28/$E$13)*'Customer Info'!$F$18),) -> 0 | BP28: 0 | BQ28: =IF($F$12="breakfast",IF(T28=0,,(T28/$E$10)*'Customer Info'!$F$19),) -> 0 | BR28: =IF($F$12="lunch",IF(U28=0,,(U28/$E$11)*'Customer Info'!$F$19),) -> 0 | BS28: =IF($F$12="other",IF(W28=0,,(W28/$E$13)*'Customer Info'!$F$19),) -> 0 | BT28: 0 | BU28: =IF($F$13="breakfast",IF(T28=0,,(T28/$E$10)*'Customer Info'!$F$20),) -> 0 | BV28: =IF($F$13="lunch",IF(U28=0,,(U28/$E$11)*'Customer Info'!$F$20),) -> 0 | BW28: =IF($F$13="dinner",IF(V28=0,,(V28/$E$12)*'Customer Info'!$F$20),) -> 0 | BX28: 0 | BY28: =IF($F$16="lunch",IF(Y28=0,,(Y28/$E$17)*'Customer Info'!$H$17),) -> 0 | BZ28: =IF($F$16="dinner",IF(Z28=0,,(Z28/$E$18)*'Customer Info'!$H$17),) -> 0 | CA28: =IF($F$16="other",IF(AA28=0,,(AA28/$E$19)*'Customer Info'!$H$17),) -> 0 | CB28: 0 | CC28: =IF($F$17="breakfast",IF(X28=0,,(X28/$E$16)*'Customer Info'!$H$18),) -> 0 | CD28: =IF($F$17="dinner",IF(Z28=0,,(Z28/$E$18)*'Customer Info'!$H$18),) -> 0 | CE28: =IF($F$17="other",IF(AA28=0,,(AA28/$E$19)*'Customer Info'!$H$18),) -> 0 | CF28: 0 | CG28: =IF($F$18="breakfast",IF(X28=0,,(X28/$E$16)*'Customer Info'!$H$19),) -> 0 | CH28: =IF($F$18="lunch",IF(Y28=0,,(Y28/$E$17)*'Customer Info'!$H$19),) -> 0 | CI28: =IF($F$18="other",IF(AA28=0,,(AA28/$E$19)*'Customer Info'!$H$19),) -> 0 | CJ28: 0 | CK28: =IF($F$19="breakfast",IF(X28=0,,(X28/$E$16)*'Customer Info'!$H$20),) -> 0 | CL28: =IF($F$19="lunch",IF(Y28=0,,(Y28/$E$17)*'Customer Info'!$H$20),) -> 0 | CM28: =IF($F$19="dinner",IF(Z28=0,,(Z28/$E$18)*'Customer Info'!$H$20),) -> 0 | CN28: 0 | CO28: 0 | CP28: 11.42857143
A29: lunch | C29: kitchen | D29: compost | E29: prep waste | F29: Fruit and vegetable trimmings | G29: 2 | H29: 120.2 | J29: 118.2 | K29: 112.5714286 | L29: 0 | M29: 0 | N29: 0 | O29: 0 | P29: 0 | Q29: 0 | R29: 0 | S29: 0 | T29: 0 | U29: 0 | V29: 0 | W29: 0 | X29: 0 | Y29: 0 | Z29: 0 | AA29: 0 | AB29: =IF((OR($F$4=0,$F$4="none")),IF(P29=0,,IF(OR($E$4='Customer Info'!$D$17,$E$4=0),P29,(P29/$E$4)*'Customer Info'!$D$17)),) -> 0 | AC29: =IF((OR($F$5=0,$F$5="none")),IF(Q29=0,,IF(OR($E$5='Customer Info'!$D$18,$E$5=0),Q29,(Q29/$E$5)*'Customer Info'!$D$18)),) -> 0 | AD29: =IF((OR($F$6=0,$F$6="none")),IF(R29=0,,IF(OR($E$6='Customer Info'!$D$19,$E$6=0),R29,(R29/$E$6)*'Customer Info'!$D$19)),) -> 0 | AE29: =IF((OR($F$7=0,$F$7="none")),IF(S29=0,,IF(OR($E$7='Customer Info'!$D$20,$E$7=0),S29,(S29/$E$7)*'Customer Info'!$D$20)),) -> 0 | AF29: =IF((OR($F$10=0,$F$10="none")),IF(T29=0,,IF(OR($E$10='Customer Info'!$F$17,$E$10=0),T29,(T29/$E$10)*'Customer Info'!$F$17)),) -> 0 | AG29: =IF((OR($F$11=0,$F$11="none")),IF(U29=0,,IF(OR($E$11='Customer Info'!$F$18,$E$11=0),U29,(U29/$E$11)*'Customer Info'!$F$18)),) -> 0 | AH29: =IF((OR($F$12=0,$F$12="none")),IF(V29=0,,IF(OR($E$12='Customer Info'!$F$19,$E$12=0),V29,(V29/$E$12)*'Customer Info'!$F$19)),) -> 0 | AI29: =IF((OR($F$13=0,$F$13="none")),IF(W29=0,,IF(OR($E$13='Customer Info'!$F$20,$E$13=0),W29,(W29/$E$13)*'Customer Info'!$F$20)),) -> 0 | AJ29: =IF((OR($F$16=0,$F$16="none")),IF(X29=0,,IF(($E$16='Customer Info'!$H$17,$E$16=0),X29,(X29/$E$16)*'Customer Info'!$H$17)),) -> 0 | AK29: =IF((OR($F$17=0,$F$17="none")),IF(Y29=0,,IF(OR($E$17='Customer Info'!$H$18, $E$17=0),Y29,(Y29/$E$17)*'Customer Info'!$H$18)),) -> 0 | AL29: =IF((OR($F$18=0,$F$18="none")),IF(Z29=0,,IF(OR($E$18='Customer Info'!$H$19, $E$18=0),Z29,(Z29/$E$18)*'Customer Info'!$H$19)),) -> 0 | AM29: =IF((OR($F$19=0,$F$19="none")),IF(AA29=0,,IF(OR($E$19='Customer Info'!$H$20,$E$19=0),AA29,(AA29/$E$19)*'Customer Info'!$H$20)),) -> 0 | AN29: 0 | AO29: 118.2 | AP29: =IF(E29="plate waste",,IF('Customer Info'!$M$18=0,'Log Sheet'!AO29,'Customer Info'!$M$18*'Log Sheet'!AO29)) -> 112.5714286 | AQ29: =IF(E29="plate waste",IF(C29="dining area1",IF('Customer Info'!$L$30=0,AO29*'Customer Info'!$M$18,AO29*'Customer Info'!$L$30),IF(C29="dining area2",IF('Customer Info'!$L$31=0,AO29*'Customer Info'!$M$18,AO29*'Customer Info'!$L$31),IF(C29="Dining Area3",IF('Customer Info'!$L$32=0,AO29*'Customer Info'!$M$18,AO29*'Customer Info'!$L$32),))),) -> 0 | AR29: 112.5714286 | AS29: =IF($F$4="lunch",IF(Q29=0,,(Q29/$E$5)*'Customer Info'!$D$17),) -> 0 | AT29: =IF($F$4="dinner",IF(R29=0,,(R29/$E$6)*'Customer Info'!$D$17),) -> 0 | AU29: =IF($F$4="other",IF(S29=0,,(S29/$E$7)*'Customer Info'!$D$17),) -> 0 | AV29: 0 | AW29: =IF($F$5="breakfast",IF(P29=0,,(P29/$E$4)*'Customer Info'!$D$18),) -> 0 | AX29: =IF($F$5="dinner",IF(R29=0,,(R29/$E$6)*'Customer Info'!$D$18),) -> 0 | AY29: =IF($F$5="other",IF(S29=0,,(S29/$E$7)*'Customer Info'!$D$18),) -> 0 | AZ29: 0 | BA29: =IF($F$6="breakfast",IF(P29=0,,(P29/$E$4)*'Customer Info'!$D$19),) -> 0 | BB29: =IF($F$6="lunch",IF(Q29=0,,(Q29/$E$5)*'Customer Info'!$D$19),) -> 0 | BC29: =IF($F$6="other",IF(S29=0,,(S29/$E$7)*'Customer Info'!$D$19),) -> 0 | BD29: 0 | BE29: =IF($F$7="breakfast",IF(P29=0,,(P29/$E$4)*'Customer Info'!$D$20),) -> 0 | BF29: =IF($F$7="lunch",IF(Q29=0,,(Q29/$E$5)*'Customer Info'!$D$20),) -> 0 | BG29: =IF($F$7="dinner",IF(R29=0,,(R29/$E$6)*'Customer Info'!$D$20),) -> 0 | BH29: 0 | BI29: =IF($F$10="lunch",IF(U29=0,,(U29/$E$11)*'Customer Info'!$F$17),) -> 0 | BJ29: =IF($F$10="dinner",IF(V29=0,,(V29/$E$12)*'Customer Info'!$F$17),) -> 0 | BK29: =IF($F$10="other",IF(W29=0,,(W29/$E$13)*'Customer Info'!$F$17),) -> 0 | BL29: 0 | BM29: =IF($F$11="breakfast",IF(T29=0,,(T29/$E$10)*'Customer Info'!$F$18),) -> 0 | BN29: =IF($F$11="dinner",IF(V29=0,,(V29/$E$12)*'Customer Info'!$F$18),) -> 0 | BO29: =IF($F$11="other",IF(W29=0,,(W29/$E$13)*'Customer Info'!$F$18),) -> 0 | BP29: 0 | BQ29: =IF($F$12="breakfast",IF(T29=0,,(T29/$E$10)*'Customer Info'!$F$19),) -> 0 | BR29: =IF($F$12="lunch",IF(U29=0,,(U29/$E$11)*'Customer Info'!$F$19),) -> 0 | BS29: =IF($F$12="other",IF(W29=0,,(W29/$E$13)*'Customer Info'!$F$19),) -> 0 | BT29: 0 | BU29: =IF($F$13="breakfast",IF(T29=0,,(T29/$E$10)*'Customer Info'!$F$20),) -> 0 | BV29: =IF($F$13="lunch",IF(U29=0,,(U29/$E$11)*'Customer Info'!$F$20),) -> 0 | BW29: =IF($F$13="dinner",IF(V29=0,,(V29/$E$12)*'Customer Info'!$F$20),) -> 0 | BX29: 0 | BY29: =IF($F$16="lunch",IF(Y29=0,,(Y29/$E$17)*'Customer Info'!$H$17),) -> 0 | BZ29: =IF($F$16="dinner",IF(Z29=0,,(Z29/$E$18)*'Customer Info'!$H$17),) -> 0 | CA29: =IF($F$16="other",IF(AA29=0,,(AA29/$E$19)*'Customer Info'!$H$17),) -> 0 | CB29: 0 | CC29: =IF($F$17="breakfast",IF(X29=0,,(X29/$E$16)*'Customer Info'!$H$18),) -> 0 | CD29: =IF($F$17="dinner",IF(Z29=0,,(Z29/$E$18)*'Customer Info'!$H$18),) -> 0 | CE29: =IF($F$17="other",IF(AA29=0,,(AA29/$E$19)*'Customer Info'!$H$18),) -> 0 | CF29: 0 | CG29: =IF($F$18="breakfast",IF(X29=0,,(X29/$E$16)*'Customer Info'!$H$19),) -> 0 | CH29: =IF($F$18="lunch",IF(Y29=0,,(Y29/$E$17)*'Customer Info'!$H$19),) -> 0 | CI29: =IF($F$18="other",IF(AA29=0,,(AA29/$E$19)*'Customer Info'!$H$19),) -> 0 | CJ29: 0 | CK29: =IF($F$19="breakfast",IF(X29=0,,(X29/$E$16)*'Customer Info'!$H$20),) -> 0 | CL29: =IF($F$19="lunch",IF(Y29=0,,(Y29/$E$17)*'Customer Info'!$H$20),) -> 0 | CM29: =IF($F$19="dinner",IF(Z29=0,,(Z29/$E$18)*'Customer Info'!$H$20),) -> 0 | CN29: 0 | CO29: 0 | CP29: 112.5714286
A30: lunch | C30: other1 | D30: compost | E30: prep waste | F30: Vegetable / seafood trimmings | G30: 1 | H30: 30.4 | J30: 29.4 | K30: 28 | L30: 0 | M30: 0 | N30: 0 | O30: 0 | P30: 0 | Q30: 0 | R30: 0 | S30: 0 | T30: 0 | U30: 0 | V30: 0 | W30: 0 | X30: 0 | Y30: 0 | Z30: 0 | AA30: 0 | AB30: =IF((OR($F$4=0,$F$4="none")),IF(P30=0,,IF(OR($E$4='Customer Info'!$D$17,$E$4=0),P30,(P30/$E$4)*'Customer Info'!$D$17)),) -> 0 | AC30: =IF((OR($F$5=0,$F$5="none")),IF(Q30=0,,IF(OR($E$5='Customer Info'!$D$18,$E$5=0),Q30,(Q30/$E$5)*'Customer Info'!$D$18)),) -> 0 | AD30: =IF((OR($F$6=0,$F$6="none")),IF(R30=0,,IF(OR($E$6='Customer Info'!$D$19,$E$6=0),R30,(R30/$E$6)*'Customer Info'!$D$19)),) -> 0 | AE30: =IF((OR($F$7=0,$F$7="none")),IF(S30=0,,IF(OR($E$7='Customer Info'!$D$20,$E$7=0),S30,(S30/$E$7)*'Customer Info'!$D$20)),) -> 0 | AF30: =IF((OR($F$10=0,$F$10="none")),IF(T30=0,,IF(OR($E$10='Customer Info'!$F$17,$E$10=0),T30,(T30/$E$10)*'Customer Info'!$F$17)),) -> 0 | AG30: =IF((OR($F$11=0,$F$11="none")),IF(U30=0,,IF(OR($E$11='Customer Info'!$F$18,$E$11=0),U30,(U30/$E$11)*'Customer Info'!$F$18)),) -> 0 | AH30: =IF((OR($F$12=0,$F$12="none")),IF(V30=0,,IF(OR($E$12='Customer Info'!$F$19,$E$12=0),V30,(V30/$E$12)*'Customer Info'!$F$19)),) -> 0 | AI30: =IF((OR($F$13=0,$F$13="none")),IF(W30=0,,IF(OR($E$13='Customer Info'!$F$20,$E$13=0),W30,(W30/$E$13)*'Customer Info'!$F$20)),) -> 0 | AJ30: =IF((OR($F$16=0,$F$16="none")),IF(X30=0,,IF(($E$16='Customer Info'!$H$17,$E$16=0),X30,(X30/$E$16)*'Customer Info'!$H$17)),) -> 0 | AK30: =IF((OR($F$17=0,$F$17="none")),IF(Y30=0,,IF(OR($E$17='Customer Info'!$H$18, $E$17=0),Y30,(Y30/$E$17)*'Customer Info'!$H$18)),) -> 0 | AL30: =IF((OR($F$18=0,$F$18="none")),IF(Z30=0,,IF(OR($E$18='Customer Info'!$H$19, $E$18=0),Z30,(Z30/$E$18)*'Customer Info'!$H$19)),) -> 0 | AM30: =IF((OR($F$19=0,$F$19="none")),IF(AA30=0,,IF(OR($E$19='Customer Info'!$H$20,$E$19=0),AA30,(AA30/$E$19)*'Customer Info'!$H$20)),) -> 0 | AN30: 0 | AO30: 29.4 | AP30: =IF(E30="plate waste",,IF('Customer Info'!$M$18=0,'Log Sheet'!AO30,'Customer Info'!$M$18*'Log Sheet'!AO30)) -> 28 | AQ30: =IF(E30="plate waste",IF(C30="dining area1",IF('Customer Info'!$L$30=0,AO30*'Customer Info'!$M$18,AO30*'Customer Info'!$L$30),IF(C30="dining area2",IF('Customer Info'!$L$31=0,AO30*'Customer Info'!$M$18,AO30*'Customer Info'!$L$31),IF(C30="Dining Area3",IF('Customer Info'!$L$32=0,AO30*'Customer Info'!$M$18,AO30*'Customer Info'!$L$32),))),) -> 0 | AR30: 28 | AS30: =IF($F$4="lunch",IF(Q30=0,,(Q30/$E$5)*'Customer Info'!$D$17),) -> 0 | AT30: =IF($F$4="dinner",IF(R30=0,,(R30/$E$6)*'Customer Info'!$D$17),) -> 0 | AU30: =IF($F$4="other",IF(S30=0,,(S30/$E$7)*'Customer Info'!$D$17),) -> 0 | AV30: 0 | AW30: =IF($F$5="breakfast",IF(P30=0,,(P30/$E$4)*'Customer Info'!$D$18),) -> 0 | AX30: =IF($F$5="dinner",IF(R30=0,,(R30/$E$6)*'Customer Info'!$D$18),) -> 0 | AY30: =IF($F$5="other",IF(S30=0,,(S30/$E$7)*'Customer Info'!$D$18),) -> 0 | AZ30: 0 | BA30: =IF($F$6="breakfast",IF(P30=0,,(P30/$E$4)*'Customer Info'!$D$19),) -> 0 | BB30: =IF($F$6="lunch",IF(Q30=0,,(Q30/$E$5)*'Customer Info'!$D$19),) -> 0 | BC30: =IF($F$6="other",IF(S30=0,,(S30/$E$7)*'Customer Info'!$D$19),) -> 0 | BD30: 0 | BE30: =IF($F$7="breakfast",IF(P30=0,,(P30/$E$4)*'Customer Info'!$D$20),) -> 0 | BF30: =IF($F$7="lunch",IF(Q30=0,,(Q30/$E$5)*'Customer Info'!$D$20),) -> 0 | BG30: =IF($F$7="dinner",IF(R30=0,,(R30/$E$6)*'Customer Info'!$D$20),) -> 0 | BH30: 0 | BI30: =IF($F$10="lunch",IF(U30=0,,(U30/$E$11)*'Customer Info'!$F$17),) -> 0 | BJ30: =IF($F$10="dinner",IF(V30=0,,(V30/$E$12)*'Customer Info'!$F$17),) -> 0 | BK30: =IF($F$10="other",IF(W30=0,,(W30/$E$13)*'Customer Info'!$F$17),) -> 0 | BL30: 0 | BM30: =IF($F$11="breakfast",IF(T30=0,,(T30/$E$10)*'Customer Info'!$F$18),) -> 0 | BN30: =IF($F$11="dinner",IF(V30=0,,(V30/$E$12)*'Customer Info'!$F$18),) -> 0 | BO30: =IF($F$11="other",IF(W30=0,,(W30/$E$13)*'Customer Info'!$F$18),) -> 0 | BP30: 0 | BQ30: =IF($F$12="breakfast",IF(T30=0,,(T30/$E$10)*'Customer Info'!$F$19),) -> 0 | BR30: =IF($F$12="lunch",IF(U30=0,,(U30/$E$11)*'Customer Info'!$F$19),) -> 0 | BS30: =IF($F$12="other",IF(W30=0,,(W30/$E$13)*'Customer Info'!$F$19),) -> 0 | BT30: 0 | BU30: =IF($F$13="breakfast",IF(T30=0,,(T30/$E$10)*'Customer Info'!$F$20),) -> 0 | BV30: =IF($F$13="lunch",IF(U30=0,,(U30/$E$11)*'Customer Info'!$F$20),) -> 0 | BW30: =IF($F$13="dinner",IF(V30=0,,(V30/$E$12)*'Customer Info'!$F$20),) -> 0 | BX30: 0 | BY30: =IF($F$16="lunch",IF(Y30=0,,(Y30/$E$17)*'Customer Info'!$H$17),) -> 0 | BZ30: =IF($F$16="dinner",IF(Z30=0,,(Z30/$E$18)*'Customer Info'!$H$17),) -> 0 | CA30: =IF($F$16="other",IF(AA30=0,,(AA30/$E$19)*'Customer Info'!$H$17),) -> 0 | CB30: 0 | CC30: =IF($F$17="breakfast",IF(X30=0,,(X30/$E$16)*'Customer Info'!$H$18),) -> 0 | CD30: =IF($F$17="dinner",IF(Z30=0,,(Z30/$E$18)*'Customer Info'!$H$18),) -> 0 | CE30: =IF($F$17="other",IF(AA30=0,,(AA30/$E$19)*'Customer Info'!$H$18),) -> 0 | CF30: 0 | CG30: =IF($F$18="breakfast",IF(X30=0,,(X30/$E$16)*'Customer Info'!$H$19),) -> 0 | CH30: =IF($F$18="lunch",IF(Y30=0,,(Y30/$E$17)*'Customer Info'!$H$19),) -> 0 | CI30: =IF($F$18="other",IF(AA30=0,,(AA30/$E$19)*'Customer Info'!$H$19),) -> 0 | CJ30: 0 | CK30: =IF($F$19="breakfast",IF(X30=0,,(X30/$E$16)*'Customer Info'!$H$20),) -> 0 | CL30: =IF($F$19="lunch",IF(Y30=0,,(Y30/$E$17)*'Customer Info'!$H$20),) -> 0 | CM30: =IF($F$19="dinner",IF(Z30=0,,(Z30/$E$18)*'Customer Info'!$H$20),) -> 0 | CN30: 0 | CO30: 0 | CP30: 28
A31: lunch | C31: other2 | D31: compost | E31: prep waste | F31: Pan scrapes / leftovers from buffet line - rice, chicken | G31: 2 | H31: 38.7 | J31: 36.7 | K31: 34.95238095 | L31: 0 | M31: 0 | N31: 0 | O31: 0 | P31: 0 | Q31: 0 | R31: 0 | S31: 0 | T31: 0 | U31: 0 | V31: 0 | W31: 0 | X31: 0 | Y31: 0 | Z31: 0 | AA31: 0 | AB31: =IF((OR($F$4=0,$F$4="none")),IF(P31=0,,IF(OR($E$4='Customer Info'!$D$17,$E$4=0),P31,(P31/$E$4)*'Customer Info'!$D$17)),) -> 0 | AC31: =IF((OR($F$5=0,$F$5="none")),IF(Q31=0,,IF(OR($E$5='Customer Info'!$D$18,$E$5=0),Q31,(Q31/$E$5)*'Customer Info'!$D$18)),) -> 0 | AD31: =IF((OR($F$6=0,$F$6="none")),IF(R31=0,,IF(OR($E$6='Customer Info'!$D$19,$E$6=0),R31,(R31/$E$6)*'Customer Info'!$D$19)),) -> 0 | AE31: =IF((OR($F$7=0,$F$7="none")),IF(S31=0,,IF(OR($E$7='Customer Info'!$D$20,$E$7=0),S31,(S31/$E$7)*'Customer Info'!$D$20)),) -> 0 | AF31: =IF((OR($F$10=0,$F$10="none")),IF(T31=0,,IF(OR($E$10='Customer Info'!$F$17,$E$10=0),T31,(T31/$E$10)*'Customer Info'!$F$17)),) -> 0 | AG31: =IF((OR($F$11=0,$F$11="none")),IF(U31=0,,IF(OR($E$11='Customer Info'!$F$18,$E$11=0),U31,(U31/$E$11)*'Customer Info'!$F$18)),) -> 0 | AH31: =IF((OR($F$12=0,$F$12="none")),IF(V31=0,,IF(OR($E$12='Customer Info'!$F$19,$E$12=0),V31,(V31/$E$12)*'Customer Info'!$F$19)),) -> 0 | AI31: =IF((OR($F$13=0,$F$13="none")),IF(W31=0,,IF(OR($E$13='Customer Info'!$F$20,$E$13=0),W31,(W31/$E$13)*'Customer Info'!$F$20)),) -> 0 | AJ31: =IF((OR($F$16=0,$F$16="none")),IF(X31=0,,IF(($E$16='Customer Info'!$H$17,$E$16=0),X31,(X31/$E$16)*'Customer Info'!$H$17)),) -> 0 | AK31: =IF((OR($F$17=0,$F$17="none")),IF(Y31=0,,IF(OR($E$17='Customer Info'!$H$18, $E$17=0),Y31,(Y31/$E$17)*'Customer Info'!$H$18)),) -> 0 | AL31: =IF((OR($F$18=0,$F$18="none")),IF(Z31=0,,IF(OR($E$18='Customer Info'!$H$19, $E$18=0),Z31,(Z31/$E$18)*'Customer Info'!$H$19)),) -> 0 | AM31: =IF((OR($F$19=0,$F$19="none")),IF(AA31=0,,IF(OR($E$19='Customer Info'!$H$20,$E$19=0),AA31,(AA31/$E$19)*'Customer Info'!$H$20)),) -> 0 | AN31: 0 | AO31: 36.7 | AP31: =IF(E31="plate waste",,IF('Customer Info'!$M$18=0,'Log Sheet'!AO31,'Customer Info'!$M$18*'Log Sheet'!AO31)) -> 34.95238095 | AQ31: =IF(E31="plate waste",IF(C31="dining area1",IF('Customer Info'!$L$30=0,AO31*'Customer Info'!$M$18,AO31*'Customer Info'!$L$30),IF(C31="dining area2",IF('Customer Info'!$L$31=0,AO31*'Customer Info'!$M$18,AO31*'Customer Info'!$L$31),IF(C31="Dining Area3",IF('Customer Info'!$L$32=0,AO31*'Customer Info'!$M$18,AO31*'Customer Info'!$L$32),))),) -> 0 | AR31: 34.95238095 | AS31: =IF($F$4="lunch",IF(Q31=0,,(Q31/$E$5)*'Customer Info'!$D$17),) -> 0 | AT31: =IF($F$4="dinner",IF(R31=0,,(R31/$E$6)*'Customer Info'!$D$17),) -> 0 | AU31: =IF($F$4="other",IF(S31=0,,(S31/$E$7)*'Customer Info'!$D$17),) -> 0 | AV31: 0 | AW31: =IF($F$5="breakfast",IF(P31=0,,(P31/$E$4)*'Customer Info'!$D$18),) -> 0 | AX31: =IF($F$5="dinner",IF(R31=0,,(R31/$E$6)*'Customer Info'!$D$18),) -> 0 | AY31: =IF($F$5="other",IF(S31=0,,(S31/$E$7)*'Customer Info'!$D$18),) -> 0 | AZ31: 0 | BA31: =IF($F$6="breakfast",IF(P31=0,,(P31/$E$4)*'Customer Info'!$D$19),) -> 0 | BB31: =IF($F$6="lunch",IF(Q31=0,,(Q31/$E$5)*'Customer Info'!$D$19),) -> 0 | BC31: =IF($F$6="other",IF(S31=0,,(S31/$E$7)*'Customer Info'!$D$19),) -> 0 | BD31: 0 | BE31: =IF($F$7="breakfast",IF(P31=0,,(P31/$E$4)*'Customer Info'!$D$20),) -> 0 | BF31: =IF($F$7="lunch",IF(Q31=0,,(Q31/$E$5)*'Customer Info'!$D$20),) -> 0 | BG31: =IF($F$7="dinner",IF(R31=0,,(R31/$E$6)*'Customer Info'!$D$20),) -> 0 | BH31: 0 | BI31: =IF($F$10="lunch",IF(U31=0,,(U31/$E$11)*'Customer Info'!$F$17),) -> 0 | BJ31: =IF($F$10="dinner",IF(V31=0,,(V31/$E$12)*'Customer Info'!$F$17),) -> 0 | BK31: =IF($F$10="other",IF(W31=0,,(W31/$E$13)*'Customer Info'!$F$17),) -> 0 | BL31: 0 | BM31: =IF($F$11="breakfast",IF(T31=0,,(T31/$E$10)*'Customer Info'!$F$18),) -> 0 | BN31: =IF($F$11="dinner",IF(V31=0,,(V31/$E$12)*'Customer Info'!$F$18),) -> 0 | BO31: =IF($F$11="other",IF(W31=0,,(W31/$E$13)*'Customer Info'!$F$18),) -> 0 | BP31: 0 | BQ31: =IF($F$12="breakfast",IF(T31=0,,(T31/$E$10)*'Customer Info'!$F$19),) -> 0 | BR31: =IF($F$12="lunch",IF(U31=0,,(U31/$E$11)*'Customer Info'!$F$19),) -> 0 | BS31: =IF($F$12="other",IF(W31=0,,(W31/$E$13)*'Customer Info'!$F$19),) -> 0 | BT31: 0 | BU31: =IF($F$13="breakfast",IF(T31=0,,(T31/$E$10)*'Customer Info'!$F$20),) -> 0 | BV31: =IF($F$13="lunch",IF(U31=0,,(U31/$E$11)*'Customer Info'!$F$20),) -> 0 | BW31: =IF($F$13="dinner",IF(V31=0,,(V31/$E$12)*'Customer Info'!$F$20),) -> 0 | BX31: 0 | BY31: =IF($F$16="lunch",IF(Y31=0,,(Y31/$E$17)*'Customer Info'!$H$17),) -> 0 | BZ31: =IF($F$16="dinner",IF(Z31=0,,(Z31/$E$18)*'Customer Info'!$H$17),) -> 0 | CA31: =IF($F$16="other",IF(AA31=0,,(AA31/$E$19)*'Customer Info'!$H$17),) -> 0 | CB31: 0 | CC31: =IF($F$17="breakfast",IF(X31=0,,(X31/$E$16)*'Customer Info'!$H$18),) -> 0 | CD31: =IF($F$17="dinner",IF(Z31=0,,(Z31/$E$18)*'Customer Info'!$H$18),) -> 0 | CE31: =IF($F$17="other",IF(AA31=0,,(AA31/$E$19)*'Customer Info'!$H$18),) -> 0 | CF31: 0 | CG31: =IF($F$18="breakfast",IF(X31=0,,(X31/$E$16)*'Customer Info'!$H$19),) -> 0 | CH31: =IF($F$18="lunch",IF(Y31=0,,(Y31/$E$17)*'Customer Info'!$H$19),) -> 0 | CI31: =IF($F$18="other",IF(AA31=0,,(AA31/$E$19)*'Customer Info'!$H$19),) -> 0 | CJ31: 0 | CK31: =IF($F$19="breakfast",IF(X31=0,,(X31/$E$16)*'Customer Info'!$H$20),) -> 0 | CL31: =IF($F$19="lunch",IF(Y31=0,,(Y31/$E$17)*'Customer Info'!$H$20),) -> 0 | CM31: =IF($F$19="dinner",IF(Z31=0,,(Z31/$E$18)*'Customer Info'!$H$20),) -> 0 | CN31: 0 | CO31: 0 | CP31: 34.95238095
A32: breakfast | C32: dining area1 | D32: landfill | E32: plate waste | F32: Waffles, breakfast sandwiches | G32: 2 | H32: 13.8 | I32: 41 plates | J32: 11.8 | K32: 167.5795997 | L32: 11.8 | M32: 11.8 | N32: 0 | O32: 0 | P32: 11.8 | Q32: 0 | R32: 0 | S32: 0 | T32: 0 | U32: 0 | V32: 0 | W32: 0 | X32: 0 | Y32: 0 | Z32: 0 | AA32: 0 | AB32: =IF((OR($F$4=0,$F$4="none")),IF(P32=0,,IF(OR($E$4='Customer Info'!$D$17,$E$4=0),P32,(P32/$E$4)*'Customer Info'!$D$17)),) -> 189.6634146 | AC32: =IF((OR($F$5=0,$F$5="none")),IF(Q32=0,,IF(OR($E$5='Customer Info'!$D$18,$E$5=0),Q32,(Q32/$E$5)*'Customer Info'!$D$18)),) -> 0 | AD32: =IF((OR($F$6=0,$F$6="none")),IF(R32=0,,IF(OR($E$6='Customer Info'!$D$19,$E$6=0),R32,(R32/$E$6)*'Customer Info'!$D$19)),) -> 0 | AE32: =IF((OR($F$7=0,$F$7="none")),IF(S32=0,,IF(OR($E$7='Customer Info'!$D$20,$E$7=0),S32,(S32/$E$7)*'Customer Info'!$D$20)),) -> 0 | AF32: =IF((OR($F$10=0,$F$10="none")),IF(T32=0,,IF(OR($E$10='Customer Info'!$F$17,$E$10=0),T32,(T32/$E$10)*'Customer Info'!$F$17)),) -> 0 | AG32: =IF((OR($F$11=0,$F$11="none")),IF(U32=0,,IF(OR($E$11='Customer Info'!$F$18,$E$11=0),U32,(U32/$E$11)*'Customer Info'!$F$18)),) -> 0 | AH32: =IF((OR($F$12=0,$F$12="none")),IF(V32=0,,IF(OR($E$12='Customer Info'!$F$19,$E$12=0),V32,(V32/$E$12)*'Customer Info'!$F$19)),) -> 0 | AI32: =IF((OR($F$13=0,$F$13="none")),IF(W32=0,,IF(OR($E$13='Customer Info'!$F$20,$E$13=0),W32,(W32/$E$13)*'Customer Info'!$F$20)),) -> 0 | AJ32: =IF((OR($F$16=0,$F$16="none")),IF(X32=0,,IF(($E$16='Customer Info'!$H$17,$E$16=0),X32,(X32/$E$16)*'Customer Info'!$H$17)),) -> 0 | AK32: =IF((OR($F$17=0,$F$17="none")),IF(Y32=0,,IF(OR($E$17='Customer Info'!$H$18, $E$17=0),Y32,(Y32/$E$17)*'Customer Info'!$H$18)),) -> 0 | AL32: =IF((OR($F$18=0,$F$18="none")),IF(Z32=0,,IF(OR($E$18='Customer Info'!$H$19, $E$18=0),Z32,(Z32/$E$18)*'Customer Info'!$H$19)),) -> 0 | AM32: =IF((OR($F$19=0,$F$19="none")),IF(AA32=0,,IF(OR($E$19='Customer Info'!$H$20,$E$19=0),AA32,(AA32/$E$19)*'Customer Info'!$H$20)),) -> 0 | AN32: 189.6634146 | AO32: 189.6634146 | AP32: =IF(E32="plate waste",,IF('Customer Info'!$M$18=0,'Log Sheet'!AO32,'Customer Info'!$M$18*'Log Sheet'!AO32)) -> 0 | AQ32: =IF(E32="plate waste",IF(C32="dining area1",IF('Customer Info'!$L$30=0,AO32*'Customer Info'!$M$18,AO32*'Customer Info'!$L$30),IF(C32="dining area2",IF('Customer Info'!$L$31=0,AO32*'Customer Info'!$M$18,AO32*'Customer Info'!$L$31),IF(C32="Dining Area3",IF('Customer Info'!$L$32=0,AO32*'Customer Info'!$M$18,AO32*'Customer Info'!$L$32),))),) -> 167.5795997 | AR32: 167.5795997 | AS32: =IF($F$4="lunch",IF(Q32=0,,(Q32/$E$5)*'Customer Info'!$D$17),) -> 0 | AT32: =IF($F$4="dinner",IF(R32=0,,(R32/$E$6)*'Customer Info'!$D$17),) -> 0 | AU32: =IF($F$4="other",IF(S32=0,,(S32/$E$7)*'Customer Info'!$D$17),) -> 0 | AV32: 0 | AW32: =IF($F$5="breakfast",IF(P32=0,,(P32/$E$4)*'Customer Info'!$D$18),) -> 0 | AX32: =IF($F$5="dinner",IF(R32=0,,(R32/$E$6)*'Customer Info'!$D$18),) -> 0 | AY32: =IF($F$5="other",IF(S32=0,,(S32/$E$7)*'Customer Info'!$D$18),) -> 0 | AZ32: 0 | BA32: =IF($F$6="breakfast",IF(P32=0,,(P32/$E$4)*'Customer Info'!$D$19),) -> 0 | BB32: =IF($F$6="lunch",IF(Q32=0,,(Q32/$E$5)*'Customer Info'!$D$19),) -> 0 | BC32: =IF($F$6="other",IF(S32=0,,(S32/$E$7)*'Customer Info'!$D$19),) -> 0 | BD32: 0 | BE32: =IF($F$7="breakfast",IF(P32=0,,(P32/$E$4)*'Customer Info'!$D$20),) -> 0 | BF32: =IF($F$7="lunch",IF(Q32=0,,(Q32/$E$5)*'Customer Info'!$D$20),) -> 0 | BG32: =IF($F$7="dinner",IF(R32=0,,(R32/$E$6)*'Customer Info'!$D$20),) -> 0 | BH32: 0 | BI32: =IF($F$10="lunch",IF(U32=0,,(U32/$E$11)*'Customer Info'!$F$17),) -> 0 | BJ32: =IF($F$10="dinner",IF(V32=0,,(V32/$E$12)*'Customer Info'!$F$17),) -> 0 | BK32: =IF($F$10="other",IF(W32=0,,(W32/$E$13)*'Customer Info'!$F$17),) -> 0 | BL32: 0 | BM32: =IF($F$11="breakfast",IF(T32=0,,(T32/$E$10)*'Customer Info'!$F$18),) -> 0 | BN32: =IF($F$11="dinner",IF(V32=0,,(V32/$E$12)*'Customer Info'!$F$18),) -> 0 | BO32: =IF($F$11="other",IF(W32=0,,(W32/$E$13)*'Customer Info'!$F$18),) -> 0 | BP32: 0 | BQ32: =IF($F$12="breakfast",IF(T32=0,,(T32/$E$10)*'Customer Info'!$F$19),) -> 0 | BR32: =IF($F$12="lunch",IF(U32=0,,(U32/$E$11)*'Customer Info'!$F$19),) -> 0 | BS32: =IF($F$12="other",IF(W32=0,,(W32/$E$13)*'Customer Info'!$F$19),) -> 0 | BT32: 0 | BU32: =IF($F$13="breakfast",IF(T32=0,,(T32/$E$10)*'Customer Info'!$F$20),) -> 0 | BV32: =IF($F$13="lunch",IF(U32=0,,(U32/$E$11)*'Customer Info'!$F$20),) -> 0 | BW32: =IF($F$13="dinner",IF(V32=0,,(V32/$E$12)*'Customer Info'!$F$20),) -> 0 | BX32: 0 | BY32: =IF($F$16="lunch",IF(Y32=0,,(Y32/$E$17)*'Customer Info'!$H$17),) -> 0 | BZ32: =IF($F$16="dinner",IF(Z32=0,,(Z32/$E$18)*'Customer Info'!$H$17),) -> 0 | CA32: =IF($F$16="other",IF(AA32=0,,(AA32/$E$19)*'Customer Info'!$H$17),) -> 0 | CB32: 0 | CC32: =IF($F$17="breakfast",IF(X32=0,,(X32/$E$16)*'Customer Info'!$H$18),) -> 0 | CD32: =IF($F$17="dinner",IF(Z32=0,,(Z32/$E$18)*'Customer Info'!$H$18),) -> 0 | CE32: =IF($F$17="other",IF(AA32=0,,(AA32/$E$19)*'Customer Info'!$H$18),) -> 0 | CF32: 0 | CG32: =IF($F$18="breakfast",IF(X32=0,,(X32/$E$16)*'Customer Info'!$H$19),) -> 0 | CH32: =IF($F$18="lunch",IF(Y32=0,,(Y32/$E$17)*'Customer Info'!$H$19),) -> 0 | CI32: =IF($F$18="other",IF(AA32=0,,(AA32/$E$19)*'Customer Info'!$H$19),) -> 0 | CJ32: 0 | CK32: =IF($F$19="breakfast",IF(X32=0,,(X32/$E$16)*'Customer Info'!$H$20),) -> 0 | CL32: =IF($F$19="lunch",IF(Y32=0,,(Y32/$E$17)*'Customer Info'!$H$20),) -> 0 | CM32: =IF($F$19="dinner",IF(Z32=0,,(Z32/$E$18)*'Customer Info'!$H$20),) -> 0 | CN32: 0 | CO32: 167.5795997 | CP32: 0
A33: lunch | C33: dining area1 | D33: landfill | E33: plate waste | F33: Fruit | G33: 2 | H33: 5 | I33: 82 plates counted for lunch | J33: 3 | K33: 22.23993042 | L33: 3 | M33: 3 | N33: 0 | O33: 0 | P33: 0 | Q33: 3 | R33: 0 | S33: 0 | T33: 0 | U33: 0 | V33: 0 | W33: 0 | X33: 0 | Y33: 0 | Z33: 0 | AA33: 0 | AB33: =IF((OR($F$4=0,$F$4="none")),IF(P33=0,,IF(OR($E$4='Customer Info'!$D$17,$E$4=0),P33,(P33/$E$4)*'Customer Info'!$D$17)),) -> 0 | AC33: =IF((OR($F$5=0,$F$5="none")),IF(Q33=0,,IF(OR($E$5='Customer Info'!$D$18,$E$5=0),Q33,(Q33/$E$5)*'Customer Info'!$D$18)),) -> 25.17073171 | AD33: =IF((OR($F$6=0,$F$6="none")),IF(R33=0,,IF(OR($E$6='Customer Info'!$D$19,$E$6=0),R33,(R33/$E$6)*'Customer Info'!$D$19)),) -> 0 | AE33: =IF((OR($F$7=0,$F$7="none")),IF(S33=0,,IF(OR($E$7='Customer Info'!$D$20,$E$7=0),S33,(S33/$E$7)*'Customer Info'!$D$20)),) -> 0 | AF33: =IF((OR($F$10=0,$F$10="none")),IF(T33=0,,IF(OR($E$10='Customer Info'!$F$17,$E$10=0),T33,(T33/$E$10)*'Customer Info'!$F$17)),) -> 0 | AG33: =IF((OR($F$11=0,$F$11="none")),IF(U33=0,,IF(OR($E$11='Customer Info'!$F$18,$E$11=0),U33,(U33/$E$11)*'Customer Info'!$F$18)),) -> 0 | AH33: =IF((OR($F$12=0,$F$12="none")),IF(V33=0,,IF(OR($E$12='Customer Info'!$F$19,$E$12=0),V33,(V33/$E$12)*'Customer Info'!$F$19)),) -> 0 | AI33: =IF((OR($F$13=0,$F$13="none")),IF(W33=0,,IF(OR($E$13='Customer Info'!$F$20,$E$13=0),W33,(W33/$E$13)*'Customer Info'!$F$20)),) -> 0 | AJ33: =IF((OR($F$16=0,$F$16="none")),IF(X33=0,,IF(($E$16='Customer Info'!$H$17,$E$16=0),X33,(X33/$E$16)*'Customer Info'!$H$17)),) -> 0 | AK33: =IF((OR($F$17=0,$F$17="none")),IF(Y33=0,,IF(OR($E$17='Customer Info'!$H$18, $E$17=0),Y33,(Y33/$E$17)*'Customer Info'!$H$18)),) -> 0 | AL33: =IF((OR($F$18=0,$F$18="none")),IF(Z33=0,,IF(OR($E$18='Customer Info'!$H$19, $E$18=0),Z33,(Z33/$E$18)*'Customer Info'!$H$19)),) -> 0 | AM33: =IF((OR($F$19=0,$F$19="none")),IF(AA33=0,,IF(OR($E$19='Customer Info'!$H$20,$E$19=0),AA33,(AA33/$E$19)*'Customer Info'!$H$20)),) -> 0 | AN33: 25.17073171 | AO33: 25.17073171 | AP33: =IF(E33="plate waste",,IF('Customer Info'!$M$18=0,'Log Sheet'!AO33,'Customer Info'!$M$18*'Log Sheet'!AO33)) -> 0 | AQ33: =IF(E33="plate waste",IF(C33="dining area1",IF('Customer Info'!$L$30=0,AO33*'Customer Info'!$M$18,AO33*'Customer Info'!$L$30),IF(C33="dining area2",IF('Customer Info'!$L$31=0,AO33*'Customer Info'!$M$18,AO33*'Customer Info'!$L$31),IF(C33="Dining Area3",IF('Customer Info'!$L$32=0,AO33*'Customer Info'!$M$18,AO33*'Customer Info'!$L$32),))),) -> 22.23993042 | AR33: 22.23993042 | AS33: =IF($F$4="lunch",IF(Q33=0,,(Q33/$E$5)*'Customer Info'!$D$17),) -> 0 | AT33: =IF($F$4="dinner",IF(R33=0,,(R33/$E$6)*'Customer Info'!$D$17),) -> 0 | AU33: =IF($F$4="other",IF(S33=0,,(S33/$E$7)*'Customer Info'!$D$17),) -> 0 | AV33: 0 | AW33: =IF($F$5="breakfast",IF(P33=0,,(P33/$E$4)*'Customer Info'!$D$18),) -> 0 | AX33: =IF($F$5="dinner",IF(R33=0,,(R33/$E$6)*'Customer Info'!$D$18),) -> 0 | AY33: =IF($F$5="other",IF(S33=0,,(S33/$E$7)*'Customer Info'!$D$18),) -> 0 | AZ33: 0 | BA33: =IF($F$6="breakfast",IF(P33=0,,(P33/$E$4)*'Customer Info'!$D$19),) -> 0 | BB33: =IF($F$6="lunch",IF(Q33=0,,(Q33/$E$5)*'Customer Info'!$D$19),) -> 0 | BC33: =IF($F$6="other",IF(S33=0,,(S33/$E$7)*'Customer Info'!$D$19),) -> 0 | BD33: 0 | BE33: =IF($F$7="breakfast",IF(P33=0,,(P33/$E$4)*'Customer Info'!$D$20),) -> 0 | BF33: =IF($F$7="lunch",IF(Q33=0,,(Q33/$E$5)*'Customer Info'!$D$20),) -> 0 | BG33: =IF($F$7="dinner",IF(R33=0,,(R33/$E$6)*'Customer Info'!$D$20),) -> 0 | BH33: 0 | BI33: =IF($F$10="lunch",IF(U33=0,,(U33/$E$11)*'Customer Info'!$F$17),) -> 0 | BJ33: =IF($F$10="dinner",IF(V33=0,,(V33/$E$12)*'Customer Info'!$F$17),) -> 0 | BK33: =IF($F$10="other",IF(W33=0,,(W33/$E$13)*'Customer Info'!$F$17),) -> 0 | BL33: 0 | BM33: =IF($F$11="breakfast",IF(T33=0,,(T33/$E$10)*'Customer Info'!$F$18),) -> 0 | BN33: =IF($F$11="dinner",IF(V33=0,,(V33/$E$12)*'Customer Info'!$F$18),) -> 0 | BO33: =IF($F$11="other",IF(W33=0,,(W33/$E$13)*'Customer Info'!$F$18),) -> 0 | BP33: 0 | BQ33: =IF($F$12="breakfast",IF(T33=0,,(T33/$E$10)*'Customer Info'!$F$19),) -> 0 | BR33: =IF($F$12="lunch",IF(U33=0,,(U33/$E$11)*'Customer Info'!$F$19),) -> 0 | BS33: =IF($F$12="other",IF(W33=0,,(W33/$E$13)*'Customer Info'!$F$19),) -> 0 | BT33: 0 | BU33: =IF($F$13="breakfast",IF(T33=0,,(T33/$E$10)*'Customer Info'!$F$20),) -> 0 | BV33: =IF($F$13="lunch",IF(U33=0,,(U33/$E$11)*'Customer Info'!$F$20),) -> 0 | BW33: =IF($F$13="dinner",IF(V33=0,,(V33/$E$12)*'Customer Info'!$F$20),) -> 0 | BX33: 0 | BY33: =IF($F$16="lunch",IF(Y33=0,,(Y33/$E$17)*'Customer Info'!$H$17),) -> 0 | BZ33: =IF($F$16="dinner",IF(Z33=0,,(Z33/$E$18)*'Customer Info'!$H$17),) -> 0 | CA33: =IF($F$16="other",IF(AA33=0,,(AA33/$E$19)*'Customer Info'!$H$17),) -> 0 | CB33: 0 | CC33: =IF($F$17="breakfast",IF(X33=0,,(X33/$E$16)*'Customer Info'!$H$18),) -> 0 | CD33: =IF($F$17="dinner",IF(Z33=0,,(Z33/$E$18)*'Customer Info'!$H$18),) -> 0 | CE33: =IF($F$17="other",IF(AA33=0,,(AA33/$E$19)*'Customer Info'!$H$18),) -> 0 | CF33: 0 | CG33: =IF($F$18="breakfast",IF(X33=0,,(X33/$E$16)*'Customer Info'!$H$19),) -> 0 | CH33: =IF($F$18="lunch",IF(Y33=0,,(Y33/$E$17)*'Customer Info'!$H$19),) -> 0 | CI33: =IF($F$18="other",IF(AA33=0,,(AA33/$E$19)*'Customer Info'!$H$19),) -> 0 | CJ33: 0 | CK33: =IF($F$19="breakfast",IF(X33=0,,(X33/$E$16)*'Customer Info'!$H$20),) -> 0 | CL33: =IF($F$19="lunch",IF(Y33=0,,(Y33/$E$17)*'Customer Info'!$H$20),) -> 0 | CM33: =IF($F$19="dinner",IF(Z33=0,,(Z33/$E$18)*'Customer Info'!$H$20),) -> 0 | CN33: 0 | CO33: 22.23993042 | CP33: 0
A34: lunch | C34: dining area1 | D34: landfill | E34: plate waste | F34: Pizza, chicken wings, chicken tenders | G34: 2 | H34: 17.6 | J34: 15.6 | K34: 115.6476382 | L34: 15.6 | M34: 15.6 | N34: 0 | O34: 0 | P34: 0 | Q34: 15.6 | R34: 0 | S34: 0 | T34: 0 | U34: 0 | V34: 0 | W34: 0 | X34: 0 | Y34: 0 | Z34: 0 | AA34: 0 | AB34: =IF((OR($F$4=0,$F$4="none")),IF(P34=0,,IF(OR($E$4='Customer Info'!$D$17,$E$4=0),P34,(P34/$E$4)*'Customer Info'!$D$17)),) -> 0 | AC34: =IF((OR($F$5=0,$F$5="none")),IF(Q34=0,,IF(OR($E$5='Customer Info'!$D$18,$E$5=0),Q34,(Q34/$E$5)*'Customer Info'!$D$18)),) -> 130.8878049 | AD34: =IF((OR($F$6=0,$F$6="none")),IF(R34=0,,IF(OR($E$6='Customer Info'!$D$19,$E$6=0),R34,(R34/$E$6)*'Customer Info'!$D$19)),) -> 0 | AE34: =IF((OR($F$7=0,$F$7="none")),IF(S34=0,,IF(OR($E$7='Customer Info'!$D$20,$E$7=0),S34,(S34/$E$7)*'Customer Info'!$D$20)),) -> 0 | AF34: =IF((OR($F$10=0,$F$10="none")),IF(T34=0,,IF(OR($E$10='Customer Info'!$F$17,$E$10=0),T34,(T34/$E$10)*'Customer Info'!$F$17)),) -> 0 | AG34: =IF((OR($F$11=0,$F$11="none")),IF(U34=0,,IF(OR($E$11='Customer Info'!$F$18,$E$11=0),U34,(U34/$E$11)*'Customer Info'!$F$18)),) -> 0 | AH34: =IF((OR($F$12=0,$F$12="none")),IF(V34=0,,IF(OR($E$12='Customer Info'!$F$19,$E$12=0),V34,(V34/$E$12)*'Customer Info'!$F$19)),) -> 0 | AI34: =IF((OR($F$13=0,$F$13="none")),IF(W34=0,,IF(OR($E$13='Customer Info'!$F$20,$E$13=0),W34,(W34/$E$13)*'Customer Info'!$F$20)),) -> 0 | AJ34: =IF((OR($F$16=0,$F$16="none")),IF(X34=0,,IF(($E$16='Customer Info'!$H$17,$E$16=0),X34,(X34/$E$16)*'Customer Info'!$H$17)),) -> 0 | AK34: =IF((OR($F$17=0,$F$17="none")),IF(Y34=0,,IF(OR($E$17='Customer Info'!$H$18, $E$17=0),Y34,(Y34/$E$17)*'Customer Info'!$H$18)),) -> 0 | AL34: =IF((OR($F$18=0,$F$18="none")),IF(Z34=0,,IF(OR($E$18='Customer Info'!$H$19, $E$18=0),Z34,(Z34/$E$18)*'Customer Info'!$H$19)),) -> 0 | AM34: =IF((OR($F$19=0,$F$19="none")),IF(AA34=0,,IF(OR($E$19='Customer Info'!$H$20,$E$19=0),AA34,(AA34/$E$19)*'Customer Info'!$H$20)),) -> 0 | AN34: 130.8878049 | AO34: 130.8878049 | AP34: =IF(E34="plate waste",,IF('Customer Info'!$M$18=0,'Log Sheet'!AO34,'Customer Info'!$M$18*'Log Sheet'!AO34)) -> 0 | AQ34: =IF(E34="plate waste",IF(C34="dining area1",IF('Customer Info'!$L$30=0,AO34*'Customer Info'!$M$18,AO34*'Customer Info'!$L$30),IF(C34="dining area2",IF('Customer Info'!$L$31=0,AO34*'Customer Info'!$M$18,AO34*'Customer Info'!$L$31),IF(C34="Dining Area3",IF('Customer Info'!$L$32=0,AO34*'Customer Info'!$M$18,AO34*'Customer Info'!$L$32),))),) -> 115.6476382 | AR34: 115.6476382 | AS34: =IF($F$4="lunch",IF(Q34=0,,(Q34/$E$5)*'Customer Info'!$D$17),) -> 0 | AT34: =IF($F$4="dinner",IF(R34=0,,(R34/$E$6)*'Customer Info'!$D$17),) -> 0 | AU34: =IF($F$4="other",IF(S34=0,,(S34/$E$7)*'Customer Info'!$D$17),) -> 0 | AV34: 0 | AW34: =IF($F$5="breakfast",IF(P34=0,,(P34/$E$4)*'Customer Info'!$D$18),) -> 0 | AX34: =IF($F$5="dinner",IF(R34=0,,(R34/$E$6)*'Customer Info'!$D$18),) -> 0 | AY34: =IF($F$5="other",IF(S34=0,,(S34/$E$7)*'Customer Info'!$D$18),) -> 0 | AZ34: 0 | BA34: =IF($F$6="breakfast",IF(P34=0,,(P34/$E$4)*'Customer Info'!$D$19),) -> 0 | BB34: =IF($F$6="lunch",IF(Q34=0,,(Q34/$E$5)*'Customer Info'!$D$19),) -> 0 | BC34: =IF($F$6="other",IF(S34=0,,(S34/$E$7)*'Customer Info'!$D$19),) -> 0 | BD34: 0 | BE34: =IF($F$7="breakfast",IF(P34=0,,(P34/$E$4)*'Customer Info'!$D$20),) -> 0 | BF34: =IF($F$7="lunch",IF(Q34=0,,(Q34/$E$5)*'Customer Info'!$D$20),) -> 0 | BG34: =IF($F$7="dinner",IF(R34=0,,(R34/$E$6)*'Customer Info'!$D$20),) -> 0 | BH34: 0 | BI34: =IF($F$10="lunch",IF(U34=0,,(U34/$E$11)*'Customer Info'!$F$17),) -> 0 | BJ34: =IF($F$10="dinner",IF(V34=0,,(V34/$E$12)*'Customer Info'!$F$17),) -> 0 | BK34: =IF($F$10="other",IF(W34=0,,(W34/$E$13)*'Customer Info'!$F$17),) -> 0 | BL34: 0 | BM34: =IF($F$11="breakfast",IF(T34=0,,(T34/$E$10)*'Customer Info'!$F$18),) -> 0 | BN34: =IF($F$11="dinner",IF(V34=0,,(V34/$E$12)*'Customer Info'!$F$18),) -> 0 | BO34: =IF($F$11="other",IF(W34=0,,(W34/$E$13)*'Customer Info'!$F$18),) -> 0 | BP34: 0 | BQ34: =IF($F$12="breakfast",IF(T34=0,,(T34/$E$10)*'Customer Info'!$F$19),) -> 0 | BR34: =IF($F$12="lunch",IF(U34=0,,(U34/$E$11)*'Customer Info'!$F$19),) -> 0 | BS34: =IF($F$12="other",IF(W34=0,,(W34/$E$13)*'Customer Info'!$F$19),) -> 0 | BT34: 0 | BU34: =IF($F$13="breakfast",IF(T34=0,,(T34/$E$10)*'Customer Info'!$F$20),) -> 0 | BV34: =IF($F$13="lunch",IF(U34=0,,(U34/$E$11)*'Customer Info'!$F$20),) -> 0 | BW34: =IF($F$13="dinner",IF(V34=0,,(V34/$E$12)*'Customer Info'!$F$20),) -> 0 | BX34: 0 | BY34: =IF($F$16="lunch",IF(Y34=0,,(Y34/$E$17)*'Customer Info'!$H$17),) -> 0 | BZ34: =IF($F$16="dinner",IF(Z34=0,,(Z34/$E$18)*'Customer Info'!$H$17),) -> 0 | CA34: =IF($F$16="other",IF(AA34=0,,(AA34/$E$19)*'Customer Info'!$H$17),) -> 0 | CB34: 0 | CC34: =IF($F$17="breakfast",IF(X34=0,,(X34/$E$16)*'Customer Info'!$H$18),) -> 0 | CD34: =IF($F$17="dinner",IF(Z34=0,,(Z34/$E$18)*'Customer Info'!$H$18),) -> 0 | CE34: =IF($F$17="other",IF(AA34=0,,(AA34/$E$19)*'Customer Info'!$H$18),) -> 0 | CF34: 0 | CG34: =IF($F$18="breakfast",IF(X34=0,,(X34/$E$16)*'Customer Info'!$H$19),) -> 0 | CH34: =IF($F$18="lunch",IF(Y34=0,,(Y34/$E$17)*'Customer Info'!$H$19),) -> 0 | CI34: =IF($F$18="other",IF(AA34=0,,(AA34/$E$19)*'Customer Info'!$H$19),) -> 0 | CJ34: 0 | CK34: =IF($F$19="breakfast",IF(X34=0,,(X34/$E$16)*'Customer Info'!$H$20),) -> 0 | CL34: =IF($F$19="lunch",IF(Y34=0,,(Y34/$E$17)*'Customer Info'!$H$20),) -> 0 | CM34: =IF($F$19="dinner",IF(Z34=0,,(Z34/$E$18)*'Customer Info'!$H$20),) -> 0 | CN34: 0 | CO34: 115.6476382 | CP34: 0
A35: lunch | C35: dining area1 | D35: landfill | E35: plate waste | F35: Salad, sandwiches | G35: 2 | H35: 7 | J35: 5 | K35: 37.0665507 | L35: 5 | M35: 5 | N35: 0 | O35: 0 | P35: 0 | Q35: 5 | R35: 0 | S35: 0 | T35: 0 | U35: 0 | V35: 0 | W35: 0 | X35: 0 | Y35: 0 | Z35: 0 | AA35: 0 | AB35: =IF((OR($F$4=0,$F$4="none")),IF(P35=0,,IF(OR($E$4='Customer Info'!$D$17,$E$4=0),P35,(P35/$E$4)*'Customer Info'!$D$17)),) -> 0 | AC35: =IF((OR($F$5=0,$F$5="none")),IF(Q35=0,,IF(OR($E$5='Customer Info'!$D$18,$E$5=0),Q35,(Q35/$E$5)*'Customer Info'!$D$18)),) -> 41.95121951 | AD35: =IF((OR($F$6=0,$F$6="none")),IF(R35=0,,IF(OR($E$6='Customer Info'!$D$19,$E$6=0),R35,(R35/$E$6)*'Customer Info'!$D$19)),) -> 0 | AE35: =IF((OR($F$7=0,$F$7="none")),IF(S35=0,,IF(OR($E$7='Customer Info'!$D$20,$E$7=0),S35,(S35/$E$7)*'Customer Info'!$D$20)),) -> 0 | AF35: =IF((OR($F$10=0,$F$10="none")),IF(T35=0,,IF(OR($E$10='Customer Info'!$F$17,$E$10=0),T35,(T35/$E$10)*'Customer Info'!$F$17)),) -> 0 | AG35: =IF((OR($F$11=0,$F$11="none")),IF(U35=0,,IF(OR($E$11='Customer Info'!$F$18,$E$11=0),U35,(U35/$E$11)*'Customer Info'!$F$18)),) -> 0 | AH35: =IF((OR($F$12=0,$F$12="none")),IF(V35=0,,IF(OR($E$12='Customer Info'!$F$19,$E$12=0),V35,(V35/$E$12)*'Customer Info'!$F$19)),) -> 0 | AI35: =IF((OR($F$13=0,$F$13="none")),IF(W35=0,,IF(OR($E$13='Customer Info'!$F$20,$E$13=0),W35,(W35/$E$13)*'Customer Info'!$F$20)),) -> 0 | AJ35: =IF((OR($F$16=0,$F$16="none")),IF(X35=0,,IF(($E$16='Customer Info'!$H$17,$E$16=0),X35,(X35/$E$16)*'Customer Info'!$H$17)),) -> 0 | AK35: =IF((OR($F$17=0,$F$17="none")),IF(Y35=0,,IF(OR($E$17='Customer Info'!$H$18, $E$17=0),Y35,(Y35/$E$17)*'Customer Info'!$H$18)),) -> 0 | AL35: =IF((OR($F$18=0,$F$18="none")),IF(Z35=0,,IF(OR($E$18='Customer Info'!$H$19, $E$18=0),Z35,(Z35/$E$18)*'Customer Info'!$H$19)),) -> 0 | AM35: =IF((OR($F$19=0,$F$19="none")),IF(AA35=0,,IF(OR($E$19='Customer Info'!$H$20,$E$19=0),AA35,(AA35/$E$19)*'Customer Info'!$H$20)),) -> 0 | AN35: 41.95121951 | AO35: 41.95121951 | AP35: =IF(E35="plate waste",,IF('Customer Info'!$M$18=0,'Log Sheet'!AO35,'Customer Info'!$M$18*'Log Sheet'!AO35)) -> 0 | AQ35: =IF(E35="plate waste",IF(C35="dining area1",IF('Customer Info'!$L$30=0,AO35*'Customer Info'!$M$18,AO35*'Customer Info'!$L$30),IF(C35="dining area2",IF('Customer Info'!$L$31=0,AO35*'Customer Info'!$M$18,AO35*'Customer Info'!$L$31),IF(C35="Dining Area3",IF('Customer Info'!$L$32=0,AO35*'Customer Info'!$M$18,AO35*'Customer Info'!$L$32),))),) -> 37.0665507 | AR35: 37.0665507 | AS35: =IF($F$4="lunch",IF(Q35=0,,(Q35/$E$5)*'Customer Info'!$D$17),) -> 0 | AT35: =IF($F$4="dinner",IF(R35=0,,(R35/$E$6)*'Customer Info'!$D$17),) -> 0 | AU35: =IF($F$4="other",IF(S35=0,,(S35/$E$7)*'Customer Info'!$D$17),) -> 0 | AV35: 0 | AW35: =IF($F$5="breakfast",IF(P35=0,,(P35/$E$4)*'Customer Info'!$D$18),) -> 0 | AX35: =IF($F$5="dinner",IF(R35=0,,(R35/$E$6)*'Customer Info'!$D$18),) -> 0 | AY35: =IF($F$5="other",IF(S35=0,,(S35/$E$7)*'Customer Info'!$D$18),) -> 0 | AZ35: 0 | BA35: =IF($F$6="breakfast",IF(P35=0,,(P35/$E$4)*'Customer Info'!$D$19),) -> 0 | BB35: =IF($F$6="lunch",IF(Q35=0,,(Q35/$E$5)*'Customer Info'!$D$19),) -> 0 | BC35: =IF($F$6="other",IF(S35=0,,(S35/$E$7)*'Customer Info'!$D$19),) -> 0 | BD35: 0 | BE35: =IF($F$7="breakfast",IF(P35=0,,(P35/$E$4)*'Customer Info'!$D$20),) -> 0 | BF35: =IF($F$7="lunch",IF(Q35=0,,(Q35/$E$5)*'Customer Info'!$D$20),) -> 0 | BG35: =IF($F$7="dinner",IF(R35=0,,(R35/$E$6)*'Customer Info'!$D$20),) -> 0 | BH35: 0 | BI35: =IF($F$10="lunch",IF(U35=0,,(U35/$E$11)*'Customer Info'!$F$17),) -> 0 | BJ35: =IF($F$10="dinner",IF(V35=0,,(V35/$E$12)*'Customer Info'!$F$17),) -> 0 | BK35: =IF($F$10="other",IF(W35=0,,(W35/$E$13)*'Customer Info'!$F$17),) -> 0 | BL35: 0 | BM35: =IF($F$11="breakfast",IF(T35=0,,(T35/$E$10)*'Customer Info'!$F$18),) -> 0 | BN35: =IF($F$11="dinner",IF(V35=0,,(V35/$E$12)*'Customer Info'!$F$18),) -> 0 | BO35: =IF($F$11="other",IF(W35=0,,(W35/$E$13)*'Customer Info'!$F$18),) -> 0 | BP35: 0 | BQ35: =IF($F$12="breakfast",IF(T35=0,,(T35/$E$10)*'Customer Info'!$F$19),) -> 0 | BR35: =IF($F$12="lunch",IF(U35=0,,(U35/$E$11)*'Customer Info'!$F$19),) -> 0 | BS35: =IF($F$12="other",IF(W35=0,,(W35/$E$13)*'Customer Info'!$F$19),) -> 0 | BT35: 0 | BU35: =IF($F$13="breakfast",IF(T35=0,,(T35/$E$10)*'Customer Info'!$F$20),) -> 0 | BV35: =IF($F$13="lunch",IF(U35=0,,(U35/$E$11)*'Customer Info'!$F$20),) -> 0 | BW35: =IF($F$13="dinner",IF(V35=0,,(V35/$E$12)*'Customer Info'!$F$20),) -> 0 | BX35: 0 | BY35: =IF($F$16="lunch",IF(Y35=0,,(Y35/$E$17)*'Customer Info'!$H$17),) -> 0 | BZ35: =IF($F$16="dinner",IF(Z35=0,,(Z35/$E$18)*'Customer Info'!$H$17),) -> 0 | CA35: =IF($F$16="other",IF(AA35=0,,(AA35/$E$19)*'Customer Info'!$H$17),) -> 0 | CB35: 0 | CC35: =IF($F$17="breakfast",IF(X35=0,,(X35/$E$16)*'Customer Info'!$H$18),) -> 0 | CD35: =IF($F$17="dinner",IF(Z35=0,,(Z35/$E$18)*'Customer Info'!$H$18),) -> 0 | CE35: =IF($F$17="other",IF(AA35=0,,(AA35/$E$19)*'Customer Info'!$H$18),) -> 0 | CF35: 0 | CG35: =IF($F$18="breakfast",IF(X35=0,,(X35/$E$16)*'Customer Info'!$H$19),) -> 0 | CH35: =IF($F$18="lunch",IF(Y35=0,,(Y35/$E$17)*'Customer Info'!$H$19),) -> 0 | CI35: =IF($F$18="other",IF(AA35=0,,(AA35/$E$19)*'Customer Info'!$H$19),) -> 0 | CJ35: 0 | CK35: =IF($F$19="breakfast",IF(X35=0,,(X35/$E$16)*'Customer Info'!$H$20),) -> 0 | CL35: =IF($F$19="lunch",IF(Y35=0,,(Y35/$E$17)*'Customer Info'!$H$20),) -> 0 | CM35: =IF($F$19="dinner",IF(Z35=0,,(Z35/$E$18)*'Customer Info'!$H$20),) -> 0 | CN35: 0 | CO35: 37.0665507 | CP35: 0
A36: dinner | C36: dining area1 | D36: landfill | E36: plate waste | F36: Broccoli, seafood | G36: 2 | H36: 7.2 | I36: 96 plates counted for dinner | J36: 5.2 | K36: 24.98274742 | L36: 5.2 | M36: 5.2 | N36: 0 | O36: 0 | P36: 0 | Q36: 0 | R36: 5.2 | S36: 0 | T36: 0 | U36: 0 | V36: 0 | W36: 0 | X36: 0 | Y36: 0 | Z36: 0 | AA36: 0 | AB36: =IF((OR($F$4=0,$F$4="none")),IF(P36=0,,IF(OR($E$4='Customer Info'!$D$17,$E$4=0),P36,(P36/$E$4)*'Customer Info'!$D$17)),) -> 0 | AC36: =IF((OR($F$5=0,$F$5="none")),IF(Q36=0,,IF(OR($E$5='Customer Info'!$D$18,$E$5=0),Q36,(Q36/$E$5)*'Customer Info'!$D$18)),) -> 0 | AD36: =IF((OR($F$6=0,$F$6="none")),IF(R36=0,,IF(OR($E$6='Customer Info'!$D$19,$E$6=0),R36,(R36/$E$6)*'Customer Info'!$D$19)),) -> 28.275 | AE36: =IF((OR($F$7=0,$F$7="none")),IF(S36=0,,IF(OR($E$7='Customer Info'!$D$20,$E$7=0),S36,(S36/$E$7)*'Customer Info'!$D$20)),) -> 0 | AF36: =IF((OR($F$10=0,$F$10="none")),IF(T36=0,,IF(OR($E$10='Customer Info'!$F$17,$E$10=0),T36,(T36/$E$10)*'Customer Info'!$F$17)),) -> 0 | AG36: =IF((OR($F$11=0,$F$11="none")),IF(U36=0,,IF(OR($E$11='Customer Info'!$F$18,$E$11=0),U36,(U36/$E$11)*'Customer Info'!$F$18)),) -> 0 | AH36: =IF((OR($F$12=0,$F$12="none")),IF(V36=0,,IF(OR($E$12='Customer Info'!$F$19,$E$12=0),V36,(V36/$E$12)*'Customer Info'!$F$19)),) -> 0 | AI36: =IF((OR($F$13=0,$F$13="none")),IF(W36=0,,IF(OR($E$13='Customer Info'!$F$20,$E$13=0),W36,(W36/$E$13)*'Customer Info'!$F$20)),) -> 0 | AJ36: =IF((OR($F$16=0,$F$16="none")),IF(X36=0,,IF(($E$16='Customer Info'!$H$17,$E$16=0),X36,(X36/$E$16)*'Customer Info'!$H$17)),) -> 0 | AK36: =IF((OR($F$17=0,$F$17="none")),IF(Y36=0,,IF(OR($E$17='Customer Info'!$H$18, $E$17=0),Y36,(Y36/$E$17)*'Customer Info'!$H$18)),) -> 0 | AL36: =IF((OR($F$18=0,$F$18="none")),IF(Z36=0,,IF(OR($E$18='Customer Info'!$H$19, $E$18=0),Z36,(Z36/$E$18)*'Customer Info'!$H$19)),) -> 0 | AM36: =IF((OR($F$19=0,$F$19="none")),IF(AA36=0,,IF(OR($E$19='Customer Info'!$H$20,$E$19=0),AA36,(AA36/$E$19)*'Customer Info'!$H$20)),) -> 0 | AN36: 28.275 | AO36: 28.275 | AP36: =IF(E36="plate waste",,IF('Customer Info'!$M$18=0,'Log Sheet'!AO36,'Customer Info'!$M$18*'Log Sheet'!AO36)) -> 0 | AQ36: =IF(E36="plate waste",IF(C36="dining area1",IF('Customer Info'!$L$30=0,AO36*'Customer Info'!$M$18,AO36*'Customer Info'!$L$30),IF(C36="dining area2",IF('Customer Info'!$L$31=0,AO36*'Customer Info'!$M$18,AO36*'Customer Info'!$L$31),IF(C36="Dining Area3",IF('Customer Info'!$L$32=0,AO36*'Customer Info'!$M$18,AO36*'Customer Info'!$L$32),))),) -> 24.98274742 | AR36: 24.98274742 | AS36: =IF($F$4="lunch",IF(Q36=0,,(Q36/$E$5)*'Customer Info'!$D$17),) -> 0 | AT36: =IF($F$4="dinner",IF(R36=0,,(R36/$E$6)*'Customer Info'!$D$17),) -> 0 | AU36: =IF($F$4="other",IF(S36=0,,(S36/$E$7)*'Customer Info'!$D$17),) -> 0 | AV36: 0 | AW36: =IF($F$5="breakfast",IF(P36=0,,(P36/$E$4)*'Customer Info'!$D$18),) -> 0 | AX36: =IF($F$5="dinner",IF(R36=0,,(R36/$E$6)*'Customer Info'!$D$18),) -> 0 | AY36: =IF($F$5="other",IF(S36=0,,(S36/$E$7)*'Customer Info'!$D$18),) -> 0 | AZ36: 0 | BA36: =IF($F$6="breakfast",IF(P36=0,,(P36/$E$4)*'Customer Info'!$D$19),) -> 0 | BB36: =IF($F$6="lunch",IF(Q36=0,,(Q36/$E$5)*'Customer Info'!$D$19),) -> 0 | BC36: =IF($F$6="other",IF(S36=0,,(S36/$E$7)*'Customer Info'!$D$19),) -> 0 | BD36: 0 | BE36: =IF($F$7="breakfast",IF(P36=0,,(P36/$E$4)*'Customer Info'!$D$20),) -> 0 | BF36: =IF($F$7="lunch",IF(Q36=0,,(Q36/$E$5)*'Customer Info'!$D$20),) -> 0 | BG36: =IF($F$7="dinner",IF(R36=0,,(R36/$E$6)*'Customer Info'!$D$20),) -> 0 | BH36: 0 | BI36: =IF($F$10="lunch",IF(U36=0,,(U36/$E$11)*'Customer Info'!$F$17),) -> 0 | BJ36: =IF($F$10="dinner",IF(V36=0,,(V36/$E$12)*'Customer Info'!$F$17),) -> 0 | BK36: =IF($F$10="other",IF(W36=0,,(W36/$E$13)*'Customer Info'!$F$17),) -> 0 | BL36: 0 | BM36: =IF($F$11="breakfast",IF(T36=0,,(T36/$E$10)*'Customer Info'!$F$18),) -> 0 | BN36: =IF($F$11="dinner",IF(V36=0,,(V36/$E$12)*'Customer Info'!$F$18),) -> 0 | BO36: =IF($F$11="other",IF(W36=0,,(W36/$E$13)*'Customer Info'!$F$18),) -> 0 | BP36: 0 | BQ36: =IF($F$12="breakfast",IF(T36=0,,(T36/$E$10)*'Customer Info'!$F$19),) -> 0 | BR36: =IF($F$12="lunch",IF(U36=0,,(U36/$E$11)*'Customer Info'!$F$19),) -> 0 | BS36: =IF($F$12="other",IF(W36=0,,(W36/$E$13)*'Customer Info'!$F$19),) -> 0 | BT36: 0 | BU36: =IF($F$13="breakfast",IF(T36=0,,(T36/$E$10)*'Customer Info'!$F$20),) -> 0 | BV36: =IF($F$13="lunch",IF(U36=0,,(U36/$E$11)*'Customer Info'!$F$20),) -> 0 | BW36: =IF($F$13="dinner",IF(V36=0,,(V36/$E$12)*'Customer Info'!$F$20),) -> 0 | BX36: 0 | BY36: =IF($F$16="lunch",IF(Y36=0,,(Y36/$E$17)*'Customer Info'!$H$17),) -> 0 | BZ36: =IF($F$16="dinner",IF(Z36=0,,(Z36/$E$18)*'Customer Info'!$H$17),) -> 0 | CA36: =IF($F$16="other",IF(AA36=0,,(AA36/$E$19)*'Customer Info'!$H$17),) -> 0 | CB36: 0 | CC36: =IF($F$17="breakfast",IF(X36=0,,(X36/$E$16)*'Customer Info'!$H$18),) -> 0 | CD36: =IF($F$17="dinner",IF(Z36=0,,(Z36/$E$18)*'Customer Info'!$H$18),) -> 0 | CE36: =IF($F$17="other",IF(AA36=0,,(AA36/$E$19)*'Customer Info'!$H$18),) -> 0 | CF36: 0 | CG36: =IF($F$18="breakfast",IF(X36=0,,(X36/$E$16)*'Customer Info'!$H$19),) -> 0 | CH36: =IF($F$18="lunch",IF(Y36=0,,(Y36/$E$17)*'Customer Info'!$H$19),) -> 0 | CI36: =IF($F$18="other",IF(AA36=0,,(AA36/$E$19)*'Customer Info'!$H$19),) -> 0 | CJ36: 0 | CK36: =IF($F$19="breakfast",IF(X36=0,,(X36/$E$16)*'Customer Info'!$H$20),) -> 0 | CL36: =IF($F$19="lunch",IF(Y36=0,,(Y36/$E$17)*'Customer Info'!$H$20),) -> 0 | CM36: =IF($F$19="dinner",IF(Z36=0,,(Z36/$E$18)*'Customer Info'!$H$20),) -> 0 | CN36: 0 | CO36: 24.98274742 | CP36: 0
A37: dinner | C37: dining area1 | D37: landfill | E37: plate waste | F37: Chicken, pasta salad | G37: 2 | H37: 11.2 | J37: 9.2 | K37: 44.20024543 | L37: 9.2 | M37: 9.2 | N37: 0 | O37: 0 | P37: 0 | Q37: 0 | R37: 9.2 | S37: 0 | T37: 0 | U37: 0 | V37: 0 | W37: 0 | X37: 0 | Y37: 0 | Z37: 0 | AA37: 0 | AB37: =IF((OR($F$4=0,$F$4="none")),IF(P37=0,,IF(OR($E$4='Customer Info'!$D$17,$E$4=0),P37,(P37/$E$4)*'Customer Info'!$D$17)),) -> 0 | AC37: =IF((OR($F$5=0,$F$5="none")),IF(Q37=0,,IF(OR($E$5='Customer Info'!$D$18,$E$5=0),Q37,(Q37/$E$5)*'Customer Info'!$D$18)),) -> 0 | AD37: =IF((OR($F$6=0,$F$6="none")),IF(R37=0,,IF(OR($E$6='Customer Info'!$D$19,$E$6=0),R37,(R37/$E$6)*'Customer Info'!$D$19)),) -> 50.025 | AE37: =IF((OR($F$7=0,$F$7="none")),IF(S37=0,,IF(OR($E$7='Customer Info'!$D$20,$E$7=0),S37,(S37/$E$7)*'Customer Info'!$D$20)),) -> 0 | AF37: =IF((OR($F$10=0,$F$10="none")),IF(T37=0,,IF(OR($E$10='Customer Info'!$F$17,$E$10=0),T37,(T37/$E$10)*'Customer Info'!$F$17)),) -> 0 | AG37: =IF((OR($F$11=0,$F$11="none")),IF(U37=0,,IF(OR($E$11='Customer Info'!$F$18,$E$11=0),U37,(U37/$E$11)*'Customer Info'!$F$18)),) -> 0 | AH37: =IF((OR($F$12=0,$F$12="none")),IF(V37=0,,IF(OR($E$12='Customer Info'!$F$19,$E$12=0),V37,(V37/$E$12)*'Customer Info'!$F$19)),) -> 0 | AI37: =IF((OR($F$13=0,$F$13="none")),IF(W37=0,,IF(OR($E$13='Customer Info'!$F$20,$E$13=0),W37,(W37/$E$13)*'Customer Info'!$F$20)),) -> 0 | AJ37: =IF((OR($F$16=0,$F$16="none")),IF(X37=0,,IF(($E$16='Customer Info'!$H$17,$E$16=0),X37,(X37/$E$16)*'Customer Info'!$H$17)),) -> 0 | AK37: =IF((OR($F$17=0,$F$17="none")),IF(Y37=0,,IF(OR($E$17='Customer Info'!$H$18, $E$17=0),Y37,(Y37/$E$17)*'Customer Info'!$H$18)),) -> 0 | AL37: =IF((OR($F$18=0,$F$18="none")),IF(Z37=0,,IF(OR($E$18='Customer Info'!$H$19, $E$18=0),Z37,(Z37/$E$18)*'Customer Info'!$H$19)),) -> 0 | AM37: =IF((OR($F$19=0,$F$19="none")),IF(AA37=0,,IF(OR($E$19='Customer Info'!$H$20,$E$19=0),AA37,(AA37/$E$19)*'Customer Info'!$H$20)),) -> 0 | AN37: 50.025 | AO37: 50.025 | AP37: =IF(E37="plate waste",,IF('Customer Info'!$M$18=0,'Log Sheet'!AO37,'Customer Info'!$M$18*'Log Sheet'!AO37)) -> 0 | AQ37: =IF(E37="plate waste",IF(C37="dining area1",IF('Customer Info'!$L$30=0,AO37*'Customer Info'!$M$18,AO37*'Customer Info'!$L$30),IF(C37="dining area2",IF('Customer Info'!$L$31=0,AO37*'Customer Info'!$M$18,AO37*'Customer Info'!$L$31),IF(C37="Dining Area3",IF('Customer Info'!$L$32=0,AO37*'Customer Info'!$M$18,AO37*'Customer Info'!$L$32),))),) -> 44.20024543 | AR37: 44.20024543 | AS37: =IF($F$4="lunch",IF(Q37=0,,(Q37/$E$5)*'Customer Info'!$D$17),) -> 0 | AT37: =IF($F$4="dinner",IF(R37=0,,(R37/$E$6)*'Customer Info'!$D$17),) -> 0 | AU37: =IF($F$4="other",IF(S37=0,,(S37/$E$7)*'Customer Info'!$D$17),) -> 0 | AV37: 0 | AW37: =IF($F$5="breakfast",IF(P37=0,,(P37/$E$4)*'Customer Info'!$D$18),) -> 0 | AX37: =IF($F$5="dinner",IF(R37=0,,(R37/$E$6)*'Customer Info'!$D$18),) -> 0 | AY37: =IF($F$5="other",IF(S37=0,,(S37/$E$7)*'Customer Info'!$D$18),) -> 0 | AZ37: 0 | BA37: =IF($F$6="breakfast",IF(P37=0,,(P37/$E$4)*'Customer Info'!$D$19),) -> 0 | BB37: =IF($F$6="lunch",IF(Q37=0,,(Q37/$E$5)*'Customer Info'!$D$19),) -> 0 | BC37: =IF($F$6="other",IF(S37=0,,(S37/$E$7)*'Customer Info'!$D$19),) -> 0 | BD37: 0 | BE37: =IF($F$7="breakfast",IF(P37=0,,(P37/$E$4)*'Customer Info'!$D$20),) -> 0 | BF37: =IF($F$7="lunch",IF(Q37=0,,(Q37/$E$5)*'Customer Info'!$D$20),) -> 0 | BG37: =IF($F$7="dinner",IF(R37=0,,(R37/$E$6)*'Customer Info'!$D$20),) -> 0 | BH37: 0 | BI37: =IF($F$10="lunch",IF(U37=0,,(U37/$E$11)*'Customer Info'!$F$17),) -> 0 | BJ37: =IF($F$10="dinner",IF(V37=0,,(V37/$E$12)*'Customer Info'!$F$17),) -> 0 | BK37: =IF($F$10="other",IF(W37=0,,(W37/$E$13)*'Customer Info'!$F$17),) -> 0 | BL37: 0 | BM37: =IF($F$11="breakfast",IF(T37=0,,(T37/$E$10)*'Customer Info'!$F$18),) -> 0 | BN37: =IF($F$11="dinner",IF(V37=0,,(V37/$E$12)*'Customer Info'!$F$18),) -> 0 | BO37: =IF($F$11="other",IF(W37=0,,(W37/$E$13)*'Customer Info'!$F$18),) -> 0 | BP37: 0 | BQ37: =IF($F$12="breakfast",IF(T37=0,,(T37/$E$10)*'Customer Info'!$F$19),) -> 0 | BR37: =IF($F$12="lunch",IF(U37=0,,(U37/$E$11)*'Customer Info'!$F$19),) -> 0 | BS37: =IF($F$12="other",IF(W37=0,,(W37/$E$13)*'Customer Info'!$F$19),) -> 0 | BT37: 0 | BU37: =IF($F$13="breakfast",IF(T37=0,,(T37/$E$10)*'Customer Info'!$F$20),) -> 0 | BV37: =IF($F$13="lunch",IF(U37=0,,(U37/$E$11)*'Customer Info'!$F$20),) -> 0 | BW37: =IF($F$13="dinner",IF(V37=0,,(V37/$E$12)*'Customer Info'!$F$20),) -> 0 | BX37: 0 | BY37: =IF($F$16="lunch",IF(Y37=0,,(Y37/$E$17)*'Customer Info'!$H$17),) -> 0 | BZ37: =IF($F$16="dinner",IF(Z37=0,,(Z37/$E$18)*'Customer Info'!$H$17),) -> 0 | CA37: =IF($F$16="other",IF(AA37=0,,(AA37/$E$19)*'Customer Info'!$H$17),) -> 0 | CB37: 0 | CC37: =IF($F$17="breakfast",IF(X37=0,,(X37/$E$16)*'Customer Info'!$H$18),) -> 0 | CD37: =IF($F$17="dinner",IF(Z37=0,,(Z37/$E$18)*'Customer Info'!$H$18),) -> 0 | CE37: =IF($F$17="other",IF(AA37=0,,(AA37/$E$19)*'Customer Info'!$H$18),) -> 0 | CF37: 0 | CG37: =IF($F$18="breakfast",IF(X37=0,,(X37/$E$16)*'Customer Info'!$H$19),) -> 0 | CH37: =IF($F$18="lunch",IF(Y37=0,,(Y37/$E$17)*'Customer Info'!$H$19),) -> 0 | CI37: =IF($F$18="other",IF(AA37=0,,(AA37/$E$19)*'Customer Info'!$H$19),) -> 0 | CJ37: 0 | CK37: =IF($F$19="breakfast",IF(X37=0,,(X37/$E$16)*'Customer Info'!$H$20),) -> 0 | CL37: =IF($F$19="lunch",IF(Y37=0,,(Y37/$E$17)*'Customer Info'!$H$20),) -> 0 | CM37: =IF($F$19="dinner",IF(Z37=0,,(Z37/$E$18)*'Customer Info'!$H$20),) -> 0 | CN37: 0 | CO37: 44.20024543 | CP37: 0
A38: dinner | C38: dining area1 | D38: landfill | E38: plate waste | F38: Burgers, French fries, pizza | G38: 2 | H38: 24.5 | J38: 22.5 | K38: 108.0984263 | L38: 22.5 | M38: 22.5 | N38: 0 | O38: 0 | P38: 0 | Q38: 0 | R38: 22.5 | S38: 0 | T38: 0 | U38: 0 | V38: 0 | W38: 0 | X38: 0 | Y38: 0 | Z38: 0 | AA38: 0 | AB38: =IF((OR($F$4=0,$F$4="none")),IF(P38=0,,IF(OR($E$4='Customer Info'!$D$17,$E$4=0),P38,(P38/$E$4)*'Customer Info'!$D$17)),) -> 0 | AC38: =IF((OR($F$5=0,$F$5="none")),IF(Q38=0,,IF(OR($E$5='Customer Info'!$D$18,$E$5=0),Q38,(Q38/$E$5)*'Customer Info'!$D$18)),) -> 0 | AD38: =IF((OR($F$6=0,$F$6="none")),IF(R38=0,,IF(OR($E$6='Customer Info'!$D$19,$E$6=0),R38,(R38/$E$6)*'Customer Info'!$D$19)),) -> 122.34375 | AE38: =IF((OR($F$7=0,$F$7="none")),IF(S38=0,,IF(OR($E$7='Customer Info'!$D$20,$E$7=0),S38,(S38/$E$7)*'Customer Info'!$D$20)),) -> 0 | AF38: =IF((OR($F$10=0,$F$10="none")),IF(T38=0,,IF(OR($E$10='Customer Info'!$F$17,$E$10=0),T38,(T38/$E$10)*'Customer Info'!$F$17)),) -> 0 | AG38: =IF((OR($F$11=0,$F$11="none")),IF(U38=0,,IF(OR($E$11='Customer Info'!$F$18,$E$11=0),U38,(U38/$E$11)*'Customer Info'!$F$18)),) -> 0 | AH38: =IF((OR($F$12=0,$F$12="none")),IF(V38=0,,IF(OR($E$12='Customer Info'!$F$19,$E$12=0),V38,(V38/$E$12)*'Customer Info'!$F$19)),) -> 0 | AI38: =IF((OR($F$13=0,$F$13="none")),IF(W38=0,,IF(OR($E$13='Customer Info'!$F$20,$E$13=0),W38,(W38/$E$13)*'Customer Info'!$F$20)),) -> 0 | AJ38: =IF((OR($F$16=0,$F$16="none")),IF(X38=0,,IF(($E$16='Customer Info'!$H$17,$E$16=0),X38,(X38/$E$16)*'Customer Info'!$H$17)),) -> 0 | AK38: =IF((OR($F$17=0,$F$17="none")),IF(Y38=0,,IF(OR($E$17='Customer Info'!$H$18, $E$17=0),Y38,(Y38/$E$17)*'Customer Info'!$H$18)),) -> 0 | AL38: =IF((OR($F$18=0,$F$18="none")),IF(Z38=0,,IF(OR($E$18='Customer Info'!$H$19, $E$18=0),Z38,(Z38/$E$18)*'Customer Info'!$H$19)),) -> 0 | AM38: =IF((OR($F$19=0,$F$19="none")),IF(AA38=0,,IF(OR($E$19='Customer Info'!$H$20,$E$19=0),AA38,(AA38/$E$19)*'Customer Info'!$H$20)),) -> 0 | AN38: 122.34375 | AO38: 122.34375 | AP38: =IF(E38="plate waste",,IF('Customer Info'!$M$18=0,'Log Sheet'!AO38,'Customer Info'!$M$18*'Log Sheet'!AO38)) -> 0 | AQ38: =IF(E38="plate waste",IF(C38="dining area1",IF('Customer Info'!$L$30=0,AO38*'Customer Info'!$M$18,AO38*'Customer Info'!$L$30),IF(C38="dining area2",IF('Customer Info'!$L$31=0,AO38*'Customer Info'!$M$18,AO38*'Customer Info'!$L$31),IF(C38="Dining Area3",IF('Customer Info'!$L$32=0,AO38*'Customer Info'!$M$18,AO38*'Customer Info'!$L$32),))),) -> 108.0984263 | AR38: =SUM(AP38:AQ38) -> 108.0984263 | AS38: =IF($F$4="lunch",IF(Q38=0,,(Q38/$E$5)*'Customer Info'!$D$17),) -> 0 | AT38: =IF($F$4="dinner",IF(R38=0,,(R38/$E$6)*'Customer Info'!$D$17),) -> 0 | AU38: =IF($F$4="other",IF(S38=0,,(S38/$E$7)*'Customer Info'!$D$17),) -> 0 | AV38: 0 | AW38: =IF($F$5="breakfast",IF(P38=0,,(P38/$E$4)*'Customer Info'!$D$18),) -> 0 | AX38: =IF($F$5="dinner",IF(R38=0,,(R38/$E$6)*'Customer Info'!$D$18),) -> 0 | AY38: =IF($F$5="other",IF(S38=0,,(S38/$E$7)*'Customer Info'!$D$18),) -> 0 | AZ38: 0 | BA38: =IF($F$6="breakfast",IF(P38=0,,(P38/$E$4)*'Customer Info'!$D$19),) -> 0 | BB38: =IF($F$6="lunch",IF(Q38=0,,(Q38/$E$5)*'Customer Info'!$D$19),) -> 0 | BC38: =IF($F$6="other",IF(S38=0,,(S38/$E$7)*'Customer Info'!$D$19),) -> 0 | BD38: 0 | BE38: =IF($F$7="breakfast",IF(P38=0,,(P38/$E$4)*'Customer Info'!$D$20),) -> 0 | BF38: =IF($F$7="lunch",IF(Q38=0,,(Q38/$E$5)*'Customer Info'!$D$20),) -> 0 | BG38: =IF($F$7="dinner",IF(R38=0,,(R38/$E$6)*'Customer Info'!$D$20),) -> 0 | BH38: 0 | BI38: =IF($F$10="lunch",IF(U38=0,,(U38/$E$11)*'Customer Info'!$F$17),) -> 0 | BJ38: =IF($F$10="dinner",IF(V38=0,,(V38/$E$12)*'Customer Info'!$F$17),) -> 0 | BK38: =IF($F$10="other",IF(W38=0,,(W38/$E$13)*'Customer Info'!$F$17),) -> 0 | BL38: 0 | BM38: =IF($F$11="breakfast",IF(T38=0,,(T38/$E$10)*'Customer Info'!$F$18),) -> 0 | BN38: =IF($F$11="dinner",IF(V38=0,,(V38/$E$12)*'Customer Info'!$F$18),) -> 0 | BO38: =IF($F$11="other",IF(W38=0,,(W38/$E$13)*'Customer Info'!$F$18),) -> 0 | BP38: 0 | BQ38: =IF($F$12="breakfast",IF(T38=0,,(T38/$E$10)*'Customer Info'!$F$19),) -> 0 | BR38: =IF($F$12="lunch",IF(U38=0,,(U38/$E$11)*'Customer Info'!$F$19),) -> 0 | BS38: =IF($F$12="other",IF(W38=0,,(W38/$E$13)*'Customer Info'!$F$19),) -> 0 | BT38: 0 | BU38: =IF($F$13="breakfast",IF(T38=0,,(T38/$E$10)*'Customer Info'!$F$20),) -> 0 | BV38: =IF($F$13="lunch",IF(U38=0,,(U38/$E$11)*'Customer Info'!$F$20),) -> 0 | BW38: =IF($F$13="dinner",IF(V38=0,,(V38/$E$12)*'Customer Info'!$F$20),) -> 0 | BX38: 0 | BY38: =IF($F$16="lunch",IF(Y38=0,,(Y38/$E$17)*'Customer Info'!$H$17),) -> 0 | BZ38: =IF($F$16="dinner",IF(Z38=0,,(Z38/$E$18)*'Customer Info'!$H$17),) -> 0 | CA38: =IF($F$16="other",IF(AA38=0,,(AA38/$E$19)*'Customer Info'!$H$17),) -> 0 | CB38: 0 | CC38: =IF($F$17="breakfast",IF(X38=0,,(X38/$E$16)*'Customer Info'!$H$18),) -> 0 | CD38: =IF($F$17="dinner",IF(Z38=0,,(Z38/$E$18)*'Customer Info'!$H$18),) -> 0 | CE38: =IF($F$17="other",IF(AA38=0,,(AA38/$E$19)*'Customer Info'!$H$18),) -> 0 | CF38: 0 | CG38: =IF($F$18="breakfast",IF(X38=0,,(X38/$E$16)*'Customer Info'!$H$19),) -> 0 | CH38: =IF($F$18="lunch",IF(Y38=0,,(Y38/$E$17)*'Customer Info'!$H$19),) -> 0 | CI38: =IF($F$18="other",IF(AA38=0,,(AA38/$E$19)*'Customer Info'!$H$19),) -> 0 | CJ38: 0 | CK38: =IF($F$19="breakfast",IF(X38=0,,(X38/$E$16)*'Customer Info'!$H$20),) -> 0 | CL38: =IF($F$19="lunch",IF(Y38=0,,(Y38/$E$17)*'Customer Info'!$H$20),) -> 0 | CM38: =IF($F$19="dinner",IF(Z38=0,,(Z38/$E$18)*'Customer Info'!$H$20),) -> 0 | CN38: 0 | CO38: 108.0984263 | CP38: 0
A39: other | C39: dining area1 | D39: landfill | E39: plate waste | F39: Cookies, brownies, cake | G39: 2 | H39: 5.1 | I39: Buffet dessert - afternoon snack 26 plates | J39: 3.1 | K39: 11.58827024 | L39: 3.1 | M39: 3.1 | N39: 0 | O39: 0 | P39: 0 | Q39: 0 | R39: 0 | S39: 3.1 | T39: 0 | U39: 0 | V39: 0 | W39: 0 | X39: 0 | Y39: 0 | Z39: 0 | AA39: 0 | AB39: =IF((OR($F$4=0,$F$4="none")),IF(P39=0,,IF(OR($E$4='Customer Info'!$D$17,$E$4=0),P39,(P39/$E$4)*'Customer Info'!$D$17)),) -> 0 | AC39: =IF((OR($F$5=0,$F$5="none")),IF(Q39=0,,IF(OR($E$5='Customer Info'!$D$18,$E$5=0),Q39,(Q39/$E$5)*'Customer Info'!$D$18)),) -> 0 | AD39: =IF((OR($F$6=0,$F$6="none")),IF(R39=0,,IF(OR($E$6='Customer Info'!$D$19,$E$6=0),R39,(R39/$E$6)*'Customer Info'!$D$19)),) -> 0 | AE39: =IF((OR($F$7=0,$F$7="none")),IF(S39=0,,IF(OR($E$7='Customer Info'!$D$20,$E$7=0),S39,(S39/$E$7)*'Customer Info'!$D$20)),) -> 13.11538462 | AF39: =IF((OR($F$10=0,$F$10="none")),IF(T39=0,,IF(OR($E$10='Customer Info'!$F$17,$E$10=0),T39,(T39/$E$10)*'Customer Info'!$F$17)),) -> 0 | AG39: =IF((OR($F$11=0,$F$11="none")),IF(U39=0,,IF(OR($E$11='Customer Info'!$F$18,$E$11=0),U39,(U39/$E$11)*'Customer Info'!$F$18)),) -> 0 | AH39: =IF((OR($F$12=0,$F$12="none")),IF(V39=0,,IF(OR($E$12='Customer Info'!$F$19,$E$12=0),V39,(V39/$E$12)*'Customer Info'!$F$19)),) -> 0 | AI39: =IF((OR($F$13=0,$F$13="none")),IF(W39=0,,IF(OR($E$13='Customer Info'!$F$20,$E$13=0),W39,(W39/$E$13)*'Customer Info'!$F$20)),) -> 0 | AJ39: =IF((OR($F$16=0,$F$16="none")),IF(X39=0,,IF(($E$16='Customer Info'!$H$17,$E$16=0),X39,(X39/$E$16)*'Customer Info'!$H$17)),) -> 0 | AK39: =IF((OR($F$17=0,$F$17="none")),IF(Y39=0,,IF(OR($E$17='Customer Info'!$H$18, $E$17=0),Y39,(Y39/$E$17)*'Customer Info'!$H$18)),) -> 0 | AL39: =IF((OR($F$18=0,$F$18="none")),IF(Z39=0,,IF(OR($E$18='Customer Info'!$H$19, $E$18=0),Z39,(Z39/$E$18)*'Customer Info'!$H$19)),) -> 0 | AM39: =IF((OR($F$19=0,$F$19="none")),IF(AA39=0,,IF(OR($E$19='Customer Info'!$H$20,$E$19=0),AA39,(AA39/$E$19)*'Customer Info'!$H$20)),) -> 0 | AN39: 13.11538462 | AO39: 13.11538462 | AP39: =IF(E39="plate waste",,IF('Customer Info'!$M$18=0,'Log Sheet'!AO39,'Customer Info'!$M$18*'Log Sheet'!AO39)) -> 0 | AQ39: =IF(E39="plate waste",IF(C39="dining area1",IF('Customer Info'!$L$30=0,AO39*'Customer Info'!$M$18,AO39*'Customer Info'!$L$30),IF(C39="dining area2",IF('Customer Info'!$L$31=0,AO39*'Customer Info'!$M$18,AO39*'Customer Info'!$L$31),IF(C39="Dining Area3",IF('Customer Info'!$L$32=0,AO39*'Customer Info'!$M$18,AO39*'Customer Info'!$L$32),))),) -> 11.58827024 | AR39: 11.58827024 | AS39: =IF($F$4="lunch",IF(Q39=0,,(Q39/$E$5)*'Customer Info'!$D$17),) -> 0 | AT39: =IF($F$4="dinner",IF(R39=0,,(R39/$E$6)*'Customer Info'!$D$17),) -> 0 | AU39: =IF($F$4="other",IF(S39=0,,(S39/$E$7)*'Customer Info'!$D$17),) -> 0 | AV39: 0 | AW39: =IF($F$5="breakfast",IF(P39=0,,(P39/$E$4)*'Customer Info'!$D$18),) -> 0 | AX39: =IF($F$5="dinner",IF(R39=0,,(R39/$E$6)*'Customer Info'!$D$18),) -> 0 | AY39: =IF($F$5="other",IF(S39=0,,(S39/$E$7)*'Customer Info'!$D$18),) -> 0 | AZ39: 0 | BA39: =IF($F$6="breakfast",IF(P39=0,,(P39/$E$4)*'Customer Info'!$D$19),) -> 0 | BB39: =IF($F$6="lunch",IF(Q39=0,,(Q39/$E$5)*'Customer Info'!$D$19),) -> 0 | BC39: =IF($F$6="other",IF(S39=0,,(S39/$E$7)*'Customer Info'!$D$19),) -> 0 | BD39: 0 | BE39: =IF($F$7="breakfast",IF(P39=0,,(P39/$E$4)*'Customer Info'!$D$20),) -> 0 | BF39: =IF($F$7="lunch",IF(Q39=0,,(Q39/$E$5)*'Customer Info'!$D$20),) -> 0 | BG39: =IF($F$7="dinner",IF(R39=0,,(R39/$E$6)*'Customer Info'!$D$20),) -> 0 | BH39: 0 | BI39: =IF($F$10="lunch",IF(U39=0,,(U39/$E$11)*'Customer Info'!$F$17),) -> 0 | BJ39: =IF($F$10="dinner",IF(V39=0,,(V39/$E$12)*'Customer Info'!$F$17),) -> 0 | BK39: =IF($F$10="other",IF(W39=0,,(W39/$E$13)*'Customer Info'!$F$17),) -> 0 | BL39: 0 | BM39: =IF($F$11="breakfast",IF(T39=0,,(T39/$E$10)*'Customer Info'!$F$18),) -> 0 | BN39: =IF($F$11="dinner",IF(V39=0,,(V39/$E$12)*'Customer Info'!$F$18),) -> 0 | BO39: =IF($F$11="other",IF(W39=0,,(W39/$E$13)*'Customer Info'!$F$18),) -> 0 | BP39: 0 | BQ39: =IF($F$12="breakfast",IF(T39=0,,(T39/$E$10)*'Customer Info'!$F$19),) -> 0 | BR39: =IF($F$12="lunch",IF(U39=0,,(U39/$E$11)*'Customer Info'!$F$19),) -> 0 | BS39: =IF($F$12="other",IF(W39=0,,(W39/$E$13)*'Customer Info'!$F$19),) -> 0 | BT39: 0 | BU39: =IF($F$13="breakfast",IF(T39=0,,(T39/$E$10)*'Customer Info'!$F$20),) -> 0 | BV39: =IF($F$13="lunch",IF(U39=0,,(U39/$E$11)*'Customer Info'!$F$20),) -> 0 | BW39: =IF($F$13="dinner",IF(V39=0,,(V39/$E$12)*'Customer Info'!$F$20),) -> 0 | BX39: 0 | BY39: =IF($F$16="lunch",IF(Y39=0,,(Y39/$E$17)*'Customer Info'!$H$17),) -> 0 | BZ39: =IF($F$16="dinner",IF(Z39=0,,(Z39/$E$18)*'Customer Info'!$H$17),) -> 0 | CA39: =IF($F$16="other",IF(AA39=0,,(AA39/$E$19)*'Customer Info'!$H$17),) -> 0 | CB39: 0 | CC39: =IF($F$17="breakfast",IF(X39=0,,(X39/$E$16)*'Customer Info'!$H$18),) -> 0 | CD39: =IF($F$17="dinner",IF(Z39=0,,(Z39/$E$18)*'Customer Info'!$H$18),) -> 0 | CE39: =IF($F$17="other",IF(AA39=0,,(AA39/$E$19)*'Customer Info'!$H$18),) -> 0 | CF39: 0 | CG39: =IF($F$18="breakfast",IF(X39=0,,(X39/$E$16)*'Customer Info'!$H$19),) -> 0 | CH39: =IF($F$18="lunch",IF(Y39=0,,(Y39/$E$17)*'Customer Info'!$H$19),) -> 0 | CI39: =IF($F$18="other",IF(AA39=0,,(AA39/$E$19)*'Customer Info'!$H$19),) -> 0 | CJ39: 0 | CK39: =IF($F$19="breakfast",IF(X39=0,,(X39/$E$16)*'Customer Info'!$H$20),) -> 0 | CL39: =IF($F$19="lunch",IF(Y39=0,,(Y39/$E$17)*'Customer Info'!$H$20),) -> 0 | CM39: =IF($F$19="dinner",IF(Z39=0,,(Z39/$E$18)*'Customer Info'!$H$20),) -> 0 | CN39: 0 | CO39: 11.58827024 | CP39: 0
A40: breakfast | C40: dining area2 | D40: landfill | E40: plate waste | F40: Croissants, bagels, donuts, breakfast sandwich | G40: 2 | H40: 9.6 | I40: 20 customers | J40: 7.6 | K40: 47.31045491 | L40: 7.6 | M40: 0 | N40: 7.6 | O40: 0 | P40: 0 | Q40: 0 | R40: 0 | S40: 0 | T40: 7.6 | U40: 0 | V40: 0 | W40: 0 | X40: 0 | Y40: 0 | Z40: 0 | AA40: 0 | AB40: =IF((OR($F$4=0,$F$4="none")),IF(P40=0,,IF(OR($E$4='Customer Info'!$D$17,$E$4=0),P40,(P40/$E$4)*'Customer Info'!$D$17)),) -> 0 | AC40: =IF((OR($F$5=0,$F$5="none")),IF(Q40=0,,IF(OR($E$5='Customer Info'!$D$18,$E$5=0),Q40,(Q40/$E$5)*'Customer Info'!$D$18)),) -> 0 | AD40: =IF((OR($F$6=0,$F$6="none")),IF(R40=0,,IF(OR($E$6='Customer Info'!$D$19,$E$6=0),R40,(R40/$E$6)*'Customer Info'!$D$19)),) -> 0 | AE40: =IF((OR($F$7=0,$F$7="none")),IF(S40=0,,IF(OR($E$7='Customer Info'!$D$20,$E$7=0),S40,(S40/$E$7)*'Customer Info'!$D$20)),) -> 0 | AF40: =IF((OR($F$10=0,$F$10="none")),IF(T40=0,,IF(OR($E$10='Customer Info'!$F$17,$E$10=0),T40,(T40/$E$10)*'Customer Info'!$F$17)),) -> 30.4 | AG40: =IF((OR($F$11=0,$F$11="none")),IF(U40=0,,IF(OR($E$11='Customer Info'!$F$18,$E$11=0),U40,(U40/$E$11)*'Customer Info'!$F$18)),) -> 0 | AH40: =IF((OR($F$12=0,$F$12="none")),IF(V40=0,,IF(OR($E$12='Customer Info'!$F$19,$E$12=0),V40,(V40/$E$12)*'Customer Info'!$F$19)),) -> 0 | AI40: =IF((OR($F$13=0,$F$13="none")),IF(W40=0,,IF(OR($E$13='Customer Info'!$F$20,$E$13=0),W40,(W40/$E$13)*'Customer Info'!$F$20)),) -> 0 | AJ40: =IF((OR($F$16=0,$F$16="none")),IF(X40=0,,IF(($E$16='Customer Info'!$H$17,$E$16=0),X40,(X40/$E$16)*'Customer Info'!$H$17)),) -> 0 | AK40: =IF((OR($F$17=0,$F$17="none")),IF(Y40=0,,IF(OR($E$17='Customer Info'!$H$18, $E$17=0),Y40,(Y40/$E$17)*'Customer Info'!$H$18)),) -> 0 | AL40: =IF((OR($F$18=0,$F$18="none")),IF(Z40=0,,IF(OR($E$18='Customer Info'!$H$19, $E$18=0),Z40,(Z40/$E$18)*'Customer Info'!$H$19)),) -> 0 | AM40: =IF((OR($F$19=0,$F$19="none")),IF(AA40=0,,IF(OR($E$19='Customer Info'!$H$20,$E$19=0),AA40,(AA40/$E$19)*'Customer Info'!$H$20)),) -> 0 | AN40: 30.4 | AO40: 30.4 | AP40: =IF(E40="plate waste",,IF('Customer Info'!$M$18=0,'Log Sheet'!AO40,'Customer Info'!$M$18*'Log Sheet'!AO40)) -> 0 | AQ40: =IF(E40="plate waste",IF(C40="dining area1",IF('Customer Info'!$L$30=0,AO40*'Customer Info'!$M$18,AO40*'Customer Info'!$L$30),IF(C40="dining area2",IF('Customer Info'!$L$31=0,AO40*'Customer Info'!$M$18,AO40*'Customer Info'!$L$31),IF(C40="Dining Area3",IF('Customer Info'!$L$32=0,AO40*'Customer Info'!$M$18,AO40*'Customer Info'!$L$32),))),) -> 47.31045491 | AR40: 47.31045491 | AS40: =IF($F$4="lunch",IF(Q40=0,,(Q40/$E$5)*'Customer Info'!$D$17),) -> 0 | AT40: =IF($F$4="dinner",IF(R40=0,,(R40/$E$6)*'Customer Info'!$D$17),) -> 0 | AU40: =IF($F$4="other",IF(S40=0,,(S40/$E$7)*'Customer Info'!$D$17),) -> 0 | AV40: 0 | AW40: =IF($F$5="breakfast",IF(P40=0,,(P40/$E$4)*'Customer Info'!$D$18),) -> 0 | AX40: =IF($F$5="dinner",IF(R40=0,,(R40/$E$6)*'Customer Info'!$D$18),) -> 0 | AY40: =IF($F$5="other",IF(S40=0,,(S40/$E$7)*'Customer Info'!$D$18),) -> 0 | AZ40: 0 | BA40: =IF($F$6="breakfast",IF(P40=0,,(P40/$E$4)*'Customer Info'!$D$19),) -> 0 | BB40: =IF($F$6="lunch",IF(Q40=0,,(Q40/$E$5)*'Customer Info'!$D$19),) -> 0 | BC40: =IF($F$6="other",IF(S40=0,,(S40/$E$7)*'Customer Info'!$D$19),) -> 0 | BD40: 0 | BE40: =IF($F$7="breakfast",IF(P40=0,,(P40/$E$4)*'Customer Info'!$D$20),) -> 0 | BF40: =IF($F$7="lunch",IF(Q40=0,,(Q40/$E$5)*'Customer Info'!$D$20),) -> 0 | BG40: =IF($F$7="dinner",IF(R40=0,,(R40/$E$6)*'Customer Info'!$D$20),) -> 0 | BH40: 0 | BI40: =IF($F$10="lunch",IF(U40=0,,(U40/$E$11)*'Customer Info'!$F$17),) -> 0 | BJ40: =IF($F$10="dinner",IF(V40=0,,(V40/$E$12)*'Customer Info'!$F$17),) -> 0 | BK40: =IF($F$10="other",IF(W40=0,,(W40/$E$13)*'Customer Info'!$F$17),) -> 0 | BL40: 0 | BM40: =IF($F$11="breakfast",IF(T40=0,,(T40/$E$10)*'Customer Info'!$F$18),) -> 21.28 | BN40: =IF($F$11="dinner",IF(V40=0,,(V40/$E$12)*'Customer Info'!$F$18),) -> 0 | BO40: =IF($F$11="other",IF(W40=0,,(W40/$E$13)*'Customer Info'!$F$18),) -> 0 | BP40: 21.28 | BQ40: =IF($F$12="breakfast",IF(T40=0,,(T40/$E$10)*'Customer Info'!$F$19),) -> 16.34 | BR40: =IF($F$12="lunch",IF(U40=0,,(U40/$E$11)*'Customer Info'!$F$19),) -> 0 | BS40: =IF($F$12="other",IF(W40=0,,(W40/$E$13)*'Customer Info'!$F$19),) -> 0 | BT40: 16.34 | BU40: =IF($F$13="breakfast",IF(T40=0,,(T40/$E$10)*'Customer Info'!$F$20),) -> 0 | BV40: =IF($F$13="lunch",IF(U40=0,,(U40/$E$11)*'Customer Info'!$F$20),) -> 0 | BW40: =IF($F$13="dinner",IF(V40=0,,(V40/$E$12)*'Customer Info'!$F$20),) -> 0 | BX40: 0 | BY40: =IF($F$16="lunch",IF(Y40=0,,(Y40/$E$17)*'Customer Info'!$H$17),) -> 0 | BZ40: =IF($F$16="dinner",IF(Z40=0,,(Z40/$E$18)*'Customer Info'!$H$17),) -> 0 | CA40: =IF($F$16="other",IF(AA40=0,,(AA40/$E$19)*'Customer Info'!$H$17),) -> 0 | CB40: 0 | CC40: =IF($F$17="breakfast",IF(X40=0,,(X40/$E$16)*'Customer Info'!$H$18),) -> 0 | CD40: =IF($F$17="dinner",IF(Z40=0,,(Z40/$E$18)*'Customer Info'!$H$18),) -> 0 | CE40: =IF($F$17="other",IF(AA40=0,,(AA40/$E$19)*'Customer Info'!$H$18),) -> 0 | CF40: 0 | CG40: =IF($F$18="breakfast",IF(X40=0,,(X40/$E$16)*'Customer Info'!$H$19),) -> 0 | CH40: =IF($F$18="lunch",IF(Y40=0,,(Y40/$E$17)*'Customer Info'!$H$19),) -> 0 | CI40: =IF($F$18="other",IF(AA40=0,,(AA40/$E$19)*'Customer Info'!$H$19),) -> 0 | CJ40: 0 | CK40: =IF($F$19="breakfast",IF(X40=0,,(X40/$E$16)*'Customer Info'!$H$20),) -> 0 | CL40: =IF($F$19="lunch",IF(Y40=0,,(Y40/$E$17)*'Customer Info'!$H$20),) -> 0 | CM40: =IF($F$19="dinner",IF(Z40=0,,(Z40/$E$18)*'Customer Info'!$H$20),) -> 0 | CN40: 0 | CO40: 47.31045491 | CP40: 0
A41: lunch | C41: dining area3 | D41: landfill | E41: plate waste | F41: Rolls, salad, rice, chicken | G41: 2 | H41: 32.3 | I41: 65 customers | J41: 30.3 | K41: 41.95384615 | L41: 30.3 | M41: 0 | N41: 0 | O41: 0 | P41: 0 | Q41: 0 | R41: 0 | S41: 0 | T41: 0 | U41: 0 | V41: 0 | W41: 0 | X41: 0 | Y41: 0 | Z41: 0 | AA41: 0 | AB41: =IF((OR($F$4=0,$F$4="none")),IF(P41=0,,IF(OR($E$4='Customer Info'!$D$17,$E$4=0),P41,(P41/$E$4)*'Customer Info'!$D$17)),) -> 0 | AC41: =IF((OR($F$5=0,$F$5="none")),IF(Q41=0,,IF(OR($E$5='Customer Info'!$D$18,$E$5=0),Q41,(Q41/$E$5)*'Customer Info'!$D$18)),) -> 0 | AD41: =IF((OR($F$6=0,$F$6="none")),IF(R41=0,,IF(OR($E$6='Customer Info'!$D$19,$E$6=0),R41,(R41/$E$6)*'Customer Info'!$D$19)),) -> 0 | AE41: =IF((OR($F$7=0,$F$7="none")),IF(S41=0,,IF(OR($E$7='Customer Info'!$D$20,$E$7=0),S41,(S41/$E$7)*'Customer Info'!$D$20)),) -> 0 | AF41: =IF((OR($F$10=0,$F$10="none")),IF(T41=0,,IF(OR($E$10='Customer Info'!$F$17,$E$10=0),T41,(T41/$E$10)*'Customer Info'!$F$17)),) -> 0 | AG41: =IF((OR($F$11=0,$F$11="none")),IF(U41=0,,IF(OR($E$11='Customer Info'!$F$18,$E$11=0),U41,(U41/$E$11)*'Customer Info'!$F$18)),) -> 0 | AH41: =IF((OR($F$12=0,$F$12="none")),IF(V41=0,,IF(OR($E$12='Customer Info'!$F$19,$E$12=0),V41,(V41/$E$12)*'Customer Info'!$F$19)),) -> 0 | AI41: =IF((OR($F$13=0,$F$13="none")),IF(W41=0,,IF(OR($E$13='Customer Info'!$F$20,$E$13=0),W41,(W41/$E$13)*'Customer Info'!$F$20)),) -> 0 | AJ41: =IF((OR($F$16=0,$F$16="none")),IF(X41=0,,IF(($E$16='Customer Info'!$H$17,$E$16=0),X41,(X41/$E$16)*'Customer Info'!$H$17)),) -> 0 | AK41: =IF((OR($F$17=0,$F$17="none")),IF(Y41=0,,IF(OR($E$17='Customer Info'!$H$18, $E$17=0),Y41,(Y41/$E$17)*'Customer Info'!$H$18)),) -> 0 | AL41: =IF((OR($F$18=0,$F$18="none")),IF(Z41=0,,IF(OR($E$18='Customer Info'!$H$19, $E$18=0),Z41,(Z41/$E$18)*'Customer Info'!$H$19)),) -> 0 | AM41: =IF((OR($F$19=0,$F$19="none")),IF(AA41=0,,IF(OR($E$19='Customer Info'!$H$20,$E$19=0),AA41,(AA41/$E$19)*'Customer Info'!$H$20)),) -> 0 | AN41: 0 | AO41: 30.3 | AP41: =IF(E41="plate waste",,IF('Customer Info'!$M$18=0,'Log Sheet'!AO41,'Customer Info'!$M$18*'Log Sheet'!AO41)) -> 0 | AQ41: =IF(E41="plate waste",IF(C41="dining area1",IF('Customer Info'!$L$30=0,AO41*'Customer Info'!$M$18,AO41*'Customer Info'!$L$30),IF(C41="dining area2",IF('Customer Info'!$L$31=0,AO41*'Customer Info'!$M$18,AO41*'Customer Info'!$L$31),IF(C41="Dining Area3",IF('Customer Info'!$L$32=0,AO41*'Customer Info'!$M$18,AO41*'Customer Info'!$L$32),))),) -> 41.95384615 | AR41: 41.95384615 | AS41: =IF($F$4="lunch",IF(Q41=0,,(Q41/$E$5)*'Customer Info'!$D$17),) -> 0 | AT41: =IF($F$4="dinner",IF(R41=0,,(R41/$E$6)*'Customer Info'!$D$17),) -> 0 | AU41: =IF($F$4="other",IF(S41=0,,(S41/$E$7)*'Customer Info'!$D$17),) -> 0 | AV41: 0 | AW41: =IF($F$5="breakfast",IF(P41=0,,(P41/$E$4)*'Customer Info'!$D$18),) -> 0 | AX41: =IF($F$5="dinner",IF(R41=0,,(R41/$E$6)*'Customer Info'!$D$18),) -> 0 | AY41: =IF($F$5="other",IF(S41=0,,(S41/$E$7)*'Customer Info'!$D$18),) -> 0 | AZ41: 0 | BA41: =IF($F$6="breakfast",IF(P41=0,,(P41/$E$4)*'Customer Info'!$D$19),) -> 0 | BB41: =IF($F$6="lunch",IF(Q41=0,,(Q41/$E$5)*'Customer Info'!$D$19),) -> 0 | BC41: =IF($F$6="other",IF(S41=0,,(S41/$E$7)*'Customer Info'!$D$19),) -> 0 | BD41: 0 | BE41: =IF($F$7="breakfast",IF(P41=0,,(P41/$E$4)*'Customer Info'!$D$20),) -> 0 | BF41: =IF($F$7="lunch",IF(Q41=0,,(Q41/$E$5)*'Customer Info'!$D$20),) -> 0 | BG41: =IF($F$7="dinner",IF(R41=0,,(R41/$E$6)*'Customer Info'!$D$20),) -> 0 | BH41: 0 | BI41: =IF($F$10="lunch",IF(U41=0,,(U41/$E$11)*'Customer Info'!$F$17),) -> 0 | BJ41: =IF($F$10="dinner",IF(V41=0,,(V41/$E$12)*'Customer Info'!$F$17),) -> 0 | BK41: =IF($F$10="other",IF(W41=0,,(W41/$E$13)*'Customer Info'!$F$17),) -> 0 | BL41: 0 | BM41: =IF($F$11="breakfast",IF(T41=0,,(T41/$E$10)*'Customer Info'!$F$18),) -> 0 | BN41: =IF($F$11="dinner",IF(V41=0,,(V41/$E$12)*'Customer Info'!$F$18),) -> 0 | BO41: =IF($F$11="other",IF(W41=0,,(W41/$E$13)*'Customer Info'!$F$18),) -> 0 | BP41: 0 | BQ41: =IF($F$12="breakfast",IF(T41=0,,(T41/$E$10)*'Customer Info'!$F$19),) -> 0 | BR41: =IF($F$12="lunch",IF(U41=0,,(U41/$E$11)*'Customer Info'!$F$19),) -> 0 | BS41: =IF($F$12="other",IF(W41=0,,(W41/$E$13)*'Customer Info'!$F$19),) -> 0 | BT41: 0 | BU41: =IF($F$13="breakfast",IF(T41=0,,(T41/$E$10)*'Customer Info'!$F$20),) -> 0 | BV41: =IF($F$13="lunch",IF(U41=0,,(U41/$E$11)*'Customer Info'!$F$20),) -> 0 | BW41: =IF($F$13="dinner",IF(V41=0,,(V41/$E$12)*'Customer Info'!$F$20),) -> 0 | BX41: 0 | BY41: =IF($F$16="lunch",IF(Y41=0,,(Y41/$E$17)*'Customer Info'!$H$17),) -> 0 | BZ41: =IF($F$16="dinner",IF(Z41=0,,(Z41/$E$18)*'Customer Info'!$H$17),) -> 0 | CA41: =IF($F$16="other",IF(AA41=0,,(AA41/$E$19)*'Customer Info'!$H$17),) -> 0 | CB41: 0 | CC41: =IF($F$17="breakfast",IF(X41=0,,(X41/$E$16)*'Customer Info'!$H$18),) -> 0 | CD41: =IF($F$17="dinner",IF(Z41=0,,(Z41/$E$18)*'Customer Info'!$H$18),) -> 0 | CE41: =IF($F$17="other",IF(AA41=0,,(AA41/$E$19)*'Customer Info'!$H$18),) -> 0 | CF41: 0 | CG41: =IF($F$18="breakfast",IF(X41=0,,(X41/$E$16)*'Customer Info'!$H$19),) -> 0 | CH41: =IF($F$18="lunch",IF(Y41=0,,(Y41/$E$17)*'Customer Info'!$H$19),) -> 0 | CI41: =IF($F$18="other",IF(AA41=0,,(AA41/$E$19)*'Customer Info'!$H$19),) -> 0 | CJ41: 0 | CK41: =IF($F$19="breakfast",IF(X41=0,,(X41/$E$16)*'Customer Info'!$H$20),) -> 0 | CL41: =IF($F$19="lunch",IF(Y41=0,,(Y41/$E$17)*'Customer Info'!$H$20),) -> 0 | CM41: =IF($F$19="dinner",IF(Z41=0,,(Z41/$E$18)*'Customer Info'!$H$20),) -> 0 | CN41: 0 | CO41: 41.95384615 | CP41: 0
J42: 0 | K42: 0 | L42: 0 | M42: 0 | N42: 0 | O42: 0 | P42: 0 | Q42: 0 | R42: 0 | S42: 0 | T42: 0 | U42: 0 | V42: 0 | W42: 0 | X42: 0 | Y42: 0 | Z42: 0 | AA42: 0 | AB42: =IF((OR($F$4=0,$F$4="none")),IF(P42=0,,IF(OR($E$4='Customer Info'!$D$17,$E$4=0),P42,(P42/$E$4)*'Customer Info'!$D$17)),) -> 0 | AC42: =IF((OR($F$5=0,$F$5="none")),IF(Q42=0,,IF(OR($E$5='Customer Info'!$D$18,$E$5=0),Q42,(Q42/$E$5)*'Customer Info'!$D$18)),) -> 0 | AD42: =IF((OR($F$6=0,$F$6="none")),IF(R42=0,,IF(OR($E$6='Customer Info'!$D$19,$E$6=0),R42,(R42/$E$6)*'Customer Info'!$D$19)),) -> 0 | AE42: =IF((OR($F$7=0,$F$7="none")),IF(S42=0,,IF(OR($E$7='Customer Info'!$D$20,$E$7=0),S42,(S42/$E$7)*'Customer Info'!$D$20)),) -> 0 | AF42: =IF((OR($F$10=0,$F$10="none")),IF(T42=0,,IF(OR($E$10='Customer Info'!$F$17,$E$10=0),T42,(T42/$E$10)*'Customer Info'!$F$17)),) -> 0 | AG42: =IF((OR($F$11=0,$F$11="none")),IF(U42=0,,IF(OR($E$11='Customer Info'!$F$18,$E$11=0),U42,(U42/$E$11)*'Customer Info'!$F$18)),) -> 0 | AH42: =IF((OR($F$12=0,$F$12="none")),IF(V42=0,,IF(OR($E$12='Customer Info'!$F$19,$E$12=0),V42,(V42/$E$12)*'Customer Info'!$F$19)),) -> 0 | AI42: =IF((OR($F$13=0,$F$13="none")),IF(W42=0,,IF(OR($E$13='Customer Info'!$F$20,$E$13=0),W42,(W42/$E$13)*'Customer Info'!$F$20)),) -> 0 | AJ42: =IF((OR($F$16=0,$F$16="none")),IF(X42=0,,IF(($E$16='Customer Info'!$H$17,$E$16=0),X42,(X42/$E$16)*'Customer Info'!$H$17)),) -> 0 | AK42: =IF((OR($F$17=0,$F$17="none")),IF(Y42=0,,IF(OR($E$17='Customer Info'!$H$18, $E$17=0),Y42,(Y42/$E$17)*'Customer Info'!$H$18)),) -> 0 | AL42: =IF((OR($F$18=0,$F$18="none")),IF(Z42=0,,IF(OR($E$18='Customer Info'!$H$19, $E$18=0),Z42,(Z42/$E$18)*'Customer Info'!$H$19)),) -> 0 | AM42: =IF((OR($F$19=0,$F$19="none")),IF(AA42=0,,IF(OR($E$19='Customer Info'!$H$20,$E$19=0),AA42,(AA42/$E$19)*'Customer Info'!$H$20)),) -> 0 | AN42: 0 | AO42: 0 | AP42: =IF(E42="plate waste",,IF('Customer Info'!$M$18=0,'Log Sheet'!AO42,'Customer Info'!$M$18*'Log Sheet'!AO42)) -> 0 | AQ42: =IF(E42="plate waste",IF(C42="dining area1",IF('Customer Info'!$L$30=0,AO42*'Customer Info'!$M$18,AO42*'Customer Info'!$L$30),IF(C42="dining area2",IF('Customer Info'!$L$31=0,AO42*'Customer Info'!$M$18,AO42*'Customer Info'!$L$31),IF(C42="Dining Area3",IF('Customer Info'!$L$32=0,AO42*'Customer Info'!$M$18,AO42*'Customer Info'!$L$32),))),) -> 0 | AR42: 0 | AS42: =IF($F$4="lunch",IF(Q42=0,,(Q42/$E$5)*'Customer Info'!$D$17),) -> 0 | AT42: =IF($F$4="dinner",IF(R42=0,,(R42/$E$6)*'Customer Info'!$D$17),) -> 0 | AU42: =IF($F$4="other",IF(S42=0,,(S42/$E$7)*'Customer Info'!$D$17),) -> 0 | AV42: 0 | AW42: =IF($F$5="breakfast",IF(P42=0,,(P42/$E$4)*'Customer Info'!$D$18),) -> 0 | AX42: =IF($F$5="dinner",IF(R42=0,,(R42/$E$6)*'Customer Info'!$D$18),) -> 0 | AY42: =IF($F$5="other",IF(S42=0,,(S42/$E$7)*'Customer Info'!$D$18),) -> 0 | AZ42: 0 | BA42: =IF($F$6="breakfast",IF(P42=0,,(P42/$E$4)*'Customer Info'!$D$19),) -> 0 | BB42: =IF($F$6="lunch",IF(Q42=0,,(Q42/$E$5)*'Customer Info'!$D$19),) -> 0 | BC42: =IF($F$6="other",IF(S42=0,,(S42/$E$7)*'Customer Info'!$D$19),) -> 0 | BD42: 0 | BE42: =IF($F$7="breakfast",IF(P42=0,,(P42/$E$4)*'Customer Info'!$D$20),) -> 0 | BF42: =IF($F$7="lunch",IF(Q42=0,,(Q42/$E$5)*'Customer Info'!$D$20),) -> 0 | BG42: =IF($F$7="dinner",IF(R42=0,,(R42/$E$6)*'Customer Info'!$D$20),) -> 0 | BH42: 0 | BI42: =IF($F$10="lunch",IF(U42=0,,(U42/$E$11)*'Customer Info'!$F$17),) -> 0 | BJ42: =IF($F$10="dinner",IF(V42=0,,(V42/$E$12)*'Customer Info'!$F$17),) -> 0 | BK42: =IF($F$10="other",IF(W42=0,,(W42/$E$13)*'Customer Info'!$F$17),) -> 0 | BL42: 0 | BM42: =IF($F$11="breakfast",IF(T42=0,,(T42/$E$10)*'Customer Info'!$F$18),) -> 0 | BN42: =IF($F$11="dinner",IF(V42=0,,(V42/$E$12)*'Customer Info'!$F$18),) -> 0 | BO42: =IF($F$11="other",IF(W42=0,,(W42/$E$13)*'Customer Info'!$F$18),) -> 0 | BP42: 0 | BQ42: =IF($F$12="breakfast",IF(T42=0,,(T42/$E$10)*'Customer Info'!$F$19),) -> 0 | BR42: =IF($F$12="lunch",IF(U42=0,,(U42/$E$11)*'Customer Info'!$F$19),) -> 0 | BS42: =IF($F$12="other",IF(W42=0,,(W42/$E$13)*'Customer Info'!$F$19),) -> 0 | BT42: 0 | BU42: =IF($F$13="breakfast",IF(T42=0,,(T42/$E$10)*'Customer Info'!$F$20),) -> 0 | BV42: =IF($F$13="lunch",IF(U42=0,,(U42/$E$11)*'Customer Info'!$F$20),) -> 0 | BW42: =IF($F$13="dinner",IF(V42=0,,(V42/$E$12)*'Customer Info'!$F$20),) -> 0 | BX42: 0 | BY42: =IF($F$16="lunch",IF(Y42=0,,(Y42/$E$17)*'Customer Info'!$H$17),) -> 0 | BZ42: =IF($F$16="dinner",IF(Z42=0,,(Z42/$E$18)*'Customer Info'!$H$17),) -> 0 | CA42: =IF($F$16="other",IF(AA42=0,,(AA42/$E$19)*'Customer Info'!$H$17),) -> 0 | CB42: 0 | CC42: =IF($F$17="breakfast",IF(X42=0,,(X42/$E$16)*'Customer Info'!$H$18),) -> 0 | CD42: =IF($F$17="dinner",IF(Z42=0,,(Z42/$E$18)*'Customer Info'!$H$18),) -> 0 | CE42: =IF($F$17="other",IF(AA42=0,,(AA42/$E$19)*'Customer Info'!$H$18),) -> 0 | CF42: 0 | CG42: =IF($F$18="breakfast",IF(X42=0,,(X42/$E$16)*'Customer Info'!$H$19),) -> 0 | CH42: =IF($F$18="lunch",IF(Y42=0,,(Y42/$E$17)*'Customer Info'!$H$19),) -> 0 | CI42: =IF($F$18="other",IF(AA42=0,,(AA42/$E$19)*'Customer Info'!$H$19),) -> 0 | CJ42: 0 | CK42: =IF($F$19="breakfast",IF(X42=0,,(X42/$E$16)*'Customer Info'!$H$20),) -> 0 | CL42: =IF($F$19="lunch",IF(Y42=0,,(Y42/$E$17)*'Customer Info'!$H$20),) -> 0 | CM42: =IF($F$19="dinner",IF(Z42=0,,(Z42/$E$18)*'Customer Info'!$H$20),) -> 0 | CN42: 0 | CO42: 0 | CP42: 0
J43: 0 | K43: 0 | L43: 0 | M43: 0 | N43: 0 | O43: 0 | P43: 0 | Q43: 0 | R43: 0 | S43: 0 | T43: 0 | U43: 0 | V43: 0 | W43: 0 | X43: 0 | Y43: 0 | Z43: 0 | AA43: 0 | AB43: =IF((OR($F$4=0,$F$4="none")),IF(P43=0,,IF(OR($E$4='Customer Info'!$D$17,$E$4=0),P43,(P43/$E$4)*'Customer Info'!$D$17)),) -> 0 | AC43: =IF((OR($F$5=0,$F$5="none")),IF(Q43=0,,IF(OR($E$5='Customer Info'!$D$18,$E$5=0),Q43,(Q43/$E$5)*'Customer Info'!$D$18)),) -> 0 | AD43: =IF((OR($F$6=0,$F$6="none")),IF(R43=0,,IF(OR($E$6='Customer Info'!$D$19,$E$6=0),R43,(R43/$E$6)*'Customer Info'!$D$19)),) -> 0 | AE43: =IF((OR($F$7=0,$F$7="none")),IF(S43=0,,IF(OR($E$7='Customer Info'!$D$20,$E$7=0),S43,(S43/$E$7)*'Customer Info'!$D$20)),) -> 0 | AF43: =IF((OR($F$10=0,$F$10="none")),IF(T43=0,,IF(OR($E$10='Customer Info'!$F$17,$E$10=0),T43,(T43/$E$10)*'Customer Info'!$F$17)),) -> 0 | AG43: =IF((OR($F$11=0,$F$11="none")),IF(U43=0,,IF(OR($E$11='Customer Info'!$F$18,$E$11=0),U43,(U43/$E$11)*'Customer Info'!$F$18)),) -> 0 | AH43: =IF((OR($F$12=0,$F$12="none")),IF(V43=0,,IF(OR($E$12='Customer Info'!$F$19,$E$12=0),V43,(V43/$E$12)*'Customer Info'!$F$19)),) -> 0 | AI43: =IF((OR($F$13=0,$F$13="none")),IF(W43=0,,IF(OR($E$13='Customer Info'!$F$20,$E$13=0),W43,(W43/$E$13)*'Customer Info'!$F$20)),) -> 0 | AJ43: =IF((OR($F$16=0,$F$16="none")),IF(X43=0,,IF(($E$16='Customer Info'!$H$17,$E$16=0),X43,(X43/$E$16)*'Customer Info'!$H$17)),) -> 0 | AK43: =IF((OR($F$17=0,$F$17="none")),IF(Y43=0,,IF(OR($E$17='Customer Info'!$H$18, $E$17=0),Y43,(Y43/$E$17)*'Customer Info'!$H$18)),) -> 0 | AL43: =IF((OR($F$18=0,$F$18="none")),IF(Z43=0,,IF(OR($E$18='Customer Info'!$H$19, $E$18=0),Z43,(Z43/$E$18)*'Customer Info'!$H$19)),) -> 0 | AM43: =IF((OR($F$19=0,$F$19="none")),IF(AA43=0,,IF(OR($E$19='Customer Info'!$H$20,$E$19=0),AA43,(AA43/$E$19)*'Customer Info'!$H$20)),) -> 0 | AN43: 0 | AO43: 0 | AP43: =IF(E43="plate waste",,IF('Customer Info'!$M$18=0,'Log Sheet'!AO43,'Customer Info'!$M$18*'Log Sheet'!AO43)) -> 0 | AQ43: =IF(E43="plate waste",IF(C43="dining area1",IF('Customer Info'!$L$30=0,AO43*'Customer Info'!$M$18,AO43*'Customer Info'!$L$30),IF(C43="dining area2",IF('Customer Info'!$L$31=0,AO43*'Customer Info'!$M$18,AO43*'Customer Info'!$L$31),IF(C43="Dining Area3",IF('Customer Info'!$L$32=0,AO43*'Customer Info'!$M$18,AO43*'Customer Info'!$L$32),))),) -> 0 | AR43: 0 | AS43: =IF($F$4="lunch",IF(Q43=0,,(Q43/$E$5)*'Customer Info'!$D$17),) -> 0 | AT43: =IF($F$4="dinner",IF(R43=0,,(R43/$E$6)*'Customer Info'!$D$17),) -> 0 | AU43: =IF($F$4="other",IF(S43=0,,(S43/$E$7)*'Customer Info'!$D$17),) -> 0 | AV43: 0 | AW43: =IF($F$5="breakfast",IF(P43=0,,(P43/$E$4)*'Customer Info'!$D$18),) -> 0 | AX43: =IF($F$5="dinner",IF(R43=0,,(R43/$E$6)*'Customer Info'!$D$18),) -> 0 | AY43: =IF($F$5="other",IF(S43=0,,(S43/$E$7)*'Customer Info'!$D$18),) -> 0 | AZ43: 0 | BA43: =IF($F$6="breakfast",IF(P43=0,,(P43/$E$4)*'Customer Info'!$D$19),) -> 0 | BB43: =IF($F$6="lunch",IF(Q43=0,,(Q43/$E$5)*'Customer Info'!$D$19),) -> 0 | BC43: =IF($F$6="other",IF(S43=0,,(S43/$E$7)*'Customer Info'!$D$19),) -> 0 | BD43: 0 | BE43: =IF($F$7="breakfast",IF(P43=0,,(P43/$E$4)*'Customer Info'!$D$20),) -> 0 | BF43: =IF($F$7="lunch",IF(Q43=0,,(Q43/$E$5)*'Customer Info'!$D$20),) -> 0 | BG43: =IF($F$7="dinner",IF(R43=0,,(R43/$E$6)*'Customer Info'!$D$20),) -> 0 | BH43: 0 | BI43: =IF($F$10="lunch",IF(U43=0,,(U43/$E$11)*'Customer Info'!$F$17),) -> 0 | BJ43: =IF($F$10="dinner",IF(V43=0,,(V43/$E$12)*'Customer Info'!$F$17),) -> 0 | BK43: =IF($F$10="other",IF(W43=0,,(W43/$E$13)*'Customer Info'!$F$17),) -> 0 | BL43: 0 | BM43: =IF($F$11="breakfast",IF(T43=0,,(T43/$E$10)*'Customer Info'!$F$18),) -> 0 | BN43: =IF($F$11="dinner",IF(V43=0,,(V43/$E$12)*'Customer Info'!$F$18),) -> 0 | BO43: =IF($F$11="other",IF(W43=0,,(W43/$E$13)*'Customer Info'!$F$18),) -> 0 | BP43: 0 | BQ43: =IF($F$12="breakfast",IF(T43=0,,(T43/$E$10)*'Customer Info'!$F$19),) -> 0 | BR43: =IF($F$12="lunch",IF(U43=0,,(U43/$E$11)*'Customer Info'!$F$19),) -> 0 | BS43: =IF($F$12="other",IF(W43=0,,(W43/$E$13)*'Customer Info'!$F$19),) -> 0 | BT43: 0 | BU43: =IF($F$13="breakfast",IF(T43=0,,(T43/$E$10)*'Customer Info'!$F$20),) -> 0 | BV43: =IF($F$13="lunch",IF(U43=0,,(U43/$E$11)*'Customer Info'!$F$20),) -> 0 | BW43: =IF($F$13="dinner",IF(V43=0,,(V43/$E$12)*'Customer Info'!$F$20),) -> 0 | BX43: 0 | BY43: =IF($F$16="lunch",IF(Y43=0,,(Y43/$E$17)*'Customer Info'!$H$17),) -> 0 | BZ43: =IF($F$16="dinner",IF(Z43=0,,(Z43/$E$18)*'Customer Info'!$H$17),) -> 0 | CA43: =IF($F$16="other",IF(AA43=0,,(AA43/$E$19)*'Customer Info'!$H$17),) -> 0 | CB43: 0 | CC43: =IF($F$17="breakfast",IF(X43=0,,(X43/$E$16)*'Customer Info'!$H$18),) -> 0 | CD43: =IF($F$17="dinner",IF(Z43=0,,(Z43/$E$18)*'Customer Info'!$H$18),) -> 0 | CE43: =IF($F$17="other",IF(AA43=0,,(AA43/$E$19)*'Customer Info'!$H$18),) -> 0 | CF43: 0 | CG43: =IF($F$18="breakfast",IF(X43=0,,(X43/$E$16)*'Customer Info'!$H$19),) -> 0 | CH43: =IF($F$18="lunch",IF(Y43=0,,(Y43/$E$17)*'Customer Info'!$H$19),) -> 0 | CI43: =IF($F$18="other",IF(AA43=0,,(AA43/$E$19)*'Customer Info'!$H$19),) -> 0 | CJ43: 0 | CK43: =IF($F$19="breakfast",IF(X43=0,,(X43/$E$16)*'Customer Info'!$H$20),) -> 0 | CL43: =IF($F$19="lunch",IF(Y43=0,,(Y43/$E$17)*'Customer Info'!$H$20),) -> 0 | CM43: =IF($F$19="dinner",IF(Z43=0,,(Z43/$E$18)*'Customer Info'!$H$20),) -> 0 | CN43: 0 | CO43: 0 | CP43: 0
J44: 0 | K44: 0 | L44: 0 | M44: 0 | N44: 0 | O44: 0 | P44: 0 | Q44: 0 | R44: 0 | S44: 0 | T44: 0 | U44: 0 | V44: 0 | W44: 0 | X44: 0 | Y44: 0 | Z44: 0 | AA44: 0 | AB44: =IF((OR($F$4=0,$F$4="none")),IF(P44=0,,IF(OR($E$4='Customer Info'!$D$17,$E$4=0),P44,(P44/$E$4)*'Customer Info'!$D$17)),) -> 0 | AC44: =IF((OR($F$5=0,$F$5="none")),IF(Q44=0,,IF(OR($E$5='Customer Info'!$D$18,$E$5=0),Q44,(Q44/$E$5)*'Customer Info'!$D$18)),) -> 0 | AD44: =IF((OR($F$6=0,$F$6="none")),IF(R44=0,,IF(OR($E$6='Customer Info'!$D$19,$E$6=0),R44,(R44/$E$6)*'Customer Info'!$D$19)),) -> 0 | AE44: =IF((OR($F$7=0,$F$7="none")),IF(S44=0,,IF(OR($E$7='Customer Info'!$D$20,$E$7=0),S44,(S44/$E$7)*'Customer Info'!$D$20)),) -> 0 | AF44: =IF((OR($F$10=0,$F$10="none")),IF(T44=0,,IF(OR($E$10='Customer Info'!$F$17,$E$10=0),T44,(T44/$E$10)*'Customer Info'!$F$17)),) -> 0 | AG44: =IF((OR($F$11=0,$F$11="none")),IF(U44=0,,IF(OR($E$11='Customer Info'!$F$18,$E$11=0),U44,(U44/$E$11)*'Customer Info'!$F$18)),) -> 0 | AH44: =IF((OR($F$12=0,$F$12="none")),IF(V44=0,,IF(OR($E$12='Customer Info'!$F$19,$E$12=0),V44,(V44/$E$12)*'Customer Info'!$F$19)),) -> 0 | AI44: =IF((OR($F$13=0,$F$13="none")),IF(W44=0,,IF(OR($E$13='Customer Info'!$F$20,$E$13=0),W44,(W44/$E$13)*'Customer Info'!$F$20)),) -> 0 | AJ44: =IF((OR($F$16=0,$F$16="none")),IF(X44=0,,IF(($E$16='Customer Info'!$H$17,$E$16=0),X44,(X44/$E$16)*'Customer Info'!$H$17)),) -> 0 | AK44: =IF((OR($F$17=0,$F$17="none")),IF(Y44=0,,IF(OR($E$17='Customer Info'!$H$18, $E$17=0),Y44,(Y44/$E$17)*'Customer Info'!$H$18)),) -> 0 | AL44: =IF((OR($F$18=0,$F$18="none")),IF(Z44=0,,IF(OR($E$18='Customer Info'!$H$19, $E$18=0),Z44,(Z44/$E$18)*'Customer Info'!$H$19)),) -> 0 | AM44: =IF((OR($F$19=0,$F$19="none")),IF(AA44=0,,IF(OR($E$19='Customer Info'!$H$20,$E$19=0),AA44,(AA44/$E$19)*'Customer Info'!$H$20)),) -> 0 | AN44: 0 | AO44: 0 | AP44: =IF(E44="plate waste",,IF('Customer Info'!$M$18=0,'Log Sheet'!AO44,'Customer Info'!$M$18*'Log Sheet'!AO44)) -> 0 | AQ44: =IF(E44="plate waste",IF(C44="dining area1",IF('Customer Info'!$L$30=0,AO44*'Customer Info'!$M$18,AO44*'Customer Info'!$L$30),IF(C44="dining area2",IF('Customer Info'!$L$31=0,AO44*'Customer Info'!$M$18,AO44*'Customer Info'!$L$31),IF(C44="Dining Area3",IF('Customer Info'!$L$32=0,AO44*'Customer Info'!$M$18,AO44*'Customer Info'!$L$32),))),) -> 0 | AR44: 0 | AS44: =IF($F$4="lunch",IF(Q44=0,,(Q44/$E$5)*'Customer Info'!$D$17),) -> 0 | AT44: =IF($F$4="dinner",IF(R44=0,,(R44/$E$6)*'Customer Info'!$D$17),) -> 0 | AU44: =IF($F$4="other",IF(S44=0,,(S44/$E$7)*'Customer Info'!$D$17),) -> 0 | AV44: 0 | AW44: =IF($F$5="breakfast",IF(P44=0,,(P44/$E$4)*'Customer Info'!$D$18),) -> 0 | AX44: =IF($F$5="dinner",IF(R44=0,,(R44/$E$6)*'Customer Info'!$D$18),) -> 0 | AY44: =IF($F$5="other",IF(S44=0,,(S44/$E$7)*'Customer Info'!$D$18),) -> 0 | AZ44: 0 | BA44: =IF($F$6="breakfast",IF(P44=0,,(P44/$E$4)*'Customer Info'!$D$19),) -> 0 | BB44: =IF($F$6="lunch",IF(Q44=0,,(Q44/$E$5)*'Customer Info'!$D$19),) -> 0 | BC44: =IF($F$6="other",IF(S44=0,,(S44/$E$7)*'Customer Info'!$D$19),) -> 0 | BD44: 0 | BE44: =IF($F$7="breakfast",IF(P44=0,,(P44/$E$4)*'Customer Info'!$D$20),) -> 0 | BF44: =IF($F$7="lunch",IF(Q44=0,,(Q44/$E$5)*'Customer Info'!$D$20),) -> 0 | BG44: =IF($F$7="dinner",IF(R44=0,,(R44/$E$6)*'Customer Info'!$D$20),) -> 0 | BH44: 0 | BI44: =IF($F$10="lunch",IF(U44=0,,(U44/$E$11)*'Customer Info'!$F$17),) -> 0 | BJ44: =IF($F$10="dinner",IF(V44=0,,(V44/$E$12)*'Customer Info'!$F$17),) -> 0 | BK44: =IF($F$10="other",IF(W44=0,,(W44/$E$13)*'Customer Info'!$F$17),) -> 0 | BL44: 0 | BM44: =IF($F$11="breakfast",IF(T44=0,,(T44/$E$10)*'Customer Info'!$F$18),) -> 0 | BN44: =IF($F$11="dinner",IF(V44=0,,(V44/$E$12)*'Customer Info'!$F$18),) -> 0 | BO44: =IF($F$11="other",IF(W44=0,,(W44/$E$13)*'Customer Info'!$F$18),) -> 0 | BP44: 0 | BQ44: =IF($F$12="breakfast",IF(T44=0,,(T44/$E$10)*'Customer Info'!$F$19),) -> 0 | BR44: =IF($F$12="lunch",IF(U44=0,,(U44/$E$11)*'Customer Info'!$F$19),) -> 0 | BS44: =IF($F$12="other",IF(W44=0,,(W44/$E$13)*'Customer Info'!$F$19),) -> 0 | BT44: 0 | BU44: =IF($F$13="breakfast",IF(T44=0,,(T44/$E$10)*'Customer Info'!$F$20),) -> 0 | BV44: =IF($F$13="lunch",IF(U44=0,,(U44/$E$11)*'Customer Info'!$F$20),) -> 0 | BW44: =IF($F$13="dinner",IF(V44=0,,(V44/$E$12)*'Customer Info'!$F$20),) -> 0 | BX44: 0 | BY44: =IF($F$16="lunch",IF(Y44=0,,(Y44/$E$17)*'Customer Info'!$H$17),) -> 0 | BZ44: =IF($F$16="dinner",IF(Z44=0,,(Z44/$E$18)*'Customer Info'!$H$17),) -> 0 | CA44: =IF($F$16="other",IF(AA44=0,,(AA44/$E$19)*'Customer Info'!$H$17),) -> 0 | CB44: 0 | CC44: =IF($F$17="breakfast",IF(X44=0,,(X44/$E$16)*'Customer Info'!$H$18),) -> 0 | CD44: =IF($F$17="dinner",IF(Z44=0,,(Z44/$E$18)*'Customer Info'!$H$18),) -> 0 | CE44: =IF($F$17="other",IF(AA44=0,,(AA44/$E$19)*'Customer Info'!$H$18),) -> 0 | CF44: 0 | CG44: =IF($F$18="breakfast",IF(X44=0,,(X44/$E$16)*'Customer Info'!$H$19),) -> 0 | CH44: =IF($F$18="lunch",IF(Y44=0,,(Y44/$E$17)*'Customer Info'!$H$19),) -> 0 | CI44: =IF($F$18="other",IF(AA44=0,,(AA44/$E$19)*'Customer Info'!$H$19),) -> 0 | CJ44: 0 | CK44: =IF($F$19="breakfast",IF(X44=0,,(X44/$E$16)*'Customer Info'!$H$20),) -> 0 | CL44: =IF($F$19="lunch",IF(Y44=0,,(Y44/$E$17)*'Customer Info'!$H$20),) -> 0 | CM44: =IF($F$19="dinner",IF(Z44=0,,(Z44/$E$18)*'Customer Info'!$H$20),) -> 0 | CN44: 0 | CO44: 0 | CP44: 0
J45: 0 | K45: 0 | L45: 0 | M45: 0 | N45: 0 | O45: 0 | P45: 0 | Q45: 0 | R45: 0 | S45: 0 | T45: 0 | U45: 0 | V45: 0 | W45: 0 | X45: 0 | Y45: 0 | Z45: 0 | AA45: 0 | AB45: =IF((OR($F$4=0,$F$4="none")),IF(P45=0,,IF(OR($E$4='Customer Info'!$D$17,$E$4=0),P45,(P45/$E$4)*'Customer Info'!$D$17)),) -> 0 | AC45: =IF((OR($F$5=0,$F$5="none")),IF(Q45=0,,IF(OR($E$5='Customer Info'!$D$18,$E$5=0),Q45,(Q45/$E$5)*'Customer Info'!$D$18)),) -> 0 | AD45: =IF((OR($F$6=0,$F$6="none")),IF(R45=0,,IF(OR($E$6='Customer Info'!$D$19,$E$6=0),R45,(R45/$E$6)*'Customer Info'!$D$19)),) -> 0 | AE45: =IF((OR($F$7=0,$F$7="none")),IF(S45=0,,IF(OR($E$7='Customer Info'!$D$20,$E$7=0),S45,(S45/$E$7)*'Customer Info'!$D$20)),) -> 0 | AF45: =IF((OR($F$10=0,$F$10="none")),IF(T45=0,,IF(OR($E$10='Customer Info'!$F$17,$E$10=0),T45,(T45/$E$10)*'Customer Info'!$F$17)),) -> 0 | AG45: =IF((OR($F$11=0,$F$11="none")),IF(U45=0,,IF(OR($E$11='Customer Info'!$F$18,$E$11=0),U45,(U45/$E$11)*'Customer Info'!$F$18)),) -> 0 | AH45: =IF((OR($F$12=0,$F$12="none")),IF(V45=0,,IF(OR($E$12='Customer Info'!$F$19,$E$12=0),V45,(V45/$E$12)*'Customer Info'!$F$19)),) -> 0 | AI45: =IF((OR($F$13=0,$F$13="none")),IF(W45=0,,IF(OR($E$13='Customer Info'!$F$20,$E$13=0),W45,(W45/$E$13)*'Customer Info'!$F$20)),) -> 0 | AJ45: =IF((OR($F$16=0,$F$16="none")),IF(X45=0,,IF(($E$16='Customer Info'!$H$17,$E$16=0),X45,(X45/$E$16)*'Customer Info'!$H$17)),) -> 0 | AK45: =IF((OR($F$17=0,$F$17="none")),IF(Y45=0,,IF(OR($E$17='Customer Info'!$H$18, $E$17=0),Y45,(Y45/$E$17)*'Customer Info'!$H$18)),) -> 0 | AL45: =IF((OR($F$18=0,$F$18="none")),IF(Z45=0,,IF(OR($E$18='Customer Info'!$H$19, $E$18=0),Z45,(Z45/$E$18)*'Customer Info'!$H$19)),) -> 0 | AM45: =IF((OR($F$19=0,$F$19="none")),IF(AA45=0,,IF(OR($E$19='Customer Info'!$H$20,$E$19=0),AA45,(AA45/$E$19)*'Customer Info'!$H$20)),) -> 0 | AN45: 0 | AO45: 0 | AP45: =IF(E45="plate waste",,IF('Customer Info'!$M$18=0,'Log Sheet'!AO45,'Customer Info'!$M$18*'Log Sheet'!AO45)) -> 0 | AQ45: =IF(E45="plate waste",IF(C45="dining area1",IF('Customer Info'!$L$30=0,AO45*'Customer Info'!$M$18,AO45*'Customer Info'!$L$30),IF(C45="dining area2",IF('Customer Info'!$L$31=0,AO45*'Customer Info'!$M$18,AO45*'Customer Info'!$L$31),IF(C45="Dining Area3",IF('Customer Info'!$L$32=0,AO45*'Customer Info'!$M$18,AO45*'Customer Info'!$L$32),))),) -> 0 | AR45: 0 | AS45: =IF($F$4="lunch",IF(Q45=0,,(Q45/$E$5)*'Customer Info'!$D$17),) -> 0 | AT45: =IF($F$4="dinner",IF(R45=0,,(R45/$E$6)*'Customer Info'!$D$17),) -> 0 | AU45: =IF($F$4="other",IF(S45=0,,(S45/$E$7)*'Customer Info'!$D$17),) -> 0 | AV45: 0 | AW45: =IF($F$5="breakfast",IF(P45=0,,(P45/$E$4)*'Customer Info'!$D$18),) -> 0 | AX45: =IF($F$5="dinner",IF(R45=0,,(R45/$E$6)*'Customer Info'!$D$18),) -> 0 | AY45: =IF($F$5="other",IF(S45=0,,(S45/$E$7)*'Customer Info'!$D$18),) -> 0 | AZ45: 0 | BA45: =IF($F$6="breakfast",IF(P45=0,,(P45/$E$4)*'Customer Info'!$D$19),) -> 0 | BB45: =IF($F$6="lunch",IF(Q45=0,,(Q45/$E$5)*'Customer Info'!$D$19),) -> 0 | BC45: =IF($F$6="other",IF(S45=0,,(S45/$E$7)*'Customer Info'!$D$19),) -> 0 | BD45: 0 | BE45: =IF($F$7="breakfast",IF(P45=0,,(P45/$E$4)*'Customer Info'!$D$20),) -> 0 | BF45: =IF($F$7="lunch",IF(Q45=0,,(Q45/$E$5)*'Customer Info'!$D$20),) -> 0 | BG45: =IF($F$7="dinner",IF(R45=0,,(R45/$E$6)*'Customer Info'!$D$20),) -> 0 | BH45: 0 | BI45: =IF($F$10="lunch",IF(U45=0,,(U45/$E$11)*'Customer Info'!$F$17),) -> 0 | BJ45: =IF($F$10="dinner",IF(V45=0,,(V45/$E$12)*'Customer Info'!$F$17),) -> 0 | BK45: =IF($F$10="other",IF(W45=0,,(W45/$E$13)*'Customer Info'!$F$17),) -> 0 | BL45: 0 | BM45: =IF($F$11="breakfast",IF(T45=0,,(T45/$E$10)*'Customer Info'!$F$18),) -> 0 | BN45: =IF($F$11="dinner",IF(V45=0,,(V45/$E$12)*'Customer Info'!$F$18),) -> 0 | BO45: =IF($F$11="other",IF(W45=0,,(W45/$E$13)*'Customer Info'!$F$18),) -> 0 | BP45: 0 | BQ45: =IF($F$12="breakfast",IF(T45=0,,(T45/$E$10)*'Customer Info'!$F$19),) -> 0 | BR45: =IF($F$12="lunch",IF(U45=0,,(U45/$E$11)*'Customer Info'!$F$19),) -> 0 | BS45: =IF($F$12="other",IF(W45=0,,(W45/$E$13)*'Customer Info'!$F$19),) -> 0 | BT45: 0 | BU45: =IF($F$13="breakfast",IF(T45=0,,(T45/$E$10)*'Customer Info'!$F$20),) -> 0 | BV45: =IF($F$13="lunch",IF(U45=0,,(U45/$E$11)*'Customer Info'!$F$20),) -> 0 | BW45: =IF($F$13="dinner",IF(V45=0,,(V45/$E$12)*'Customer Info'!$F$20),) -> 0 | BX45: 0 | BY45: =IF($F$16="lunch",IF(Y45=0,,(Y45/$E$17)*'Customer Info'!$H$17),) -> 0 | BZ45: =IF($F$16="dinner",IF(Z45=0,,(Z45/$E$18)*'Customer Info'!$H$17),) -> 0 | CA45: =IF($F$16="other",IF(AA45=0,,(AA45/$E$19)*'Customer Info'!$H$17),) -> 0 | CB45: 0 | CC45: =IF($F$17="breakfast",IF(X45=0,,(X45/$E$16)*'Customer Info'!$H$18),) -> 0 | CD45: =IF($F$17="dinner",IF(Z45=0,,(Z45/$E$18)*'Customer Info'!$H$18),) -> 0 | CE45: =IF($F$17="other",IF(AA45=0,,(AA45/$E$19)*'Customer Info'!$H$18),) -> 0 | CF45: 0 | CG45: =IF($F$18="breakfast",IF(X45=0,,(X45/$E$16)*'Customer Info'!$H$19),) -> 0 | CH45: =IF($F$18="lunch",IF(Y45=0,,(Y45/$E$17)*'Customer Info'!$H$19),) -> 0 | CI45: =IF($F$18="other",IF(AA45=0,,(AA45/$E$19)*'Customer Info'!$H$19),) -> 0 | CJ45: 0 | CK45: =IF($F$19="breakfast",IF(X45=0,,(X45/$E$16)*'Customer Info'!$H$20),) -> 0 | CL45: =IF($F$19="lunch",IF(Y45=0,,(Y45/$E$17)*'Customer Info'!$H$20),) -> 0 | CM45: =IF($F$19="dinner",IF(Z45=0,,(Z45/$E$18)*'Customer Info'!$H$20),) -> 0 | CN45: 0 | CO45: 0 | CP45: 0
J46: 0 | K46: 0 | L46: 0 | M46: 0 | N46: 0 | O46: 0 | P46: 0 | Q46: 0 | R46: 0 | S46: 0 | T46: 0 | U46: 0 | V46: 0 | W46: 0 | X46: 0 | Y46: 0 | Z46: 0 | AA46: 0 | AB46: =IF((OR($F$4=0,$F$4="none")),IF(P46=0,,IF(OR($E$4='Customer Info'!$D$17,$E$4=0),P46,(P46/$E$4)*'Customer Info'!$D$17)),) -> 0 | AC46: =IF((OR($F$5=0,$F$5="none")),IF(Q46=0,,IF(OR($E$5='Customer Info'!$D$18,$E$5=0),Q46,(Q46/$E$5)*'Customer Info'!$D$18)),) -> 0 | AD46: =IF((OR($F$6=0,$F$6="none")),IF(R46=0,,IF(OR($E$6='Customer Info'!$D$19,$E$6=0),R46,(R46/$E$6)*'Customer Info'!$D$19)),) -> 0 | AE46: =IF((OR($F$7=0,$F$7="none")),IF(S46=0,,IF(OR($E$7='Customer Info'!$D$20,$E$7=0),S46,(S46/$E$7)*'Customer Info'!$D$20)),) -> 0 | AF46: =IF((OR($F$10=0,$F$10="none")),IF(T46=0,,IF(OR($E$10='Customer Info'!$F$17,$E$10=0),T46,(T46/$E$10)*'Customer Info'!$F$17)),) -> 0 | AG46: =IF((OR($F$11=0,$F$11="none")),IF(U46=0,,IF(OR($E$11='Customer Info'!$F$18,$E$11=0),U46,(U46/$E$11)*'Customer Info'!$F$18)),) -> 0 | AH46: =IF((OR($F$12=0,$F$12="none")),IF(V46=0,,IF(OR($E$12='Customer Info'!$F$19,$E$12=0),V46,(V46/$E$12)*'Customer Info'!$F$19)),) -> 0 | AI46: =IF((OR($F$13=0,$F$13="none")),IF(W46=0,,IF(OR($E$13='Customer Info'!$F$20,$E$13=0),W46,(W46/$E$13)*'Customer Info'!$F$20)),) -> 0 | AJ46: =IF((OR($F$16=0,$F$16="none")),IF(X46=0,,IF(($E$16='Customer Info'!$H$17,$E$16=0),X46,(X46/$E$16)*'Customer Info'!$H$17)),) -> 0 | AK46: =IF((OR($F$17=0,$F$17="none")),IF(Y46=0,,IF(OR($E$17='Customer Info'!$H$18, $E$17=0),Y46,(Y46/$E$17)*'Customer Info'!$H$18)),) -> 0 | AL46: =IF((OR($F$18=0,$F$18="none")),IF(Z46=0,,IF(OR($E$18='Customer Info'!$H$19, $E$18=0),Z46,(Z46/$E$18)*'Customer Info'!$H$19)),) -> 0 | AM46: =IF((OR($F$19=0,$F$19="none")),IF(AA46=0,,IF(OR($E$19='Customer Info'!$H$20,$E$19=0),AA46,(AA46/$E$19)*'Customer Info'!$H$20)),) -> 0 | AN46: 0 | AO46: 0 | AP46: =IF(E46="plate waste",,IF('Customer Info'!$M$18=0,'Log Sheet'!AO46,'Customer Info'!$M$18*'Log Sheet'!AO46)) -> 0 | AQ46: =IF(E46="plate waste",IF(C46="dining area1",IF('Customer Info'!$L$30=0,AO46*'Customer Info'!$M$18,AO46*'Customer Info'!$L$30),IF(C46="dining area2",IF('Customer Info'!$L$31=0,AO46*'Customer Info'!$M$18,AO46*'Customer Info'!$L$31),IF(C46="Dining Area3",IF('Customer Info'!$L$32=0,AO46*'Customer Info'!$M$18,AO46*'Customer Info'!$L$32),))),) -> 0 | AR46: 0 | AS46: =IF($F$4="lunch",IF(Q46=0,,(Q46/$E$5)*'Customer Info'!$D$17),) -> 0 | AT46: =IF($F$4="dinner",IF(R46=0,,(R46/$E$6)*'Customer Info'!$D$17),) -> 0 | AU46: =IF($F$4="other",IF(S46=0,,(S46/$E$7)*'Customer Info'!$D$17),) -> 0 | AV46: 0 | AW46: =IF($F$5="breakfast",IF(P46=0,,(P46/$E$4)*'Customer Info'!$D$18),) -> 0 | AX46: =IF($F$5="dinner",IF(R46=0,,(R46/$E$6)*'Customer Info'!$D$18),) -> 0 | AY46: =IF($F$5="other",IF(S46=0,,(S46/$E$7)*'Customer Info'!$D$18),) -> 0 | AZ46: 0 | BA46: =IF($F$6="breakfast",IF(P46=0,,(P46/$E$4)*'Customer Info'!$D$19),) -> 0 | BB46: =IF($F$6="lunch",IF(Q46=0,,(Q46/$E$5)*'Customer Info'!$D$19),) -> 0 | BC46: =IF($F$6="other",IF(S46=0,,(S46/$E$7)*'Customer Info'!$D$19),) -> 0 | BD46: 0 | BE46: =IF($F$7="breakfast",IF(P46=0,,(P46/$E$4)*'Customer Info'!$D$20),) -> 0 | BF46: =IF($F$7="lunch",IF(Q46=0,,(Q46/$E$5)*'Customer Info'!$D$20),) -> 0 | BG46: =IF($F$7="dinner",IF(R46=0,,(R46/$E$6)*'Customer Info'!$D$20),) -> 0 | BH46: 0 | BI46: =IF($F$10="lunch",IF(U46=0,,(U46/$E$11)*'Customer Info'!$F$17),) -> 0 | BJ46: =IF($F$10="dinner",IF(V46=0,,(V46/$E$12)*'Customer Info'!$F$17),) -> 0 | BK46: =IF($F$10="other",IF(W46=0,,(W46/$E$13)*'Customer Info'!$F$17),) -> 0 | BL46: 0 | BM46: =IF($F$11="breakfast",IF(T46=0,,(T46/$E$10)*'Customer Info'!$F$18),) -> 0 | BN46: =IF($F$11="dinner",IF(V46=0,,(V46/$E$12)*'Customer Info'!$F$18),) -> 0 | BO46: =IF($F$11="other",IF(W46=0,,(W46/$E$13)*'Customer Info'!$F$18),) -> 0 | BP46: 0 | BQ46: =IF($F$12="breakfast",IF(T46=0,,(T46/$E$10)*'Customer Info'!$F$19),) -> 0 | BR46: =IF($F$12="lunch",IF(U46=0,,(U46/$E$11)*'Customer Info'!$F$19),) -> 0 | BS46: =IF($F$12="other",IF(W46=0,,(W46/$E$13)*'Customer Info'!$F$19),) -> 0 | BT46: 0 | BU46: =IF($F$13="breakfast",IF(T46=0,,(T46/$E$10)*'Customer Info'!$F$20),) -> 0 | BV46: =IF($F$13="lunch",IF(U46=0,,(U46/$E$11)*'Customer Info'!$F$20),) -> 0 | BW46: =IF($F$13="dinner",IF(V46=0,,(V46/$E$12)*'Customer Info'!$F$20),) -> 0 | BX46: 0 | BY46: =IF($F$16="lunch",IF(Y46=0,,(Y46/$E$17)*'Customer Info'!$H$17),) -> 0 | BZ46: =IF($F$16="dinner",IF(Z46=0,,(Z46/$E$18)*'Customer Info'!$H$17),) -> 0 | CA46: =IF($F$16="other",IF(AA46=0,,(AA46/$E$19)*'Customer Info'!$H$17),) -> 0 | CB46: 0 | CC46: =IF($F$17="breakfast",IF(X46=0,,(X46/$E$16)*'Customer Info'!$H$18),) -> 0 | CD46: =IF($F$17="dinner",IF(Z46=0,,(Z46/$E$18)*'Customer Info'!$H$18),) -> 0 | CE46: =IF($F$17="other",IF(AA46=0,,(AA46/$E$19)*'Customer Info'!$H$18),) -> 0 | CF46: 0 | CG46: =IF($F$18="breakfast",IF(X46=0,,(X46/$E$16)*'Customer Info'!$H$19),) -> 0 | CH46: =IF($F$18="lunch",IF(Y46=0,,(Y46/$E$17)*'Customer Info'!$H$19),) -> 0 | CI46: =IF($F$18="other",IF(AA46=0,,(AA46/$E$19)*'Customer Info'!$H$19),) -> 0 | CJ46: 0 | CK46: =IF($F$19="breakfast",IF(X46=0,,(X46/$E$16)*'Customer Info'!$H$20),) -> 0 | CL46: =IF($F$19="lunch",IF(Y46=0,,(Y46/$E$17)*'Customer Info'!$H$20),) -> 0 | CM46: =IF($F$19="dinner",IF(Z46=0,,(Z46/$E$18)*'Customer Info'!$H$20),) -> 0 | CN46: 0 | CO46: 0 | CP46: 0
J47: 0 | K47: 0 | L47: 0 | M47: 0 | N47: 0 | O47: 0 | P47: 0 | Q47: 0 | R47: 0 | S47: 0 | T47: 0 | U47: 0 | V47: 0 | W47: 0 | X47: 0 | Y47: 0 | Z47: 0 | AA47: 0 | AB47: =IF((OR($F$4=0,$F$4="none")),IF(P47=0,,IF(OR($E$4='Customer Info'!$D$17,$E$4=0),P47,(P47/$E$4)*'Customer Info'!$D$17)),) -> 0 | AC47: =IF((OR($F$5=0,$F$5="none")),IF(Q47=0,,IF(OR($E$5='Customer Info'!$D$18,$E$5=0),Q47,(Q47/$E$5)*'Customer Info'!$D$18)),) -> 0 | AD47: =IF((OR($F$6=0,$F$6="none")),IF(R47=0,,IF(OR($E$6='Customer Info'!$D$19,$E$6=0),R47,(R47/$E$6)*'Customer Info'!$D$19)),) -> 0 | AE47: =IF((OR($F$7=0,$F$7="none")),IF(S47=0,,IF(OR($E$7='Customer Info'!$D$20,$E$7=0),S47,(S47/$E$7)*'Customer Info'!$D$20)),) -> 0 | AF47: =IF((OR($F$10=0,$F$10="none")),IF(T47=0,,IF(OR($E$10='Customer Info'!$F$17,$E$10=0),T47,(T47/$E$10)*'Customer Info'!$F$17)),) -> 0 | AG47: =IF((OR($F$11=0,$F$11="none")),IF(U47=0,,IF(OR($E$11='Customer Info'!$F$18,$E$11=0),U47,(U47/$E$11)*'Customer Info'!$F$18)),) -> 0 | AH47: =IF((OR($F$12=0,$F$12="none")),IF(V47=0,,IF(OR($E$12='Customer Info'!$F$19,$E$12=0),V47,(V47/$E$12)*'Customer Info'!$F$19)),) -> 0 | AI47: =IF((OR($F$13=0,$F$13="none")),IF(W47=0,,IF(OR($E$13='Customer Info'!$F$20,$E$13=0),W47,(W47/$E$13)*'Customer Info'!$F$20)),) -> 0 | AJ47: =IF((OR($F$16=0,$F$16="none")),IF(X47=0,,IF(($E$16='Customer Info'!$H$17,$E$16=0),X47,(X47/$E$16)*'Customer Info'!$H$17)),) -> 0 | AK47: =IF((OR($F$17=0,$F$17="none")),IF(Y47=0,,IF(OR($E$17='Customer Info'!$H$18, $E$17=0),Y47,(Y47/$E$17)*'Customer Info'!$H$18)),) -> 0 | AL47: =IF((OR($F$18=0,$F$18="none")),IF(Z47=0,,IF(OR($E$18='Customer Info'!$H$19, $E$18=0),Z47,(Z47/$E$18)*'Customer Info'!$H$19)),) -> 0 | AM47: =IF((OR($F$19=0,$F$19="none")),IF(AA47=0,,IF(OR($E$19='Customer Info'!$H$20,$E$19=0),AA47,(AA47/$E$19)*'Customer Info'!$H$20)),) -> 0 | AN47: 0 | AO47: 0 | AP47: =IF(E47="plate waste",,IF('Customer Info'!$M$18=0,'Log Sheet'!AO47,'Customer Info'!$M$18*'Log Sheet'!AO47)) -> 0 | AQ47: =IF(E47="plate waste",IF(C47="dining area1",IF('Customer Info'!$L$30=0,AO47*'Customer Info'!$M$18,AO47*'Customer Info'!$L$30),IF(C47="dining area2",IF('Customer Info'!$L$31=0,AO47*'Customer Info'!$M$18,AO47*'Customer Info'!$L$31),IF(C47="Dining Area3",IF('Customer Info'!$L$32=0,AO47*'Customer Info'!$M$18,AO47*'Customer Info'!$L$32),))),) -> 0 | AR47: 0 | AS47: =IF($F$4="lunch",IF(Q47=0,,(Q47/$E$5)*'Customer Info'!$D$17),) -> 0 | AT47: =IF($F$4="dinner",IF(R47=0,,(R47/$E$6)*'Customer Info'!$D$17),) -> 0 | AU47: =IF($F$4="other",IF(S47=0,,(S47/$E$7)*'Customer Info'!$D$17),) -> 0 | AV47: 0 | AW47: =IF($F$5="breakfast",IF(P47=0,,(P47/$E$4)*'Customer Info'!$D$18),) -> 0 | AX47: =IF($F$5="dinner",IF(R47=0,,(R47/$E$6)*'Customer Info'!$D$18),) -> 0 | AY47: =IF($F$5="other",IF(S47=0,,(S47/$E$7)*'Customer Info'!$D$18),) -> 0 | AZ47: 0 | BA47: =IF($F$6="breakfast",IF(P47=0,,(P47/$E$4)*'Customer Info'!$D$19),) -> 0 | BB47: =IF($F$6="lunch",IF(Q47=0,,(Q47/$E$5)*'Customer Info'!$D$19),) -> 0 | BC47: =IF($F$6="other",IF(S47=0,,(S47/$E$7)*'Customer Info'!$D$19),) -> 0 | BD47: 0 | BE47: =IF($F$7="breakfast",IF(P47=0,,(P47/$E$4)*'Customer Info'!$D$20),) -> 0 | BF47: =IF($F$7="lunch",IF(Q47=0,,(Q47/$E$5)*'Customer Info'!$D$20),) -> 0 | BG47: =IF($F$7="dinner",IF(R47=0,,(R47/$E$6)*'Customer Info'!$D$20),) -> 0 | BH47: 0 | BI47: =IF($F$10="lunch",IF(U47=0,,(U47/$E$11)*'Customer Info'!$F$17),) -> 0 | BJ47: =IF($F$10="dinner",IF(V47=0,,(V47/$E$12)*'Customer Info'!$F$17),) -> 0 | BK47: =IF($F$10="other",IF(W47=0,,(W47/$E$13)*'Customer Info'!$F$17),) -> 0 | BL47: 0 | BM47: =IF($F$11="breakfast",IF(T47=0,,(T47/$E$10)*'Customer Info'!$F$18),) -> 0 | BN47: =IF($F$11="dinner",IF(V47=0,,(V47/$E$12)*'Customer Info'!$F$18),) -> 0 | BO47: =IF($F$11="other",IF(W47=0,,(W47/$E$13)*'Customer Info'!$F$18),) -> 0 | BP47: 0 | BQ47: =IF($F$12="breakfast",IF(T47=0,,(T47/$E$10)*'Customer Info'!$F$19),) -> 0 | BR47: =IF($F$12="lunch",IF(U47=0,,(U47/$E$11)*'Customer Info'!$F$19),) -> 0 | BS47: =IF($F$12="other",IF(W47=0,,(W47/$E$13)*'Customer Info'!$F$19),) -> 0 | BT47: 0 | BU47: =IF($F$13="breakfast",IF(T47=0,,(T47/$E$10)*'Customer Info'!$F$20),) -> 0 | BV47: =IF($F$13="lunch",IF(U47=0,,(U47/$E$11)*'Customer Info'!$F$20),) -> 0 | BW47: =IF($F$13="dinner",IF(V47=0,,(V47/$E$12)*'Customer Info'!$F$20),) -> 0 | BX47: 0 | BY47: =IF($F$16="lunch",IF(Y47=0,,(Y47/$E$17)*'Customer Info'!$H$17),) -> 0 | BZ47: =IF($F$16="dinner",IF(Z47=0,,(Z47/$E$18)*'Customer Info'!$H$17),) -> 0 | CA47: =IF($F$16="other",IF(AA47=0,,(AA47/$E$19)*'Customer Info'!$H$17),) -> 0 | CB47: 0 | CC47: =IF($F$17="breakfast",IF(X47=0,,(X47/$E$16)*'Customer Info'!$H$18),) -> 0 | CD47: =IF($F$17="dinner",IF(Z47=0,,(Z47/$E$18)*'Customer Info'!$H$18),) -> 0 | CE47: =IF($F$17="other",IF(AA47=0,,(AA47/$E$19)*'Customer Info'!$H$18),) -> 0 | CF47: 0 | CG47: =IF($F$18="breakfast",IF(X47=0,,(X47/$E$16)*'Customer Info'!$H$19),) -> 0 | CH47: =IF($F$18="lunch",IF(Y47=0,,(Y47/$E$17)*'Customer Info'!$H$19),) -> 0 | CI47: =IF($F$18="other",IF(AA47=0,,(AA47/$E$19)*'Customer Info'!$H$19),) -> 0 | CJ47: 0 | CK47: =IF($F$19="breakfast",IF(X47=0,,(X47/$E$16)*'Customer Info'!$H$20),) -> 0 | CL47: =IF($F$19="lunch",IF(Y47=0,,(Y47/$E$17)*'Customer Info'!$H$20),) -> 0 | CM47: =IF($F$19="dinner",IF(Z47=0,,(Z47/$E$18)*'Customer Info'!$H$20),) -> 0 | CN47: 0 | CO47: 0 | CP47: 0
J48: 0 | K48: 0 | L48: 0 | M48: 0 | N48: 0 | O48: 0 | P48: 0 | Q48: 0 | R48: 0 | S48: 0 | T48: 0 | U48: 0 | V48: 0 | W48: 0 | X48: 0 | Y48: 0 | Z48: 0 | AA48: 0 | AB48: =IF((OR($F$4=0,$F$4="none")),IF(P48=0,,IF(OR($E$4='Customer Info'!$D$17,$E$4=0),P48,(P48/$E$4)*'Customer Info'!$D$17)),) -> 0 | AC48: =IF((OR($F$5=0,$F$5="none")),IF(Q48=0,,IF(OR($E$5='Customer Info'!$D$18,$E$5=0),Q48,(Q48/$E$5)*'Customer Info'!$D$18)),) -> 0 | AD48: =IF((OR($F$6=0,$F$6="none")),IF(R48=0,,IF(OR($E$6='Customer Info'!$D$19,$E$6=0),R48,(R48/$E$6)*'Customer Info'!$D$19)),) -> 0 | AE48: =IF((OR($F$7=0,$F$7="none")),IF(S48=0,,IF(OR($E$7='Customer Info'!$D$20,$E$7=0),S48,(S48/$E$7)*'Customer Info'!$D$20)),) -> 0 | AF48: =IF((OR($F$10=0,$F$10="none")),IF(T48=0,,IF(OR($E$10='Customer Info'!$F$17,$E$10=0),T48,(T48/$E$10)*'Customer Info'!$F$17)),) -> 0 | AG48: =IF((OR($F$11=0,$F$11="none")),IF(U48=0,,IF(OR($E$11='Customer Info'!$F$18,$E$11=0),U48,(U48/$E$11)*'Customer Info'!$F$18)),) -> 0 | AH48: =IF((OR($F$12=0,$F$12="none")),IF(V48=0,,IF(OR($E$12='Customer Info'!$F$19,$E$12=0),V48,(V48/$E$12)*'Customer Info'!$F$19)),) -> 0 | AI48: =IF((OR($F$13=0,$F$13="none")),IF(W48=0,,IF(OR($E$13='Customer Info'!$F$20,$E$13=0),W48,(W48/$E$13)*'Customer Info'!$F$20)),) -> 0 | AJ48: =IF((OR($F$16=0,$F$16="none")),IF(X48=0,,IF(($E$16='Customer Info'!$H$17,$E$16=0),X48,(X48/$E$16)*'Customer Info'!$H$17)),) -> 0 | AK48: =IF((OR($F$17=0,$F$17="none")),IF(Y48=0,,IF(OR($E$17='Customer Info'!$H$18, $E$17=0),Y48,(Y48/$E$17)*'Customer Info'!$H$18)),) -> 0 | AL48: =IF((OR($F$18=0,$F$18="none")),IF(Z48=0,,IF(OR($E$18='Customer Info'!$H$19, $E$18=0),Z48,(Z48/$E$18)*'Customer Info'!$H$19)),) -> 0 | AM48: =IF((OR($F$19=0,$F$19="none")),IF(AA48=0,,IF(OR($E$19='Customer Info'!$H$20,$E$19=0),AA48,(AA48/$E$19)*'Customer Info'!$H$20)),) -> 0 | AN48: 0 | AO48: 0 | AP48: =IF(E48="plate waste",,IF('Customer Info'!$M$18=0,'Log Sheet'!AO48,'Customer Info'!$M$18*'Log Sheet'!AO48)) -> 0 | AQ48: =IF(E48="plate waste",IF(C48="dining area1",IF('Customer Info'!$L$30=0,AO48*'Customer Info'!$M$18,AO48*'Customer Info'!$L$30),IF(C48="dining area2",IF('Customer Info'!$L$31=0,AO48*'Customer Info'!$M$18,AO48*'Customer Info'!$L$31),IF(C48="Dining Area3",IF('Customer Info'!$L$32=0,AO48*'Customer Info'!$M$18,AO48*'Customer Info'!$L$32),))),) -> 0 | AR48: 0 | AS48: =IF($F$4="lunch",IF(Q48=0,,(Q48/$E$5)*'Customer Info'!$D$17),) -> 0 | AT48: =IF($F$4="dinner",IF(R48=0,,(R48/$E$6)*'Customer Info'!$D$17),) -> 0 | AU48: =IF($F$4="other",IF(S48=0,,(S48/$E$7)*'Customer Info'!$D$17),) -> 0 | AV48: 0 | AW48: =IF($F$5="breakfast",IF(P48=0,,(P48/$E$4)*'Customer Info'!$D$18),) -> 0 | AX48: =IF($F$5="dinner",IF(R48=0,,(R48/$E$6)*'Customer Info'!$D$18),) -> 0 | AY48: =IF($F$5="other",IF(S48=0,,(S48/$E$7)*'Customer Info'!$D$18),) -> 0 | AZ48: 0 | BA48: =IF($F$6="breakfast",IF(P48=0,,(P48/$E$4)*'Customer Info'!$D$19),) -> 0 | BB48: =IF($F$6="lunch",IF(Q48=0,,(Q48/$E$5)*'Customer Info'!$D$19),) -> 0 | BC48: =IF($F$6="other",IF(S48=0,,(S48/$E$7)*'Customer Info'!$D$19),) -> 0 | BD48: 0 | BE48: =IF($F$7="breakfast",IF(P48=0,,(P48/$E$4)*'Customer Info'!$D$20),) -> 0 | BF48: =IF($F$7="lunch",IF(Q48=0,,(Q48/$E$5)*'Customer Info'!$D$20),) -> 0 | BG48: =IF($F$7="dinner",IF(R48=0,,(R48/$E$6)*'Customer Info'!$D$20),) -> 0 | BH48: 0 | BI48: =IF($F$10="lunch",IF(U48=0,,(U48/$E$11)*'Customer Info'!$F$17),) -> 0 | BJ48: =IF($F$10="dinner",IF(V48=0,,(V48/$E$12)*'Customer Info'!$F$17),) -> 0 | BK48: =IF($F$10="other",IF(W48=0,,(W48/$E$13)*'Customer Info'!$F$17),) -> 0 | BL48: 0 | BM48: =IF($F$11="breakfast",IF(T48=0,,(T48/$E$10)*'Customer Info'!$F$18),) -> 0 | BN48: =IF($F$11="dinner",IF(V48=0,,(V48/$E$12)*'Customer Info'!$F$18),) -> 0 | BO48: =IF($F$11="other",IF(W48=0,,(W48/$E$13)*'Customer Info'!$F$18),) -> 0 | BP48: 0 | BQ48: =IF($F$12="breakfast",IF(T48=0,,(T48/$E$10)*'Customer Info'!$F$19),) -> 0 | BR48: =IF($F$12="lunch",IF(U48=0,,(U48/$E$11)*'Customer Info'!$F$19),) -> 0 | BS48: =IF($F$12="other",IF(W48=0,,(W48/$E$13)*'Customer Info'!$F$19),) -> 0 | BT48: 0 | BU48: =IF($F$13="breakfast",IF(T48=0,,(T48/$E$10)*'Customer Info'!$F$20),) -> 0 | BV48: =IF($F$13="lunch",IF(U48=0,,(U48/$E$11)*'Customer Info'!$F$20),) -> 0 | BW48: =IF($F$13="dinner",IF(V48=0,,(V48/$E$12)*'Customer Info'!$F$20),) -> 0 | BX48: 0 | BY48: =IF($F$16="lunch",IF(Y48=0,,(Y48/$E$17)*'Customer Info'!$H$17),) -> 0 | BZ48: =IF($F$16="dinner",IF(Z48=0,,(Z48/$E$18)*'Customer Info'!$H$17),) -> 0 | CA48: =IF($F$16="other",IF(AA48=0,,(AA48/$E$19)*'Customer Info'!$H$17),) -> 0 | CB48: 0 | CC48: =IF($F$17="breakfast",IF(X48=0,,(X48/$E$16)*'Customer Info'!$H$18),) -> 0 | CD48: =IF($F$17="dinner",IF(Z48=0,,(Z48/$E$18)*'Customer Info'!$H$18),) -> 0 | CE48: =IF($F$17="other",IF(AA48=0,,(AA48/$E$19)*'Customer Info'!$H$18),) -> 0 | CF48: 0 | CG48: =IF($F$18="breakfast",IF(X48=0,,(X48/$E$16)*'Customer Info'!$H$19),) -> 0 | CH48: =IF($F$18="lunch",IF(Y48=0,,(Y48/$E$17)*'Customer Info'!$H$19),) -> 0 | CI48: =IF($F$18="other",IF(AA48=0,,(AA48/$E$19)*'Customer Info'!$H$19),) -> 0 | CJ48: 0 | CK48: =IF($F$19="breakfast",IF(X48=0,,(X48/$E$16)*'Customer Info'!$H$20),) -> 0 | CL48: =IF($F$19="lunch",IF(Y48=0,,(Y48/$E$17)*'Customer Info'!$H$20),) -> 0 | CM48: =IF($F$19="dinner",IF(Z48=0,,(Z48/$E$18)*'Customer Info'!$H$20),) -> 0 | CN48: 0 | CO48: 0 | CP48: 0
J49: 0 | K49: 0 | L49: 0 | M49: 0 | N49: 0 | O49: 0 | P49: 0 | Q49: 0 | R49: 0 | S49: 0 | T49: 0 | U49: 0 | V49: 0 | W49: 0 | X49: 0 | Y49: 0 | Z49: 0 | AA49: 0 | AB49: =IF((OR($F$4=0,$F$4="none")),IF(P49=0,,IF(OR($E$4='Customer Info'!$D$17,$E$4=0),P49,(P49/$E$4)*'Customer Info'!$D$17)),) -> 0 | AC49: =IF((OR($F$5=0,$F$5="none")),IF(Q49=0,,IF(OR($E$5='Customer Info'!$D$18,$E$5=0),Q49,(Q49/$E$5)*'Customer Info'!$D$18)),) -> 0 | AD49: =IF((OR($F$6=0,$F$6="none")),IF(R49=0,,IF(OR($E$6='Customer Info'!$D$19,$E$6=0),R49,(R49/$E$6)*'Customer Info'!$D$19)),) -> 0 | AE49: =IF((OR($F$7=0,$F$7="none")),IF(S49=0,,IF(OR($E$7='Customer Info'!$D$20,$E$7=0),S49,(S49/$E$7)*'Customer Info'!$D$20)),) -> 0 | AF49: =IF((OR($F$10=0,$F$10="none")),IF(T49=0,,IF(OR($E$10='Customer Info'!$F$17,$E$10=0),T49,(T49/$E$10)*'Customer Info'!$F$17)),) -> 0 | AG49: =IF((OR($F$11=0,$F$11="none")),IF(U49=0,,IF(OR($E$11='Customer Info'!$F$18,$E$11=0),U49,(U49/$E$11)*'Customer Info'!$F$18)),) -> 0 | AH49: =IF((OR($F$12=0,$F$12="none")),IF(V49=0,,IF(OR($E$12='Customer Info'!$F$19,$E$12=0),V49,(V49/$E$12)*'Customer Info'!$F$19)),) -> 0 | AI49: =IF((OR($F$13=0,$F$13="none")),IF(W49=0,,IF(OR($E$13='Customer Info'!$F$20,$E$13=0),W49,(W49/$E$13)*'Customer Info'!$F$20)),) -> 0 | AJ49: =IF((OR($F$16=0,$F$16="none")),IF(X49=0,,IF(($E$16='Customer Info'!$H$17,$E$16=0),X49,(X49/$E$16)*'Customer Info'!$H$17)),) -> 0 | AK49: =IF((OR($F$17=0,$F$17="none")),IF(Y49=0,,IF(OR($E$17='Customer Info'!$H$18, $E$17=0),Y49,(Y49/$E$17)*'Customer Info'!$H$18)),) -> 0 | AL49: =IF((OR($F$18=0,$F$18="none")),IF(Z49=0,,IF(OR($E$18='Customer Info'!$H$19, $E$18=0),Z49,(Z49/$E$18)*'Customer Info'!$H$19)),) -> 0 | AM49: =IF((OR($F$19=0,$F$19="none")),IF(AA49=0,,IF(OR($E$19='Customer Info'!$H$20,$E$19=0),AA49,(AA49/$E$19)*'Customer Info'!$H$20)),) -> 0 | AN49: 0 | AO49: 0 | AP49: =IF(E49="plate waste",,IF('Customer Info'!$M$18=0,'Log Sheet'!AO49,'Customer Info'!$M$18*'Log Sheet'!AO49)) -> 0 | AQ49: =IF(E49="plate waste",IF(C49="dining area1",IF('Customer Info'!$L$30=0,AO49*'Customer Info'!$M$18,AO49*'Customer Info'!$L$30),IF(C49="dining area2",IF('Customer Info'!$L$31=0,AO49*'Customer Info'!$M$18,AO49*'Customer Info'!$L$31),IF(C49="Dining Area3",IF('Customer Info'!$L$32=0,AO49*'Customer Info'!$M$18,AO49*'Customer Info'!$L$32),))),) -> 0 | AR49: 0 | AS49: =IF($F$4="lunch",IF(Q49=0,,(Q49/$E$5)*'Customer Info'!$D$17),) -> 0 | AT49: =IF($F$4="dinner",IF(R49=0,,(R49/$E$6)*'Customer Info'!$D$17),) -> 0 | AU49: =IF($F$4="other",IF(S49=0,,(S49/$E$7)*'Customer Info'!$D$17),) -> 0 | AV49: 0 | AW49: =IF($F$5="breakfast",IF(P49=0,,(P49/$E$4)*'Customer Info'!$D$18),) -> 0 | AX49: =IF($F$5="dinner",IF(R49=0,,(R49/$E$6)*'Customer Info'!$D$18),) -> 0 | AY49: =IF($F$5="other",IF(S49=0,,(S49/$E$7)*'Customer Info'!$D$18),) -> 0 | AZ49: 0 | BA49: =IF($F$6="breakfast",IF(P49=0,,(P49/$E$4)*'Customer Info'!$D$19),) -> 0 | BB49: =IF($F$6="lunch",IF(Q49=0,,(Q49/$E$5)*'Customer Info'!$D$19),) -> 0 | BC49: =IF($F$6="other",IF(S49=0,,(S49/$E$7)*'Customer Info'!$D$19),) -> 0 | BD49: 0 | BE49: =IF($F$7="breakfast",IF(P49=0,,(P49/$E$4)*'Customer Info'!$D$20),) -> 0 | BF49: =IF($F$7="lunch",IF(Q49=0,,(Q49/$E$5)*'Customer Info'!$D$20),) -> 0 | BG49: =IF($F$7="dinner",IF(R49=0,,(R49/$E$6)*'Customer Info'!$D$20),) -> 0 | BH49: 0 | BI49: =IF($F$10="lunch",IF(U49=0,,(U49/$E$11)*'Customer Info'!$F$17),) -> 0 | BJ49: =IF($F$10="dinner",IF(V49=0,,(V49/$E$12)*'Customer Info'!$F$17),) -> 0 | BK49: =IF($F$10="other",IF(W49=0,,(W49/$E$13)*'Customer Info'!$F$17),) -> 0 | BL49: 0 | BM49: =IF($F$11="breakfast",IF(T49=0,,(T49/$E$10)*'Customer Info'!$F$18),) -> 0 | BN49: =IF($F$11="dinner",IF(V49=0,,(V49/$E$12)*'Customer Info'!$F$18),) -> 0 | BO49: =IF($F$11="other",IF(W49=0,,(W49/$E$13)*'Customer Info'!$F$18),) -> 0 | BP49: 0 | BQ49: =IF($F$12="breakfast",IF(T49=0,,(T49/$E$10)*'Customer Info'!$F$19),) -> 0 | BR49: =IF($F$12="lunch",IF(U49=0,,(U49/$E$11)*'Customer Info'!$F$19),) -> 0 | BS49: =IF($F$12="other",IF(W49=0,,(W49/$E$13)*'Customer Info'!$F$19),) -> 0 | BT49: 0 | BU49: =IF($F$13="breakfast",IF(T49=0,,(T49/$E$10)*'Customer Info'!$F$20),) -> 0 | BV49: =IF($F$13="lunch",IF(U49=0,,(U49/$E$11)*'Customer Info'!$F$20),) -> 0 | BW49: =IF($F$13="dinner",IF(V49=0,,(V49/$E$12)*'Customer Info'!$F$20),) -> 0 | BX49: 0 | BY49: =IF($F$16="lunch",IF(Y49=0,,(Y49/$E$17)*'Customer Info'!$H$17),) -> 0 | BZ49: =IF($F$16="dinner",IF(Z49=0,,(Z49/$E$18)*'Customer Info'!$H$17),) -> 0 | CA49: =IF($F$16="other",IF(AA49=0,,(AA49/$E$19)*'Customer Info'!$H$17),) -> 0 | CB49: 0 | CC49: =IF($F$17="breakfast",IF(X49=0,,(X49/$E$16)*'Customer Info'!$H$18),) -> 0 | CD49: =IF($F$17="dinner",IF(Z49=0,,(Z49/$E$18)*'Customer Info'!$H$18),) -> 0 | CE49: =IF($F$17="other",IF(AA49=0,,(AA49/$E$19)*'Customer Info'!$H$18),) -> 0 | CF49: 0 | CG49: =IF($F$18="breakfast",IF(X49=0,,(X49/$E$16)*'Customer Info'!$H$19),) -> 0 | CH49: =IF($F$18="lunch",IF(Y49=0,,(Y49/$E$17)*'Customer Info'!$H$19),) -> 0 | CI49: =IF($F$18="other",IF(AA49=0,,(AA49/$E$19)*'Customer Info'!$H$19),) -> 0 | CJ49: 0 | CK49: =IF($F$19="breakfast",IF(X49=0,,(X49/$E$16)*'Customer Info'!$H$20),) -> 0 | CL49: =IF($F$19="lunch",IF(Y49=0,,(Y49/$E$17)*'Customer Info'!$H$20),) -> 0 | CM49: =IF($F$19="dinner",IF(Z49=0,,(Z49/$E$18)*'Customer Info'!$H$20),) -> 0 | CN49: 0 | CO49: 0 | CP49: 0
J50: 0 | K50: 0 | L50: 0 | M50: 0 | N50: 0 | O50: 0 | P50: 0 | Q50: 0 | R50: 0 | S50: 0 | T50: 0 | U50: 0 | V50: 0 | W50: 0 | X50: 0 | Y50: 0 | Z50: 0 | AA50: 0 | AB50: =IF((OR($F$4=0,$F$4="none")),IF(P50=0,,IF(OR($E$4='Customer Info'!$D$17,$E$4=0),P50,(P50/$E$4)*'Customer Info'!$D$17)),) -> 0 | AC50: =IF((OR($F$5=0,$F$5="none")),IF(Q50=0,,IF(OR($E$5='Customer Info'!$D$18,$E$5=0),Q50,(Q50/$E$5)*'Customer Info'!$D$18)),) -> 0 | AD50: =IF((OR($F$6=0,$F$6="none")),IF(R50=0,,IF(OR($E$6='Customer Info'!$D$19,$E$6=0),R50,(R50/$E$6)*'Customer Info'!$D$19)),) -> 0 | AE50: =IF((OR($F$7=0,$F$7="none")),IF(S50=0,,IF(OR($E$7='Customer Info'!$D$20,$E$7=0),S50,(S50/$E$7)*'Customer Info'!$D$20)),) -> 0 | AF50: =IF((OR($F$10=0,$F$10="none")),IF(T50=0,,IF(OR($E$10='Customer Info'!$F$17,$E$10=0),T50,(T50/$E$10)*'Customer Info'!$F$17)),) -> 0 | AG50: =IF((OR($F$11=0,$F$11="none")),IF(U50=0,,IF(OR($E$11='Customer Info'!$F$18,$E$11=0),U50,(U50/$E$11)*'Customer Info'!$F$18)),) -> 0 | AH50: =IF((OR($F$12=0,$F$12="none")),IF(V50=0,,IF(OR($E$12='Customer Info'!$F$19,$E$12=0),V50,(V50/$E$12)*'Customer Info'!$F$19)),) -> 0 | AI50: =IF((OR($F$13=0,$F$13="none")),IF(W50=0,,IF(OR($E$13='Customer Info'!$F$20,$E$13=0),W50,(W50/$E$13)*'Customer Info'!$F$20)),) -> 0 | AJ50: =IF((OR($F$16=0,$F$16="none")),IF(X50=0,,IF(($E$16='Customer Info'!$H$17,$E$16=0),X50,(X50/$E$16)*'Customer Info'!$H$17)),) -> 0 | AK50: =IF((OR($F$17=0,$F$17="none")),IF(Y50=0,,IF(OR($E$17='Customer Info'!$H$18, $E$17=0),Y50,(Y50/$E$17)*'Customer Info'!$H$18)),) -> 0 | AL50: =IF((OR($F$18=0,$F$18="none")),IF(Z50=0,,IF(OR($E$18='Customer Info'!$H$19, $E$18=0),Z50,(Z50/$E$18)*'Customer Info'!$H$19)),) -> 0 | AM50: =IF((OR($F$19=0,$F$19="none")),IF(AA50=0,,IF(OR($E$19='Customer Info'!$H$20,$E$19=0),AA50,(AA50/$E$19)*'Customer Info'!$H$20)),) -> 0 | AN50: 0 | AO50: 0 | AP50: =IF(E50="plate waste",,IF('Customer Info'!$M$18=0,'Log Sheet'!AO50,'Customer Info'!$M$18*'Log Sheet'!AO50)) -> 0 | AQ50: =IF(E50="plate waste",IF(C50="dining area1",IF('Customer Info'!$L$30=0,AO50*'Customer Info'!$M$18,AO50*'Customer Info'!$L$30),IF(C50="dining area2",IF('Customer Info'!$L$31=0,AO50*'Customer Info'!$M$18,AO50*'Customer Info'!$L$31),IF(C50="Dining Area3",IF('Customer Info'!$L$32=0,AO50*'Customer Info'!$M$18,AO50*'Customer Info'!$L$32),))),) -> 0 | AR50: 0 | AS50: =IF($F$4="lunch",IF(Q50=0,,(Q50/$E$5)*'Customer Info'!$D$17),) -> 0 | AT50: =IF($F$4="dinner",IF(R50=0,,(R50/$E$6)*'Customer Info'!$D$17),) -> 0 | AU50: =IF($F$4="other",IF(S50=0,,(S50/$E$7)*'Customer Info'!$D$17),) -> 0 | AV50: 0 | AW50: =IF($F$5="breakfast",IF(P50=0,,(P50/$E$4)*'Customer Info'!$D$18),) -> 0 | AX50: =IF($F$5="dinner",IF(R50=0,,(R50/$E$6)*'Customer Info'!$D$18),) -> 0 | AY50: =IF($F$5="other",IF(S50=0,,(S50/$E$7)*'Customer Info'!$D$18),) -> 0 | AZ50: 0 | BA50: =IF($F$6="breakfast",IF(P50=0,,(P50/$E$4)*'Customer Info'!$D$19),) -> 0 | BB50: =IF($F$6="lunch",IF(Q50=0,,(Q50/$E$5)*'Customer Info'!$D$19),) -> 0 | BC50: =IF($F$6="other",IF(S50=0,,(S50/$E$7)*'Customer Info'!$D$19),) -> 0 | BD50: 0 | BE50: =IF($F$7="breakfast",IF(P50=0,,(P50/$E$4)*'Customer Info'!$D$20),) -> 0 | BF50: =IF($F$7="lunch",IF(Q50=0,,(Q50/$E$5)*'Customer Info'!$D$20),) -> 0 | BG50: =IF($F$7="dinner",IF(R50=0,,(R50/$E$6)*'Customer Info'!$D$20),) -> 0 | BH50: 0 | BI50: =IF($F$10="lunch",IF(U50=0,,(U50/$E$11)*'Customer Info'!$F$17),) -> 0 | BJ50: =IF($F$10="dinner",IF(V50=0,,(V50/$E$12)*'Customer Info'!$F$17),) -> 0 | BK50: =IF($F$10="other",IF(W50=0,,(W50/$E$13)*'Customer Info'!$F$17),) -> 0 | BL50: 0 | BM50: =IF($F$11="breakfast",IF(T50=0,,(T50/$E$10)*'Customer Info'!$F$18),) -> 0 | BN50: =IF($F$11="dinner",IF(V50=0,,(V50/$E$12)*'Customer Info'!$F$18),) -> 0 | BO50: =IF($F$11="other",IF(W50=0,,(W50/$E$13)*'Customer Info'!$F$18),) -> 0 | BP50: 0 | BQ50: =IF($F$12="breakfast",IF(T50=0,,(T50/$E$10)*'Customer Info'!$F$19),) -> 0 | BR50: =IF($F$12="lunch",IF(U50=0,,(U50/$E$11)*'Customer Info'!$F$19),) -> 0 | BS50: =IF($F$12="other",IF(W50=0,,(W50/$E$13)*'Customer Info'!$F$19),) -> 0 | BT50: 0 | BU50: =IF($F$13="breakfast",IF(T50=0,,(T50/$E$10)*'Customer Info'!$F$20),) -> 0 | BV50: =IF($F$13="lunch",IF(U50=0,,(U50/$E$11)*'Customer Info'!$F$20),) -> 0 | BW50: =IF($F$13="dinner",IF(V50=0,,(V50/$E$12)*'Customer Info'!$F$20),) -> 0 | BX50: 0 | BY50: =IF($F$16="lunch",IF(Y50=0,,(Y50/$E$17)*'Customer Info'!$H$17),) -> 0 | BZ50: =IF($F$16="dinner",IF(Z50=0,,(Z50/$E$18)*'Customer Info'!$H$17),) -> 0 | CA50: =IF($F$16="other",IF(AA50=0,,(AA50/$E$19)*'Customer Info'!$H$17),) -> 0 | CB50: 0 | CC50: =IF($F$17="breakfast",IF(X50=0,,(X50/$E$16)*'Customer Info'!$H$18),) -> 0 | CD50: =IF($F$17="dinner",IF(Z50=0,,(Z50/$E$18)*'Customer Info'!$H$18),) -> 0 | CE50: =IF($F$17="other",IF(AA50=0,,(AA50/$E$19)*'Customer Info'!$H$18),) -> 0 | CF50: 0 | CG50: =IF($F$18="breakfast",IF(X50=0,,(X50/$E$16)*'Customer Info'!$H$19),) -> 0 | CH50: =IF($F$18="lunch",IF(Y50=0,,(Y50/$E$17)*'Customer Info'!$H$19),) -> 0 | CI50: =IF($F$18="other",IF(AA50=0,,(AA50/$E$19)*'Customer Info'!$H$19),) -> 0 | CJ50: 0 | CK50: =IF($F$19="breakfast",IF(X50=0,,(X50/$E$16)*'Customer Info'!$H$20),) -> 0 | CL50: =IF($F$19="lunch",IF(Y50=0,,(Y50/$E$17)*'Customer Info'!$H$20),) -> 0 | CM50: =IF($F$19="dinner",IF(Z50=0,,(Z50/$E$18)*'Customer Info'!$H$20),) -> 0 | CN50: 0 | CO50: 0 | CP50: 0
J51: 0 | K51: 0 | L51: 0 | M51: 0 | N51: 0 | O51: 0 | P51: 0 | Q51: 0 | R51: 0 | S51: 0 | T51: 0 | U51: 0 | V51: 0 | W51: 0 | X51: 0 | Y51: 0 | Z51: 0 | AA51: 0 | AB51: =IF((OR($F$4=0,$F$4="none")),IF(P51=0,,IF(OR($E$4='Customer Info'!$D$17,$E$4=0),P51,(P51/$E$4)*'Customer Info'!$D$17)),) -> 0 | AC51: =IF((OR($F$5=0,$F$5="none")),IF(Q51=0,,IF(OR($E$5='Customer Info'!$D$18,$E$5=0),Q51,(Q51/$E$5)*'Customer Info'!$D$18)),) -> 0 | AD51: =IF((OR($F$6=0,$F$6="none")),IF(R51=0,,IF(OR($E$6='Customer Info'!$D$19,$E$6=0),R51,(R51/$E$6)*'Customer Info'!$D$19)),) -> 0 | AE51: =IF((OR($F$7=0,$F$7="none")),IF(S51=0,,IF(OR($E$7='Customer Info'!$D$20,$E$7=0),S51,(S51/$E$7)*'Customer Info'!$D$20)),) -> 0 | AF51: =IF((OR($F$10=0,$F$10="none")),IF(T51=0,,IF(OR($E$10='Customer Info'!$F$17,$E$10=0),T51,(T51/$E$10)*'Customer Info'!$F$17)),) -> 0 | AG51: =IF((OR($F$11=0,$F$11="none")),IF(U51=0,,IF(OR($E$11='Customer Info'!$F$18,$E$11=0),U51,(U51/$E$11)*'Customer Info'!$F$18)),) -> 0 | AH51: =IF((OR($F$12=0,$F$12="none")),IF(V51=0,,IF(OR($E$12='Customer Info'!$F$19,$E$12=0),V51,(V51/$E$12)*'Customer Info'!$F$19)),) -> 0 | AI51: =IF((OR($F$13=0,$F$13="none")),IF(W51=0,,IF(OR($E$13='Customer Info'!$F$20,$E$13=0),W51,(W51/$E$13)*'Customer Info'!$F$20)),) -> 0 | AJ51: =IF((OR($F$16=0,$F$16="none")),IF(X51=0,,IF(($E$16='Customer Info'!$H$17,$E$16=0),X51,(X51/$E$16)*'Customer Info'!$H$17)),) -> 0 | AK51: =IF((OR($F$17=0,$F$17="none")),IF(Y51=0,,IF(OR($E$17='Customer Info'!$H$18, $E$17=0),Y51,(Y51/$E$17)*'Customer Info'!$H$18)),) -> 0 | AL51: =IF((OR($F$18=0,$F$18="none")),IF(Z51=0,,IF(OR($E$18='Customer Info'!$H$19, $E$18=0),Z51,(Z51/$E$18)*'Customer Info'!$H$19)),) -> 0 | AM51: =IF((OR($F$19=0,$F$19="none")),IF(AA51=0,,IF(OR($E$19='Customer Info'!$H$20,$E$19=0),AA51,(AA51/$E$19)*'Customer Info'!$H$20)),) -> 0 | AN51: 0 | AO51: 0 | AP51: =IF(E51="plate waste",,IF('Customer Info'!$M$18=0,'Log Sheet'!AO51,'Customer Info'!$M$18*'Log Sheet'!AO51)) -> 0 | AQ51: =IF(E51="plate waste",IF(C51="dining area1",IF('Customer Info'!$L$30=0,AO51*'Customer Info'!$M$18,AO51*'Customer Info'!$L$30),IF(C51="dining area2",IF('Customer Info'!$L$31=0,AO51*'Customer Info'!$M$18,AO51*'Customer Info'!$L$31),IF(C51="Dining Area3",IF('Customer Info'!$L$32=0,AO51*'Customer Info'!$M$18,AO51*'Customer Info'!$L$32),))),) -> 0 | AR51: 0 | AS51: =IF($F$4="lunch",IF(Q51=0,,(Q51/$E$5)*'Customer Info'!$D$17),) -> 0 | AT51: =IF($F$4="dinner",IF(R51=0,,(R51/$E$6)*'Customer Info'!$D$17),) -> 0 | AU51: =IF($F$4="other",IF(S51=0,,(S51/$E$7)*'Customer Info'!$D$17),) -> 0 | AV51: 0 | AW51: =IF($F$5="breakfast",IF(P51=0,,(P51/$E$4)*'Customer Info'!$D$18),) -> 0 | AX51: =IF($F$5="dinner",IF(R51=0,,(R51/$E$6)*'Customer Info'!$D$18),) -> 0 | AY51: =IF($F$5="other",IF(S51=0,,(S51/$E$7)*'Customer Info'!$D$18),) -> 0 | AZ51: 0 | BA51: =IF($F$6="breakfast",IF(P51=0,,(P51/$E$4)*'Customer Info'!$D$19),) -> 0 | BB51: =IF($F$6="lunch",IF(Q51=0,,(Q51/$E$5)*'Customer Info'!$D$19),) -> 0 | BC51: =IF($F$6="other",IF(S51=0,,(S51/$E$7)*'Customer Info'!$D$19),) -> 0 | BD51: 0 | BE51: =IF($F$7="breakfast",IF(P51=0,,(P51/$E$4)*'Customer Info'!$D$20),) -> 0 | BF51: =IF($F$7="lunch",IF(Q51=0,,(Q51/$E$5)*'Customer Info'!$D$20),) -> 0 | BG51: =IF($F$7="dinner",IF(R51=0,,(R51/$E$6)*'Customer Info'!$D$20),) -> 0 | BH51: 0 | BI51: =IF($F$10="lunch",IF(U51=0,,(U51/$E$11)*'Customer Info'!$F$17),) -> 0 | BJ51: =IF($F$10="dinner",IF(V51=0,,(V51/$E$12)*'Customer Info'!$F$17),) -> 0 | BK51: =IF($F$10="other",IF(W51=0,,(W51/$E$13)*'Customer Info'!$F$17),) -> 0 | BL51: 0 | BM51: =IF($F$11="breakfast",IF(T51=0,,(T51/$E$10)*'Customer Info'!$F$18),) -> 0 | BN51: =IF($F$11="dinner",IF(V51=0,,(V51/$E$12)*'Customer Info'!$F$18),) -> 0 | BO51: =IF($F$11="other",IF(W51=0,,(W51/$E$13)*'Customer Info'!$F$18),) -> 0 | BP51: 0 | BQ51: =IF($F$12="breakfast",IF(T51=0,,(T51/$E$10)*'Customer Info'!$F$19),) -> 0 | BR51: =IF($F$12="lunch",IF(U51=0,,(U51/$E$11)*'Customer Info'!$F$19),) -> 0 | BS51: =IF($F$12="other",IF(W51=0,,(W51/$E$13)*'Customer Info'!$F$19),) -> 0 | BT51: 0 | BU51: =IF($F$13="breakfast",IF(T51=0,,(T51/$E$10)*'Customer Info'!$F$20),) -> 0 | BV51: =IF($F$13="lunch",IF(U51=0,,(U51/$E$11)*'Customer Info'!$F$20),) -> 0 | BW51: =IF($F$13="dinner",IF(V51=0,,(V51/$E$12)*'Customer Info'!$F$20),) -> 0 | BX51: 0 | BY51: =IF($F$16="lunch",IF(Y51=0,,(Y51/$E$17)*'Customer Info'!$H$17),) -> 0 | BZ51: =IF($F$16="dinner",IF(Z51=0,,(Z51/$E$18)*'Customer Info'!$H$17),) -> 0 | CA51: =IF($F$16="other",IF(AA51=0,,(AA51/$E$19)*'Customer Info'!$H$17),) -> 0 | CB51: 0 | CC51: =IF($F$17="breakfast",IF(X51=0,,(X51/$E$16)*'Customer Info'!$H$18),) -> 0 | CD51: =IF($F$17="dinner",IF(Z51=0,,(Z51/$E$18)*'Customer Info'!$H$18),) -> 0 | CE51: =IF($F$17="other",IF(AA51=0,,(AA51/$E$19)*'Customer Info'!$H$18),) -> 0 | CF51: 0 | CG51: =IF($F$18="breakfast",IF(X51=0,,(X51/$E$16)*'Customer Info'!$H$19),) -> 0 | CH51: =IF($F$18="lunch",IF(Y51=0,,(Y51/$E$17)*'Customer Info'!$H$19),) -> 0 | CI51: =IF($F$18="other",IF(AA51=0,,(AA51/$E$19)*'Customer Info'!$H$19),) -> 0 | CJ51: 0 | CK51: =IF($F$19="breakfast",IF(X51=0,,(X51/$E$16)*'Customer Info'!$H$20),) -> 0 | CL51: =IF($F$19="lunch",IF(Y51=0,,(Y51/$E$17)*'Customer Info'!$H$20),) -> 0 | CM51: =IF($F$19="dinner",IF(Z51=0,,(Z51/$E$18)*'Customer Info'!$H$20),) -> 0 | CN51: 0 | CO51: 0 | CP51: 0
J52: 0 | K52: 0 | L52: 0 | M52: 0 | N52: 0 | O52: 0 | P52: 0 | Q52: 0 | R52: 0 | S52: 0 | T52: 0 | U52: 0 | V52: 0 | W52: 0 | X52: 0 | Y52: 0 | Z52: 0 | AA52: 0 | AB52: =IF((OR($F$4=0,$F$4="none")),IF(P52=0,,IF(OR($E$4='Customer Info'!$D$17,$E$4=0),P52,(P52/$E$4)*'Customer Info'!$D$17)),) -> 0 | AC52: =IF((OR($F$5=0,$F$5="none")),IF(Q52=0,,IF(OR($E$5='Customer Info'!$D$18,$E$5=0),Q52,(Q52/$E$5)*'Customer Info'!$D$18)),) -> 0 | AD52: =IF((OR($F$6=0,$F$6="none")),IF(R52=0,,IF(OR($E$6='Customer Info'!$D$19,$E$6=0),R52,(R52/$E$6)*'Customer Info'!$D$19)),) -> 0 | AE52: =IF((OR($F$7=0,$F$7="none")),IF(S52=0,,IF(OR($E$7='Customer Info'!$D$20,$E$7=0),S52,(S52/$E$7)*'Customer Info'!$D$20)),) -> 0 | AF52: =IF((OR($F$10=0,$F$10="none")),IF(T52=0,,IF(OR($E$10='Customer Info'!$F$17,$E$10=0),T52,(T52/$E$10)*'Customer Info'!$F$17)),) -> 0 | AG52: =IF((OR($F$11=0,$F$11="none")),IF(U52=0,,IF(OR($E$11='Customer Info'!$F$18,$E$11=0),U52,(U52/$E$11)*'Customer Info'!$F$18)),) -> 0 | AH52: =IF((OR($F$12=0,$F$12="none")),IF(V52=0,,IF(OR($E$12='Customer Info'!$F$19,$E$12=0),V52,(V52/$E$12)*'Customer Info'!$F$19)),) -> 0 | AI52: =IF((OR($F$13=0,$F$13="none")),IF(W52=0,,IF(OR($E$13='Customer Info'!$F$20,$E$13=0),W52,(W52/$E$13)*'Customer Info'!$F$20)),) -> 0 | AJ52: =IF((OR($F$16=0,$F$16="none")),IF(X52=0,,IF(($E$16='Customer Info'!$H$17,$E$16=0),X52,(X52/$E$16)*'Customer Info'!$H$17)),) -> 0 | AK52: =IF((OR($F$17=0,$F$17="none")),IF(Y52=0,,IF(OR($E$17='Customer Info'!$H$18, $E$17=0),Y52,(Y52/$E$17)*'Customer Info'!$H$18)),) -> 0 | AL52: =IF((OR($F$18=0,$F$18="none")),IF(Z52=0,,IF(OR($E$18='Customer Info'!$H$19, $E$18=0),Z52,(Z52/$E$18)*'Customer Info'!$H$19)),) -> 0 | AM52: =IF((OR($F$19=0,$F$19="none")),IF(AA52=0,,IF(OR($E$19='Customer Info'!$H$20,$E$19=0),AA52,(AA52/$E$19)*'Customer Info'!$H$20)),) -> 0 | AN52: 0 | AO52: 0 | AP52: =IF(E52="plate waste",,IF('Customer Info'!$M$18=0,'Log Sheet'!AO52,'Customer Info'!$M$18*'Log Sheet'!AO52)) -> 0 | AQ52: =IF(E52="plate waste",IF(C52="dining area1",IF('Customer Info'!$L$30=0,AO52*'Customer Info'!$M$18,AO52*'Customer Info'!$L$30),IF(C52="dining area2",IF('Customer Info'!$L$31=0,AO52*'Customer Info'!$M$18,AO52*'Customer Info'!$L$31),IF(C52="Dining Area3",IF('Customer Info'!$L$32=0,AO52*'Customer Info'!$M$18,AO52*'Customer Info'!$L$32),))),) -> 0 | AR52: 0 | AS52: =IF($F$4="lunch",IF(Q52=0,,(Q52/$E$5)*'Customer Info'!$D$17),) -> 0 | AT52: =IF($F$4="dinner",IF(R52=0,,(R52/$E$6)*'Customer Info'!$D$17),) -> 0 | AU52: =IF($F$4="other",IF(S52=0,,(S52/$E$7)*'Customer Info'!$D$17),) -> 0 | AV52: 0 | AW52: =IF($F$5="breakfast",IF(P52=0,,(P52/$E$4)*'Customer Info'!$D$18),) -> 0 | AX52: =IF($F$5="dinner",IF(R52=0,,(R52/$E$6)*'Customer Info'!$D$18),) -> 0 | AY52: =IF($F$5="other",IF(S52=0,,(S52/$E$7)*'Customer Info'!$D$18),) -> 0 | AZ52: 0 | BA52: =IF($F$6="breakfast",IF(P52=0,,(P52/$E$4)*'Customer Info'!$D$19),) -> 0 | BB52: =IF($F$6="lunch",IF(Q52=0,,(Q52/$E$5)*'Customer Info'!$D$19),) -> 0 | BC52: =IF($F$6="other",IF(S52=0,,(S52/$E$7)*'Customer Info'!$D$19),) -> 0 | BD52: 0 | BE52: =IF($F$7="breakfast",IF(P52=0,,(P52/$E$4)*'Customer Info'!$D$20),) -> 0 | BF52: =IF($F$7="lunch",IF(Q52=0,,(Q52/$E$5)*'Customer Info'!$D$20),) -> 0 | BG52: =IF($F$7="dinner",IF(R52=0,,(R52/$E$6)*'Customer Info'!$D$20),) -> 0 | BH52: 0 | BI52: =IF($F$10="lunch",IF(U52=0,,(U52/$E$11)*'Customer Info'!$F$17),) -> 0 | BJ52: =IF($F$10="dinner",IF(V52=0,,(V52/$E$12)*'Customer Info'!$F$17),) -> 0 | BK52: =IF($F$10="other",IF(W52=0,,(W52/$E$13)*'Customer Info'!$F$17),) -> 0 | BL52: 0 | BM52: =IF($F$11="breakfast",IF(T52=0,,(T52/$E$10)*'Customer Info'!$F$18),) -> 0 | BN52: =IF($F$11="dinner",IF(V52=0,,(V52/$E$12)*'Customer Info'!$F$18),) -> 0 | BO52: =IF($F$11="other",IF(W52=0,,(W52/$E$13)*'Customer Info'!$F$18),) -> 0 | BP52: 0 | BQ52: =IF($F$12="breakfast",IF(T52=0,,(T52/$E$10)*'Customer Info'!$F$19),) -> 0 | BR52: =IF($F$12="lunch",IF(U52=0,,(U52/$E$11)*'Customer Info'!$F$19),) -> 0 | BS52: =IF($F$12="other",IF(W52=0,,(W52/$E$13)*'Customer Info'!$F$19),) -> 0 | BT52: 0 | BU52: =IF($F$13="breakfast",IF(T52=0,,(T52/$E$10)*'Customer Info'!$F$20),) -> 0 | BV52: =IF($F$13="lunch",IF(U52=0,,(U52/$E$11)*'Customer Info'!$F$20),) -> 0 | BW52: =IF($F$13="dinner",IF(V52=0,,(V52/$E$12)*'Customer Info'!$F$20),) -> 0 | BX52: 0 | BY52: =IF($F$16="lunch",IF(Y52=0,,(Y52/$E$17)*'Customer Info'!$H$17),) -> 0 | BZ52: =IF($F$16="dinner",IF(Z52=0,,(Z52/$E$18)*'Customer Info'!$H$17),) -> 0 | CA52: =IF($F$16="other",IF(AA52=0,,(AA52/$E$19)*'Customer Info'!$H$17),) -> 0 | CB52: 0 | CC52: =IF($F$17="breakfast",IF(X52=0,,(X52/$E$16)*'Customer Info'!$H$18),) -> 0 | CD52: =IF($F$17="dinner",IF(Z52=0,,(Z52/$E$18)*'Customer Info'!$H$18),) -> 0 | CE52: =IF($F$17="other",IF(AA52=0,,(AA52/$E$19)*'Customer Info'!$H$18),) -> 0 | CF52: 0 | CG52: =IF($F$18="breakfast",IF(X52=0,,(X52/$E$16)*'Customer Info'!$H$19),) -> 0 | CH52: =IF($F$18="lunch",IF(Y52=0,,(Y52/$E$17)*'Customer Info'!$H$19),) -> 0 | CI52: =IF($F$18="other",IF(AA52=0,,(AA52/$E$19)*'Customer Info'!$H$19),) -> 0 | CJ52: 0 | CK52: =IF($F$19="breakfast",IF(X52=0,,(X52/$E$16)*'Customer Info'!$H$20),) -> 0 | CL52: =IF($F$19="lunch",IF(Y52=0,,(Y52/$E$17)*'Customer Info'!$H$20),) -> 0 | CM52: =IF($F$19="dinner",IF(Z52=0,,(Z52/$E$18)*'Customer Info'!$H$20),) -> 0 | CN52: 0 | CO52: 0 | CP52: 0
J53: 0 | K53: 0 | L53: 0 | M53: 0 | N53: 0 | O53: 0 | P53: 0 | Q53: 0 | R53: 0 | S53: 0 | T53: 0 | U53: 0 | V53: 0 | W53: 0 | X53: 0 | Y53: 0 | Z53: 0 | AA53: 0 | AB53: =IF((OR($F$4=0,$F$4="none")),IF(P53=0,,IF(OR($E$4='Customer Info'!$D$17,$E$4=0),P53,(P53/$E$4)*'Customer Info'!$D$17)),) -> 0 | AC53: =IF((OR($F$5=0,$F$5="none")),IF(Q53=0,,IF(OR($E$5='Customer Info'!$D$18,$E$5=0),Q53,(Q53/$E$5)*'Customer Info'!$D$18)),) -> 0 | AD53: =IF((OR($F$6=0,$F$6="none")),IF(R53=0,,IF(OR($E$6='Customer Info'!$D$19,$E$6=0),R53,(R53/$E$6)*'Customer Info'!$D$19)),) -> 0 | AE53: =IF((OR($F$7=0,$F$7="none")),IF(S53=0,,IF(OR($E$7='Customer Info'!$D$20,$E$7=0),S53,(S53/$E$7)*'Customer Info'!$D$20)),) -> 0 | AF53: =IF((OR($F$10=0,$F$10="none")),IF(T53=0,,IF(OR($E$10='Customer Info'!$F$17,$E$10=0),T53,(T53/$E$10)*'Customer Info'!$F$17)),) -> 0 | AG53: =IF((OR($F$11=0,$F$11="none")),IF(U53=0,,IF(OR($E$11='Customer Info'!$F$18,$E$11=0),U53,(U53/$E$11)*'Customer Info'!$F$18)),) -> 0 | AH53: =IF((OR($F$12=0,$F$12="none")),IF(V53=0,,IF(OR($E$12='Customer Info'!$F$19,$E$12=0),V53,(V53/$E$12)*'Customer Info'!$F$19)),) -> 0 | AI53: =IF((OR($F$13=0,$F$13="none")),IF(W53=0,,IF(OR($E$13='Customer Info'!$F$20,$E$13=0),W53,(W53/$E$13)*'Customer Info'!$F$20)),) -> 0 | AJ53: =IF((OR($F$16=0,$F$16="none")),IF(X53=0,,IF(($E$16='Customer Info'!$H$17,$E$16=0),X53,(X53/$E$16)*'Customer Info'!$H$17)),) -> 0 | AK53: =IF((OR($F$17=0,$F$17="none")),IF(Y53=0,,IF(OR($E$17='Customer Info'!$H$18, $E$17=0),Y53,(Y53/$E$17)*'Customer Info'!$H$18)),) -> 0 | AL53: =IF((OR($F$18=0,$F$18="none")),IF(Z53=0,,IF(OR($E$18='Customer Info'!$H$19, $E$18=0),Z53,(Z53/$E$18)*'Customer Info'!$H$19)),) -> 0 | AM53: =IF((OR($F$19=0,$F$19="none")),IF(AA53=0,,IF(OR($E$19='Customer Info'!$H$20,$E$19=0),AA53,(AA53/$E$19)*'Customer Info'!$H$20)),) -> 0 | AN53: 0 | AO53: 0 | AP53: =IF(E53="plate waste",,IF('Customer Info'!$M$18=0,'Log Sheet'!AO53,'Customer Info'!$M$18*'Log Sheet'!AO53)) -> 0 | AQ53: =IF(E53="plate waste",IF(C53="dining area1",IF('Customer Info'!$L$30=0,AO53*'Customer Info'!$M$18,AO53*'Customer Info'!$L$30),IF(C53="dining area2",IF('Customer Info'!$L$31=0,AO53*'Customer Info'!$M$18,AO53*'Customer Info'!$L$31),IF(C53="Dining Area3",IF('Customer Info'!$L$32=0,AO53*'Customer Info'!$M$18,AO53*'Customer Info'!$L$32),))),) -> 0 | AR53: 0 | AS53: =IF($F$4="lunch",IF(Q53=0,,(Q53/$E$5)*'Customer Info'!$D$17),) -> 0 | AT53: =IF($F$4="dinner",IF(R53=0,,(R53/$E$6)*'Customer Info'!$D$17),) -> 0 | AU53: =IF($F$4="other",IF(S53=0,,(S53/$E$7)*'Customer Info'!$D$17),) -> 0 | AV53: 0 | AW53: =IF($F$5="breakfast",IF(P53=0,,(P53/$E$4)*'Customer Info'!$D$18),) -> 0 | AX53: =IF($F$5="dinner",IF(R53=0,,(R53/$E$6)*'Customer Info'!$D$18),) -> 0 | AY53: =IF($F$5="other",IF(S53=0,,(S53/$E$7)*'Customer Info'!$D$18),) -> 0 | AZ53: 0 | BA53: =IF($F$6="breakfast",IF(P53=0,,(P53/$E$4)*'Customer Info'!$D$19),) -> 0 | BB53: =IF($F$6="lunch",IF(Q53=0,,(Q53/$E$5)*'Customer Info'!$D$19),) -> 0 | BC53: =IF($F$6="other",IF(S53=0,,(S53/$E$7)*'Customer Info'!$D$19),) -> 0 | BD53: 0 | BE53: =IF($F$7="breakfast",IF(P53=0,,(P53/$E$4)*'Customer Info'!$D$20),) -> 0 | BF53: =IF($F$7="lunch",IF(Q53=0,,(Q53/$E$5)*'Customer Info'!$D$20),) -> 0 | BG53: =IF($F$7="dinner",IF(R53=0,,(R53/$E$6)*'Customer Info'!$D$20),) -> 0 | BH53: 0 | BI53: =IF($F$10="lunch",IF(U53=0,,(U53/$E$11)*'Customer Info'!$F$17),) -> 0 | BJ53: =IF($F$10="dinner",IF(V53=0,,(V53/$E$12)*'Customer Info'!$F$17),) -> 0 | BK53: =IF($F$10="other",IF(W53=0,,(W53/$E$13)*'Customer Info'!$F$17),) -> 0 | BL53: 0 | BM53: =IF($F$11="breakfast",IF(T53=0,,(T53/$E$10)*'Customer Info'!$F$18),) -> 0 | BN53: =IF($F$11="dinner",IF(V53=0,,(V53/$E$12)*'Customer Info'!$F$18),) -> 0 | BO53: =IF($F$11="other",IF(W53=0,,(W53/$E$13)*'Customer Info'!$F$18),) -> 0 | BP53: 0 | BQ53: =IF($F$12="breakfast",IF(T53=0,,(T53/$E$10)*'Customer Info'!$F$19),) -> 0 | BR53: =IF($F$12="lunch",IF(U53=0,,(U53/$E$11)*'Customer Info'!$F$19),) -> 0 | BS53: =IF($F$12="other",IF(W53=0,,(W53/$E$13)*'Customer Info'!$F$19),) -> 0 | BT53: 0 | BU53: =IF($F$13="breakfast",IF(T53=0,,(T53/$E$10)*'Customer Info'!$F$20),) -> 0 | BV53: =IF($F$13="lunch",IF(U53=0,,(U53/$E$11)*'Customer Info'!$F$20),) -> 0 | BW53: =IF($F$13="dinner",IF(V53=0,,(V53/$E$12)*'Customer Info'!$F$20),) -> 0 | BX53: 0 | BY53: =IF($F$16="lunch",IF(Y53=0,,(Y53/$E$17)*'Customer Info'!$H$17),) -> 0 | BZ53: =IF($F$16="dinner",IF(Z53=0,,(Z53/$E$18)*'Customer Info'!$H$17),) -> 0 | CA53: =IF($F$16="other",IF(AA53=0,,(AA53/$E$19)*'Customer Info'!$H$17),) -> 0 | CB53: 0 | CC53: =IF($F$17="breakfast",IF(X53=0,,(X53/$E$16)*'Customer Info'!$H$18),) -> 0 | CD53: =IF($F$17="dinner",IF(Z53=0,,(Z53/$E$18)*'Customer Info'!$H$18),) -> 0 | CE53: =IF($F$17="other",IF(AA53=0,,(AA53/$E$19)*'Customer Info'!$H$18),) -> 0 | CF53: 0 | CG53: =IF($F$18="breakfast",IF(X53=0,,(X53/$E$16)*'Customer Info'!$H$19),) -> 0 | CH53: =IF($F$18="lunch",IF(Y53=0,,(Y53/$E$17)*'Customer Info'!$H$19),) -> 0 | CI53: =IF($F$18="other",IF(AA53=0,,(AA53/$E$19)*'Customer Info'!$H$19),) -> 0 | CJ53: 0 | CK53: =IF($F$19="breakfast",IF(X53=0,,(X53/$E$16)*'Customer Info'!$H$20),) -> 0 | CL53: =IF($F$19="lunch",IF(Y53=0,,(Y53/$E$17)*'Customer Info'!$H$20),) -> 0 | CM53: =IF($F$19="dinner",IF(Z53=0,,(Z53/$E$18)*'Customer Info'!$H$20),) -> 0 | CN53: 0 | CO53: 0 | CP53: 0
J54: 0 | K54: 0 | L54: 0 | M54: 0 | N54: 0 | O54: 0 | P54: 0 | Q54: 0 | R54: 0 | S54: 0 | T54: 0 | U54: 0 | V54: 0 | W54: 0 | X54: 0 | Y54: 0 | Z54: 0 | AA54: 0 | AB54: =IF((OR($F$4=0,$F$4="none")),IF(P54=0,,IF(OR($E$4='Customer Info'!$D$17,$E$4=0),P54,(P54/$E$4)*'Customer Info'!$D$17)),) -> 0 | AC54: =IF((OR($F$5=0,$F$5="none")),IF(Q54=0,,IF(OR($E$5='Customer Info'!$D$18,$E$5=0),Q54,(Q54/$E$5)*'Customer Info'!$D$18)),) -> 0 | AD54: =IF((OR($F$6=0,$F$6="none")),IF(R54=0,,IF(OR($E$6='Customer Info'!$D$19,$E$6=0),R54,(R54/$E$6)*'Customer Info'!$D$19)),) -> 0 | AE54: =IF((OR($F$7=0,$F$7="none")),IF(S54=0,,IF(OR($E$7='Customer Info'!$D$20,$E$7=0),S54,(S54/$E$7)*'Customer Info'!$D$20)),) -> 0 | AF54: =IF((OR($F$10=0,$F$10="none")),IF(T54=0,,IF(OR($E$10='Customer Info'!$F$17,$E$10=0),T54,(T54/$E$10)*'Customer Info'!$F$17)),) -> 0 | AG54: =IF((OR($F$11=0,$F$11="none")),IF(U54=0,,IF(OR($E$11='Customer Info'!$F$18,$E$11=0),U54,(U54/$E$11)*'Customer Info'!$F$18)),) -> 0 | AH54: =IF((OR($F$12=0,$F$12="none")),IF(V54=0,,IF(OR($E$12='Customer Info'!$F$19,$E$12=0),V54,(V54/$E$12)*'Customer Info'!$F$19)),) -> 0 | AI54: =IF((OR($F$13=0,$F$13="none")),IF(W54=0,,IF(OR($E$13='Customer Info'!$F$20,$E$13=0),W54,(W54/$E$13)*'Customer Info'!$F$20)),) -> 0 | AJ54: =IF((OR($F$16=0,$F$16="none")),IF(X54=0,,IF(($E$16='Customer Info'!$H$17,$E$16=0),X54,(X54/$E$16)*'Customer Info'!$H$17)),) -> 0 | AK54: =IF((OR($F$17=0,$F$17="none")),IF(Y54=0,,IF(OR($E$17='Customer Info'!$H$18, $E$17=0),Y54,(Y54/$E$17)*'Customer Info'!$H$18)),) -> 0 | AL54: =IF((OR($F$18=0,$F$18="none")),IF(Z54=0,,IF(OR($E$18='Customer Info'!$H$19, $E$18=0),Z54,(Z54/$E$18)*'Customer Info'!$H$19)),) -> 0 | AM54: =IF((OR($F$19=0,$F$19="none")),IF(AA54=0,,IF(OR($E$19='Customer Info'!$H$20,$E$19=0),AA54,(AA54/$E$19)*'Customer Info'!$H$20)),) -> 0 | AN54: 0 | AO54: 0 | AP54: =IF(E54="plate waste",,IF('Customer Info'!$M$18=0,'Log Sheet'!AO54,'Customer Info'!$M$18*'Log Sheet'!AO54)) -> 0 | AQ54: =IF(E54="plate waste",IF(C54="dining area1",IF('Customer Info'!$L$30=0,AO54*'Customer Info'!$M$18,AO54*'Customer Info'!$L$30),IF(C54="dining area2",IF('Customer Info'!$L$31=0,AO54*'Customer Info'!$M$18,AO54*'Customer Info'!$L$31),IF(C54="Dining Area3",IF('Customer Info'!$L$32=0,AO54*'Customer Info'!$M$18,AO54*'Customer Info'!$L$32),))),) -> 0 | AR54: 0 | AS54: =IF($F$4="lunch",IF(Q54=0,,(Q54/$E$5)*'Customer Info'!$D$17),) -> 0 | AT54: =IF($F$4="dinner",IF(R54=0,,(R54/$E$6)*'Customer Info'!$D$17),) -> 0 | AU54: =IF($F$4="other",IF(S54=0,,(S54/$E$7)*'Customer Info'!$D$17),) -> 0 | AV54: 0 | AW54: =IF($F$5="breakfast",IF(P54=0,,(P54/$E$4)*'Customer Info'!$D$18),) -> 0 | AX54: =IF($F$5="dinner",IF(R54=0,,(R54/$E$6)*'Customer Info'!$D$18),) -> 0 | AY54: =IF($F$5="other",IF(S54=0,,(S54/$E$7)*'Customer Info'!$D$18),) -> 0 | AZ54: 0 | BA54: =IF($F$6="breakfast",IF(P54=0,,(P54/$E$4)*'Customer Info'!$D$19),) -> 0 | BB54: =IF($F$6="lunch",IF(Q54=0,,(Q54/$E$5)*'Customer Info'!$D$19),) -> 0 | BC54: =IF($F$6="other",IF(S54=0,,(S54/$E$7)*'Customer Info'!$D$19),) -> 0 | BD54: 0 | BE54: =IF($F$7="breakfast",IF(P54=0,,(P54/$E$4)*'Customer Info'!$D$20),) -> 0 | BF54: =IF($F$7="lunch",IF(Q54=0,,(Q54/$E$5)*'Customer Info'!$D$20),) -> 0 | BG54: =IF($F$7="dinner",IF(R54=0,,(R54/$E$6)*'Customer Info'!$D$20),) -> 0 | BH54: 0 | BI54: =IF($F$10="lunch",IF(U54=0,,(U54/$E$11)*'Customer Info'!$F$17),) -> 0 | BJ54: =IF($F$10="dinner",IF(V54=0,,(V54/$E$12)*'Customer Info'!$F$17),) -> 0 | BK54: =IF($F$10="other",IF(W54=0,,(W54/$E$13)*'Customer Info'!$F$17),) -> 0 | BL54: 0 | BM54: =IF($F$11="breakfast",IF(T54=0,,(T54/$E$10)*'Customer Info'!$F$18),) -> 0 | BN54: =IF($F$11="dinner",IF(V54=0,,(V54/$E$12)*'Customer Info'!$F$18),) -> 0 | BO54: =IF($F$11="other",IF(W54=0,,(W54/$E$13)*'Customer Info'!$F$18),) -> 0 | BP54: 0 | BQ54: =IF($F$12="breakfast",IF(T54=0,,(T54/$E$10)*'Customer Info'!$F$19),) -> 0 | BR54: =IF($F$12="lunch",IF(U54=0,,(U54/$E$11)*'Customer Info'!$F$19),) -> 0 | BS54: =IF($F$12="other",IF(W54=0,,(W54/$E$13)*'Customer Info'!$F$19),) -> 0 | BT54: 0 | BU54: =IF($F$13="breakfast",IF(T54=0,,(T54/$E$10)*'Customer Info'!$F$20),) -> 0 | BV54: =IF($F$13="lunch",IF(U54=0,,(U54/$E$11)*'Customer Info'!$F$20),) -> 0 | BW54: =IF($F$13="dinner",IF(V54=0,,(V54/$E$12)*'Customer Info'!$F$20),) -> 0 | BX54: 0 | BY54: =IF($F$16="lunch",IF(Y54=0,,(Y54/$E$17)*'Customer Info'!$H$17),) -> 0 | BZ54: =IF($F$16="dinner",IF(Z54=0,,(Z54/$E$18)*'Customer Info'!$H$17),) -> 0 | CA54: =IF($F$16="other",IF(AA54=0,,(AA54/$E$19)*'Customer Info'!$H$17),) -> 0 | CB54: 0 | CC54: =IF($F$17="breakfast",IF(X54=0,,(X54/$E$16)*'Customer Info'!$H$18),) -> 0 | CD54: =IF($F$17="dinner",IF(Z54=0,,(Z54/$E$18)*'Customer Info'!$H$18),) -> 0 | CE54: =IF($F$17="other",IF(AA54=0,,(AA54/$E$19)*'Customer Info'!$H$18),) -> 0 | CF54: 0 | CG54: =IF($F$18="breakfast",IF(X54=0,,(X54/$E$16)*'Customer Info'!$H$19),) -> 0 | CH54: =IF($F$18="lunch",IF(Y54=0,,(Y54/$E$17)*'Customer Info'!$H$19),) -> 0 | CI54: =IF($F$18="other",IF(AA54=0,,(AA54/$E$19)*'Customer Info'!$H$19),) -> 0 | CJ54: 0 | CK54: =IF($F$19="breakfast",IF(X54=0,,(X54/$E$16)*'Customer Info'!$H$20),) -> 0 | CL54: =IF($F$19="lunch",IF(Y54=0,,(Y54/$E$17)*'Customer Info'!$H$20),) -> 0 | CM54: =IF($F$19="dinner",IF(Z54=0,,(Z54/$E$18)*'Customer Info'!$H$20),) -> 0 | CN54: 0 | CO54: 0 | CP54: 0
J55: 0 | K55: 0 | L55: 0 | M55: 0 | N55: 0 | O55: 0 | P55: 0 | Q55: 0 | R55: 0 | S55: 0 | T55: 0 | U55: 0 | V55: 0 | W55: 0 | X55: 0 | Y55: 0 | Z55: 0 | AA55: 0 | AB55: =IF((OR($F$4=0,$F$4="none")),IF(P55=0,,IF(OR($E$4='Customer Info'!$D$17,$E$4=0),P55,(P55/$E$4)*'Customer Info'!$D$17)),) -> 0 | AC55: =IF((OR($F$5=0,$F$5="none")),IF(Q55=0,,IF(OR($E$5='Customer Info'!$D$18,$E$5=0),Q55,(Q55/$E$5)*'Customer Info'!$D$18)),) -> 0 | AD55: =IF((OR($F$6=0,$F$6="none")),IF(R55=0,,IF(OR($E$6='Customer Info'!$D$19,$E$6=0),R55,(R55/$E$6)*'Customer Info'!$D$19)),) -> 0 | AE55: =IF((OR($F$7=0,$F$7="none")),IF(S55=0,,IF(OR($E$7='Customer Info'!$D$20,$E$7=0),S55,(S55/$E$7)*'Customer Info'!$D$20)),) -> 0 | AF55: =IF((OR($F$10=0,$F$10="none")),IF(T55=0,,IF(OR($E$10='Customer Info'!$F$17,$E$10=0),T55,(T55/$E$10)*'Customer Info'!$F$17)),) -> 0 | AG55: =IF((OR($F$11=0,$F$11="none")),IF(U55=0,,IF(OR($E$11='Customer Info'!$F$18,$E$11=0),U55,(U55/$E$11)*'Customer Info'!$F$18)),) -> 0 | AH55: =IF((OR($F$12=0,$F$12="none")),IF(V55=0,,IF(OR($E$12='Customer Info'!$F$19,$E$12=0),V55,(V55/$E$12)*'Customer Info'!$F$19)),) -> 0 | AI55: =IF((OR($F$13=0,$F$13="none")),IF(W55=0,,IF(OR($E$13='Customer Info'!$F$20,$E$13=0),W55,(W55/$E$13)*'Customer Info'!$F$20)),) -> 0 | AJ55: =IF((OR($F$16=0,$F$16="none")),IF(X55=0,,IF(($E$16='Customer Info'!$H$17,$E$16=0),X55,(X55/$E$16)*'Customer Info'!$H$17)),) -> 0 | AK55: =IF((OR($F$17=0,$F$17="none")),IF(Y55=0,,IF(OR($E$17='Customer Info'!$H$18, $E$17=0),Y55,(Y55/$E$17)*'Customer Info'!$H$18)),) -> 0 | AL55: =IF((OR($F$18=0,$F$18="none")),IF(Z55=0,,IF(OR($E$18='Customer Info'!$H$19, $E$18=0),Z55,(Z55/$E$18)*'Customer Info'!$H$19)),) -> 0 | AM55: =IF((OR($F$19=0,$F$19="none")),IF(AA55=0,,IF(OR($E$19='Customer Info'!$H$20,$E$19=0),AA55,(AA55/$E$19)*'Customer Info'!$H$20)),) -> 0 | AN55: 0 | AO55: 0 | AP55: =IF(E55="plate waste",,IF('Customer Info'!$M$18=0,'Log Sheet'!AO55,'Customer Info'!$M$18*'Log Sheet'!AO55)) -> 0 | AQ55: =IF(E55="plate waste",IF(C55="dining area1",IF('Customer Info'!$L$30=0,AO55*'Customer Info'!$M$18,AO55*'Customer Info'!$L$30),IF(C55="dining area2",IF('Customer Info'!$L$31=0,AO55*'Customer Info'!$M$18,AO55*'Customer Info'!$L$31),IF(C55="Dining Area3",IF('Customer Info'!$L$32=0,AO55*'Customer Info'!$M$18,AO55*'Customer Info'!$L$32),))),) -> 0 | AR55: 0 | AS55: =IF($F$4="lunch",IF(Q55=0,,(Q55/$E$5)*'Customer Info'!$D$17),) -> 0 | AT55: =IF($F$4="dinner",IF(R55=0,,(R55/$E$6)*'Customer Info'!$D$17),) -> 0 | AU55: =IF($F$4="other",IF(S55=0,,(S55/$E$7)*'Customer Info'!$D$17),) -> 0 | AV55: 0 | AW55: =IF($F$5="breakfast",IF(P55=0,,(P55/$E$4)*'Customer Info'!$D$18),) -> 0 | AX55: =IF($F$5="dinner",IF(R55=0,,(R55/$E$6)*'Customer Info'!$D$18),) -> 0 | AY55: =IF($F$5="other",IF(S55=0,,(S55/$E$7)*'Customer Info'!$D$18),) -> 0 | AZ55: 0 | BA55: =IF($F$6="breakfast",IF(P55=0,,(P55/$E$4)*'Customer Info'!$D$19),) -> 0 | BB55: =IF($F$6="lunch",IF(Q55=0,,(Q55/$E$5)*'Customer Info'!$D$19),) -> 0 | BC55: =IF($F$6="other",IF(S55=0,,(S55/$E$7)*'Customer Info'!$D$19),) -> 0 | BD55: 0 | BE55: =IF($F$7="breakfast",IF(P55=0,,(P55/$E$4)*'Customer Info'!$D$20),) -> 0 | BF55: =IF($F$7="lunch",IF(Q55=0,,(Q55/$E$5)*'Customer Info'!$D$20),) -> 0 | BG55: =IF($F$7="dinner",IF(R55=0,,(R55/$E$6)*'Customer Info'!$D$20),) -> 0 | BH55: 0 | BI55: =IF($F$10="lunch",IF(U55=0,,(U55/$E$11)*'Customer Info'!$F$17),) -> 0 | BJ55: =IF($F$10="dinner",IF(V55=0,,(V55/$E$12)*'Customer Info'!$F$17),) -> 0 | BK55: =IF($F$10="other",IF(W55=0,,(W55/$E$13)*'Customer Info'!$F$17),) -> 0 | BL55: 0 | BM55: =IF($F$11="breakfast",IF(T55=0,,(T55/$E$10)*'Customer Info'!$F$18),) -> 0 | BN55: =IF($F$11="dinner",IF(V55=0,,(V55/$E$12)*'Customer Info'!$F$18),) -> 0 | BO55: =IF($F$11="other",IF(W55=0,,(W55/$E$13)*'Customer Info'!$F$18),) -> 0 | BP55: 0 | BQ55: =IF($F$12="breakfast",IF(T55=0,,(T55/$E$10)*'Customer Info'!$F$19),) -> 0 | BR55: =IF($F$12="lunch",IF(U55=0,,(U55/$E$11)*'Customer Info'!$F$19),) -> 0 | BS55: =IF($F$12="other",IF(W55=0,,(W55/$E$13)*'Customer Info'!$F$19),) -> 0 | BT55: 0 | BU55: =IF($F$13="breakfast",IF(T55=0,,(T55/$E$10)*'Customer Info'!$F$20),) -> 0 | BV55: =IF($F$13="lunch",IF(U55=0,,(U55/$E$11)*'Customer Info'!$F$20),) -> 0 | BW55: =IF($F$13="dinner",IF(V55=0,,(V55/$E$12)*'Customer Info'!$F$20),) -> 0 | BX55: 0 | BY55: =IF($F$16="lunch",IF(Y55=0,,(Y55/$E$17)*'Customer Info'!$H$17),) -> 0 | BZ55: =IF($F$16="dinner",IF(Z55=0,,(Z55/$E$18)*'Customer Info'!$H$17),) -> 0 | CA55: =IF($F$16="other",IF(AA55=0,,(AA55/$E$19)*'Customer Info'!$H$17),) -> 0 | CB55: 0 | CC55: =IF($F$17="breakfast",IF(X55=0,,(X55/$E$16)*'Customer Info'!$H$18),) -> 0 | CD55: =IF($F$17="dinner",IF(Z55=0,,(Z55/$E$18)*'Customer Info'!$H$18),) -> 0 | CE55: =IF($F$17="other",IF(AA55=0,,(AA55/$E$19)*'Customer Info'!$H$18),) -> 0 | CF55: 0 | CG55: =IF($F$18="breakfast",IF(X55=0,,(X55/$E$16)*'Customer Info'!$H$19),) -> 0 | CH55: =IF($F$18="lunch",IF(Y55=0,,(Y55/$E$17)*'Customer Info'!$H$19),) -> 0 | CI55: =IF($F$18="other",IF(AA55=0,,(AA55/$E$19)*'Customer Info'!$H$19),) -> 0 | CJ55: 0 | CK55: =IF($F$19="breakfast",IF(X55=0,,(X55/$E$16)*'Customer Info'!$H$20),) -> 0 | CL55: =IF($F$19="lunch",IF(Y55=0,,(Y55/$E$17)*'Customer Info'!$H$20),) -> 0 | CM55: =IF($F$19="dinner",IF(Z55=0,,(Z55/$E$18)*'Customer Info'!$H$20),) -> 0 | CN55: 0 | CO55: 0 | CP55: 0
J56: 0 | K56: 0 | L56: 0 | M56: 0 | N56: 0 | O56: 0 | P56: 0 | Q56: 0 | R56: 0 | S56: 0 | T56: 0 | U56: 0 | V56: 0 | W56: 0 | X56: 0 | Y56: 0 | Z56: 0 | AA56: 0 | AB56: =IF((OR($F$4=0,$F$4="none")),IF(P56=0,,IF(OR($E$4='Customer Info'!$D$17,$E$4=0),P56,(P56/$E$4)*'Customer Info'!$D$17)),) -> 0 | AC56: =IF((OR($F$5=0,$F$5="none")),IF(Q56=0,,IF(OR($E$5='Customer Info'!$D$18,$E$5=0),Q56,(Q56/$E$5)*'Customer Info'!$D$18)),) -> 0 | AD56: =IF((OR($F$6=0,$F$6="none")),IF(R56=0,,IF(OR($E$6='Customer Info'!$D$19,$E$6=0),R56,(R56/$E$6)*'Customer Info'!$D$19)),) -> 0 | AE56: =IF((OR($F$7=0,$F$7="none")),IF(S56=0,,IF(OR($E$7='Customer Info'!$D$20,$E$7=0),S56,(S56/$E$7)*'Customer Info'!$D$20)),) -> 0 | AF56: =IF((OR($F$10=0,$F$10="none")),IF(T56=0,,IF(OR($E$10='Customer Info'!$F$17,$E$10=0),T56,(T56/$E$10)*'Customer Info'!$F$17)),) -> 0 | AG56: =IF((OR($F$11=0,$F$11="none")),IF(U56=0,,IF(OR($E$11='Customer Info'!$F$18,$E$11=0),U56,(U56/$E$11)*'Customer Info'!$F$18)),) -> 0 | AH56: =IF((OR($F$12=0,$F$12="none")),IF(V56=0,,IF(OR($E$12='Customer Info'!$F$19,$E$12=0),V56,(V56/$E$12)*'Customer Info'!$F$19)),) -> 0 | AI56: =IF((OR($F$13=0,$F$13="none")),IF(W56=0,,IF(OR($E$13='Customer Info'!$F$20,$E$13=0),W56,(W56/$E$13)*'Customer Info'!$F$20)),) -> 0 | AJ56: =IF((OR($F$16=0,$F$16="none")),IF(X56=0,,IF(($E$16='Customer Info'!$H$17,$E$16=0),X56,(X56/$E$16)*'Customer Info'!$H$17)),) -> 0 | AK56: =IF((OR($F$17=0,$F$17="none")),IF(Y56=0,,IF(OR($E$17='Customer Info'!$H$18, $E$17=0),Y56,(Y56/$E$17)*'Customer Info'!$H$18)),) -> 0 | AL56: =IF((OR($F$18=0,$F$18="none")),IF(Z56=0,,IF(OR($E$18='Customer Info'!$H$19, $E$18=0),Z56,(Z56/$E$18)*'Customer Info'!$H$19)),) -> 0 | AM56: =IF((OR($F$19=0,$F$19="none")),IF(AA56=0,,IF(OR($E$19='Customer Info'!$H$20,$E$19=0),AA56,(AA56/$E$19)*'Customer Info'!$H$20)),) -> 0 | AN56: 0 | AO56: 0 | AP56: =IF(E56="plate waste",,IF('Customer Info'!$M$18=0,'Log Sheet'!AO56,'Customer Info'!$M$18*'Log Sheet'!AO56)) -> 0 | AQ56: =IF(E56="plate waste",IF(C56="dining area1",IF('Customer Info'!$L$30=0,AO56*'Customer Info'!$M$18,AO56*'Customer Info'!$L$30),IF(C56="dining area2",IF('Customer Info'!$L$31=0,AO56*'Customer Info'!$M$18,AO56*'Customer Info'!$L$31),IF(C56="Dining Area3",IF('Customer Info'!$L$32=0,AO56*'Customer Info'!$M$18,AO56*'Customer Info'!$L$32),))),) -> 0 | AR56: 0 | AS56: =IF($F$4="lunch",IF(Q56=0,,(Q56/$E$5)*'Customer Info'!$D$17),) -> 0 | AT56: =IF($F$4="dinner",IF(R56=0,,(R56/$E$6)*'Customer Info'!$D$17),) -> 0 | AU56: =IF($F$4="other",IF(S56=0,,(S56/$E$7)*'Customer Info'!$D$17),) -> 0 | AV56: 0 | AW56: =IF($F$5="breakfast",IF(P56=0,,(P56/$E$4)*'Customer Info'!$D$18),) -> 0 | AX56: =IF($F$5="dinner",IF(R56=0,,(R56/$E$6)*'Customer Info'!$D$18),) -> 0 | AY56: =IF($F$5="other",IF(S56=0,,(S56/$E$7)*'Customer Info'!$D$18),) -> 0 | AZ56: 0 | BA56: =IF($F$6="breakfast",IF(P56=0,,(P56/$E$4)*'Customer Info'!$D$19),) -> 0 | BB56: =IF($F$6="lunch",IF(Q56=0,,(Q56/$E$5)*'Customer Info'!$D$19),) -> 0 | BC56: =IF($F$6="other",IF(S56=0,,(S56/$E$7)*'Customer Info'!$D$19),) -> 0 | BD56: 0 | BE56: =IF($F$7="breakfast",IF(P56=0,,(P56/$E$4)*'Customer Info'!$D$20),) -> 0 | BF56: =IF($F$7="lunch",IF(Q56=0,,(Q56/$E$5)*'Customer Info'!$D$20),) -> 0 | BG56: =IF($F$7="dinner",IF(R56=0,,(R56/$E$6)*'Customer Info'!$D$20),) -> 0 | BH56: 0 | BI56: =IF($F$10="lunch",IF(U56=0,,(U56/$E$11)*'Customer Info'!$F$17),) -> 0 | BJ56: =IF($F$10="dinner",IF(V56=0,,(V56/$E$12)*'Customer Info'!$F$17),) -> 0 | BK56: =IF($F$10="other",IF(W56=0,,(W56/$E$13)*'Customer Info'!$F$17),) -> 0 | BL56: 0 | BM56: =IF($F$11="breakfast",IF(T56=0,,(T56/$E$10)*'Customer Info'!$F$18),) -> 0 | BN56: =IF($F$11="dinner",IF(V56=0,,(V56/$E$12)*'Customer Info'!$F$18),) -> 0 | BO56: =IF($F$11="other",IF(W56=0,,(W56/$E$13)*'Customer Info'!$F$18),) -> 0 | BP56: 0 | BQ56: =IF($F$12="breakfast",IF(T56=0,,(T56/$E$10)*'Customer Info'!$F$19),) -> 0 | BR56: =IF($F$12="lunch",IF(U56=0,,(U56/$E$11)*'Customer Info'!$F$19),) -> 0 | BS56: =IF($F$12="other",IF(W56=0,,(W56/$E$13)*'Customer Info'!$F$19),) -> 0 | BT56: 0 | BU56: =IF($F$13="breakfast",IF(T56=0,,(T56/$E$10)*'Customer Info'!$F$20),) -> 0 | BV56: =IF($F$13="lunch",IF(U56=0,,(U56/$E$11)*'Customer Info'!$F$20),) -> 0 | BW56: =IF($F$13="dinner",IF(V56=0,,(V56/$E$12)*'Customer Info'!$F$20),) -> 0 | BX56: 0 | BY56: =IF($F$16="lunch",IF(Y56=0,,(Y56/$E$17)*'Customer Info'!$H$17),) -> 0 | BZ56: =IF($F$16="dinner",IF(Z56=0,,(Z56/$E$18)*'Customer Info'!$H$17),) -> 0 | CA56: =IF($F$16="other",IF(AA56=0,,(AA56/$E$19)*'Customer Info'!$H$17),) -> 0 | CB56: 0 | CC56: =IF($F$17="breakfast",IF(X56=0,,(X56/$E$16)*'Customer Info'!$H$18),) -> 0 | CD56: =IF($F$17="dinner",IF(Z56=0,,(Z56/$E$18)*'Customer Info'!$H$18),) -> 0 | CE56: =IF($F$17="other",IF(AA56=0,,(AA56/$E$19)*'Customer Info'!$H$18),) -> 0 | CF56: 0 | CG56: =IF($F$18="breakfast",IF(X56=0,,(X56/$E$16)*'Customer Info'!$H$19),) -> 0 | CH56: =IF($F$18="lunch",IF(Y56=0,,(Y56/$E$17)*'Customer Info'!$H$19),) -> 0 | CI56: =IF($F$18="other",IF(AA56=0,,(AA56/$E$19)*'Customer Info'!$H$19),) -> 0 | CJ56: 0 | CK56: =IF($F$19="breakfast",IF(X56=0,,(X56/$E$16)*'Customer Info'!$H$20),) -> 0 | CL56: =IF($F$19="lunch",IF(Y56=0,,(Y56/$E$17)*'Customer Info'!$H$20),) -> 0 | CM56: =IF($F$19="dinner",IF(Z56=0,,(Z56/$E$18)*'Customer Info'!$H$20),) -> 0 | CN56: 0 | CO56: 0 | CP56: 0
J57: 0 | K57: 0 | L57: 0 | M57: 0 | N57: 0 | O57: 0 | P57: 0 | Q57: 0 | R57: 0 | S57: 0 | T57: 0 | U57: 0 | V57: 0 | W57: 0 | X57: 0 | Y57: 0 | Z57: 0 | AA57: 0 | AB57: =IF((OR($F$4=0,$F$4="none")),IF(P57=0,,IF(OR($E$4='Customer Info'!$D$17,$E$4=0),P57,(P57/$E$4)*'Customer Info'!$D$17)),) -> 0 | AC57: =IF((OR($F$5=0,$F$5="none")),IF(Q57=0,,IF(OR($E$5='Customer Info'!$D$18,$E$5=0),Q57,(Q57/$E$5)*'Customer Info'!$D$18)),) -> 0 | AD57: =IF((OR($F$6=0,$F$6="none")),IF(R57=0,,IF(OR($E$6='Customer Info'!$D$19,$E$6=0),R57,(R57/$E$6)*'Customer Info'!$D$19)),) -> 0 | AE57: =IF((OR($F$7=0,$F$7="none")),IF(S57=0,,IF(OR($E$7='Customer Info'!$D$20,$E$7=0),S57,(S57/$E$7)*'Customer Info'!$D$20)),) -> 0 | AF57: =IF((OR($F$10=0,$F$10="none")),IF(T57=0,,IF(OR($E$10='Customer Info'!$F$17,$E$10=0),T57,(T57/$E$10)*'Customer Info'!$F$17)),) -> 0 | AG57: =IF((OR($F$11=0,$F$11="none")),IF(U57=0,,IF(OR($E$11='Customer Info'!$F$18,$E$11=0),U57,(U57/$E$11)*'Customer Info'!$F$18)),) -> 0 | AH57: =IF((OR($F$12=0,$F$12="none")),IF(V57=0,,IF(OR($E$12='Customer Info'!$F$19,$E$12=0),V57,(V57/$E$12)*'Customer Info'!$F$19)),) -> 0 | AI57: =IF((OR($F$13=0,$F$13="none")),IF(W57=0,,IF(OR($E$13='Customer Info'!$F$20,$E$13=0),W57,(W57/$E$13)*'Customer Info'!$F$20)),) -> 0 | AJ57: =IF((OR($F$16=0,$F$16="none")),IF(X57=0,,IF(($E$16='Customer Info'!$H$17,$E$16=0),X57,(X57/$E$16)*'Customer Info'!$H$17)),) -> 0 | AK57: =IF((OR($F$17=0,$F$17="none")),IF(Y57=0,,IF(OR($E$17='Customer Info'!$H$18, $E$17=0),Y57,(Y57/$E$17)*'Customer Info'!$H$18)),) -> 0 | AL57: =IF((OR($F$18=0,$F$18="none")),IF(Z57=0,,IF(OR($E$18='Customer Info'!$H$19, $E$18=0),Z57,(Z57/$E$18)*'Customer Info'!$H$19)),) -> 0 | AM57: =IF((OR($F$19=0,$F$19="none")),IF(AA57=0,,IF(OR($E$19='Customer Info'!$H$20,$E$19=0),AA57,(AA57/$E$19)*'Customer Info'!$H$20)),) -> 0 | AN57: 0 | AO57: 0 | AP57: =IF(E57="plate waste",,IF('Customer Info'!$M$18=0,'Log Sheet'!AO57,'Customer Info'!$M$18*'Log Sheet'!AO57)) -> 0 | AQ57: =IF(E57="plate waste",IF(C57="dining area1",IF('Customer Info'!$L$30=0,AO57*'Customer Info'!$M$18,AO57*'Customer Info'!$L$30),IF(C57="dining area2",IF('Customer Info'!$L$31=0,AO57*'Customer Info'!$M$18,AO57*'Customer Info'!$L$31),IF(C57="Dining Area3",IF('Customer Info'!$L$32=0,AO57*'Customer Info'!$M$18,AO57*'Customer Info'!$L$32),))),) -> 0 | AR57: 0 | AS57: =IF($F$4="lunch",IF(Q57=0,,(Q57/$E$5)*'Customer Info'!$D$17),) -> 0 | AT57: =IF($F$4="dinner",IF(R57=0,,(R57/$E$6)*'Customer Info'!$D$17),) -> 0 | AU57: =IF($F$4="other",IF(S57=0,,(S57/$E$7)*'Customer Info'!$D$17),) -> 0 | AV57: 0 | AW57: =IF($F$5="breakfast",IF(P57=0,,(P57/$E$4)*'Customer Info'!$D$18),) -> 0 | AX57: =IF($F$5="dinner",IF(R57=0,,(R57/$E$6)*'Customer Info'!$D$18),) -> 0 | AY57: =IF($F$5="other",IF(S57=0,,(S57/$E$7)*'Customer Info'!$D$18),) -> 0 | AZ57: 0 | BA57: =IF($F$6="breakfast",IF(P57=0,,(P57/$E$4)*'Customer Info'!$D$19),) -> 0 | BB57: =IF($F$6="lunch",IF(Q57=0,,(Q57/$E$5)*'Customer Info'!$D$19),) -> 0 | BC57: =IF($F$6="other",IF(S57=0,,(S57/$E$7)*'Customer Info'!$D$19),) -> 0 | BD57: 0 | BE57: =IF($F$7="breakfast",IF(P57=0,,(P57/$E$4)*'Customer Info'!$D$20),) -> 0 | BF57: =IF($F$7="lunch",IF(Q57=0,,(Q57/$E$5)*'Customer Info'!$D$20),) -> 0 | BG57: =IF($F$7="dinner",IF(R57=0,,(R57/$E$6)*'Customer Info'!$D$20),) -> 0 | BH57: 0 | BI57: =IF($F$10="lunch",IF(U57=0,,(U57/$E$11)*'Customer Info'!$F$17),) -> 0 | BJ57: =IF($F$10="dinner",IF(V57=0,,(V57/$E$12)*'Customer Info'!$F$17),) -> 0 | BK57: =IF($F$10="other",IF(W57=0,,(W57/$E$13)*'Customer Info'!$F$17),) -> 0 | BL57: 0 | BM57: =IF($F$11="breakfast",IF(T57=0,,(T57/$E$10)*'Customer Info'!$F$18),) -> 0 | BN57: =IF($F$11="dinner",IF(V57=0,,(V57/$E$12)*'Customer Info'!$F$18),) -> 0 | BO57: =IF($F$11="other",IF(W57=0,,(W57/$E$13)*'Customer Info'!$F$18),) -> 0 | BP57: 0 | BQ57: =IF($F$12="breakfast",IF(T57=0,,(T57/$E$10)*'Customer Info'!$F$19),) -> 0 | BR57: =IF($F$12="lunch",IF(U57=0,,(U57/$E$11)*'Customer Info'!$F$19),) -> 0 | BS57: =IF($F$12="other",IF(W57=0,,(W57/$E$13)*'Customer Info'!$F$19),) -> 0 | BT57: 0 | BU57: =IF($F$13="breakfast",IF(T57=0,,(T57/$E$10)*'Customer Info'!$F$20),) -> 0 | BV57: =IF($F$13="lunch",IF(U57=0,,(U57/$E$11)*'Customer Info'!$F$20),) -> 0 | BW57: =IF($F$13="dinner",IF(V57=0,,(V57/$E$12)*'Customer Info'!$F$20),) -> 0 | BX57: 0 | BY57: =IF($F$16="lunch",IF(Y57=0,,(Y57/$E$17)*'Customer Info'!$H$17),) -> 0 | BZ57: =IF($F$16="dinner",IF(Z57=0,,(Z57/$E$18)*'Customer Info'!$H$17),) -> 0 | CA57: =IF($F$16="other",IF(AA57=0,,(AA57/$E$19)*'Customer Info'!$H$17),) -> 0 | CB57: 0 | CC57: =IF($F$17="breakfast",IF(X57=0,,(X57/$E$16)*'Customer Info'!$H$18),) -> 0 | CD57: =IF($F$17="dinner",IF(Z57=0,,(Z57/$E$18)*'Customer Info'!$H$18),) -> 0 | CE57: =IF($F$17="other",IF(AA57=0,,(AA57/$E$19)*'Customer Info'!$H$18),) -> 0 | CF57: 0 | CG57: =IF($F$18="breakfast",IF(X57=0,,(X57/$E$16)*'Customer Info'!$H$19),) -> 0 | CH57: =IF($F$18="lunch",IF(Y57=0,,(Y57/$E$17)*'Customer Info'!$H$19),) -> 0 | CI57: =IF($F$18="other",IF(AA57=0,,(AA57/$E$19)*'Customer Info'!$H$19),) -> 0 | CJ57: 0 | CK57: =IF($F$19="breakfast",IF(X57=0,,(X57/$E$16)*'Customer Info'!$H$20),) -> 0 | CL57: =IF($F$19="lunch",IF(Y57=0,,(Y57/$E$17)*'Customer Info'!$H$20),) -> 0 | CM57: =IF($F$19="dinner",IF(Z57=0,,(Z57/$E$18)*'Customer Info'!$H$20),) -> 0 | CN57: 0 | CO57: 0 | CP57: 0
J58: 0 | K58: 0 | L58: 0 | M58: 0 | N58: 0 | O58: 0 | P58: 0 | Q58: 0 | R58: 0 | S58: 0 | T58: 0 | U58: 0 | V58: 0 | W58: 0 | X58: 0 | Y58: 0 | Z58: 0 | AA58: 0 | AB58: =IF((OR($F$4=0,$F$4="none")),IF(P58=0,,IF(OR($E$4='Customer Info'!$D$17,$E$4=0),P58,(P58/$E$4)*'Customer Info'!$D$17)),) -> 0 | AC58: =IF((OR($F$5=0,$F$5="none")),IF(Q58=0,,IF(OR($E$5='Customer Info'!$D$18,$E$5=0),Q58,(Q58/$E$5)*'Customer Info'!$D$18)),) -> 0 | AD58: =IF((OR($F$6=0,$F$6="none")),IF(R58=0,,IF(OR($E$6='Customer Info'!$D$19,$E$6=0),R58,(R58/$E$6)*'Customer Info'!$D$19)),) -> 0 | AE58: =IF((OR($F$7=0,$F$7="none")),IF(S58=0,,IF(OR($E$7='Customer Info'!$D$20,$E$7=0),S58,(S58/$E$7)*'Customer Info'!$D$20)),) -> 0 | AF58: =IF((OR($F$10=0,$F$10="none")),IF(T58=0,,IF(OR($E$10='Customer Info'!$F$17,$E$10=0),T58,(T58/$E$10)*'Customer Info'!$F$17)),) -> 0 | AG58: =IF((OR($F$11=0,$F$11="none")),IF(U58=0,,IF(OR($E$11='Customer Info'!$F$18,$E$11=0),U58,(U58/$E$11)*'Customer Info'!$F$18)),) -> 0 | AH58: =IF((OR($F$12=0,$F$12="none")),IF(V58=0,,IF(OR($E$12='Customer Info'!$F$19,$E$12=0),V58,(V58/$E$12)*'Customer Info'!$F$19)),) -> 0 | AI58: =IF((OR($F$13=0,$F$13="none")),IF(W58=0,,IF(OR($E$13='Customer Info'!$F$20,$E$13=0),W58,(W58/$E$13)*'Customer Info'!$F$20)),) -> 0 | AJ58: =IF((OR($F$16=0,$F$16="none")),IF(X58=0,,IF(($E$16='Customer Info'!$H$17,$E$16=0),X58,(X58/$E$16)*'Customer Info'!$H$17)),) -> 0 | AK58: =IF((OR($F$17=0,$F$17="none")),IF(Y58=0,,IF(OR($E$17='Customer Info'!$H$18, $E$17=0),Y58,(Y58/$E$17)*'Customer Info'!$H$18)),) -> 0 | AL58: =IF((OR($F$18=0,$F$18="none")),IF(Z58=0,,IF(OR($E$18='Customer Info'!$H$19, $E$18=0),Z58,(Z58/$E$18)*'Customer Info'!$H$19)),) -> 0 | AM58: =IF((OR($F$19=0,$F$19="none")),IF(AA58=0,,IF(OR($E$19='Customer Info'!$H$20,$E$19=0),AA58,(AA58/$E$19)*'Customer Info'!$H$20)),) -> 0 | AN58: 0 | AO58: 0 | AP58: =IF(E58="plate waste",,IF('Customer Info'!$M$18=0,'Log Sheet'!AO58,'Customer Info'!$M$18*'Log Sheet'!AO58)) -> 0 | AQ58: =IF(E58="plate waste",IF(C58="dining area1",IF('Customer Info'!$L$30=0,AO58*'Customer Info'!$M$18,AO58*'Customer Info'!$L$30),IF(C58="dining area2",IF('Customer Info'!$L$31=0,AO58*'Customer Info'!$M$18,AO58*'Customer Info'!$L$31),IF(C58="Dining Area3",IF('Customer Info'!$L$32=0,AO58*'Customer Info'!$M$18,AO58*'Customer Info'!$L$32),))),) -> 0 | AR58: 0 | AS58: =IF($F$4="lunch",IF(Q58=0,,(Q58/$E$5)*'Customer Info'!$D$17),) -> 0 | AT58: =IF($F$4="dinner",IF(R58=0,,(R58/$E$6)*'Customer Info'!$D$17),) -> 0 | AU58: =IF($F$4="other",IF(S58=0,,(S58/$E$7)*'Customer Info'!$D$17),) -> 0 | AV58: 0 | AW58: =IF($F$5="breakfast",IF(P58=0,,(P58/$E$4)*'Customer Info'!$D$18),) -> 0 | AX58: =IF($F$5="dinner",IF(R58=0,,(R58/$E$6)*'Customer Info'!$D$18),) -> 0 | AY58: =IF($F$5="other",IF(S58=0,,(S58/$E$7)*'Customer Info'!$D$18),) -> 0 | AZ58: 0 | BA58: =IF($F$6="breakfast",IF(P58=0,,(P58/$E$4)*'Customer Info'!$D$19),) -> 0 | BB58: =IF($F$6="lunch",IF(Q58=0,,(Q58/$E$5)*'Customer Info'!$D$19),) -> 0 | BC58: =IF($F$6="other",IF(S58=0,,(S58/$E$7)*'Customer Info'!$D$19),) -> 0 | BD58: 0 | BE58: =IF($F$7="breakfast",IF(P58=0,,(P58/$E$4)*'Customer Info'!$D$20),) -> 0 | BF58: =IF($F$7="lunch",IF(Q58=0,,(Q58/$E$5)*'Customer Info'!$D$20),) -> 0 | BG58: =IF($F$7="dinner",IF(R58=0,,(R58/$E$6)*'Customer Info'!$D$20),) -> 0 | BH58: 0 | BI58: =IF($F$10="lunch",IF(U58=0,,(U58/$E$11)*'Customer Info'!$F$17),) -> 0 | BJ58: =IF($F$10="dinner",IF(V58=0,,(V58/$E$12)*'Customer Info'!$F$17),) -> 0 | BK58: =IF($F$10="other",IF(W58=0,,(W58/$E$13)*'Customer Info'!$F$17),) -> 0 | BL58: 0 | BM58: =IF($F$11="breakfast",IF(T58=0,,(T58/$E$10)*'Customer Info'!$F$18),) -> 0 | BN58: =IF($F$11="dinner",IF(V58=0,,(V58/$E$12)*'Customer Info'!$F$18),) -> 0 | BO58: =IF($F$11="other",IF(W58=0,,(W58/$E$13)*'Customer Info'!$F$18),) -> 0 | BP58: 0 | BQ58: =IF($F$12="breakfast",IF(T58=0,,(T58/$E$10)*'Customer Info'!$F$19),) -> 0 | BR58: =IF($F$12="lunch",IF(U58=0,,(U58/$E$11)*'Customer Info'!$F$19),) -> 0 | BS58: =IF($F$12="other",IF(W58=0,,(W58/$E$13)*'Customer Info'!$F$19),) -> 0 | BT58: 0 | BU58: =IF($F$13="breakfast",IF(T58=0,,(T58/$E$10)*'Customer Info'!$F$20),) -> 0 | BV58: =IF($F$13="lunch",IF(U58=0,,(U58/$E$11)*'Customer Info'!$F$20),) -> 0 | BW58: =IF($F$13="dinner",IF(V58=0,,(V58/$E$12)*'Customer Info'!$F$20),) -> 0 | BX58: 0 | BY58: =IF($F$16="lunch",IF(Y58=0,,(Y58/$E$17)*'Customer Info'!$H$17),) -> 0 | BZ58: =IF($F$16="dinner",IF(Z58=0,,(Z58/$E$18)*'Customer Info'!$H$17),) -> 0 | CA58: =IF($F$16="other",IF(AA58=0,,(AA58/$E$19)*'Customer Info'!$H$17),) -> 0 | CB58: 0 | CC58: =IF($F$17="breakfast",IF(X58=0,,(X58/$E$16)*'Customer Info'!$H$18),) -> 0 | CD58: =IF($F$17="dinner",IF(Z58=0,,(Z58/$E$18)*'Customer Info'!$H$18),) -> 0 | CE58: =IF($F$17="other",IF(AA58=0,,(AA58/$E$19)*'Customer Info'!$H$18),) -> 0 | CF58: 0 | CG58: =IF($F$18="breakfast",IF(X58=0,,(X58/$E$16)*'Customer Info'!$H$19),) -> 0 | CH58: =IF($F$18="lunch",IF(Y58=0,,(Y58/$E$17)*'Customer Info'!$H$19),) -> 0 | CI58: =IF($F$18="other",IF(AA58=0,,(AA58/$E$19)*'Customer Info'!$H$19),) -> 0 | CJ58: 0 | CK58: =IF($F$19="breakfast",IF(X58=0,,(X58/$E$16)*'Customer Info'!$H$20),) -> 0 | CL58: =IF($F$19="lunch",IF(Y58=0,,(Y58/$E$17)*'Customer Info'!$H$20),) -> 0 | CM58: =IF($F$19="dinner",IF(Z58=0,,(Z58/$E$18)*'Customer Info'!$H$20),) -> 0 | CN58: 0 | CO58: 0 | CP58: 0
J59: 0 | K59: 0 | L59: 0 | M59: 0 | N59: 0 | O59: 0 | P59: 0 | Q59: 0 | R59: 0 | S59: 0 | T59: 0 | U59: 0 | V59: 0 | W59: 0 | X59: 0 | Y59: 0 | Z59: 0 | AA59: 0 | AB59: =IF((OR($F$4=0,$F$4="none")),IF(P59=0,,IF(OR($E$4='Customer Info'!$D$17,$E$4=0),P59,(P59/$E$4)*'Customer Info'!$D$17)),) -> 0 | AC59: =IF((OR($F$5=0,$F$5="none")),IF(Q59=0,,IF(OR($E$5='Customer Info'!$D$18,$E$5=0),Q59,(Q59/$E$5)*'Customer Info'!$D$18)),) -> 0 | AD59: =IF((OR($F$6=0,$F$6="none")),IF(R59=0,,IF(OR($E$6='Customer Info'!$D$19,$E$6=0),R59,(R59/$E$6)*'Customer Info'!$D$19)),) -> 0 | AE59: =IF((OR($F$7=0,$F$7="none")),IF(S59=0,,IF(OR($E$7='Customer Info'!$D$20,$E$7=0),S59,(S59/$E$7)*'Customer Info'!$D$20)),) -> 0 | AF59: =IF((OR($F$10=0,$F$10="none")),IF(T59=0,,IF(OR($E$10='Customer Info'!$F$17,$E$10=0),T59,(T59/$E$10)*'Customer Info'!$F$17)),) -> 0 | AG59: =IF((OR($F$11=0,$F$11="none")),IF(U59=0,,IF(OR($E$11='Customer Info'!$F$18,$E$11=0),U59,(U59/$E$11)*'Customer Info'!$F$18)),) -> 0 | AH59: =IF((OR($F$12=0,$F$12="none")),IF(V59=0,,IF(OR($E$12='Customer Info'!$F$19,$E$12=0),V59,(V59/$E$12)*'Customer Info'!$F$19)),) -> 0 | AI59: =IF((OR($F$13=0,$F$13="none")),IF(W59=0,,IF(OR($E$13='Customer Info'!$F$20,$E$13=0),W59,(W59/$E$13)*'Customer Info'!$F$20)),) -> 0 | AJ59: =IF((OR($F$16=0,$F$16="none")),IF(X59=0,,IF(($E$16='Customer Info'!$H$17,$E$16=0),X59,(X59/$E$16)*'Customer Info'!$H$17)),) -> 0 | AK59: =IF((OR($F$17=0,$F$17="none")),IF(Y59=0,,IF(OR($E$17='Customer Info'!$H$18, $E$17=0),Y59,(Y59/$E$17)*'Customer Info'!$H$18)),) -> 0 | AL59: =IF((OR($F$18=0,$F$18="none")),IF(Z59=0,,IF(OR($E$18='Customer Info'!$H$19, $E$18=0),Z59,(Z59/$E$18)*'Customer Info'!$H$19)),) -> 0 | AM59: =IF((OR($F$19=0,$F$19="none")),IF(AA59=0,,IF(OR($E$19='Customer Info'!$H$20,$E$19=0),AA59,(AA59/$E$19)*'Customer Info'!$H$20)),) -> 0 | AN59: 0 | AO59: 0 | AP59: =IF(E59="plate waste",,IF('Customer Info'!$M$18=0,'Log Sheet'!AO59,'Customer Info'!$M$18*'Log Sheet'!AO59)) -> 0 | AQ59: =IF(E59="plate waste",IF(C59="dining area1",IF('Customer Info'!$L$30=0,AO59*'Customer Info'!$M$18,AO59*'Customer Info'!$L$30),IF(C59="dining area2",IF('Customer Info'!$L$31=0,AO59*'Customer Info'!$M$18,AO59*'Customer Info'!$L$31),IF(C59="Dining Area3",IF('Customer Info'!$L$32=0,AO59*'Customer Info'!$M$18,AO59*'Customer Info'!$L$32),))),) -> 0 | AR59: 0 | AS59: =IF($F$4="lunch",IF(Q59=0,,(Q59/$E$5)*'Customer Info'!$D$17),) -> 0 | AT59: =IF($F$4="dinner",IF(R59=0,,(R59/$E$6)*'Customer Info'!$D$17),) -> 0 | AU59: =IF($F$4="other",IF(S59=0,,(S59/$E$7)*'Customer Info'!$D$17),) -> 0 | AV59: 0 | AW59: =IF($F$5="breakfast",IF(P59=0,,(P59/$E$4)*'Customer Info'!$D$18),) -> 0 | AX59: =IF($F$5="dinner",IF(R59=0,,(R59/$E$6)*'Customer Info'!$D$18),) -> 0 | AY59: =IF($F$5="other",IF(S59=0,,(S59/$E$7)*'Customer Info'!$D$18),) -> 0 | AZ59: 0 | BA59: =IF($F$6="breakfast",IF(P59=0,,(P59/$E$4)*'Customer Info'!$D$19),) -> 0 | BB59: =IF($F$6="lunch",IF(Q59=0,,(Q59/$E$5)*'Customer Info'!$D$19),) -> 0 | BC59: =IF($F$6="other",IF(S59=0,,(S59/$E$7)*'Customer Info'!$D$19),) -> 0 | BD59: 0 | BE59: =IF($F$7="breakfast",IF(P59=0,,(P59/$E$4)*'Customer Info'!$D$20),) -> 0 | BF59: =IF($F$7="lunch",IF(Q59=0,,(Q59/$E$5)*'Customer Info'!$D$20),) -> 0 | BG59: =IF($F$7="dinner",IF(R59=0,,(R59/$E$6)*'Customer Info'!$D$20),) -> 0 | BH59: 0 | BI59: =IF($F$10="lunch",IF(U59=0,,(U59/$E$11)*'Customer Info'!$F$17),) -> 0 | BJ59: =IF($F$10="dinner",IF(V59=0,,(V59/$E$12)*'Customer Info'!$F$17),) -> 0 | BK59: =IF($F$10="other",IF(W59=0,,(W59/$E$13)*'Customer Info'!$F$17),) -> 0 | BL59: 0 | BM59: =IF($F$11="breakfast",IF(T59=0,,(T59/$E$10)*'Customer Info'!$F$18),) -> 0 | BN59: =IF($F$11="dinner",IF(V59=0,,(V59/$E$12)*'Customer Info'!$F$18),) -> 0 | BO59: =IF($F$11="other",IF(W59=0,,(W59/$E$13)*'Customer Info'!$F$18),) -> 0 | BP59: 0 | BQ59: =IF($F$12="breakfast",IF(T59=0,,(T59/$E$10)*'Customer Info'!$F$19),) -> 0 | BR59: =IF($F$12="lunch",IF(U59=0,,(U59/$E$11)*'Customer Info'!$F$19),) -> 0 | BS59: =IF($F$12="other",IF(W59=0,,(W59/$E$13)*'Customer Info'!$F$19),) -> 0 | BT59: 0 | BU59: =IF($F$13="breakfast",IF(T59=0,,(T59/$E$10)*'Customer Info'!$F$20),) -> 0 | BV59: =IF($F$13="lunch",IF(U59=0,,(U59/$E$11)*'Customer Info'!$F$20),) -> 0 | BW59: =IF($F$13="dinner",IF(V59=0,,(V59/$E$12)*'Customer Info'!$F$20),) -> 0 | BX59: 0 | BY59: =IF($F$16="lunch",IF(Y59=0,,(Y59/$E$17)*'Customer Info'!$H$17),) -> 0 | BZ59: =IF($F$16="dinner",IF(Z59=0,,(Z59/$E$18)*'Customer Info'!$H$17),) -> 0 | CA59: =IF($F$16="other",IF(AA59=0,,(AA59/$E$19)*'Customer Info'!$H$17),) -> 0 | CB59: 0 | CC59: =IF($F$17="breakfast",IF(X59=0,,(X59/$E$16)*'Customer Info'!$H$18),) -> 0 | CD59: =IF($F$17="dinner",IF(Z59=0,,(Z59/$E$18)*'Customer Info'!$H$18),) -> 0 | CE59: =IF($F$17="other",IF(AA59=0,,(AA59/$E$19)*'Customer Info'!$H$18),) -> 0 | CF59: 0 | CG59: =IF($F$18="breakfast",IF(X59=0,,(X59/$E$16)*'Customer Info'!$H$19),) -> 0 | CH59: =IF($F$18="lunch",IF(Y59=0,,(Y59/$E$17)*'Customer Info'!$H$19),) -> 0 | CI59: =IF($F$18="other",IF(AA59=0,,(AA59/$E$19)*'Customer Info'!$H$19),) -> 0 | CJ59: 0 | CK59: =IF($F$19="breakfast",IF(X59=0,,(X59/$E$16)*'Customer Info'!$H$20),) -> 0 | CL59: =IF($F$19="lunch",IF(Y59=0,,(Y59/$E$17)*'Customer Info'!$H$20),) -> 0 | CM59: =IF($F$19="dinner",IF(Z59=0,,(Z59/$E$18)*'Customer Info'!$H$20),) -> 0 | CN59: 0 | CO59: 0 | CP59: 0
J60: 0 | K60: 0 | L60: 0 | M60: 0 | N60: 0 | O60: 0 | P60: 0 | Q60: 0 | R60: 0 | S60: 0 | T60: 0 | U60: 0 | V60: 0 | W60: 0 | X60: 0 | Y60: 0 | Z60: 0 | AA60: 0 | AB60: =IF((OR($F$4=0,$F$4="none")),IF(P60=0,,IF(OR($E$4='Customer Info'!$D$17,$E$4=0),P60,(P60/$E$4)*'Customer Info'!$D$17)),) -> 0 | AC60: =IF((OR($F$5=0,$F$5="none")),IF(Q60=0,,IF(OR($E$5='Customer Info'!$D$18,$E$5=0),Q60,(Q60/$E$5)*'Customer Info'!$D$18)),) -> 0 | AD60: =IF((OR($F$6=0,$F$6="none")),IF(R60=0,,IF(OR($E$6='Customer Info'!$D$19,$E$6=0),R60,(R60/$E$6)*'Customer Info'!$D$19)),) -> 0 | AE60: =IF((OR($F$7=0,$F$7="none")),IF(S60=0,,IF(OR($E$7='Customer Info'!$D$20,$E$7=0),S60,(S60/$E$7)*'Customer Info'!$D$20)),) -> 0 | AF60: =IF((OR($F$10=0,$F$10="none")),IF(T60=0,,IF(OR($E$10='Customer Info'!$F$17,$E$10=0),T60,(T60/$E$10)*'Customer Info'!$F$17)),) -> 0 | AG60: =IF((OR($F$11=0,$F$11="none")),IF(U60=0,,IF(OR($E$11='Customer Info'!$F$18,$E$11=0),U60,(U60/$E$11)*'Customer Info'!$F$18)),) -> 0 | AH60: =IF((OR($F$12=0,$F$12="none")),IF(V60=0,,IF(OR($E$12='Customer Info'!$F$19,$E$12=0),V60,(V60/$E$12)*'Customer Info'!$F$19)),) -> 0 | AI60: =IF((OR($F$13=0,$F$13="none")),IF(W60=0,,IF(OR($E$13='Customer Info'!$F$20,$E$13=0),W60,(W60/$E$13)*'Customer Info'!$F$20)),) -> 0 | AJ60: =IF((OR($F$16=0,$F$16="none")),IF(X60=0,,IF(($E$16='Customer Info'!$H$17,$E$16=0),X60,(X60/$E$16)*'Customer Info'!$H$17)),) -> 0 | AK60: =IF((OR($F$17=0,$F$17="none")),IF(Y60=0,,IF(OR($E$17='Customer Info'!$H$18, $E$17=0),Y60,(Y60/$E$17)*'Customer Info'!$H$18)),) -> 0 | AL60: =IF((OR($F$18=0,$F$18="none")),IF(Z60=0,,IF(OR($E$18='Customer Info'!$H$19, $E$18=0),Z60,(Z60/$E$18)*'Customer Info'!$H$19)),) -> 0 | AM60: =IF((OR($F$19=0,$F$19="none")),IF(AA60=0,,IF(OR($E$19='Customer Info'!$H$20,$E$19=0),AA60,(AA60/$E$19)*'Customer Info'!$H$20)),) -> 0 | AN60: 0 | AO60: 0 | AP60: =IF(E60="plate waste",,IF('Customer Info'!$M$18=0,'Log Sheet'!AO60,'Customer Info'!$M$18*'Log Sheet'!AO60)) -> 0 | AQ60: =IF(E60="plate waste",IF(C60="dining area1",IF('Customer Info'!$L$30=0,AO60*'Customer Info'!$M$18,AO60*'Customer Info'!$L$30),IF(C60="dining area2",IF('Customer Info'!$L$31=0,AO60*'Customer Info'!$M$18,AO60*'Customer Info'!$L$31),IF(C60="Dining Area3",IF('Customer Info'!$L$32=0,AO60*'Customer Info'!$M$18,AO60*'Customer Info'!$L$32),))),) -> 0 | AR60: 0 | AS60: =IF($F$4="lunch",IF(Q60=0,,(Q60/$E$5)*'Customer Info'!$D$17),) -> 0 | AT60: =IF($F$4="dinner",IF(R60=0,,(R60/$E$6)*'Customer Info'!$D$17),) -> 0 | AU60: =IF($F$4="other",IF(S60=0,,(S60/$E$7)*'Customer Info'!$D$17),) -> 0 | AV60: 0 | AW60: =IF($F$5="breakfast",IF(P60=0,,(P60/$E$4)*'Customer Info'!$D$18),) -> 0 | AX60: =IF($F$5="dinner",IF(R60=0,,(R60/$E$6)*'Customer Info'!$D$18),) -> 0 | AY60: =IF($F$5="other",IF(S60=0,,(S60/$E$7)*'Customer Info'!$D$18),) -> 0 | AZ60: 0 | BA60: =IF($F$6="breakfast",IF(P60=0,,(P60/$E$4)*'Customer Info'!$D$19),) -> 0 | BB60: =IF($F$6="lunch",IF(Q60=0,,(Q60/$E$5)*'Customer Info'!$D$19),) -> 0 | BC60: =IF($F$6="other",IF(S60=0,,(S60/$E$7)*'Customer Info'!$D$19),) -> 0 | BD60: 0 | BE60: =IF($F$7="breakfast",IF(P60=0,,(P60/$E$4)*'Customer Info'!$D$20),) -> 0 | BF60: =IF($F$7="lunch",IF(Q60=0,,(Q60/$E$5)*'Customer Info'!$D$20),) -> 0 | BG60: =IF($F$7="dinner",IF(R60=0,,(R60/$E$6)*'Customer Info'!$D$20),) -> 0 | BH60: 0 | BI60: =IF($F$10="lunch",IF(U60=0,,(U60/$E$11)*'Customer Info'!$F$17),) -> 0 | BJ60: =IF($F$10="dinner",IF(V60=0,,(V60/$E$12)*'Customer Info'!$F$17),) -> 0 | BK60: =IF($F$10="other",IF(W60=0,,(W60/$E$13)*'Customer Info'!$F$17),) -> 0 | BL60: 0 | BM60: =IF($F$11="breakfast",IF(T60=0,,(T60/$E$10)*'Customer Info'!$F$18),) -> 0 | BN60: =IF($F$11="dinner",IF(V60=0,,(V60/$E$12)*'Customer Info'!$F$18),) -> 0 | BO60: =IF($F$11="other",IF(W60=0,,(W60/$E$13)*'Customer Info'!$F$18),) -> 0 | BP60: 0 | BQ60: =IF($F$12="breakfast",IF(T60=0,,(T60/$E$10)*'Customer Info'!$F$19),) -> 0 | BR60: =IF($F$12="lunch",IF(U60=0,,(U60/$E$11)*'Customer Info'!$F$19),) -> 0 | BS60: =IF($F$12="other",IF(W60=0,,(W60/$E$13)*'Customer Info'!$F$19),) -> 0 | BT60: 0 | BU60: =IF($F$13="breakfast",IF(T60=0,,(T60/$E$10)*'Customer Info'!$F$20),) -> 0 | BV60: =IF($F$13="lunch",IF(U60=0,,(U60/$E$11)*'Customer Info'!$F$20),) -> 0 | BW60: =IF($F$13="dinner",IF(V60=0,,(V60/$E$12)*'Customer Info'!$F$20),) -> 0 | BX60: 0 | BY60: =IF($F$16="lunch",IF(Y60=0,,(Y60/$E$17)*'Customer Info'!$H$17),) -> 0 | BZ60: =IF($F$16="dinner",IF(Z60=0,,(Z60/$E$18)*'Customer Info'!$H$17),) -> 0 | CA60: =IF($F$16="other",IF(AA60=0,,(AA60/$E$19)*'Customer Info'!$H$17),) -> 0 | CB60: 0 | CC60: =IF($F$17="breakfast",IF(X60=0,,(X60/$E$16)*'Customer Info'!$H$18),) -> 0 | CD60: =IF($F$17="dinner",IF(Z60=0,,(Z60/$E$18)*'Customer Info'!$H$18),) -> 0 | CE60: =IF($F$17="other",IF(AA60=0,,(AA60/$E$19)*'Customer Info'!$H$18),) -> 0 | CF60: 0 | CG60: =IF($F$18="breakfast",IF(X60=0,,(X60/$E$16)*'Customer Info'!$H$19),) -> 0 | CH60: =IF($F$18="lunch",IF(Y60=0,,(Y60/$E$17)*'Customer Info'!$H$19),) -> 0 | CI60: =IF($F$18="other",IF(AA60=0,,(AA60/$E$19)*'Customer Info'!$H$19),) -> 0 | CJ60: 0 | CK60: =IF($F$19="breakfast",IF(X60=0,,(X60/$E$16)*'Customer Info'!$H$20),) -> 0 | CL60: =IF($F$19="lunch",IF(Y60=0,,(Y60/$E$17)*'Customer Info'!$H$20),) -> 0 | CM60: =IF($F$19="dinner",IF(Z60=0,,(Z60/$E$18)*'Customer Info'!$H$20),) -> 0 | CN60: 0 | CO60: 0 | CP60: 0
J61: 0 | K61: 0 | L61: 0 | M61: 0 | N61: 0 | O61: 0 | P61: 0 | Q61: 0 | R61: 0 | S61: 0 | T61: 0 | U61: 0 | V61: 0 | W61: 0 | X61: 0 | Y61: 0 | Z61: 0 | AA61: 0 | AB61: =IF((OR($F$4=0,$F$4="none")),IF(P61=0,,IF(OR($E$4='Customer Info'!$D$17,$E$4=0),P61,(P61/$E$4)*'Customer Info'!$D$17)),) -> 0 | AC61: =IF((OR($F$5=0,$F$5="none")),IF(Q61=0,,IF(OR($E$5='Customer Info'!$D$18,$E$5=0),Q61,(Q61/$E$5)*'Customer Info'!$D$18)),) -> 0 | AD61: =IF((OR($F$6=0,$F$6="none")),IF(R61=0,,IF(OR($E$6='Customer Info'!$D$19,$E$6=0),R61,(R61/$E$6)*'Customer Info'!$D$19)),) -> 0 | AE61: =IF((OR($F$7=0,$F$7="none")),IF(S61=0,,IF(OR($E$7='Customer Info'!$D$20,$E$7=0),S61,(S61/$E$7)*'Customer Info'!$D$20)),) -> 0 | AF61: =IF((OR($F$10=0,$F$10="none")),IF(T61=0,,IF(OR($E$10='Customer Info'!$F$17,$E$10=0),T61,(T61/$E$10)*'Customer Info'!$F$17)),) -> 0 | AG61: =IF((OR($F$11=0,$F$11="none")),IF(U61=0,,IF(OR($E$11='Customer Info'!$F$18,$E$11=0),U61,(U61/$E$11)*'Customer Info'!$F$18)),) -> 0 | AH61: =IF((OR($F$12=0,$F$12="none")),IF(V61=0,,IF(OR($E$12='Customer Info'!$F$19,$E$12=0),V61,(V61/$E$12)*'Customer Info'!$F$19)),) -> 0 | AI61: =IF((OR($F$13=0,$F$13="none")),IF(W61=0,,IF(OR($E$13='Customer Info'!$F$20,$E$13=0),W61,(W61/$E$13)*'Customer Info'!$F$20)),) -> 0 | AJ61: =IF((OR($F$16=0,$F$16="none")),IF(X61=0,,IF(($E$16='Customer Info'!$H$17,$E$16=0),X61,(X61/$E$16)*'Customer Info'!$H$17)),) -> 0 | AK61: =IF((OR($F$17=0,$F$17="none")),IF(Y61=0,,IF(OR($E$17='Customer Info'!$H$18, $E$17=0),Y61,(Y61/$E$17)*'Customer Info'!$H$18)),) -> 0 | AL61: =IF((OR($F$18=0,$F$18="none")),IF(Z61=0,,IF(OR($E$18='Customer Info'!$H$19, $E$18=0),Z61,(Z61/$E$18)*'Customer Info'!$H$19)),) -> 0 | AM61: =IF((OR($F$19=0,$F$19="none")),IF(AA61=0,,IF(OR($E$19='Customer Info'!$H$20,$E$19=0),AA61,(AA61/$E$19)*'Customer Info'!$H$20)),) -> 0 | AN61: 0 | AO61: 0 | AP61: =IF(E61="plate waste",,IF('Customer Info'!$M$18=0,'Log Sheet'!AO61,'Customer Info'!$M$18*'Log Sheet'!AO61)) -> 0 | AQ61: =IF(E61="plate waste",IF(C61="dining area1",IF('Customer Info'!$L$30=0,AO61*'Customer Info'!$M$18,AO61*'Customer Info'!$L$30),IF(C61="dining area2",IF('Customer Info'!$L$31=0,AO61*'Customer Info'!$M$18,AO61*'Customer Info'!$L$31),IF(C61="Dining Area3",IF('Customer Info'!$L$32=0,AO61*'Customer Info'!$M$18,AO61*'Customer Info'!$L$32),))),) -> 0 | AR61: 0 | AS61: =IF($F$4="lunch",IF(Q61=0,,(Q61/$E$5)*'Customer Info'!$D$17),) -> 0 | AT61: =IF($F$4="dinner",IF(R61=0,,(R61/$E$6)*'Customer Info'!$D$17),) -> 0 | AU61: =IF($F$4="other",IF(S61=0,,(S61/$E$7)*'Customer Info'!$D$17),) -> 0 | AV61: 0 | AW61: =IF($F$5="breakfast",IF(P61=0,,(P61/$E$4)*'Customer Info'!$D$18),) -> 0 | AX61: =IF($F$5="dinner",IF(R61=0,,(R61/$E$6)*'Customer Info'!$D$18),) -> 0 | AY61: =IF($F$5="other",IF(S61=0,,(S61/$E$7)*'Customer Info'!$D$18),) -> 0 | AZ61: 0 | BA61: =IF($F$6="breakfast",IF(P61=0,,(P61/$E$4)*'Customer Info'!$D$19),) -> 0 | BB61: =IF($F$6="lunch",IF(Q61=0,,(Q61/$E$5)*'Customer Info'!$D$19),) -> 0 | BC61: =IF($F$6="other",IF(S61=0,,(S61/$E$7)*'Customer Info'!$D$19),) -> 0 | BD61: 0 | BE61: =IF($F$7="breakfast",IF(P61=0,,(P61/$E$4)*'Customer Info'!$D$20),) -> 0 | BF61: =IF($F$7="lunch",IF(Q61=0,,(Q61/$E$5)*'Customer Info'!$D$20),) -> 0 | BG61: =IF($F$7="dinner",IF(R61=0,,(R61/$E$6)*'Customer Info'!$D$20),) -> 0 | BH61: 0 | BI61: =IF($F$10="lunch",IF(U61=0,,(U61/$E$11)*'Customer Info'!$F$17),) -> 0 | BJ61: =IF($F$10="dinner",IF(V61=0,,(V61/$E$12)*'Customer Info'!$F$17),) -> 0 | BK61: =IF($F$10="other",IF(W61=0,,(W61/$E$13)*'Customer Info'!$F$17),) -> 0 | BL61: 0 | BM61: =IF($F$11="breakfast",IF(T61=0,,(T61/$E$10)*'Customer Info'!$F$18),) -> 0 | BN61: =IF($F$11="dinner",IF(V61=0,,(V61/$E$12)*'Customer Info'!$F$18),) -> 0 | BO61: =IF($F$11="other",IF(W61=0,,(W61/$E$13)*'Customer Info'!$F$18),) -> 0 | BP61: 0 | BQ61: =IF($F$12="breakfast",IF(T61=0,,(T61/$E$10)*'Customer Info'!$F$19),) -> 0 | BR61: =IF($F$12="lunch",IF(U61=0,,(U61/$E$11)*'Customer Info'!$F$19),) -> 0 | BS61: =IF($F$12="other",IF(W61=0,,(W61/$E$13)*'Customer Info'!$F$19),) -> 0 | BT61: 0 | BU61: =IF($F$13="breakfast",IF(T61=0,,(T61/$E$10)*'Customer Info'!$F$20),) -> 0 | BV61: =IF($F$13="lunch",IF(U61=0,,(U61/$E$11)*'Customer Info'!$F$20),) -> 0 | BW61: =IF($F$13="dinner",IF(V61=0,,(V61/$E$12)*'Customer Info'!$F$20),) -> 0 | BX61: 0 | BY61: =IF($F$16="lunch",IF(Y61=0,,(Y61/$E$17)*'Customer Info'!$H$17),) -> 0 | BZ61: =IF($F$16="dinner",IF(Z61=0,,(Z61/$E$18)*'Customer Info'!$H$17),) -> 0 | CA61: =IF($F$16="other",IF(AA61=0,,(AA61/$E$19)*'Customer Info'!$H$17),) -> 0 | CB61: 0 | CC61: =IF($F$17="breakfast",IF(X61=0,,(X61/$E$16)*'Customer Info'!$H$18),) -> 0 | CD61: =IF($F$17="dinner",IF(Z61=0,,(Z61/$E$18)*'Customer Info'!$H$18),) -> 0 | CE61: =IF($F$17="other",IF(AA61=0,,(AA61/$E$19)*'Customer Info'!$H$18),) -> 0 | CF61: 0 | CG61: =IF($F$18="breakfast",IF(X61=0,,(X61/$E$16)*'Customer Info'!$H$19),) -> 0 | CH61: =IF($F$18="lunch",IF(Y61=0,,(Y61/$E$17)*'Customer Info'!$H$19),) -> 0 | CI61: =IF($F$18="other",IF(AA61=0,,(AA61/$E$19)*'Customer Info'!$H$19),) -> 0 | CJ61: 0 | CK61: =IF($F$19="breakfast",IF(X61=0,,(X61/$E$16)*'Customer Info'!$H$20),) -> 0 | CL61: =IF($F$19="lunch",IF(Y61=0,,(Y61/$E$17)*'Customer Info'!$H$20),) -> 0 | CM61: =IF($F$19="dinner",IF(Z61=0,,(Z61/$E$18)*'Customer Info'!$H$20),) -> 0 | CN61: 0 | CO61: 0 | CP61: 0
J62: 0 | K62: 0 | L62: 0 | M62: 0 | N62: 0 | O62: 0 | P62: 0 | Q62: 0 | R62: 0 | S62: 0 | T62: 0 | U62: 0 | V62: 0 | W62: 0 | X62: 0 | Y62: 0 | Z62: 0 | AA62: 0 | AB62: =IF((OR($F$4=0,$F$4="none")),IF(P62=0,,IF(OR($E$4='Customer Info'!$D$17,$E$4=0),P62,(P62/$E$4)*'Customer Info'!$D$17)),) -> 0 | AC62: =IF((OR($F$5=0,$F$5="none")),IF(Q62=0,,IF(OR($E$5='Customer Info'!$D$18,$E$5=0),Q62,(Q62/$E$5)*'Customer Info'!$D$18)),) -> 0 | AD62: =IF((OR($F$6=0,$F$6="none")),IF(R62=0,,IF(OR($E$6='Customer Info'!$D$19,$E$6=0),R62,(R62/$E$6)*'Customer Info'!$D$19)),) -> 0 | AE62: =IF((OR($F$7=0,$F$7="none")),IF(S62=0,,IF(OR($E$7='Customer Info'!$D$20,$E$7=0),S62,(S62/$E$7)*'Customer Info'!$D$20)),) -> 0 | AF62: =IF((OR($F$10=0,$F$10="none")),IF(T62=0,,IF(OR($E$10='Customer Info'!$F$17,$E$10=0),T62,(T62/$E$10)*'Customer Info'!$F$17)),) -> 0 | AG62: =IF((OR($F$11=0,$F$11="none")),IF(U62=0,,IF(OR($E$11='Customer Info'!$F$18,$E$11=0),U62,(U62/$E$11)*'Customer Info'!$F$18)),) -> 0 | AH62: =IF((OR($F$12=0,$F$12="none")),IF(V62=0,,IF(OR($E$12='Customer Info'!$F$19,$E$12=0),V62,(V62/$E$12)*'Customer Info'!$F$19)),) -> 0 | AI62: =IF((OR($F$13=0,$F$13="none")),IF(W62=0,,IF(OR($E$13='Customer Info'!$F$20,$E$13=0),W62,(W62/$E$13)*'Customer Info'!$F$20)),) -> 0 | AJ62: =IF((OR($F$16=0,$F$16="none")),IF(X62=0,,IF(($E$16='Customer Info'!$H$17,$E$16=0),X62,(X62/$E$16)*'Customer Info'!$H$17)),) -> 0 | AK62: =IF((OR($F$17=0,$F$17="none")),IF(Y62=0,,IF(OR($E$17='Customer Info'!$H$18, $E$17=0),Y62,(Y62/$E$17)*'Customer Info'!$H$18)),) -> 0 | AL62: =IF((OR($F$18=0,$F$18="none")),IF(Z62=0,,IF(OR($E$18='Customer Info'!$H$19, $E$18=0),Z62,(Z62/$E$18)*'Customer Info'!$H$19)),) -> 0 | AM62: =IF((OR($F$19=0,$F$19="none")),IF(AA62=0,,IF(OR($E$19='Customer Info'!$H$20,$E$19=0),AA62,(AA62/$E$19)*'Customer Info'!$H$20)),) -> 0 | AN62: 0 | AO62: 0 | AP62: =IF(E62="plate waste",,IF('Customer Info'!$M$18=0,'Log Sheet'!AO62,'Customer Info'!$M$18*'Log Sheet'!AO62)) -> 0 | AQ62: =IF(E62="plate waste",IF(C62="dining area1",IF('Customer Info'!$L$30=0,AO62*'Customer Info'!$M$18,AO62*'Customer Info'!$L$30),IF(C62="dining area2",IF('Customer Info'!$L$31=0,AO62*'Customer Info'!$M$18,AO62*'Customer Info'!$L$31),IF(C62="Dining Area3",IF('Customer Info'!$L$32=0,AO62*'Customer Info'!$M$18,AO62*'Customer Info'!$L$32),))),) -> 0 | AR62: 0 | AS62: =IF($F$4="lunch",IF(Q62=0,,(Q62/$E$5)*'Customer Info'!$D$17),) -> 0 | AT62: =IF($F$4="dinner",IF(R62=0,,(R62/$E$6)*'Customer Info'!$D$17),) -> 0 | AU62: =IF($F$4="other",IF(S62=0,,(S62/$E$7)*'Customer Info'!$D$17),) -> 0 | AV62: 0 | AW62: =IF($F$5="breakfast",IF(P62=0,,(P62/$E$4)*'Customer Info'!$D$18),) -> 0 | AX62: =IF($F$5="dinner",IF(R62=0,,(R62/$E$6)*'Customer Info'!$D$18),) -> 0 | AY62: =IF($F$5="other",IF(S62=0,,(S62/$E$7)*'Customer Info'!$D$18),) -> 0 | AZ62: 0 | BA62: =IF($F$6="breakfast",IF(P62=0,,(P62/$E$4)*'Customer Info'!$D$19),) -> 0 | BB62: =IF($F$6="lunch",IF(Q62=0,,(Q62/$E$5)*'Customer Info'!$D$19),) -> 0 | BC62: =IF($F$6="other",IF(S62=0,,(S62/$E$7)*'Customer Info'!$D$19),) -> 0 | BD62: 0 | BE62: =IF($F$7="breakfast",IF(P62=0,,(P62/$E$4)*'Customer Info'!$D$20),) -> 0 | BF62: =IF($F$7="lunch",IF(Q62=0,,(Q62/$E$5)*'Customer Info'!$D$20),) -> 0 | BG62: =IF($F$7="dinner",IF(R62=0,,(R62/$E$6)*'Customer Info'!$D$20),) -> 0 | BH62: 0 | BI62: =IF($F$10="lunch",IF(U62=0,,(U62/$E$11)*'Customer Info'!$F$17),) -> 0 | BJ62: =IF($F$10="dinner",IF(V62=0,,(V62/$E$12)*'Customer Info'!$F$17),) -> 0 | BK62: =IF($F$10="other",IF(W62=0,,(W62/$E$13)*'Customer Info'!$F$17),) -> 0 | BL62: 0 | BM62: =IF($F$11="breakfast",IF(T62=0,,(T62/$E$10)*'Customer Info'!$F$18),) -> 0 | BN62: =IF($F$11="dinner",IF(V62=0,,(V62/$E$12)*'Customer Info'!$F$18),) -> 0 | BO62: =IF($F$11="other",IF(W62=0,,(W62/$E$13)*'Customer Info'!$F$18),) -> 0 | BP62: 0 | BQ62: =IF($F$12="breakfast",IF(T62=0,,(T62/$E$10)*'Customer Info'!$F$19),) -> 0 | BR62: =IF($F$12="lunch",IF(U62=0,,(U62/$E$11)*'Customer Info'!$F$19),) -> 0 | BS62: =IF($F$12="other",IF(W62=0,,(W62/$E$13)*'Customer Info'!$F$19),) -> 0 | BT62: 0 | BU62: =IF($F$13="breakfast",IF(T62=0,,(T62/$E$10)*'Customer Info'!$F$20),) -> 0 | BV62: =IF($F$13="lunch",IF(U62=0,,(U62/$E$11)*'Customer Info'!$F$20),) -> 0 | BW62: =IF($F$13="dinner",IF(V62=0,,(V62/$E$12)*'Customer Info'!$F$20),) -> 0 | BX62: 0 | BY62: =IF($F$16="lunch",IF(Y62=0,,(Y62/$E$17)*'Customer Info'!$H$17),) -> 0 | BZ62: =IF($F$16="dinner",IF(Z62=0,,(Z62/$E$18)*'Customer Info'!$H$17),) -> 0 | CA62: =IF($F$16="other",IF(AA62=0,,(AA62/$E$19)*'Customer Info'!$H$17),) -> 0 | CB62: 0 | CC62: =IF($F$17="breakfast",IF(X62=0,,(X62/$E$16)*'Customer Info'!$H$18),) -> 0 | CD62: =IF($F$17="dinner",IF(Z62=0,,(Z62/$E$18)*'Customer Info'!$H$18),) -> 0 | CE62: =IF($F$17="other",IF(AA62=0,,(AA62/$E$19)*'Customer Info'!$H$18),) -> 0 | CF62: 0 | CG62: =IF($F$18="breakfast",IF(X62=0,,(X62/$E$16)*'Customer Info'!$H$19),) -> 0 | CH62: =IF($F$18="lunch",IF(Y62=0,,(Y62/$E$17)*'Customer Info'!$H$19),) -> 0 | CI62: =IF($F$18="other",IF(AA62=0,,(AA62/$E$19)*'Customer Info'!$H$19),) -> 0 | CJ62: 0 | CK62: =IF($F$19="breakfast",IF(X62=0,,(X62/$E$16)*'Customer Info'!$H$20),) -> 0 | CL62: =IF($F$19="lunch",IF(Y62=0,,(Y62/$E$17)*'Customer Info'!$H$20),) -> 0 | CM62: =IF($F$19="dinner",IF(Z62=0,,(Z62/$E$18)*'Customer Info'!$H$20),) -> 0 | CN62: 0 | CO62: 0 | CP62: 0
J63: 0 | K63: 0 | L63: 0 | M63: 0 | N63: 0 | O63: 0 | P63: 0 | Q63: 0 | R63: 0 | S63: 0 | T63: 0 | U63: 0 | V63: 0 | W63: 0 | X63: 0 | Y63: 0 | Z63: 0 | AA63: 0 | AB63: =IF((OR($F$4=0,$F$4="none")),IF(P63=0,,IF(OR($E$4='Customer Info'!$D$17,$E$4=0),P63,(P63/$E$4)*'Customer Info'!$D$17)),) -> 0 | AC63: =IF((OR($F$5=0,$F$5="none")),IF(Q63=0,,IF(OR($E$5='Customer Info'!$D$18,$E$5=0),Q63,(Q63/$E$5)*'Customer Info'!$D$18)),) -> 0 | AD63: =IF((OR($F$6=0,$F$6="none")),IF(R63=0,,IF(OR($E$6='Customer Info'!$D$19,$E$6=0),R63,(R63/$E$6)*'Customer Info'!$D$19)),) -> 0 | AE63: =IF((OR($F$7=0,$F$7="none")),IF(S63=0,,IF(OR($E$7='Customer Info'!$D$20,$E$7=0),S63,(S63/$E$7)*'Customer Info'!$D$20)),) -> 0 | AF63: =IF((OR($F$10=0,$F$10="none")),IF(T63=0,,IF(OR($E$10='Customer Info'!$F$17,$E$10=0),T63,(T63/$E$10)*'Customer Info'!$F$17)),) -> 0 | AG63: =IF((OR($F$11=0,$F$11="none")),IF(U63=0,,IF(OR($E$11='Customer Info'!$F$18,$E$11=0),U63,(U63/$E$11)*'Customer Info'!$F$18)),) -> 0 | AH63: =IF((OR($F$12=0,$F$12="none")),IF(V63=0,,IF(OR($E$12='Customer Info'!$F$19,$E$12=0),V63,(V63/$E$12)*'Customer Info'!$F$19)),) -> 0 | AI63: =IF((OR($F$13=0,$F$13="none")),IF(W63=0,,IF(OR($E$13='Customer Info'!$F$20,$E$13=0),W63,(W63/$E$13)*'Customer Info'!$F$20)),) -> 0 | AJ63: =IF((OR($F$16=0,$F$16="none")),IF(X63=0,,IF(($E$16='Customer Info'!$H$17,$E$16=0),X63,(X63/$E$16)*'Customer Info'!$H$17)),) -> 0 | AK63: =IF((OR($F$17=0,$F$17="none")),IF(Y63=0,,IF(OR($E$17='Customer Info'!$H$18, $E$17=0),Y63,(Y63/$E$17)*'Customer Info'!$H$18)),) -> 0 | AL63: =IF((OR($F$18=0,$F$18="none")),IF(Z63=0,,IF(OR($E$18='Customer Info'!$H$19, $E$18=0),Z63,(Z63/$E$18)*'Customer Info'!$H$19)),) -> 0 | AM63: =IF((OR($F$19=0,$F$19="none")),IF(AA63=0,,IF(OR($E$19='Customer Info'!$H$20,$E$19=0),AA63,(AA63/$E$19)*'Customer Info'!$H$20)),) -> 0 | AN63: 0 | AO63: 0 | AP63: =IF(E63="plate waste",,IF('Customer Info'!$M$18=0,'Log Sheet'!AO63,'Customer Info'!$M$18*'Log Sheet'!AO63)) -> 0 | AQ63: =IF(E63="plate waste",IF(C63="dining area1",IF('Customer Info'!$L$30=0,AO63*'Customer Info'!$M$18,AO63*'Customer Info'!$L$30),IF(C63="dining area2",IF('Customer Info'!$L$31=0,AO63*'Customer Info'!$M$18,AO63*'Customer Info'!$L$31),IF(C63="Dining Area3",IF('Customer Info'!$L$32=0,AO63*'Customer Info'!$M$18,AO63*'Customer Info'!$L$32),))),) -> 0 | AR63: 0 | AS63: =IF($F$4="lunch",IF(Q63=0,,(Q63/$E$5)*'Customer Info'!$D$17),) -> 0 | AT63: =IF($F$4="dinner",IF(R63=0,,(R63/$E$6)*'Customer Info'!$D$17),) -> 0 | AU63: =IF($F$4="other",IF(S63=0,,(S63/$E$7)*'Customer Info'!$D$17),) -> 0 | AV63: 0 | AW63: =IF($F$5="breakfast",IF(P63=0,,(P63/$E$4)*'Customer Info'!$D$18),) -> 0 | AX63: =IF($F$5="dinner",IF(R63=0,,(R63/$E$6)*'Customer Info'!$D$18),) -> 0 | AY63: =IF($F$5="other",IF(S63=0,,(S63/$E$7)*'Customer Info'!$D$18),) -> 0 | AZ63: 0 | BA63: =IF($F$6="breakfast",IF(P63=0,,(P63/$E$4)*'Customer Info'!$D$19),) -> 0 | BB63: =IF($F$6="lunch",IF(Q63=0,,(Q63/$E$5)*'Customer Info'!$D$19),) -> 0 | BC63: =IF($F$6="other",IF(S63=0,,(S63/$E$7)*'Customer Info'!$D$19),) -> 0 | BD63: 0 | BE63: =IF($F$7="breakfast",IF(P63=0,,(P63/$E$4)*'Customer Info'!$D$20),) -> 0 | BF63: =IF($F$7="lunch",IF(Q63=0,,(Q63/$E$5)*'Customer Info'!$D$20),) -> 0 | BG63: =IF($F$7="dinner",IF(R63=0,,(R63/$E$6)*'Customer Info'!$D$20),) -> 0 | BH63: 0 | BI63: =IF($F$10="lunch",IF(U63=0,,(U63/$E$11)*'Customer Info'!$F$17),) -> 0 | BJ63: =IF($F$10="dinner",IF(V63=0,,(V63/$E$12)*'Customer Info'!$F$17),) -> 0 | BK63: =IF($F$10="other",IF(W63=0,,(W63/$E$13)*'Customer Info'!$F$17),) -> 0 | BL63: 0 | BM63: =IF($F$11="breakfast",IF(T63=0,,(T63/$E$10)*'Customer Info'!$F$18),) -> 0 | BN63: =IF($F$11="dinner",IF(V63=0,,(V63/$E$12)*'Customer Info'!$F$18),) -> 0 | BO63: =IF($F$11="other",IF(W63=0,,(W63/$E$13)*'Customer Info'!$F$18),) -> 0 | BP63: 0 | BQ63: =IF($F$12="breakfast",IF(T63=0,,(T63/$E$10)*'Customer Info'!$F$19),) -> 0 | BR63: =IF($F$12="lunch",IF(U63=0,,(U63/$E$11)*'Customer Info'!$F$19),) -> 0 | BS63: =IF($F$12="other",IF(W63=0,,(W63/$E$13)*'Customer Info'!$F$19),) -> 0 | BT63: 0 | BU63: =IF($F$13="breakfast",IF(T63=0,,(T63/$E$10)*'Customer Info'!$F$20),) -> 0 | BV63: =IF($F$13="lunch",IF(U63=0,,(U63/$E$11)*'Customer Info'!$F$20),) -> 0 | BW63: =IF($F$13="dinner",IF(V63=0,,(V63/$E$12)*'Customer Info'!$F$20),) -> 0 | BX63: 0 | BY63: =IF($F$16="lunch",IF(Y63=0,,(Y63/$E$17)*'Customer Info'!$H$17),) -> 0 | BZ63: =IF($F$16="dinner",IF(Z63=0,,(Z63/$E$18)*'Customer Info'!$H$17),) -> 0 | CA63: =IF($F$16="other",IF(AA63=0,,(AA63/$E$19)*'Customer Info'!$H$17),) -> 0 | CB63: 0 | CC63: =IF($F$17="breakfast",IF(X63=0,,(X63/$E$16)*'Customer Info'!$H$18),) -> 0 | CD63: =IF($F$17="dinner",IF(Z63=0,,(Z63/$E$18)*'Customer Info'!$H$18),) -> 0 | CE63: =IF($F$17="other",IF(AA63=0,,(AA63/$E$19)*'Customer Info'!$H$18),) -> 0 | CF63: 0 | CG63: =IF($F$18="breakfast",IF(X63=0,,(X63/$E$16)*'Customer Info'!$H$19),) -> 0 | CH63: =IF($F$18="lunch",IF(Y63=0,,(Y63/$E$17)*'Customer Info'!$H$19),) -> 0 | CI63: =IF($F$18="other",IF(AA63=0,,(AA63/$E$19)*'Customer Info'!$H$19),) -> 0 | CJ63: 0 | CK63: =IF($F$19="breakfast",IF(X63=0,,(X63/$E$16)*'Customer Info'!$H$20),) -> 0 | CL63: =IF($F$19="lunch",IF(Y63=0,,(Y63/$E$17)*'Customer Info'!$H$20),) -> 0 | CM63: =IF($F$19="dinner",IF(Z63=0,,(Z63/$E$18)*'Customer Info'!$H$20),) -> 0 | CN63: 0 | CO63: 0 | CP63: 0
J64: 0 | K64: 0 | L64: 0 | M64: 0 | N64: 0 | O64: 0 | P64: 0 | Q64: 0 | R64: 0 | S64: 0 | T64: 0 | U64: 0 | V64: 0 | W64: 0 | X64: 0 | Y64: 0 | Z64: 0 | AA64: 0 | AB64: =IF((OR($F$4=0,$F$4="none")),IF(P64=0,,IF(OR($E$4='Customer Info'!$D$17,$E$4=0),P64,(P64/$E$4)*'Customer Info'!$D$17)),) -> 0 | AC64: =IF((OR($F$5=0,$F$5="none")),IF(Q64=0,,IF(OR($E$5='Customer Info'!$D$18,$E$5=0),Q64,(Q64/$E$5)*'Customer Info'!$D$18)),) -> 0 | AD64: =IF((OR($F$6=0,$F$6="none")),IF(R64=0,,IF(OR($E$6='Customer Info'!$D$19,$E$6=0),R64,(R64/$E$6)*'Customer Info'!$D$19)),) -> 0 | AE64: =IF((OR($F$7=0,$F$7="none")),IF(S64=0,,IF(OR($E$7='Customer Info'!$D$20,$E$7=0),S64,(S64/$E$7)*'Customer Info'!$D$20)),) -> 0 | AF64: =IF((OR($F$10=0,$F$10="none")),IF(T64=0,,IF(OR($E$10='Customer Info'!$F$17,$E$10=0),T64,(T64/$E$10)*'Customer Info'!$F$17)),) -> 0 | AG64: =IF((OR($F$11=0,$F$11="none")),IF(U64=0,,IF(OR($E$11='Customer Info'!$F$18,$E$11=0),U64,(U64/$E$11)*'Customer Info'!$F$18)),) -> 0 | AH64: =IF((OR($F$12=0,$F$12="none")),IF(V64=0,,IF(OR($E$12='Customer Info'!$F$19,$E$12=0),V64,(V64/$E$12)*'Customer Info'!$F$19)),) -> 0 | AI64: =IF((OR($F$13=0,$F$13="none")),IF(W64=0,,IF(OR($E$13='Customer Info'!$F$20,$E$13=0),W64,(W64/$E$13)*'Customer Info'!$F$20)),) -> 0 | AJ64: =IF((OR($F$16=0,$F$16="none")),IF(X64=0,,IF(($E$16='Customer Info'!$H$17,$E$16=0),X64,(X64/$E$16)*'Customer Info'!$H$17)),) -> 0 | AK64: =IF((OR($F$17=0,$F$17="none")),IF(Y64=0,,IF(OR($E$17='Customer Info'!$H$18, $E$17=0),Y64,(Y64/$E$17)*'Customer Info'!$H$18)),) -> 0 | AL64: =IF((OR($F$18=0,$F$18="none")),IF(Z64=0,,IF(OR($E$18='Customer Info'!$H$19, $E$18=0),Z64,(Z64/$E$18)*'Customer Info'!$H$19)),) -> 0 | AM64: =IF((OR($F$19=0,$F$19="none")),IF(AA64=0,,IF(OR($E$19='Customer Info'!$H$20,$E$19=0),AA64,(AA64/$E$19)*'Customer Info'!$H$20)),) -> 0 | AN64: 0 | AO64: 0 | AP64: =IF(E64="plate waste",,IF('Customer Info'!$M$18=0,'Log Sheet'!AO64,'Customer Info'!$M$18*'Log Sheet'!AO64)) -> 0 | AQ64: =IF(E64="plate waste",IF(C64="dining area1",IF('Customer Info'!$L$30=0,AO64*'Customer Info'!$M$18,AO64*'Customer Info'!$L$30),IF(C64="dining area2",IF('Customer Info'!$L$31=0,AO64*'Customer Info'!$M$18,AO64*'Customer Info'!$L$31),IF(C64="Dining Area3",IF('Customer Info'!$L$32=0,AO64*'Customer Info'!$M$18,AO64*'Customer Info'!$L$32),))),) -> 0 | AR64: 0 | AS64: =IF($F$4="lunch",IF(Q64=0,,(Q64/$E$5)*'Customer Info'!$D$17),) -> 0 | AT64: =IF($F$4="dinner",IF(R64=0,,(R64/$E$6)*'Customer Info'!$D$17),) -> 0 | AU64: =IF($F$4="other",IF(S64=0,,(S64/$E$7)*'Customer Info'!$D$17),) -> 0 | AV64: 0 | AW64: =IF($F$5="breakfast",IF(P64=0,,(P64/$E$4)*'Customer Info'!$D$18),) -> 0 | AX64: =IF($F$5="dinner",IF(R64=0,,(R64/$E$6)*'Customer Info'!$D$18),) -> 0 | AY64: =IF($F$5="other",IF(S64=0,,(S64/$E$7)*'Customer Info'!$D$18),) -> 0 | AZ64: 0 | BA64: =IF($F$6="breakfast",IF(P64=0,,(P64/$E$4)*'Customer Info'!$D$19),) -> 0 | BB64: =IF($F$6="lunch",IF(Q64=0,,(Q64/$E$5)*'Customer Info'!$D$19),) -> 0 | BC64: =IF($F$6="other",IF(S64=0,,(S64/$E$7)*'Customer Info'!$D$19),) -> 0 | BD64: 0 | BE64: =IF($F$7="breakfast",IF(P64=0,,(P64/$E$4)*'Customer Info'!$D$20),) -> 0 | BF64: =IF($F$7="lunch",IF(Q64=0,,(Q64/$E$5)*'Customer Info'!$D$20),) -> 0 | BG64: =IF($F$7="dinner",IF(R64=0,,(R64/$E$6)*'Customer Info'!$D$20),) -> 0 | BH64: 0 | BI64: =IF($F$10="lunch",IF(U64=0,,(U64/$E$11)*'Customer Info'!$F$17),) -> 0 | BJ64: =IF($F$10="dinner",IF(V64=0,,(V64/$E$12)*'Customer Info'!$F$17),) -> 0 | BK64: =IF($F$10="other",IF(W64=0,,(W64/$E$13)*'Customer Info'!$F$17),) -> 0 | BL64: 0 | BM64: =IF($F$11="breakfast",IF(T64=0,,(T64/$E$10)*'Customer Info'!$F$18),) -> 0 | BN64: =IF($F$11="dinner",IF(V64=0,,(V64/$E$12)*'Customer Info'!$F$18),) -> 0 | BO64: =IF($F$11="other",IF(W64=0,,(W64/$E$13)*'Customer Info'!$F$18),) -> 0 | BP64: 0 | BQ64: =IF($F$12="breakfast",IF(T64=0,,(T64/$E$10)*'Customer Info'!$F$19),) -> 0 | BR64: =IF($F$12="lunch",IF(U64=0,,(U64/$E$11)*'Customer Info'!$F$19),) -> 0 | BS64: =IF($F$12="other",IF(W64=0,,(W64/$E$13)*'Customer Info'!$F$19),) -> 0 | BT64: 0 | BU64: =IF($F$13="breakfast",IF(T64=0,,(T64/$E$10)*'Customer Info'!$F$20),) -> 0 | BV64: =IF($F$13="lunch",IF(U64=0,,(U64/$E$11)*'Customer Info'!$F$20),) -> 0 | BW64: =IF($F$13="dinner",IF(V64=0,,(V64/$E$12)*'Customer Info'!$F$20),) -> 0 | BX64: 0 | BY64: =IF($F$16="lunch",IF(Y64=0,,(Y64/$E$17)*'Customer Info'!$H$17),) -> 0 | BZ64: =IF($F$16="dinner",IF(Z64=0,,(Z64/$E$18)*'Customer Info'!$H$17),) -> 0 | CA64: =IF($F$16="other",IF(AA64=0,,(AA64/$E$19)*'Customer Info'!$H$17),) -> 0 | CB64: 0 | CC64: =IF($F$17="breakfast",IF(X64=0,,(X64/$E$16)*'Customer Info'!$H$18),) -> 0 | CD64: =IF($F$17="dinner",IF(Z64=0,,(Z64/$E$18)*'Customer Info'!$H$18),) -> 0 | CE64: =IF($F$17="other",IF(AA64=0,,(AA64/$E$19)*'Customer Info'!$H$18),) -> 0 | CF64: 0 | CG64: =IF($F$18="breakfast",IF(X64=0,,(X64/$E$16)*'Customer Info'!$H$19),) -> 0 | CH64: =IF($F$18="lunch",IF(Y64=0,,(Y64/$E$17)*'Customer Info'!$H$19),) -> 0 | CI64: =IF($F$18="other",IF(AA64=0,,(AA64/$E$19)*'Customer Info'!$H$19),) -> 0 | CJ64: 0 | CK64: =IF($F$19="breakfast",IF(X64=0,,(X64/$E$16)*'Customer Info'!$H$20),) -> 0 | CL64: =IF($F$19="lunch",IF(Y64=0,,(Y64/$E$17)*'Customer Info'!$H$20),) -> 0 | CM64: =IF($F$19="dinner",IF(Z64=0,,(Z64/$E$18)*'Customer Info'!$H$20),) -> 0 | CN64: 0 | CO64: 0 | CP64: 0
J65: 0 | K65: 0 | L65: 0 | M65: 0 | N65: 0 | O65: 0 | P65: 0 | Q65: 0 | R65: 0 | S65: 0 | T65: 0 | U65: 0 | V65: 0 | W65: 0 | X65: 0 | Y65: 0 | Z65: 0 | AA65: 0 | AB65: =IF((OR($F$4=0,$F$4="none")),IF(P65=0,,IF(OR($E$4='Customer Info'!$D$17,$E$4=0),P65,(P65/$E$4)*'Customer Info'!$D$17)),) -> 0 | AC65: =IF((OR($F$5=0,$F$5="none")),IF(Q65=0,,IF(OR($E$5='Customer Info'!$D$18,$E$5=0),Q65,(Q65/$E$5)*'Customer Info'!$D$18)),) -> 0 | AD65: =IF((OR($F$6=0,$F$6="none")),IF(R65=0,,IF(OR($E$6='Customer Info'!$D$19,$E$6=0),R65,(R65/$E$6)*'Customer Info'!$D$19)),) -> 0 | AE65: =IF((OR($F$7=0,$F$7="none")),IF(S65=0,,IF(OR($E$7='Customer Info'!$D$20,$E$7=0),S65,(S65/$E$7)*'Customer Info'!$D$20)),) -> 0 | AF65: =IF((OR($F$10=0,$F$10="none")),IF(T65=0,,IF(OR($E$10='Customer Info'!$F$17,$E$10=0),T65,(T65/$E$10)*'Customer Info'!$F$17)),) -> 0 | AG65: =IF((OR($F$11=0,$F$11="none")),IF(U65=0,,IF(OR($E$11='Customer Info'!$F$18,$E$11=0),U65,(U65/$E$11)*'Customer Info'!$F$18)),) -> 0 | AH65: =IF((OR($F$12=0,$F$12="none")),IF(V65=0,,IF(OR($E$12='Customer Info'!$F$19,$E$12=0),V65,(V65/$E$12)*'Customer Info'!$F$19)),) -> 0 | AI65: =IF((OR($F$13=0,$F$13="none")),IF(W65=0,,IF(OR($E$13='Customer Info'!$F$20,$E$13=0),W65,(W65/$E$13)*'Customer Info'!$F$20)),) -> 0 | AJ65: =IF((OR($F$16=0,$F$16="none")),IF(X65=0,,IF(($E$16='Customer Info'!$H$17,$E$16=0),X65,(X65/$E$16)*'Customer Info'!$H$17)),) -> 0 | AK65: =IF((OR($F$17=0,$F$17="none")),IF(Y65=0,,IF(OR($E$17='Customer Info'!$H$18, $E$17=0),Y65,(Y65/$E$17)*'Customer Info'!$H$18)),) -> 0 | AL65: =IF((OR($F$18=0,$F$18="none")),IF(Z65=0,,IF(OR($E$18='Customer Info'!$H$19, $E$18=0),Z65,(Z65/$E$18)*'Customer Info'!$H$19)),) -> 0 | AM65: =IF((OR($F$19=0,$F$19="none")),IF(AA65=0,,IF(OR($E$19='Customer Info'!$H$20,$E$19=0),AA65,(AA65/$E$19)*'Customer Info'!$H$20)),) -> 0 | AN65: 0 | AO65: 0 | AP65: =IF(E65="plate waste",,IF('Customer Info'!$M$18=0,'Log Sheet'!AO65,'Customer Info'!$M$18*'Log Sheet'!AO65)) -> 0 | AQ65: =IF(E65="plate waste",IF(C65="dining area1",IF('Customer Info'!$L$30=0,AO65*'Customer Info'!$M$18,AO65*'Customer Info'!$L$30),IF(C65="dining area2",IF('Customer Info'!$L$31=0,AO65*'Customer Info'!$M$18,AO65*'Customer Info'!$L$31),IF(C65="Dining Area3",IF('Customer Info'!$L$32=0,AO65*'Customer Info'!$M$18,AO65*'Customer Info'!$L$32),))),) -> 0 | AR65: 0 | AS65: =IF($F$4="lunch",IF(Q65=0,,(Q65/$E$5)*'Customer Info'!$D$17),) -> 0 | AT65: =IF($F$4="dinner",IF(R65=0,,(R65/$E$6)*'Customer Info'!$D$17),) -> 0 | AU65: =IF($F$4="other",IF(S65=0,,(S65/$E$7)*'Customer Info'!$D$17),) -> 0 | AV65: 0 | AW65: =IF($F$5="breakfast",IF(P65=0,,(P65/$E$4)*'Customer Info'!$D$18),) -> 0 | AX65: =IF($F$5="dinner",IF(R65=0,,(R65/$E$6)*'Customer Info'!$D$18),) -> 0 | AY65: =IF($F$5="other",IF(S65=0,,(S65/$E$7)*'Customer Info'!$D$18),) -> 0 | AZ65: 0 | BA65: =IF($F$6="breakfast",IF(P65=0,,(P65/$E$4)*'Customer Info'!$D$19),) -> 0 | BB65: =IF($F$6="lunch",IF(Q65=0,,(Q65/$E$5)*'Customer Info'!$D$19),) -> 0 | BC65: =IF($F$6="other",IF(S65=0,,(S65/$E$7)*'Customer Info'!$D$19),) -> 0 | BD65: 0 | BE65: =IF($F$7="breakfast",IF(P65=0,,(P65/$E$4)*'Customer Info'!$D$20),) -> 0 | BF65: =IF($F$7="lunch",IF(Q65=0,,(Q65/$E$5)*'Customer Info'!$D$20),) -> 0 | BG65: =IF($F$7="dinner",IF(R65=0,,(R65/$E$6)*'Customer Info'!$D$20),) -> 0 | BH65: 0 | BI65: =IF($F$10="lunch",IF(U65=0,,(U65/$E$11)*'Customer Info'!$F$17),) -> 0 | BJ65: =IF($F$10="dinner",IF(V65=0,,(V65/$E$12)*'Customer Info'!$F$17),) -> 0 | BK65: =IF($F$10="other",IF(W65=0,,(W65/$E$13)*'Customer Info'!$F$17),) -> 0 | BL65: 0 | BM65: =IF($F$11="breakfast",IF(T65=0,,(T65/$E$10)*'Customer Info'!$F$18),) -> 0 | BN65: =IF($F$11="dinner",IF(V65=0,,(V65/$E$12)*'Customer Info'!$F$18),) -> 0 | BO65: =IF($F$11="other",IF(W65=0,,(W65/$E$13)*'Customer Info'!$F$18),) -> 0 | BP65: 0 | BQ65: =IF($F$12="breakfast",IF(T65=0,,(T65/$E$10)*'Customer Info'!$F$19),) -> 0 | BR65: =IF($F$12="lunch",IF(U65=0,,(U65/$E$11)*'Customer Info'!$F$19),) -> 0 | BS65: =IF($F$12="other",IF(W65=0,,(W65/$E$13)*'Customer Info'!$F$19),) -> 0 | BT65: 0 | BU65: =IF($F$13="breakfast",IF(T65=0,,(T65/$E$10)*'Customer Info'!$F$20),) -> 0 | BV65: =IF($F$13="lunch",IF(U65=0,,(U65/$E$11)*'Customer Info'!$F$20),) -> 0 | BW65: =IF($F$13="dinner",IF(V65=0,,(V65/$E$12)*'Customer Info'!$F$20),) -> 0 | BX65: 0 | BY65: =IF($F$16="lunch",IF(Y65=0,,(Y65/$E$17)*'Customer Info'!$H$17),) -> 0 | BZ65: =IF($F$16="dinner",IF(Z65=0,,(Z65/$E$18)*'Customer Info'!$H$17),) -> 0 | CA65: =IF($F$16="other",IF(AA65=0,,(AA65/$E$19)*'Customer Info'!$H$17),) -> 0 | CB65: 0 | CC65: =IF($F$17="breakfast",IF(X65=0,,(X65/$E$16)*'Customer Info'!$H$18),) -> 0 | CD65: =IF($F$17="dinner",IF(Z65=0,,(Z65/$E$18)*'Customer Info'!$H$18),) -> 0 | CE65: =IF($F$17="other",IF(AA65=0,,(AA65/$E$19)*'Customer Info'!$H$18),) -> 0 | CF65: 0 | CG65: =IF($F$18="breakfast",IF(X65=0,,(X65/$E$16)*'Customer Info'!$H$19),) -> 0 | CH65: =IF($F$18="lunch",IF(Y65=0,,(Y65/$E$17)*'Customer Info'!$H$19),) -> 0 | CI65: =IF($F$18="other",IF(AA65=0,,(AA65/$E$19)*'Customer Info'!$H$19),) -> 0 | CJ65: 0 | CK65: =IF($F$19="breakfast",IF(X65=0,,(X65/$E$16)*'Customer Info'!$H$20),) -> 0 | CL65: =IF($F$19="lunch",IF(Y65=0,,(Y65/$E$17)*'Customer Info'!$H$20),) -> 0 | CM65: =IF($F$19="dinner",IF(Z65=0,,(Z65/$E$18)*'Customer Info'!$H$20),) -> 0 | CN65: 0 | CO65: 0 | CP65: 0
J66: 0 | K66: 0 | L66: 0 | M66: 0 | N66: 0 | O66: 0 | P66: 0 | Q66: 0 | R66: 0 | S66: 0 | T66: 0 | U66: 0 | V66: 0 | W66: 0 | X66: 0 | Y66: 0 | Z66: 0 | AA66: 0 | AB66: =IF((OR($F$4=0,$F$4="none")),IF(P66=0,,IF(OR($E$4='Customer Info'!$D$17,$E$4=0),P66,(P66/$E$4)*'Customer Info'!$D$17)),) -> 0 | AC66: =IF((OR($F$5=0,$F$5="none")),IF(Q66=0,,IF(OR($E$5='Customer Info'!$D$18,$E$5=0),Q66,(Q66/$E$5)*'Customer Info'!$D$18)),) -> 0 | AD66: =IF((OR($F$6=0,$F$6="none")),IF(R66=0,,IF(OR($E$6='Customer Info'!$D$19,$E$6=0),R66,(R66/$E$6)*'Customer Info'!$D$19)),) -> 0 | AE66: =IF((OR($F$7=0,$F$7="none")),IF(S66=0,,IF(OR($E$7='Customer Info'!$D$20,$E$7=0),S66,(S66/$E$7)*'Customer Info'!$D$20)),) -> 0 | AF66: =IF((OR($F$10=0,$F$10="none")),IF(T66=0,,IF(OR($E$10='Customer Info'!$F$17,$E$10=0),T66,(T66/$E$10)*'Customer Info'!$F$17)),) -> 0 | AG66: =IF((OR($F$11=0,$F$11="none")),IF(U66=0,,IF(OR($E$11='Customer Info'!$F$18,$E$11=0),U66,(U66/$E$11)*'Customer Info'!$F$18)),) -> 0 | AH66: =IF((OR($F$12=0,$F$12="none")),IF(V66=0,,IF(OR($E$12='Customer Info'!$F$19,$E$12=0),V66,(V66/$E$12)*'Customer Info'!$F$19)),) -> 0 | AI66: =IF((OR($F$13=0,$F$13="none")),IF(W66=0,,IF(OR($E$13='Customer Info'!$F$20,$E$13=0),W66,(W66/$E$13)*'Customer Info'!$F$20)),) -> 0 | AJ66: =IF((OR($F$16=0,$F$16="none")),IF(X66=0,,IF(($E$16='Customer Info'!$H$17,$E$16=0),X66,(X66/$E$16)*'Customer Info'!$H$17)),) -> 0 | AK66: =IF((OR($F$17=0,$F$17="none")),IF(Y66=0,,IF(OR($E$17='Customer Info'!$H$18, $E$17=0),Y66,(Y66/$E$17)*'Customer Info'!$H$18)),) -> 0 | AL66: =IF((OR($F$18=0,$F$18="none")),IF(Z66=0,,IF(OR($E$18='Customer Info'!$H$19, $E$18=0),Z66,(Z66/$E$18)*'Customer Info'!$H$19)),) -> 0 | AM66: =IF((OR($F$19=0,$F$19="none")),IF(AA66=0,,IF(OR($E$19='Customer Info'!$H$20,$E$19=0),AA66,(AA66/$E$19)*'Customer Info'!$H$20)),) -> 0 | AN66: 0 | AO66: 0 | AP66: =IF(E66="plate waste",,IF('Customer Info'!$M$18=0,'Log Sheet'!AO66,'Customer Info'!$M$18*'Log Sheet'!AO66)) -> 0 | AQ66: =IF(E66="plate waste",IF(C66="dining area1",IF('Customer Info'!$L$30=0,AO66*'Customer Info'!$M$18,AO66*'Customer Info'!$L$30),IF(C66="dining area2",IF('Customer Info'!$L$31=0,AO66*'Customer Info'!$M$18,AO66*'Customer Info'!$L$31),IF(C66="Dining Area3",IF('Customer Info'!$L$32=0,AO66*'Customer Info'!$M$18,AO66*'Customer Info'!$L$32),))),) -> 0 | AR66: 0 | AS66: =IF($F$4="lunch",IF(Q66=0,,(Q66/$E$5)*'Customer Info'!$D$17),) -> 0 | AT66: =IF($F$4="dinner",IF(R66=0,,(R66/$E$6)*'Customer Info'!$D$17),) -> 0 | AU66: =IF($F$4="other",IF(S66=0,,(S66/$E$7)*'Customer Info'!$D$17),) -> 0 | AV66: 0 | AW66: =IF($F$5="breakfast",IF(P66=0,,(P66/$E$4)*'Customer Info'!$D$18),) -> 0 | AX66: =IF($F$5="dinner",IF(R66=0,,(R66/$E$6)*'Customer Info'!$D$18),) -> 0 | AY66: =IF($F$5="other",IF(S66=0,,(S66/$E$7)*'Customer Info'!$D$18),) -> 0 | AZ66: 0 | BA66: =IF($F$6="breakfast",IF(P66=0,,(P66/$E$4)*'Customer Info'!$D$19),) -> 0 | BB66: =IF($F$6="lunch",IF(Q66=0,,(Q66/$E$5)*'Customer Info'!$D$19),) -> 0 | BC66: =IF($F$6="other",IF(S66=0,,(S66/$E$7)*'Customer Info'!$D$19),) -> 0 | BD66: 0 | BE66: =IF($F$7="breakfast",IF(P66=0,,(P66/$E$4)*'Customer Info'!$D$20),) -> 0 | BF66: =IF($F$7="lunch",IF(Q66=0,,(Q66/$E$5)*'Customer Info'!$D$20),) -> 0 | BG66: =IF($F$7="dinner",IF(R66=0,,(R66/$E$6)*'Customer Info'!$D$20),) -> 0 | BH66: 0 | BI66: =IF($F$10="lunch",IF(U66=0,,(U66/$E$11)*'Customer Info'!$F$17),) -> 0 | BJ66: =IF($F$10="dinner",IF(V66=0,,(V66/$E$12)*'Customer Info'!$F$17),) -> 0 | BK66: =IF($F$10="other",IF(W66=0,,(W66/$E$13)*'Customer Info'!$F$17),) -> 0 | BL66: 0 | BM66: =IF($F$11="breakfast",IF(T66=0,,(T66/$E$10)*'Customer Info'!$F$18),) -> 0 | BN66: =IF($F$11="dinner",IF(V66=0,,(V66/$E$12)*'Customer Info'!$F$18),) -> 0 | BO66: =IF($F$11="other",IF(W66=0,,(W66/$E$13)*'Customer Info'!$F$18),) -> 0 | BP66: 0 | BQ66: =IF($F$12="breakfast",IF(T66=0,,(T66/$E$10)*'Customer Info'!$F$19),) -> 0 | BR66: =IF($F$12="lunch",IF(U66=0,,(U66/$E$11)*'Customer Info'!$F$19),) -> 0 | BS66: =IF($F$12="other",IF(W66=0,,(W66/$E$13)*'Customer Info'!$F$19),) -> 0 | BT66: 0 | BU66: =IF($F$13="breakfast",IF(T66=0,,(T66/$E$10)*'Customer Info'!$F$20),) -> 0 | BV66: =IF($F$13="lunch",IF(U66=0,,(U66/$E$11)*'Customer Info'!$F$20),) -> 0 | BW66: =IF($F$13="dinner",IF(V66=0,,(V66/$E$12)*'Customer Info'!$F$20),) -> 0 | BX66: 0 | BY66: =IF($F$16="lunch",IF(Y66=0,,(Y66/$E$17)*'Customer Info'!$H$17),) -> 0 | BZ66: =IF($F$16="dinner",IF(Z66=0,,(Z66/$E$18)*'Customer Info'!$H$17),) -> 0 | CA66: =IF($F$16="other",IF(AA66=0,,(AA66/$E$19)*'Customer Info'!$H$17),) -> 0 | CB66: 0 | CC66: =IF($F$17="breakfast",IF(X66=0,,(X66/$E$16)*'Customer Info'!$H$18),) -> 0 | CD66: =IF($F$17="dinner",IF(Z66=0,,(Z66/$E$18)*'Customer Info'!$H$18),) -> 0 | CE66: =IF($F$17="other",IF(AA66=0,,(AA66/$E$19)*'Customer Info'!$H$18),) -> 0 | CF66: 0 | CG66: =IF($F$18="breakfast",IF(X66=0,,(X66/$E$16)*'Customer Info'!$H$19),) -> 0 | CH66: =IF($F$18="lunch",IF(Y66=0,,(Y66/$E$17)*'Customer Info'!$H$19),) -> 0 | CI66: =IF($F$18="other",IF(AA66=0,,(AA66/$E$19)*'Customer Info'!$H$19),) -> 0 | CJ66: 0 | CK66: =IF($F$19="breakfast",IF(X66=0,,(X66/$E$16)*'Customer Info'!$H$20),) -> 0 | CL66: =IF($F$19="lunch",IF(Y66=0,,(Y66/$E$17)*'Customer Info'!$H$20),) -> 0 | CM66: =IF($F$19="dinner",IF(Z66=0,,(Z66/$E$18)*'Customer Info'!$H$20),) -> 0 | CN66: 0 | CO66: 0 | CP66: 0
J67: 0 | K67: 0 | L67: 0 | M67: 0 | N67: 0 | O67: 0 | P67: 0 | Q67: 0 | R67: 0 | S67: 0 | T67: 0 | U67: 0 | V67: 0 | W67: 0 | X67: 0 | Y67: 0 | Z67: 0 | AA67: 0 | AB67: =IF((OR($F$4=0,$F$4="none")),IF(P67=0,,IF(OR($E$4='Customer Info'!$D$17,$E$4=0),P67,(P67/$E$4)*'Customer Info'!$D$17)),) -> 0 | AC67: =IF((OR($F$5=0,$F$5="none")),IF(Q67=0,,IF(OR($E$5='Customer Info'!$D$18,$E$5=0),Q67,(Q67/$E$5)*'Customer Info'!$D$18)),) -> 0 | AD67: =IF((OR($F$6=0,$F$6="none")),IF(R67=0,,IF(OR($E$6='Customer Info'!$D$19,$E$6=0),R67,(R67/$E$6)*'Customer Info'!$D$19)),) -> 0 | AE67: =IF((OR($F$7=0,$F$7="none")),IF(S67=0,,IF(OR($E$7='Customer Info'!$D$20,$E$7=0),S67,(S67/$E$7)*'Customer Info'!$D$20)),) -> 0 | AF67: =IF((OR($F$10=0,$F$10="none")),IF(T67=0,,IF(OR($E$10='Customer Info'!$F$17,$E$10=0),T67,(T67/$E$10)*'Customer Info'!$F$17)),) -> 0 | AG67: =IF((OR($F$11=0,$F$11="none")),IF(U67=0,,IF(OR($E$11='Customer Info'!$F$18,$E$11=0),U67,(U67/$E$11)*'Customer Info'!$F$18)),) -> 0 | AH67: =IF((OR($F$12=0,$F$12="none")),IF(V67=0,,IF(OR($E$12='Customer Info'!$F$19,$E$12=0),V67,(V67/$E$12)*'Customer Info'!$F$19)),) -> 0 | AI67: =IF((OR($F$13=0,$F$13="none")),IF(W67=0,,IF(OR($E$13='Customer Info'!$F$20,$E$13=0),W67,(W67/$E$13)*'Customer Info'!$F$20)),) -> 0 | AJ67: =IF((OR($F$16=0,$F$16="none")),IF(X67=0,,IF(($E$16='Customer Info'!$H$17,$E$16=0),X67,(X67/$E$16)*'Customer Info'!$H$17)),) -> 0 | AK67: =IF((OR($F$17=0,$F$17="none")),IF(Y67=0,,IF(OR($E$17='Customer Info'!$H$18, $E$17=0),Y67,(Y67/$E$17)*'Customer Info'!$H$18)),) -> 0 | AL67: =IF((OR($F$18=0,$F$18="none")),IF(Z67=0,,IF(OR($E$18='Customer Info'!$H$19, $E$18=0),Z67,(Z67/$E$18)*'Customer Info'!$H$19)),) -> 0 | AM67: =IF((OR($F$19=0,$F$19="none")),IF(AA67=0,,IF(OR($E$19='Customer Info'!$H$20,$E$19=0),AA67,(AA67/$E$19)*'Customer Info'!$H$20)),) -> 0 | AN67: 0 | AO67: 0 | AP67: =IF(E67="plate waste",,IF('Customer Info'!$M$18=0,'Log Sheet'!AO67,'Customer Info'!$M$18*'Log Sheet'!AO67)) -> 0 | AQ67: =IF(E67="plate waste",IF(C67="dining area1",IF('Customer Info'!$L$30=0,AO67*'Customer Info'!$M$18,AO67*'Customer Info'!$L$30),IF(C67="dining area2",IF('Customer Info'!$L$31=0,AO67*'Customer Info'!$M$18,AO67*'Customer Info'!$L$31),IF(C67="Dining Area3",IF('Customer Info'!$L$32=0,AO67*'Customer Info'!$M$18,AO67*'Customer Info'!$L$32),))),) -> 0 | AR67: 0 | AS67: =IF($F$4="lunch",IF(Q67=0,,(Q67/$E$5)*'Customer Info'!$D$17),) -> 0 | AT67: =IF($F$4="dinner",IF(R67=0,,(R67/$E$6)*'Customer Info'!$D$17),) -> 0 | AU67: =IF($F$4="other",IF(S67=0,,(S67/$E$7)*'Customer Info'!$D$17),) -> 0 | AV67: 0 | AW67: =IF($F$5="breakfast",IF(P67=0,,(P67/$E$4)*'Customer Info'!$D$18),) -> 0 | AX67: =IF($F$5="dinner",IF(R67=0,,(R67/$E$6)*'Customer Info'!$D$18),) -> 0 | AY67: =IF($F$5="other",IF(S67=0,,(S67/$E$7)*'Customer Info'!$D$18),) -> 0 | AZ67: 0 | BA67: =IF($F$6="breakfast",IF(P67=0,,(P67/$E$4)*'Customer Info'!$D$19),) -> 0 | BB67: =IF($F$6="lunch",IF(Q67=0,,(Q67/$E$5)*'Customer Info'!$D$19),) -> 0 | BC67: =IF($F$6="other",IF(S67=0,,(S67/$E$7)*'Customer Info'!$D$19),) -> 0 | BD67: 0 | BE67: =IF($F$7="breakfast",IF(P67=0,,(P67/$E$4)*'Customer Info'!$D$20),) -> 0 | BF67: =IF($F$7="lunch",IF(Q67=0,,(Q67/$E$5)*'Customer Info'!$D$20),) -> 0 | BG67: =IF($F$7="dinner",IF(R67=0,,(R67/$E$6)*'Customer Info'!$D$20),) -> 0 | BH67: 0 | BI67: =IF($F$10="lunch",IF(U67=0,,(U67/$E$11)*'Customer Info'!$F$17),) -> 0 | BJ67: =IF($F$10="dinner",IF(V67=0,,(V67/$E$12)*'Customer Info'!$F$17),) -> 0 | BK67: =IF($F$10="other",IF(W67=0,,(W67/$E$13)*'Customer Info'!$F$17),) -> 0 | BL67: 0 | BM67: =IF($F$11="breakfast",IF(T67=0,,(T67/$E$10)*'Customer Info'!$F$18),) -> 0 | BN67: =IF($F$11="dinner",IF(V67=0,,(V67/$E$12)*'Customer Info'!$F$18),) -> 0 | BO67: =IF($F$11="other",IF(W67=0,,(W67/$E$13)*'Customer Info'!$F$18),) -> 0 | BP67: 0 | BQ67: =IF($F$12="breakfast",IF(T67=0,,(T67/$E$10)*'Customer Info'!$F$19),) -> 0 | BR67: =IF($F$12="lunch",IF(U67=0,,(U67/$E$11)*'Customer Info'!$F$19),) -> 0 | BS67: =IF($F$12="other",IF(W67=0,,(W67/$E$13)*'Customer Info'!$F$19),) -> 0 | BT67: 0 | BU67: =IF($F$13="breakfast",IF(T67=0,,(T67/$E$10)*'Customer Info'!$F$20),) -> 0 | BV67: =IF($F$13="lunch",IF(U67=0,,(U67/$E$11)*'Customer Info'!$F$20),) -> 0 | BW67: =IF($F$13="dinner",IF(V67=0,,(V67/$E$12)*'Customer Info'!$F$20),) -> 0 | BX67: 0 | BY67: =IF($F$16="lunch",IF(Y67=0,,(Y67/$E$17)*'Customer Info'!$H$17),) -> 0 | BZ67: =IF($F$16="dinner",IF(Z67=0,,(Z67/$E$18)*'Customer Info'!$H$17),) -> 0 | CA67: =IF($F$16="other",IF(AA67=0,,(AA67/$E$19)*'Customer Info'!$H$17),) -> 0 | CB67: 0 | CC67: =IF($F$17="breakfast",IF(X67=0,,(X67/$E$16)*'Customer Info'!$H$18),) -> 0 | CD67: =IF($F$17="dinner",IF(Z67=0,,(Z67/$E$18)*'Customer Info'!$H$18),) -> 0 | CE67: =IF($F$17="other",IF(AA67=0,,(AA67/$E$19)*'Customer Info'!$H$18),) -> 0 | CF67: 0 | CG67: =IF($F$18="breakfast",IF(X67=0,,(X67/$E$16)*'Customer Info'!$H$19),) -> 0 | CH67: =IF($F$18="lunch",IF(Y67=0,,(Y67/$E$17)*'Customer Info'!$H$19),) -> 0 | CI67: =IF($F$18="other",IF(AA67=0,,(AA67/$E$19)*'Customer Info'!$H$19),) -> 0 | CJ67: 0 | CK67: =IF($F$19="breakfast",IF(X67=0,,(X67/$E$16)*'Customer Info'!$H$20),) -> 0 | CL67: =IF($F$19="lunch",IF(Y67=0,,(Y67/$E$17)*'Customer Info'!$H$20),) -> 0 | CM67: =IF($F$19="dinner",IF(Z67=0,,(Z67/$E$18)*'Customer Info'!$H$20),) -> 0 | CN67: 0 | CO67: 0 | CP67: 0
J68: 0 | K68: 0 | L68: 0 | M68: 0 | N68: 0 | O68: 0 | P68: 0 | Q68: 0 | R68: 0 | S68: 0 | T68: 0 | U68: 0 | V68: 0 | W68: 0 | X68: 0 | Y68: 0 | Z68: 0 | AA68: 0 | AB68: =IF((OR($F$4=0,$F$4="none")),IF(P68=0,,IF(OR($E$4='Customer Info'!$D$17,$E$4=0),P68,(P68/$E$4)*'Customer Info'!$D$17)),) -> 0 | AC68: =IF((OR($F$5=0,$F$5="none")),IF(Q68=0,,IF(OR($E$5='Customer Info'!$D$18,$E$5=0),Q68,(Q68/$E$5)*'Customer Info'!$D$18)),) -> 0 | AD68: =IF((OR($F$6=0,$F$6="none")),IF(R68=0,,IF(OR($E$6='Customer Info'!$D$19,$E$6=0),R68,(R68/$E$6)*'Customer Info'!$D$19)),) -> 0 | AE68: =IF((OR($F$7=0,$F$7="none")),IF(S68=0,,IF(OR($E$7='Customer Info'!$D$20,$E$7=0),S68,(S68/$E$7)*'Customer Info'!$D$20)),) -> 0 | AF68: =IF((OR($F$10=0,$F$10="none")),IF(T68=0,,IF(OR($E$10='Customer Info'!$F$17,$E$10=0),T68,(T68/$E$10)*'Customer Info'!$F$17)),) -> 0 | AG68: =IF((OR($F$11=0,$F$11="none")),IF(U68=0,,IF(OR($E$11='Customer Info'!$F$18,$E$11=0),U68,(U68/$E$11)*'Customer Info'!$F$18)),) -> 0 | AH68: =IF((OR($F$12=0,$F$12="none")),IF(V68=0,,IF(OR($E$12='Customer Info'!$F$19,$E$12=0),V68,(V68/$E$12)*'Customer Info'!$F$19)),) -> 0 | AI68: =IF((OR($F$13=0,$F$13="none")),IF(W68=0,,IF(OR($E$13='Customer Info'!$F$20,$E$13=0),W68,(W68/$E$13)*'Customer Info'!$F$20)),) -> 0 | AJ68: =IF((OR($F$16=0,$F$16="none")),IF(X68=0,,IF(($E$16='Customer Info'!$H$17,$E$16=0),X68,(X68/$E$16)*'Customer Info'!$H$17)),) -> 0 | AK68: =IF((OR($F$17=0,$F$17="none")),IF(Y68=0,,IF(OR($E$17='Customer Info'!$H$18, $E$17=0),Y68,(Y68/$E$17)*'Customer Info'!$H$18)),) -> 0 | AL68: =IF((OR($F$18=0,$F$18="none")),IF(Z68=0,,IF(OR($E$18='Customer Info'!$H$19, $E$18=0),Z68,(Z68/$E$18)*'Customer Info'!$H$19)),) -> 0 | AM68: =IF((OR($F$19=0,$F$19="none")),IF(AA68=0,,IF(OR($E$19='Customer Info'!$H$20,$E$19=0),AA68,(AA68/$E$19)*'Customer Info'!$H$20)),) -> 0 | AN68: 0 | AO68: 0 | AP68: =IF(E68="plate waste",,IF('Customer Info'!$M$18=0,'Log Sheet'!AO68,'Customer Info'!$M$18*'Log Sheet'!AO68)) -> 0 | AQ68: =IF(E68="plate waste",IF(C68="dining area1",IF('Customer Info'!$L$30=0,AO68*'Customer Info'!$M$18,AO68*'Customer Info'!$L$30),IF(C68="dining area2",IF('Customer Info'!$L$31=0,AO68*'Customer Info'!$M$18,AO68*'Customer Info'!$L$31),IF(C68="Dining Area3",IF('Customer Info'!$L$32=0,AO68*'Customer Info'!$M$18,AO68*'Customer Info'!$L$32),))),) -> 0 | AR68: 0 | AS68: =IF($F$4="lunch",IF(Q68=0,,(Q68/$E$5)*'Customer Info'!$D$17),) -> 0 | AT68: =IF($F$4="dinner",IF(R68=0,,(R68/$E$6)*'Customer Info'!$D$17),) -> 0 | AU68: =IF($F$4="other",IF(S68=0,,(S68/$E$7)*'Customer Info'!$D$17),) -> 0 | AV68: 0 | AW68: =IF($F$5="breakfast",IF(P68=0,,(P68/$E$4)*'Customer Info'!$D$18),) -> 0 | AX68: =IF($F$5="dinner",IF(R68=0,,(R68/$E$6)*'Customer Info'!$D$18),) -> 0 | AY68: =IF($F$5="other",IF(S68=0,,(S68/$E$7)*'Customer Info'!$D$18),) -> 0 | AZ68: 0 | BA68: =IF($F$6="breakfast",IF(P68=0,,(P68/$E$4)*'Customer Info'!$D$19),) -> 0 | BB68: =IF($F$6="lunch",IF(Q68=0,,(Q68/$E$5)*'Customer Info'!$D$19),) -> 0 | BC68: =IF($F$6="other",IF(S68=0,,(S68/$E$7)*'Customer Info'!$D$19),) -> 0 | BD68: 0 | BE68: =IF($F$7="breakfast",IF(P68=0,,(P68/$E$4)*'Customer Info'!$D$20),) -> 0 | BF68: =IF($F$7="lunch",IF(Q68=0,,(Q68/$E$5)*'Customer Info'!$D$20),) -> 0 | BG68: =IF($F$7="dinner",IF(R68=0,,(R68/$E$6)*'Customer Info'!$D$20),) -> 0 | BH68: 0 | BI68: =IF($F$10="lunch",IF(U68=0,,(U68/$E$11)*'Customer Info'!$F$17),) -> 0 | BJ68: =IF($F$10="dinner",IF(V68=0,,(V68/$E$12)*'Customer Info'!$F$17),) -> 0 | BK68: =IF($F$10="other",IF(W68=0,,(W68/$E$13)*'Customer Info'!$F$17),) -> 0 | BL68: 0 | BM68: =IF($F$11="breakfast",IF(T68=0,,(T68/$E$10)*'Customer Info'!$F$18),) -> 0 | BN68: =IF($F$11="dinner",IF(V68=0,,(V68/$E$12)*'Customer Info'!$F$18),) -> 0 | BO68: =IF($F$11="other",IF(W68=0,,(W68/$E$13)*'Customer Info'!$F$18),) -> 0 | BP68: 0 | BQ68: =IF($F$12="breakfast",IF(T68=0,,(T68/$E$10)*'Customer Info'!$F$19),) -> 0 | BR68: =IF($F$12="lunch",IF(U68=0,,(U68/$E$11)*'Customer Info'!$F$19),) -> 0 | BS68: =IF($F$12="other",IF(W68=0,,(W68/$E$13)*'Customer Info'!$F$19),) -> 0 | BT68: 0 | BU68: =IF($F$13="breakfast",IF(T68=0,,(T68/$E$10)*'Customer Info'!$F$20),) -> 0 | BV68: =IF($F$13="lunch",IF(U68=0,,(U68/$E$11)*'Customer Info'!$F$20),) -> 0 | BW68: =IF($F$13="dinner",IF(V68=0,,(V68/$E$12)*'Customer Info'!$F$20),) -> 0 | BX68: 0 | BY68: =IF($F$16="lunch",IF(Y68=0,,(Y68/$E$17)*'Customer Info'!$H$17),) -> 0 | BZ68: =IF($F$16="dinner",IF(Z68=0,,(Z68/$E$18)*'Customer Info'!$H$17),) -> 0 | CA68: =IF($F$16="other",IF(AA68=0,,(AA68/$E$19)*'Customer Info'!$H$17),) -> 0 | CB68: 0 | CC68: =IF($F$17="breakfast",IF(X68=0,,(X68/$E$16)*'Customer Info'!$H$18),) -> 0 | CD68: =IF($F$17="dinner",IF(Z68=0,,(Z68/$E$18)*'Customer Info'!$H$18),) -> 0 | CE68: =IF($F$17="other",IF(AA68=0,,(AA68/$E$19)*'Customer Info'!$H$18),) -> 0 | CF68: 0 | CG68: =IF($F$18="breakfast",IF(X68=0,,(X68/$E$16)*'Customer Info'!$H$19),) -> 0 | CH68: =IF($F$18="lunch",IF(Y68=0,,(Y68/$E$17)*'Customer Info'!$H$19),) -> 0 | CI68: =IF($F$18="other",IF(AA68=0,,(AA68/$E$19)*'Customer Info'!$H$19),) -> 0 | CJ68: 0 | CK68: =IF($F$19="breakfast",IF(X68=0,,(X68/$E$16)*'Customer Info'!$H$20),) -> 0 | CL68: =IF($F$19="lunch",IF(Y68=0,,(Y68/$E$17)*'Customer Info'!$H$20),) -> 0 | CM68: =IF($F$19="dinner",IF(Z68=0,,(Z68/$E$18)*'Customer Info'!$H$20),) -> 0 | CN68: 0 | CO68: 0 | CP68: 0
J69: 0 | K69: 0 | L69: 0 | M69: 0 | N69: 0 | O69: 0 | P69: 0 | Q69: 0 | R69: 0 | S69: 0 | T69: 0 | U69: 0 | V69: 0 | W69: 0 | X69: 0 | Y69: 0 | Z69: 0 | AA69: 0 | AB69: =IF((OR($F$4=0,$F$4="none")),IF(P69=0,,IF(OR($E$4='Customer Info'!$D$17,$E$4=0),P69,(P69/$E$4)*'Customer Info'!$D$17)),) -> 0 | AC69: =IF((OR($F$5=0,$F$5="none")),IF(Q69=0,,IF(OR($E$5='Customer Info'!$D$18,$E$5=0),Q69,(Q69/$E$5)*'Customer Info'!$D$18)),) -> 0 | AD69: =IF((OR($F$6=0,$F$6="none")),IF(R69=0,,IF(OR($E$6='Customer Info'!$D$19,$E$6=0),R69,(R69/$E$6)*'Customer Info'!$D$19)),) -> 0 | AE69: =IF((OR($F$7=0,$F$7="none")),IF(S69=0,,IF(OR($E$7='Customer Info'!$D$20,$E$7=0),S69,(S69/$E$7)*'Customer Info'!$D$20)),) -> 0 | AF69: =IF((OR($F$10=0,$F$10="none")),IF(T69=0,,IF(OR($E$10='Customer Info'!$F$17,$E$10=0),T69,(T69/$E$10)*'Customer Info'!$F$17)),) -> 0 | AG69: =IF((OR($F$11=0,$F$11="none")),IF(U69=0,,IF(OR($E$11='Customer Info'!$F$18,$E$11=0),U69,(U69/$E$11)*'Customer Info'!$F$18)),) -> 0 | AH69: =IF((OR($F$12=0,$F$12="none")),IF(V69=0,,IF(OR($E$12='Customer Info'!$F$19,$E$12=0),V69,(V69/$E$12)*'Customer Info'!$F$19)),) -> 0 | AI69: =IF((OR($F$13=0,$F$13="none")),IF(W69=0,,IF(OR($E$13='Customer Info'!$F$20,$E$13=0),W69,(W69/$E$13)*'Customer Info'!$F$20)),) -> 0 | AJ69: =IF((OR($F$16=0,$F$16="none")),IF(X69=0,,IF(($E$16='Customer Info'!$H$17,$E$16=0),X69,(X69/$E$16)*'Customer Info'!$H$17)),) -> 0 | AK69: =IF((OR($F$17=0,$F$17="none")),IF(Y69=0,,IF(OR($E$17='Customer Info'!$H$18, $E$17=0),Y69,(Y69/$E$17)*'Customer Info'!$H$18)),) -> 0 | AL69: =IF((OR($F$18=0,$F$18="none")),IF(Z69=0,,IF(OR($E$18='Customer Info'!$H$19, $E$18=0),Z69,(Z69/$E$18)*'Customer Info'!$H$19)),) -> 0 | AM69: =IF((OR($F$19=0,$F$19="none")),IF(AA69=0,,IF(OR($E$19='Customer Info'!$H$20,$E$19=0),AA69,(AA69/$E$19)*'Customer Info'!$H$20)),) -> 0 | AN69: 0 | AO69: 0 | AP69: =IF(E69="plate waste",,IF('Customer Info'!$M$18=0,'Log Sheet'!AO69,'Customer Info'!$M$18*'Log Sheet'!AO69)) -> 0 | AQ69: =IF(E69="plate waste",IF(C69="dining area1",IF('Customer Info'!$L$30=0,AO69*'Customer Info'!$M$18,AO69*'Customer Info'!$L$30),IF(C69="dining area2",IF('Customer Info'!$L$31=0,AO69*'Customer Info'!$M$18,AO69*'Customer Info'!$L$31),IF(C69="Dining Area3",IF('Customer Info'!$L$32=0,AO69*'Customer Info'!$M$18,AO69*'Customer Info'!$L$32),))),) -> 0 | AR69: 0 | AS69: =IF($F$4="lunch",IF(Q69=0,,(Q69/$E$5)*'Customer Info'!$D$17),) -> 0 | AT69: =IF($F$4="dinner",IF(R69=0,,(R69/$E$6)*'Customer Info'!$D$17),) -> 0 | AU69: =IF($F$4="other",IF(S69=0,,(S69/$E$7)*'Customer Info'!$D$17),) -> 0 | AV69: 0 | AW69: =IF($F$5="breakfast",IF(P69=0,,(P69/$E$4)*'Customer Info'!$D$18),) -> 0 | AX69: =IF($F$5="dinner",IF(R69=0,,(R69/$E$6)*'Customer Info'!$D$18),) -> 0 | AY69: =IF($F$5="other",IF(S69=0,,(S69/$E$7)*'Customer Info'!$D$18),) -> 0 | AZ69: 0 | BA69: =IF($F$6="breakfast",IF(P69=0,,(P69/$E$4)*'Customer Info'!$D$19),) -> 0 | BB69: =IF($F$6="lunch",IF(Q69=0,,(Q69/$E$5)*'Customer Info'!$D$19),) -> 0 | BC69: =IF($F$6="other",IF(S69=0,,(S69/$E$7)*'Customer Info'!$D$19),) -> 0 | BD69: 0 | BE69: =IF($F$7="breakfast",IF(P69=0,,(P69/$E$4)*'Customer Info'!$D$20),) -> 0 | BF69: =IF($F$7="lunch",IF(Q69=0,,(Q69/$E$5)*'Customer Info'!$D$20),) -> 0 | BG69: =IF($F$7="dinner",IF(R69=0,,(R69/$E$6)*'Customer Info'!$D$20),) -> 0 | BH69: 0 | BI69: =IF($F$10="lunch",IF(U69=0,,(U69/$E$11)*'Customer Info'!$F$17),) -> 0 | BJ69: =IF($F$10="dinner",IF(V69=0,,(V69/$E$12)*'Customer Info'!$F$17),) -> 0 | BK69: =IF($F$10="other",IF(W69=0,,(W69/$E$13)*'Customer Info'!$F$17),) -> 0 | BL69: 0 | BM69: =IF($F$11="breakfast",IF(T69=0,,(T69/$E$10)*'Customer Info'!$F$18),) -> 0 | BN69: =IF($F$11="dinner",IF(V69=0,,(V69/$E$12)*'Customer Info'!$F$18),) -> 0 | BO69: =IF($F$11="other",IF(W69=0,,(W69/$E$13)*'Customer Info'!$F$18),) -> 0 | BP69: 0 | BQ69: =IF($F$12="breakfast",IF(T69=0,,(T69/$E$10)*'Customer Info'!$F$19),) -> 0 | BR69: =IF($F$12="lunch",IF(U69=0,,(U69/$E$11)*'Customer Info'!$F$19),) -> 0 | BS69: =IF($F$12="other",IF(W69=0,,(W69/$E$13)*'Customer Info'!$F$19),) -> 0 | BT69: 0 | BU69: =IF($F$13="breakfast",IF(T69=0,,(T69/$E$10)*'Customer Info'!$F$20),) -> 0 | BV69: =IF($F$13="lunch",IF(U69=0,,(U69/$E$11)*'Customer Info'!$F$20),) -> 0 | BW69: =IF($F$13="dinner",IF(V69=0,,(V69/$E$12)*'Customer Info'!$F$20),) -> 0 | BX69: 0 | BY69: =IF($F$16="lunch",IF(Y69=0,,(Y69/$E$17)*'Customer Info'!$H$17),) -> 0 | BZ69: =IF($F$16="dinner",IF(Z69=0,,(Z69/$E$18)*'Customer Info'!$H$17),) -> 0 | CA69: =IF($F$16="other",IF(AA69=0,,(AA69/$E$19)*'Customer Info'!$H$17),) -> 0 | CB69: 0 | CC69: =IF($F$17="breakfast",IF(X69=0,,(X69/$E$16)*'Customer Info'!$H$18),) -> 0 | CD69: =IF($F$17="dinner",IF(Z69=0,,(Z69/$E$18)*'Customer Info'!$H$18),) -> 0 | CE69: =IF($F$17="other",IF(AA69=0,,(AA69/$E$19)*'Customer Info'!$H$18),) -> 0 | CF69: 0 | CG69: =IF($F$18="breakfast",IF(X69=0,,(X69/$E$16)*'Customer Info'!$H$19),) -> 0 | CH69: =IF($F$18="lunch",IF(Y69=0,,(Y69/$E$17)*'Customer Info'!$H$19),) -> 0 | CI69: =IF($F$18="other",IF(AA69=0,,(AA69/$E$19)*'Customer Info'!$H$19),) -> 0 | CJ69: 0 | CK69: =IF($F$19="breakfast",IF(X69=0,,(X69/$E$16)*'Customer Info'!$H$20),) -> 0 | CL69: =IF($F$19="lunch",IF(Y69=0,,(Y69/$E$17)*'Customer Info'!$H$20),) -> 0 | CM69: =IF($F$19="dinner",IF(Z69=0,,(Z69/$E$18)*'Customer Info'!$H$20),) -> 0 | CN69: 0 | CO69: 0 | CP69: 0
J70: 0 | K70: 0 | L70: 0 | M70: 0 | N70: 0 | O70: 0 | P70: 0 | Q70: 0 | R70: 0 | S70: 0 | T70: 0 | U70: 0 | V70: 0 | W70: 0 | X70: 0 | Y70: 0 | Z70: 0 | AA70: 0 | AB70: =IF((OR($F$4=0,$F$4="none")),IF(P70=0,,IF(OR($E$4='Customer Info'!$D$17,$E$4=0),P70,(P70/$E$4)*'Customer Info'!$D$17)),) -> 0 | AC70: =IF((OR($F$5=0,$F$5="none")),IF(Q70=0,,IF(OR($E$5='Customer Info'!$D$18,$E$5=0),Q70,(Q70/$E$5)*'Customer Info'!$D$18)),) -> 0 | AD70: =IF((OR($F$6=0,$F$6="none")),IF(R70=0,,IF(OR($E$6='Customer Info'!$D$19,$E$6=0),R70,(R70/$E$6)*'Customer Info'!$D$19)),) -> 0 | AE70: =IF((OR($F$7=0,$F$7="none")),IF(S70=0,,IF(OR($E$7='Customer Info'!$D$20,$E$7=0),S70,(S70/$E$7)*'Customer Info'!$D$20)),) -> 0 | AF70: =IF((OR($F$10=0,$F$10="none")),IF(T70=0,,IF(OR($E$10='Customer Info'!$F$17,$E$10=0),T70,(T70/$E$10)*'Customer Info'!$F$17)),) -> 0 | AG70: =IF((OR($F$11=0,$F$11="none")),IF(U70=0,,IF(OR($E$11='Customer Info'!$F$18,$E$11=0),U70,(U70/$E$11)*'Customer Info'!$F$18)),) -> 0 | AH70: =IF((OR($F$12=0,$F$12="none")),IF(V70=0,,IF(OR($E$12='Customer Info'!$F$19,$E$12=0),V70,(V70/$E$12)*'Customer Info'!$F$19)),) -> 0 | AI70: =IF((OR($F$13=0,$F$13="none")),IF(W70=0,,IF(OR($E$13='Customer Info'!$F$20,$E$13=0),W70,(W70/$E$13)*'Customer Info'!$F$20)),) -> 0 | AJ70: =IF((OR($F$16=0,$F$16="none")),IF(X70=0,,IF(($E$16='Customer Info'!$H$17,$E$16=0),X70,(X70/$E$16)*'Customer Info'!$H$17)),) -> 0 | AK70: =IF((OR($F$17=0,$F$17="none")),IF(Y70=0,,IF(OR($E$17='Customer Info'!$H$18, $E$17=0),Y70,(Y70/$E$17)*'Customer Info'!$H$18)),) -> 0 | AL70: =IF((OR($F$18=0,$F$18="none")),IF(Z70=0,,IF(OR($E$18='Customer Info'!$H$19, $E$18=0),Z70,(Z70/$E$18)*'Customer Info'!$H$19)),) -> 0 | AM70: =IF((OR($F$19=0,$F$19="none")),IF(AA70=0,,IF(OR($E$19='Customer Info'!$H$20,$E$19=0),AA70,(AA70/$E$19)*'Customer Info'!$H$20)),) -> 0 | AN70: 0 | AO70: 0 | AP70: =IF(E70="plate waste",,IF('Customer Info'!$M$18=0,'Log Sheet'!AO70,'Customer Info'!$M$18*'Log Sheet'!AO70)) -> 0 | AQ70: =IF(E70="plate waste",IF(C70="dining area1",IF('Customer Info'!$L$30=0,AO70*'Customer Info'!$M$18,AO70*'Customer Info'!$L$30),IF(C70="dining area2",IF('Customer Info'!$L$31=0,AO70*'Customer Info'!$M$18,AO70*'Customer Info'!$L$31),IF(C70="Dining Area3",IF('Customer Info'!$L$32=0,AO70*'Customer Info'!$M$18,AO70*'Customer Info'!$L$32),))),) -> 0 | AR70: 0 | AS70: =IF($F$4="lunch",IF(Q70=0,,(Q70/$E$5)*'Customer Info'!$D$17),) -> 0 | AT70: =IF($F$4="dinner",IF(R70=0,,(R70/$E$6)*'Customer Info'!$D$17),) -> 0 | AU70: =IF($F$4="other",IF(S70=0,,(S70/$E$7)*'Customer Info'!$D$17),) -> 0 | AV70: 0 | AW70: =IF($F$5="breakfast",IF(P70=0,,(P70/$E$4)*'Customer Info'!$D$18),) -> 0 | AX70: =IF($F$5="dinner",IF(R70=0,,(R70/$E$6)*'Customer Info'!$D$18),) -> 0 | AY70: =IF($F$5="other",IF(S70=0,,(S70/$E$7)*'Customer Info'!$D$18),) -> 0 | AZ70: 0 | BA70: =IF($F$6="breakfast",IF(P70=0,,(P70/$E$4)*'Customer Info'!$D$19),) -> 0 | BB70: =IF($F$6="lunch",IF(Q70=0,,(Q70/$E$5)*'Customer Info'!$D$19),) -> 0 | BC70: =IF($F$6="other",IF(S70=0,,(S70/$E$7)*'Customer Info'!$D$19),) -> 0 | BD70: 0 | BE70: =IF($F$7="breakfast",IF(P70=0,,(P70/$E$4)*'Customer Info'!$D$20),) -> 0 | BF70: =IF($F$7="lunch",IF(Q70=0,,(Q70/$E$5)*'Customer Info'!$D$20),) -> 0 | BG70: =IF($F$7="dinner",IF(R70=0,,(R70/$E$6)*'Customer Info'!$D$20),) -> 0 | BH70: 0 | BI70: =IF($F$10="lunch",IF(U70=0,,(U70/$E$11)*'Customer Info'!$F$17),) -> 0 | BJ70: =IF($F$10="dinner",IF(V70=0,,(V70/$E$12)*'Customer Info'!$F$17),) -> 0 | BK70: =IF($F$10="other",IF(W70=0,,(W70/$E$13)*'Customer Info'!$F$17),) -> 0 | BL70: 0 | BM70: =IF($F$11="breakfast",IF(T70=0,,(T70/$E$10)*'Customer Info'!$F$18),) -> 0 | BN70: =IF($F$11="dinner",IF(V70=0,,(V70/$E$12)*'Customer Info'!$F$18),) -> 0 | BO70: =IF($F$11="other",IF(W70=0,,(W70/$E$13)*'Customer Info'!$F$18),) -> 0 | BP70: 0 | BQ70: =IF($F$12="breakfast",IF(T70=0,,(T70/$E$10)*'Customer Info'!$F$19),) -> 0 | BR70: =IF($F$12="lunch",IF(U70=0,,(U70/$E$11)*'Customer Info'!$F$19),) -> 0 | BS70: =IF($F$12="other",IF(W70=0,,(W70/$E$13)*'Customer Info'!$F$19),) -> 0 | BT70: 0 | BU70: =IF($F$13="breakfast",IF(T70=0,,(T70/$E$10)*'Customer Info'!$F$20),) -> 0 | BV70: =IF($F$13="lunch",IF(U70=0,,(U70/$E$11)*'Customer Info'!$F$20),) -> 0 | BW70: =IF($F$13="dinner",IF(V70=0,,(V70/$E$12)*'Customer Info'!$F$20),) -> 0 | BX70: 0 | BY70: =IF($F$16="lunch",IF(Y70=0,,(Y70/$E$17)*'Customer Info'!$H$17),) -> 0 | BZ70: =IF($F$16="dinner",IF(Z70=0,,(Z70/$E$18)*'Customer Info'!$H$17),) -> 0 | CA70: =IF($F$16="other",IF(AA70=0,,(AA70/$E$19)*'Customer Info'!$H$17),) -> 0 | CB70: 0 | CC70: =IF($F$17="breakfast",IF(X70=0,,(X70/$E$16)*'Customer Info'!$H$18),) -> 0 | CD70: =IF($F$17="dinner",IF(Z70=0,,(Z70/$E$18)*'Customer Info'!$H$18),) -> 0 | CE70: =IF($F$17="other",IF(AA70=0,,(AA70/$E$19)*'Customer Info'!$H$18),) -> 0 | CF70: 0 | CG70: =IF($F$18="breakfast",IF(X70=0,,(X70/$E$16)*'Customer Info'!$H$19),) -> 0 | CH70: =IF($F$18="lunch",IF(Y70=0,,(Y70/$E$17)*'Customer Info'!$H$19),) -> 0 | CI70: =IF($F$18="other",IF(AA70=0,,(AA70/$E$19)*'Customer Info'!$H$19),) -> 0 | CJ70: 0 | CK70: =IF($F$19="breakfast",IF(X70=0,,(X70/$E$16)*'Customer Info'!$H$20),) -> 0 | CL70: =IF($F$19="lunch",IF(Y70=0,,(Y70/$E$17)*'Customer Info'!$H$20),) -> 0 | CM70: =IF($F$19="dinner",IF(Z70=0,,(Z70/$E$18)*'Customer Info'!$H$20),) -> 0 | CN70: 0 | CO70: 0 | CP70: 0
J71: 0 | K71: 0 | L71: 0 | M71: 0 | N71: 0 | O71: 0 | P71: 0 | Q71: 0 | R71: 0 | S71: 0 | T71: 0 | U71: 0 | V71: 0 | W71: 0 | X71: 0 | Y71: 0 | Z71: 0 | AA71: 0 | AB71: =IF((OR($F$4=0,$F$4="none")),IF(P71=0,,IF(OR($E$4='Customer Info'!$D$17,$E$4=0),P71,(P71/$E$4)*'Customer Info'!$D$17)),) -> 0 | AC71: =IF((OR($F$5=0,$F$5="none")),IF(Q71=0,,IF(OR($E$5='Customer Info'!$D$18,$E$5=0),Q71,(Q71/$E$5)*'Customer Info'!$D$18)),) -> 0 | AD71: =IF((OR($F$6=0,$F$6="none")),IF(R71=0,,IF(OR($E$6='Customer Info'!$D$19,$E$6=0),R71,(R71/$E$6)*'Customer Info'!$D$19)),) -> 0 | AE71: =IF((OR($F$7=0,$F$7="none")),IF(S71=0,,IF(OR($E$7='Customer Info'!$D$20,$E$7=0),S71,(S71/$E$7)*'Customer Info'!$D$20)),) -> 0 | AF71: =IF((OR($F$10=0,$F$10="none")),IF(T71=0,,IF(OR($E$10='Customer Info'!$F$17,$E$10=0),T71,(T71/$E$10)*'Customer Info'!$F$17)),) -> 0 | AG71: =IF((OR($F$11=0,$F$11="none")),IF(U71=0,,IF(OR($E$11='Customer Info'!$F$18,$E$11=0),U71,(U71/$E$11)*'Customer Info'!$F$18)),) -> 0 | AH71: =IF((OR($F$12=0,$F$12="none")),IF(V71=0,,IF(OR($E$12='Customer Info'!$F$19,$E$12=0),V71,(V71/$E$12)*'Customer Info'!$F$19)),) -> 0 | AI71: =IF((OR($F$13=0,$F$13="none")),IF(W71=0,,IF(OR($E$13='Customer Info'!$F$20,$E$13=0),W71,(W71/$E$13)*'Customer Info'!$F$20)),) -> 0 | AJ71: =IF((OR($F$16=0,$F$16="none")),IF(X71=0,,IF(($E$16='Customer Info'!$H$17,$E$16=0),X71,(X71/$E$16)*'Customer Info'!$H$17)),) -> 0 | AK71: =IF((OR($F$17=0,$F$17="none")),IF(Y71=0,,IF(OR($E$17='Customer Info'!$H$18, $E$17=0),Y71,(Y71/$E$17)*'Customer Info'!$H$18)),) -> 0 | AL71: =IF((OR($F$18=0,$F$18="none")),IF(Z71=0,,IF(OR($E$18='Customer Info'!$H$19, $E$18=0),Z71,(Z71/$E$18)*'Customer Info'!$H$19)),) -> 0 | AM71: =IF((OR($F$19=0,$F$19="none")),IF(AA71=0,,IF(OR($E$19='Customer Info'!$H$20,$E$19=0),AA71,(AA71/$E$19)*'Customer Info'!$H$20)),) -> 0 | AN71: 0 | AO71: 0 | AP71: =IF(E71="plate waste",,IF('Customer Info'!$M$18=0,'Log Sheet'!AO71,'Customer Info'!$M$18*'Log Sheet'!AO71)) -> 0 | AQ71: =IF(E71="plate waste",IF(C71="dining area1",IF('Customer Info'!$L$30=0,AO71*'Customer Info'!$M$18,AO71*'Customer Info'!$L$30),IF(C71="dining area2",IF('Customer Info'!$L$31=0,AO71*'Customer Info'!$M$18,AO71*'Customer Info'!$L$31),IF(C71="Dining Area3",IF('Customer Info'!$L$32=0,AO71*'Customer Info'!$M$18,AO71*'Customer Info'!$L$32),))),) -> 0 | AR71: 0 | AS71: =IF($F$4="lunch",IF(Q71=0,,(Q71/$E$5)*'Customer Info'!$D$17),) -> 0 | AT71: =IF($F$4="dinner",IF(R71=0,,(R71/$E$6)*'Customer Info'!$D$17),) -> 0 | AU71: =IF($F$4="other",IF(S71=0,,(S71/$E$7)*'Customer Info'!$D$17),) -> 0 | AV71: 0 | AW71: =IF($F$5="breakfast",IF(P71=0,,(P71/$E$4)*'Customer Info'!$D$18),) -> 0 | AX71: =IF($F$5="dinner",IF(R71=0,,(R71/$E$6)*'Customer Info'!$D$18),) -> 0 | AY71: =IF($F$5="other",IF(S71=0,,(S71/$E$7)*'Customer Info'!$D$18),) -> 0 | AZ71: 0 | BA71: =IF($F$6="breakfast",IF(P71=0,,(P71/$E$4)*'Customer Info'!$D$19),) -> 0 | BB71: =IF($F$6="lunch",IF(Q71=0,,(Q71/$E$5)*'Customer Info'!$D$19),) -> 0 | BC71: =IF($F$6="other",IF(S71=0,,(S71/$E$7)*'Customer Info'!$D$19),) -> 0 | BD71: 0 | BE71: =IF($F$7="breakfast",IF(P71=0,,(P71/$E$4)*'Customer Info'!$D$20),) -> 0 | BF71: =IF($F$7="lunch",IF(Q71=0,,(Q71/$E$5)*'Customer Info'!$D$20),) -> 0 | BG71: =IF($F$7="dinner",IF(R71=0,,(R71/$E$6)*'Customer Info'!$D$20),) -> 0 | BH71: 0 | BI71: =IF($F$10="lunch",IF(U71=0,,(U71/$E$11)*'Customer Info'!$F$17),) -> 0 | BJ71: =IF($F$10="dinner",IF(V71=0,,(V71/$E$12)*'Customer Info'!$F$17),) -> 0 | BK71: =IF($F$10="other",IF(W71=0,,(W71/$E$13)*'Customer Info'!$F$17),) -> 0 | BL71: 0 | BM71: =IF($F$11="breakfast",IF(T71=0,,(T71/$E$10)*'Customer Info'!$F$18),) -> 0 | BN71: =IF($F$11="dinner",IF(V71=0,,(V71/$E$12)*'Customer Info'!$F$18),) -> 0 | BO71: =IF($F$11="other",IF(W71=0,,(W71/$E$13)*'Customer Info'!$F$18),) -> 0 | BP71: 0 | BQ71: =IF($F$12="breakfast",IF(T71=0,,(T71/$E$10)*'Customer Info'!$F$19),) -> 0 | BR71: =IF($F$12="lunch",IF(U71=0,,(U71/$E$11)*'Customer Info'!$F$19),) -> 0 | BS71: =IF($F$12="other",IF(W71=0,,(W71/$E$13)*'Customer Info'!$F$19),) -> 0 | BT71: 0 | BU71: =IF($F$13="breakfast",IF(T71=0,,(T71/$E$10)*'Customer Info'!$F$20),) -> 0 | BV71: =IF($F$13="lunch",IF(U71=0,,(U71/$E$11)*'Customer Info'!$F$20),) -> 0 | BW71: =IF($F$13="dinner",IF(V71=0,,(V71/$E$12)*'Customer Info'!$F$20),) -> 0 | BX71: 0 | BY71: =IF($F$16="lunch",IF(Y71=0,,(Y71/$E$17)*'Customer Info'!$H$17),) -> 0 | BZ71: =IF($F$16="dinner",IF(Z71=0,,(Z71/$E$18)*'Customer Info'!$H$17),) -> 0 | CA71: =IF($F$16="other",IF(AA71=0,,(AA71/$E$19)*'Customer Info'!$H$17),) -> 0 | CB71: 0 | CC71: =IF($F$17="breakfast",IF(X71=0,,(X71/$E$16)*'Customer Info'!$H$18),) -> 0 | CD71: =IF($F$17="dinner",IF(Z71=0,,(Z71/$E$18)*'Customer Info'!$H$18),) -> 0 | CE71: =IF($F$17="other",IF(AA71=0,,(AA71/$E$19)*'Customer Info'!$H$18),) -> 0 | CF71: 0 | CG71: =IF($F$18="breakfast",IF(X71=0,,(X71/$E$16)*'Customer Info'!$H$19),) -> 0 | CH71: =IF($F$18="lunch",IF(Y71=0,,(Y71/$E$17)*'Customer Info'!$H$19),) -> 0 | CI71: =IF($F$18="other",IF(AA71=0,,(AA71/$E$19)*'Customer Info'!$H$19),) -> 0 | CJ71: 0 | CK71: =IF($F$19="breakfast",IF(X71=0,,(X71/$E$16)*'Customer Info'!$H$20),) -> 0 | CL71: =IF($F$19="lunch",IF(Y71=0,,(Y71/$E$17)*'Customer Info'!$H$20),) -> 0 | CM71: =IF($F$19="dinner",IF(Z71=0,,(Z71/$E$18)*'Customer Info'!$H$20),) -> 0 | CN71: 0 | CO71: 0 | CP71: 0
J72: 0 | K72: 0 | L72: 0 | M72: 0 | N72: 0 | O72: 0 | P72: 0 | Q72: 0 | R72: 0 | S72: 0 | T72: 0 | U72: 0 | V72: 0 | W72: 0 | X72: 0 | Y72: 0 | Z72: 0 | AA72: 0 | AB72: =IF((OR($F$4=0,$F$4="none")),IF(P72=0,,IF(OR($E$4='Customer Info'!$D$17,$E$4=0),P72,(P72/$E$4)*'Customer Info'!$D$17)),) -> 0 | AC72: =IF((OR($F$5=0,$F$5="none")),IF(Q72=0,,IF(OR($E$5='Customer Info'!$D$18,$E$5=0),Q72,(Q72/$E$5)*'Customer Info'!$D$18)),) -> 0 | AD72: =IF((OR($F$6=0,$F$6="none")),IF(R72=0,,IF(OR($E$6='Customer Info'!$D$19,$E$6=0),R72,(R72/$E$6)*'Customer Info'!$D$19)),) -> 0 | AE72: =IF((OR($F$7=0,$F$7="none")),IF(S72=0,,IF(OR($E$7='Customer Info'!$D$20,$E$7=0),S72,(S72/$E$7)*'Customer Info'!$D$20)),) -> 0 | AF72: =IF((OR($F$10=0,$F$10="none")),IF(T72=0,,IF(OR($E$10='Customer Info'!$F$17,$E$10=0),T72,(T72/$E$10)*'Customer Info'!$F$17)),) -> 0 | AG72: =IF((OR($F$11=0,$F$11="none")),IF(U72=0,,IF(OR($E$11='Customer Info'!$F$18,$E$11=0),U72,(U72/$E$11)*'Customer Info'!$F$18)),) -> 0 | AH72: =IF((OR($F$12=0,$F$12="none")),IF(V72=0,,IF(OR($E$12='Customer Info'!$F$19,$E$12=0),V72,(V72/$E$12)*'Customer Info'!$F$19)),) -> 0 | AI72: =IF((OR($F$13=0,$F$13="none")),IF(W72=0,,IF(OR($E$13='Customer Info'!$F$20,$E$13=0),W72,(W72/$E$13)*'Customer Info'!$F$20)),) -> 0 | AJ72: =IF((OR($F$16=0,$F$16="none")),IF(X72=0,,IF(($E$16='Customer Info'!$H$17,$E$16=0),X72,(X72/$E$16)*'Customer Info'!$H$17)),) -> 0 | AK72: =IF((OR($F$17=0,$F$17="none")),IF(Y72=0,,IF(OR($E$17='Customer Info'!$H$18, $E$17=0),Y72,(Y72/$E$17)*'Customer Info'!$H$18)),) -> 0 | AL72: =IF((OR($F$18=0,$F$18="none")),IF(Z72=0,,IF(OR($E$18='Customer Info'!$H$19, $E$18=0),Z72,(Z72/$E$18)*'Customer Info'!$H$19)),) -> 0 | AM72: =IF((OR($F$19=0,$F$19="none")),IF(AA72=0,,IF(OR($E$19='Customer Info'!$H$20,$E$19=0),AA72,(AA72/$E$19)*'Customer Info'!$H$20)),) -> 0 | AN72: 0 | AO72: 0 | AP72: =IF(E72="plate waste",,IF('Customer Info'!$M$18=0,'Log Sheet'!AO72,'Customer Info'!$M$18*'Log Sheet'!AO72)) -> 0 | AQ72: =IF(E72="plate waste",IF(C72="dining area1",IF('Customer Info'!$L$30=0,AO72*'Customer Info'!$M$18,AO72*'Customer Info'!$L$30),IF(C72="dining area2",IF('Customer Info'!$L$31=0,AO72*'Customer Info'!$M$18,AO72*'Customer Info'!$L$31),IF(C72="Dining Area3",IF('Customer Info'!$L$32=0,AO72*'Customer Info'!$M$18,AO72*'Customer Info'!$L$32),))),) -> 0 | AR72: 0 | AS72: =IF($F$4="lunch",IF(Q72=0,,(Q72/$E$5)*'Customer Info'!$D$17),) -> 0 | AT72: =IF($F$4="dinner",IF(R72=0,,(R72/$E$6)*'Customer Info'!$D$17),) -> 0 | AU72: =IF($F$4="other",IF(S72=0,,(S72/$E$7)*'Customer Info'!$D$17),) -> 0 | AV72: 0 | AW72: =IF($F$5="breakfast",IF(P72=0,,(P72/$E$4)*'Customer Info'!$D$18),) -> 0 | AX72: =IF($F$5="dinner",IF(R72=0,,(R72/$E$6)*'Customer Info'!$D$18),) -> 0 | AY72: =IF($F$5="other",IF(S72=0,,(S72/$E$7)*'Customer Info'!$D$18),) -> 0 | AZ72: 0 | BA72: =IF($F$6="breakfast",IF(P72=0,,(P72/$E$4)*'Customer Info'!$D$19),) -> 0 | BB72: =IF($F$6="lunch",IF(Q72=0,,(Q72/$E$5)*'Customer Info'!$D$19),) -> 0 | BC72: =IF($F$6="other",IF(S72=0,,(S72/$E$7)*'Customer Info'!$D$19),) -> 0 | BD72: 0 | BE72: =IF($F$7="breakfast",IF(P72=0,,(P72/$E$4)*'Customer Info'!$D$20),) -> 0 | BF72: =IF($F$7="lunch",IF(Q72=0,,(Q72/$E$5)*'Customer Info'!$D$20),) -> 0 | BG72: =IF($F$7="dinner",IF(R72=0,,(R72/$E$6)*'Customer Info'!$D$20),) -> 0 | BH72: 0 | BI72: =IF($F$10="lunch",IF(U72=0,,(U72/$E$11)*'Customer Info'!$F$17),) -> 0 | BJ72: =IF($F$10="dinner",IF(V72=0,,(V72/$E$12)*'Customer Info'!$F$17),) -> 0 | BK72: =IF($F$10="other",IF(W72=0,,(W72/$E$13)*'Customer Info'!$F$17),) -> 0 | BL72: 0 | BM72: =IF($F$11="breakfast",IF(T72=0,,(T72/$E$10)*'Customer Info'!$F$18),) -> 0 | BN72: =IF($F$11="dinner",IF(V72=0,,(V72/$E$12)*'Customer Info'!$F$18),) -> 0 | BO72: =IF($F$11="other",IF(W72=0,,(W72/$E$13)*'Customer Info'!$F$18),) -> 0 | BP72: 0 | BQ72: =IF($F$12="breakfast",IF(T72=0,,(T72/$E$10)*'Customer Info'!$F$19),) -> 0 | BR72: =IF($F$12="lunch",IF(U72=0,,(U72/$E$11)*'Customer Info'!$F$19),) -> 0 | BS72: =IF($F$12="other",IF(W72=0,,(W72/$E$13)*'Customer Info'!$F$19),) -> 0 | BT72: 0 | BU72: =IF($F$13="breakfast",IF(T72=0,,(T72/$E$10)*'Customer Info'!$F$20),) -> 0 | BV72: =IF($F$13="lunch",IF(U72=0,,(U72/$E$11)*'Customer Info'!$F$20),) -> 0 | BW72: =IF($F$13="dinner",IF(V72=0,,(V72/$E$12)*'Customer Info'!$F$20),) -> 0 | BX72: 0 | BY72: =IF($F$16="lunch",IF(Y72=0,,(Y72/$E$17)*'Customer Info'!$H$17),) -> 0 | BZ72: =IF($F$16="dinner",IF(Z72=0,,(Z72/$E$18)*'Customer Info'!$H$17),) -> 0 | CA72: =IF($F$16="other",IF(AA72=0,,(AA72/$E$19)*'Customer Info'!$H$17),) -> 0 | CB72: 0 | CC72: =IF($F$17="breakfast",IF(X72=0,,(X72/$E$16)*'Customer Info'!$H$18),) -> 0 | CD72: =IF($F$17="dinner",IF(Z72=0,,(Z72/$E$18)*'Customer Info'!$H$18),) -> 0 | CE72: =IF($F$17="other",IF(AA72=0,,(AA72/$E$19)*'Customer Info'!$H$18),) -> 0 | CF72: 0 | CG72: =IF($F$18="breakfast",IF(X72=0,,(X72/$E$16)*'Customer Info'!$H$19),) -> 0 | CH72: =IF($F$18="lunch",IF(Y72=0,,(Y72/$E$17)*'Customer Info'!$H$19),) -> 0 | CI72: =IF($F$18="other",IF(AA72=0,,(AA72/$E$19)*'Customer Info'!$H$19),) -> 0 | CJ72: 0 | CK72: =IF($F$19="breakfast",IF(X72=0,,(X72/$E$16)*'Customer Info'!$H$20),) -> 0 | CL72: =IF($F$19="lunch",IF(Y72=0,,(Y72/$E$17)*'Customer Info'!$H$20),) -> 0 | CM72: =IF($F$19="dinner",IF(Z72=0,,(Z72/$E$18)*'Customer Info'!$H$20),) -> 0 | CN72: 0 | CO72: 0 | CP72: 0
J73: 0 | K73: 0 | L73: 0 | M73: 0 | N73: 0 | O73: 0 | P73: 0 | Q73: 0 | R73: 0 | S73: 0 | T73: 0 | U73: 0 | V73: 0 | W73: 0 | X73: 0 | Y73: 0 | Z73: 0 | AA73: 0 | AB73: =IF((OR($F$4=0,$F$4="none")),IF(P73=0,,IF(OR($E$4='Customer Info'!$D$17,$E$4=0),P73,(P73/$E$4)*'Customer Info'!$D$17)),) -> 0 | AC73: =IF((OR($F$5=0,$F$5="none")),IF(Q73=0,,IF(OR($E$5='Customer Info'!$D$18,$E$5=0),Q73,(Q73/$E$5)*'Customer Info'!$D$18)),) -> 0 | AD73: =IF((OR($F$6=0,$F$6="none")),IF(R73=0,,IF(OR($E$6='Customer Info'!$D$19,$E$6=0),R73,(R73/$E$6)*'Customer Info'!$D$19)),) -> 0 | AE73: =IF((OR($F$7=0,$F$7="none")),IF(S73=0,,IF(OR($E$7='Customer Info'!$D$20,$E$7=0),S73,(S73/$E$7)*'Customer Info'!$D$20)),) -> 0 | AF73: =IF((OR($F$10=0,$F$10="none")),IF(T73=0,,IF(OR($E$10='Customer Info'!$F$17,$E$10=0),T73,(T73/$E$10)*'Customer Info'!$F$17)),) -> 0 | AG73: =IF((OR($F$11=0,$F$11="none")),IF(U73=0,,IF(OR($E$11='Customer Info'!$F$18,$E$11=0),U73,(U73/$E$11)*'Customer Info'!$F$18)),) -> 0 | AH73: =IF((OR($F$12=0,$F$12="none")),IF(V73=0,,IF(OR($E$12='Customer Info'!$F$19,$E$12=0),V73,(V73/$E$12)*'Customer Info'!$F$19)),) -> 0 | AI73: =IF((OR($F$13=0,$F$13="none")),IF(W73=0,,IF(OR($E$13='Customer Info'!$F$20,$E$13=0),W73,(W73/$E$13)*'Customer Info'!$F$20)),) -> 0 | AJ73: =IF((OR($F$16=0,$F$16="none")),IF(X73=0,,IF(($E$16='Customer Info'!$H$17,$E$16=0),X73,(X73/$E$16)*'Customer Info'!$H$17)),) -> 0 | AK73: =IF((OR($F$17=0,$F$17="none")),IF(Y73=0,,IF(OR($E$17='Customer Info'!$H$18, $E$17=0),Y73,(Y73/$E$17)*'Customer Info'!$H$18)),) -> 0 | AL73: =IF((OR($F$18=0,$F$18="none")),IF(Z73=0,,IF(OR($E$18='Customer Info'!$H$19, $E$18=0),Z73,(Z73/$E$18)*'Customer Info'!$H$19)),) -> 0 | AM73: =IF((OR($F$19=0,$F$19="none")),IF(AA73=0,,IF(OR($E$19='Customer Info'!$H$20,$E$19=0),AA73,(AA73/$E$19)*'Customer Info'!$H$20)),) -> 0 | AN73: 0 | AO73: 0 | AP73: =IF(E73="plate waste",,IF('Customer Info'!$M$18=0,'Log Sheet'!AO73,'Customer Info'!$M$18*'Log Sheet'!AO73)) -> 0 | AQ73: =IF(E73="plate waste",IF(C73="dining area1",IF('Customer Info'!$L$30=0,AO73*'Customer Info'!$M$18,AO73*'Customer Info'!$L$30),IF(C73="dining area2",IF('Customer Info'!$L$31=0,AO73*'Customer Info'!$M$18,AO73*'Customer Info'!$L$31),IF(C73="Dining Area3",IF('Customer Info'!$L$32=0,AO73*'Customer Info'!$M$18,AO73*'Customer Info'!$L$32),))),) -> 0 | AR73: 0 | AS73: =IF($F$4="lunch",IF(Q73=0,,(Q73/$E$5)*'Customer Info'!$D$17),) -> 0 | AT73: =IF($F$4="dinner",IF(R73=0,,(R73/$E$6)*'Customer Info'!$D$17),) -> 0 | AU73: =IF($F$4="other",IF(S73=0,,(S73/$E$7)*'Customer Info'!$D$17),) -> 0 | AV73: 0 | AW73: =IF($F$5="breakfast",IF(P73=0,,(P73/$E$4)*'Customer Info'!$D$18),) -> 0 | AX73: =IF($F$5="dinner",IF(R73=0,,(R73/$E$6)*'Customer Info'!$D$18),) -> 0 | AY73: =IF($F$5="other",IF(S73=0,,(S73/$E$7)*'Customer Info'!$D$18),) -> 0 | AZ73: 0 | BA73: =IF($F$6="breakfast",IF(P73=0,,(P73/$E$4)*'Customer Info'!$D$19),) -> 0 | BB73: =IF($F$6="lunch",IF(Q73=0,,(Q73/$E$5)*'Customer Info'!$D$19),) -> 0 | BC73: =IF($F$6="other",IF(S73=0,,(S73/$E$7)*'Customer Info'!$D$19),) -> 0 | BD73: 0 | BE73: =IF($F$7="breakfast",IF(P73=0,,(P73/$E$4)*'Customer Info'!$D$20),) -> 0 | BF73: =IF($F$7="lunch",IF(Q73=0,,(Q73/$E$5)*'Customer Info'!$D$20),) -> 0 | BG73: =IF($F$7="dinner",IF(R73=0,,(R73/$E$6)*'Customer Info'!$D$20),) -> 0 | BH73: 0 | BI73: =IF($F$10="lunch",IF(U73=0,,(U73/$E$11)*'Customer Info'!$F$17),) -> 0 | BJ73: =IF($F$10="dinner",IF(V73=0,,(V73/$E$12)*'Customer Info'!$F$17),) -> 0 | BK73: =IF($F$10="other",IF(W73=0,,(W73/$E$13)*'Customer Info'!$F$17),) -> 0 | BL73: 0 | BM73: =IF($F$11="breakfast",IF(T73=0,,(T73/$E$10)*'Customer Info'!$F$18),) -> 0 | BN73: =IF($F$11="dinner",IF(V73=0,,(V73/$E$12)*'Customer Info'!$F$18),) -> 0 | BO73: =IF($F$11="other",IF(W73=0,,(W73/$E$13)*'Customer Info'!$F$18),) -> 0 | BP73: 0 | BQ73: =IF($F$12="breakfast",IF(T73=0,,(T73/$E$10)*'Customer Info'!$F$19),) -> 0 | BR73: =IF($F$12="lunch",IF(U73=0,,(U73/$E$11)*'Customer Info'!$F$19),) -> 0 | BS73: =IF($F$12="other",IF(W73=0,,(W73/$E$13)*'Customer Info'!$F$19),) -> 0 | BT73: 0 | BU73: =IF($F$13="breakfast",IF(T73=0,,(T73/$E$10)*'Customer Info'!$F$20),) -> 0 | BV73: =IF($F$13="lunch",IF(U73=0,,(U73/$E$11)*'Customer Info'!$F$20),) -> 0 | BW73: =IF($F$13="dinner",IF(V73=0,,(V73/$E$12)*'Customer Info'!$F$20),) -> 0 | BX73: 0 | BY73: =IF($F$16="lunch",IF(Y73=0,,(Y73/$E$17)*'Customer Info'!$H$17),) -> 0 | BZ73: =IF($F$16="dinner",IF(Z73=0,,(Z73/$E$18)*'Customer Info'!$H$17),) -> 0 | CA73: =IF($F$16="other",IF(AA73=0,,(AA73/$E$19)*'Customer Info'!$H$17),) -> 0 | CB73: 0 | CC73: =IF($F$17="breakfast",IF(X73=0,,(X73/$E$16)*'Customer Info'!$H$18),) -> 0 | CD73: =IF($F$17="dinner",IF(Z73=0,,(Z73/$E$18)*'Customer Info'!$H$18),) -> 0 | CE73: =IF($F$17="other",IF(AA73=0,,(AA73/$E$19)*'Customer Info'!$H$18),) -> 0 | CF73: 0 | CG73: =IF($F$18="breakfast",IF(X73=0,,(X73/$E$16)*'Customer Info'!$H$19),) -> 0 | CH73: =IF($F$18="lunch",IF(Y73=0,,(Y73/$E$17)*'Customer Info'!$H$19),) -> 0 | CI73: =IF($F$18="other",IF(AA73=0,,(AA73/$E$19)*'Customer Info'!$H$19),) -> 0 | CJ73: 0 | CK73: =IF($F$19="breakfast",IF(X73=0,,(X73/$E$16)*'Customer Info'!$H$20),) -> 0 | CL73: =IF($F$19="lunch",IF(Y73=0,,(Y73/$E$17)*'Customer Info'!$H$20),) -> 0 | CM73: =IF($F$19="dinner",IF(Z73=0,,(Z73/$E$18)*'Customer Info'!$H$20),) -> 0 | CN73: 0 | CO73: 0 | CP73: 0
J74: 0 | K74: 0 | L74: 0 | M74: 0 | N74: 0 | O74: 0 | P74: 0 | Q74: 0 | R74: 0 | S74: 0 | T74: 0 | U74: 0 | V74: 0 | W74: 0 | X74: 0 | Y74: 0 | Z74: 0 | AA74: 0 | AB74: =IF((OR($F$4=0,$F$4="none")),IF(P74=0,,IF(OR($E$4='Customer Info'!$D$17,$E$4=0),P74,(P74/$E$4)*'Customer Info'!$D$17)),) -> 0 | AC74: =IF((OR($F$5=0,$F$5="none")),IF(Q74=0,,IF(OR($E$5='Customer Info'!$D$18,$E$5=0),Q74,(Q74/$E$5)*'Customer Info'!$D$18)),) -> 0 | AD74: =IF((OR($F$6=0,$F$6="none")),IF(R74=0,,IF(OR($E$6='Customer Info'!$D$19,$E$6=0),R74,(R74/$E$6)*'Customer Info'!$D$19)),) -> 0 | AE74: =IF((OR($F$7=0,$F$7="none")),IF(S74=0,,IF(OR($E$7='Customer Info'!$D$20,$E$7=0),S74,(S74/$E$7)*'Customer Info'!$D$20)),) -> 0 | AF74: =IF((OR($F$10=0,$F$10="none")),IF(T74=0,,IF(OR($E$10='Customer Info'!$F$17,$E$10=0),T74,(T74/$E$10)*'Customer Info'!$F$17)),) -> 0 | AG74: =IF((OR($F$11=0,$F$11="none")),IF(U74=0,,IF(OR($E$11='Customer Info'!$F$18,$E$11=0),U74,(U74/$E$11)*'Customer Info'!$F$18)),) -> 0 | AH74: =IF((OR($F$12=0,$F$12="none")),IF(V74=0,,IF(OR($E$12='Customer Info'!$F$19,$E$12=0),V74,(V74/$E$12)*'Customer Info'!$F$19)),) -> 0 | AI74: =IF((OR($F$13=0,$F$13="none")),IF(W74=0,,IF(OR($E$13='Customer Info'!$F$20,$E$13=0),W74,(W74/$E$13)*'Customer Info'!$F$20)),) -> 0 | AJ74: =IF((OR($F$16=0,$F$16="none")),IF(X74=0,,IF(($E$16='Customer Info'!$H$17,$E$16=0),X74,(X74/$E$16)*'Customer Info'!$H$17)),) -> 0 | AK74: =IF((OR($F$17=0,$F$17="none")),IF(Y74=0,,IF(OR($E$17='Customer Info'!$H$18, $E$17=0),Y74,(Y74/$E$17)*'Customer Info'!$H$18)),) -> 0 | AL74: =IF((OR($F$18=0,$F$18="none")),IF(Z74=0,,IF(OR($E$18='Customer Info'!$H$19, $E$18=0),Z74,(Z74/$E$18)*'Customer Info'!$H$19)),) -> 0 | AM74: =IF((OR($F$19=0,$F$19="none")),IF(AA74=0,,IF(OR($E$19='Customer Info'!$H$20,$E$19=0),AA74,(AA74/$E$19)*'Customer Info'!$H$20)),) -> 0 | AN74: 0 | AO74: 0 | AP74: =IF(E74="plate waste",,IF('Customer Info'!$M$18=0,'Log Sheet'!AO74,'Customer Info'!$M$18*'Log Sheet'!AO74)) -> 0 | AQ74: =IF(E74="plate waste",IF(C74="dining area1",IF('Customer Info'!$L$30=0,AO74*'Customer Info'!$M$18,AO74*'Customer Info'!$L$30),IF(C74="dining area2",IF('Customer Info'!$L$31=0,AO74*'Customer Info'!$M$18,AO74*'Customer Info'!$L$31),IF(C74="Dining Area3",IF('Customer Info'!$L$32=0,AO74*'Customer Info'!$M$18,AO74*'Customer Info'!$L$32),))),) -> 0 | AR74: 0 | AS74: =IF($F$4="lunch",IF(Q74=0,,(Q74/$E$5)*'Customer Info'!$D$17),) -> 0 | AT74: =IF($F$4="dinner",IF(R74=0,,(R74/$E$6)*'Customer Info'!$D$17),) -> 0 | AU74: =IF($F$4="other",IF(S74=0,,(S74/$E$7)*'Customer Info'!$D$17),) -> 0 | AV74: 0 | AW74: =IF($F$5="breakfast",IF(P74=0,,(P74/$E$4)*'Customer Info'!$D$18),) -> 0 | AX74: =IF($F$5="dinner",IF(R74=0,,(R74/$E$6)*'Customer Info'!$D$18),) -> 0 | AY74: =IF($F$5="other",IF(S74=0,,(S74/$E$7)*'Customer Info'!$D$18),) -> 0 | AZ74: 0 | BA74: =IF($F$6="breakfast",IF(P74=0,,(P74/$E$4)*'Customer Info'!$D$19),) -> 0 | BB74: =IF($F$6="lunch",IF(Q74=0,,(Q74/$E$5)*'Customer Info'!$D$19),) -> 0 | BC74: =IF($F$6="other",IF(S74=0,,(S74/$E$7)*'Customer Info'!$D$19),) -> 0 | BD74: 0 | BE74: =IF($F$7="breakfast",IF(P74=0,,(P74/$E$4)*'Customer Info'!$D$20),) -> 0 | BF74: =IF($F$7="lunch",IF(Q74=0,,(Q74/$E$5)*'Customer Info'!$D$20),) -> 0 | BG74: =IF($F$7="dinner",IF(R74=0,,(R74/$E$6)*'Customer Info'!$D$20),) -> 0 | BH74: 0 | BI74: =IF($F$10="lunch",IF(U74=0,,(U74/$E$11)*'Customer Info'!$F$17),) -> 0 | BJ74: =IF($F$10="dinner",IF(V74=0,,(V74/$E$12)*'Customer Info'!$F$17),) -> 0 | BK74: =IF($F$10="other",IF(W74=0,,(W74/$E$13)*'Customer Info'!$F$17),) -> 0 | BL74: 0 | BM74: =IF($F$11="breakfast",IF(T74=0,,(T74/$E$10)*'Customer Info'!$F$18),) -> 0 | BN74: =IF($F$11="dinner",IF(V74=0,,(V74/$E$12)*'Customer Info'!$F$18),) -> 0 | BO74: =IF($F$11="other",IF(W74=0,,(W74/$E$13)*'Customer Info'!$F$18),) -> 0 | BP74: 0 | BQ74: =IF($F$12="breakfast",IF(T74=0,,(T74/$E$10)*'Customer Info'!$F$19),) -> 0 | BR74: =IF($F$12="lunch",IF(U74=0,,(U74/$E$11)*'Customer Info'!$F$19),) -> 0 | BS74: =IF($F$12="other",IF(W74=0,,(W74/$E$13)*'Customer Info'!$F$19),) -> 0 | BT74: 0 | BU74: =IF($F$13="breakfast",IF(T74=0,,(T74/$E$10)*'Customer Info'!$F$20),) -> 0 | BV74: =IF($F$13="lunch",IF(U74=0,,(U74/$E$11)*'Customer Info'!$F$20),) -> 0 | BW74: =IF($F$13="dinner",IF(V74=0,,(V74/$E$12)*'Customer Info'!$F$20),) -> 0 | BX74: 0 | BY74: =IF($F$16="lunch",IF(Y74=0,,(Y74/$E$17)*'Customer Info'!$H$17),) -> 0 | BZ74: =IF($F$16="dinner",IF(Z74=0,,(Z74/$E$18)*'Customer Info'!$H$17),) -> 0 | CA74: =IF($F$16="other",IF(AA74=0,,(AA74/$E$19)*'Customer Info'!$H$17),) -> 0 | CB74: 0 | CC74: =IF($F$17="breakfast",IF(X74=0,,(X74/$E$16)*'Customer Info'!$H$18),) -> 0 | CD74: =IF($F$17="dinner",IF(Z74=0,,(Z74/$E$18)*'Customer Info'!$H$18),) -> 0 | CE74: =IF($F$17="other",IF(AA74=0,,(AA74/$E$19)*'Customer Info'!$H$18),) -> 0 | CF74: 0 | CG74: =IF($F$18="breakfast",IF(X74=0,,(X74/$E$16)*'Customer Info'!$H$19),) -> 0 | CH74: =IF($F$18="lunch",IF(Y74=0,,(Y74/$E$17)*'Customer Info'!$H$19),) -> 0 | CI74: =IF($F$18="other",IF(AA74=0,,(AA74/$E$19)*'Customer Info'!$H$19),) -> 0 | CJ74: 0 | CK74: =IF($F$19="breakfast",IF(X74=0,,(X74/$E$16)*'Customer Info'!$H$20),) -> 0 | CL74: =IF($F$19="lunch",IF(Y74=0,,(Y74/$E$17)*'Customer Info'!$H$20),) -> 0 | CM74: =IF($F$19="dinner",IF(Z74=0,,(Z74/$E$18)*'Customer Info'!$H$20),) -> 0 | CN74: 0 | CO74: 0 | CP74: 0
J75: 0 | K75: 0 | L75: 0 | M75: 0 | N75: 0 | O75: 0 | P75: 0 | Q75: 0 | R75: 0 | S75: 0 | T75: 0 | U75: 0 | V75: 0 | W75: 0 | X75: 0 | Y75: 0 | Z75: 0 | AA75: 0 | AB75: =IF((OR($F$4=0,$F$4="none")),IF(P75=0,,IF(OR($E$4='Customer Info'!$D$17,$E$4=0),P75,(P75/$E$4)*'Customer Info'!$D$17)),) -> 0 | AC75: =IF((OR($F$5=0,$F$5="none")),IF(Q75=0,,IF(OR($E$5='Customer Info'!$D$18,$E$5=0),Q75,(Q75/$E$5)*'Customer Info'!$D$18)),) -> 0 | AD75: =IF((OR($F$6=0,$F$6="none")),IF(R75=0,,IF(OR($E$6='Customer Info'!$D$19,$E$6=0),R75,(R75/$E$6)*'Customer Info'!$D$19)),) -> 0 | AE75: =IF((OR($F$7=0,$F$7="none")),IF(S75=0,,IF(OR($E$7='Customer Info'!$D$20,$E$7=0),S75,(S75/$E$7)*'Customer Info'!$D$20)),) -> 0 | AF75: =IF((OR($F$10=0,$F$10="none")),IF(T75=0,,IF(OR($E$10='Customer Info'!$F$17,$E$10=0),T75,(T75/$E$10)*'Customer Info'!$F$17)),) -> 0 | AG75: =IF((OR($F$11=0,$F$11="none")),IF(U75=0,,IF(OR($E$11='Customer Info'!$F$18,$E$11=0),U75,(U75/$E$11)*'Customer Info'!$F$18)),) -> 0 | AH75: =IF((OR($F$12=0,$F$12="none")),IF(V75=0,,IF(OR($E$12='Customer Info'!$F$19,$E$12=0),V75,(V75/$E$12)*'Customer Info'!$F$19)),) -> 0 | AI75: =IF((OR($F$13=0,$F$13="none")),IF(W75=0,,IF(OR($E$13='Customer Info'!$F$20,$E$13=0),W75,(W75/$E$13)*'Customer Info'!$F$20)),) -> 0 | AJ75: =IF((OR($F$16=0,$F$16="none")),IF(X75=0,,IF(($E$16='Customer Info'!$H$17,$E$16=0),X75,(X75/$E$16)*'Customer Info'!$H$17)),) -> 0 | AK75: =IF((OR($F$17=0,$F$17="none")),IF(Y75=0,,IF(OR($E$17='Customer Info'!$H$18, $E$17=0),Y75,(Y75/$E$17)*'Customer Info'!$H$18)),) -> 0 | AL75: =IF((OR($F$18=0,$F$18="none")),IF(Z75=0,,IF(OR($E$18='Customer Info'!$H$19, $E$18=0),Z75,(Z75/$E$18)*'Customer Info'!$H$19)),) -> 0 | AM75: =IF((OR($F$19=0,$F$19="none")),IF(AA75=0,,IF(OR($E$19='Customer Info'!$H$20,$E$19=0),AA75,(AA75/$E$19)*'Customer Info'!$H$20)),) -> 0 | AN75: 0 | AO75: 0 | AP75: =IF(E75="plate waste",,IF('Customer Info'!$M$18=0,'Log Sheet'!AO75,'Customer Info'!$M$18*'Log Sheet'!AO75)) -> 0 | AQ75: =IF(E75="plate waste",IF(C75="dining area1",IF('Customer Info'!$L$30=0,AO75*'Customer Info'!$M$18,AO75*'Customer Info'!$L$30),IF(C75="dining area2",IF('Customer Info'!$L$31=0,AO75*'Customer Info'!$M$18,AO75*'Customer Info'!$L$31),IF(C75="Dining Area3",IF('Customer Info'!$L$32=0,AO75*'Customer Info'!$M$18,AO75*'Customer Info'!$L$32),))),) -> 0 | AR75: 0 | AS75: =IF($F$4="lunch",IF(Q75=0,,(Q75/$E$5)*'Customer Info'!$D$17),) -> 0 | AT75: =IF($F$4="dinner",IF(R75=0,,(R75/$E$6)*'Customer Info'!$D$17),) -> 0 | AU75: =IF($F$4="other",IF(S75=0,,(S75/$E$7)*'Customer Info'!$D$17),) -> 0 | AV75: 0 | AW75: =IF($F$5="breakfast",IF(P75=0,,(P75/$E$4)*'Customer Info'!$D$18),) -> 0 | AX75: =IF($F$5="dinner",IF(R75=0,,(R75/$E$6)*'Customer Info'!$D$18),) -> 0 | AY75: =IF($F$5="other",IF(S75=0,,(S75/$E$7)*'Customer Info'!$D$18),) -> 0 | AZ75: 0 | BA75: =IF($F$6="breakfast",IF(P75=0,,(P75/$E$4)*'Customer Info'!$D$19),) -> 0 | BB75: =IF($F$6="lunch",IF(Q75=0,,(Q75/$E$5)*'Customer Info'!$D$19),) -> 0 | BC75: =IF($F$6="other",IF(S75=0,,(S75/$E$7)*'Customer Info'!$D$19),) -> 0 | BD75: 0 | BE75: =IF($F$7="breakfast",IF(P75=0,,(P75/$E$4)*'Customer Info'!$D$20),) -> 0 | BF75: =IF($F$7="lunch",IF(Q75=0,,(Q75/$E$5)*'Customer Info'!$D$20),) -> 0 | BG75: =IF($F$7="dinner",IF(R75=0,,(R75/$E$6)*'Customer Info'!$D$20),) -> 0 | BH75: 0 | BI75: =IF($F$10="lunch",IF(U75=0,,(U75/$E$11)*'Customer Info'!$F$17),) -> 0 | BJ75: =IF($F$10="dinner",IF(V75=0,,(V75/$E$12)*'Customer Info'!$F$17),) -> 0 | BK75: =IF($F$10="other",IF(W75=0,,(W75/$E$13)*'Customer Info'!$F$17),) -> 0 | BL75: 0 | BM75: =IF($F$11="breakfast",IF(T75=0,,(T75/$E$10)*'Customer Info'!$F$18),) -> 0 | BN75: =IF($F$11="dinner",IF(V75=0,,(V75/$E$12)*'Customer Info'!$F$18),) -> 0 | BO75: =IF($F$11="other",IF(W75=0,,(W75/$E$13)*'Customer Info'!$F$18),) -> 0 | BP75: 0 | BQ75: =IF($F$12="breakfast",IF(T75=0,,(T75/$E$10)*'Customer Info'!$F$19),) -> 0 | BR75: =IF($F$12="lunch",IF(U75=0,,(U75/$E$11)*'Customer Info'!$F$19),) -> 0 | BS75: =IF($F$12="other",IF(W75=0,,(W75/$E$13)*'Customer Info'!$F$19),) -> 0 | BT75: 0 | BU75: =IF($F$13="breakfast",IF(T75=0,,(T75/$E$10)*'Customer Info'!$F$20),) -> 0 | BV75: =IF($F$13="lunch",IF(U75=0,,(U75/$E$11)*'Customer Info'!$F$20),) -> 0 | BW75: =IF($F$13="dinner",IF(V75=0,,(V75/$E$12)*'Customer Info'!$F$20),) -> 0 | BX75: 0 | BY75: =IF($F$16="lunch",IF(Y75=0,,(Y75/$E$17)*'Customer Info'!$H$17),) -> 0 | BZ75: =IF($F$16="dinner",IF(Z75=0,,(Z75/$E$18)*'Customer Info'!$H$17),) -> 0 | CA75: =IF($F$16="other",IF(AA75=0,,(AA75/$E$19)*'Customer Info'!$H$17),) -> 0 | CB75: 0 | CC75: =IF($F$17="breakfast",IF(X75=0,,(X75/$E$16)*'Customer Info'!$H$18),) -> 0 | CD75: =IF($F$17="dinner",IF(Z75=0,,(Z75/$E$18)*'Customer Info'!$H$18),) -> 0 | CE75: =IF($F$17="other",IF(AA75=0,,(AA75/$E$19)*'Customer Info'!$H$18),) -> 0 | CF75: 0 | CG75: =IF($F$18="breakfast",IF(X75=0,,(X75/$E$16)*'Customer Info'!$H$19),) -> 0 | CH75: =IF($F$18="lunch",IF(Y75=0,,(Y75/$E$17)*'Customer Info'!$H$19),) -> 0 | CI75: =IF($F$18="other",IF(AA75=0,,(AA75/$E$19)*'Customer Info'!$H$19),) -> 0 | CJ75: 0 | CK75: =IF($F$19="breakfast",IF(X75=0,,(X75/$E$16)*'Customer Info'!$H$20),) -> 0 | CL75: =IF($F$19="lunch",IF(Y75=0,,(Y75/$E$17)*'Customer Info'!$H$20),) -> 0 | CM75: =IF($F$19="dinner",IF(Z75=0,,(Z75/$E$18)*'Customer Info'!$H$20),) -> 0 | CN75: 0 | CO75: 0 | CP75: 0
J76: 0 | K76: 0 | L76: 0 | M76: 0 | N76: 0 | O76: 0 | P76: 0 | Q76: 0 | R76: 0 | S76: 0 | T76: 0 | U76: 0 | V76: 0 | W76: 0 | X76: 0 | Y76: 0 | Z76: 0 | AA76: 0 | AB76: =IF((OR($F$4=0,$F$4="none")),IF(P76=0,,IF(OR($E$4='Customer Info'!$D$17,$E$4=0),P76,(P76/$E$4)*'Customer Info'!$D$17)),) -> 0 | AC76: =IF((OR($F$5=0,$F$5="none")),IF(Q76=0,,IF(OR($E$5='Customer Info'!$D$18,$E$5=0),Q76,(Q76/$E$5)*'Customer Info'!$D$18)),) -> 0 | AD76: =IF((OR($F$6=0,$F$6="none")),IF(R76=0,,IF(OR($E$6='Customer Info'!$D$19,$E$6=0),R76,(R76/$E$6)*'Customer Info'!$D$19)),) -> 0 | AE76: =IF((OR($F$7=0,$F$7="none")),IF(S76=0,,IF(OR($E$7='Customer Info'!$D$20,$E$7=0),S76,(S76/$E$7)*'Customer Info'!$D$20)),) -> 0 | AF76: =IF((OR($F$10=0,$F$10="none")),IF(T76=0,,IF(OR($E$10='Customer Info'!$F$17,$E$10=0),T76,(T76/$E$10)*'Customer Info'!$F$17)),) -> 0 | AG76: =IF((OR($F$11=0,$F$11="none")),IF(U76=0,,IF(OR($E$11='Customer Info'!$F$18,$E$11=0),U76,(U76/$E$11)*'Customer Info'!$F$18)),) -> 0 | AH76: =IF((OR($F$12=0,$F$12="none")),IF(V76=0,,IF(OR($E$12='Customer Info'!$F$19,$E$12=0),V76,(V76/$E$12)*'Customer Info'!$F$19)),) -> 0 | AI76: =IF((OR($F$13=0,$F$13="none")),IF(W76=0,,IF(OR($E$13='Customer Info'!$F$20,$E$13=0),W76,(W76/$E$13)*'Customer Info'!$F$20)),) -> 0 | AJ76: =IF((OR($F$16=0,$F$16="none")),IF(X76=0,,IF(($E$16='Customer Info'!$H$17,$E$16=0),X76,(X76/$E$16)*'Customer Info'!$H$17)),) -> 0 | AK76: =IF((OR($F$17=0,$F$17="none")),IF(Y76=0,,IF(OR($E$17='Customer Info'!$H$18, $E$17=0),Y76,(Y76/$E$17)*'Customer Info'!$H$18)),) -> 0 | AL76: =IF((OR($F$18=0,$F$18="none")),IF(Z76=0,,IF(OR($E$18='Customer Info'!$H$19, $E$18=0),Z76,(Z76/$E$18)*'Customer Info'!$H$19)),) -> 0 | AM76: =IF((OR($F$19=0,$F$19="none")),IF(AA76=0,,IF(OR($E$19='Customer Info'!$H$20,$E$19=0),AA76,(AA76/$E$19)*'Customer Info'!$H$20)),) -> 0 | AN76: 0 | AO76: 0 | AP76: =IF(E76="plate waste",,IF('Customer Info'!$M$18=0,'Log Sheet'!AO76,'Customer Info'!$M$18*'Log Sheet'!AO76)) -> 0 | AQ76: =IF(E76="plate waste",IF(C76="dining area1",IF('Customer Info'!$L$30=0,AO76*'Customer Info'!$M$18,AO76*'Customer Info'!$L$30),IF(C76="dining area2",IF('Customer Info'!$L$31=0,AO76*'Customer Info'!$M$18,AO76*'Customer Info'!$L$31),IF(C76="Dining Area3",IF('Customer Info'!$L$32=0,AO76*'Customer Info'!$M$18,AO76*'Customer Info'!$L$32),))),) -> 0 | AR76: 0 | AS76: =IF($F$4="lunch",IF(Q76=0,,(Q76/$E$5)*'Customer Info'!$D$17),) -> 0 | AT76: =IF($F$4="dinner",IF(R76=0,,(R76/$E$6)*'Customer Info'!$D$17),) -> 0 | AU76: =IF($F$4="other",IF(S76=0,,(S76/$E$7)*'Customer Info'!$D$17),) -> 0 | AV76: 0 | AW76: =IF($F$5="breakfast",IF(P76=0,,(P76/$E$4)*'Customer Info'!$D$18),) -> 0 | AX76: =IF($F$5="dinner",IF(R76=0,,(R76/$E$6)*'Customer Info'!$D$18),) -> 0 | AY76: =IF($F$5="other",IF(S76=0,,(S76/$E$7)*'Customer Info'!$D$18),) -> 0 | AZ76: 0 | BA76: =IF($F$6="breakfast",IF(P76=0,,(P76/$E$4)*'Customer Info'!$D$19),) -> 0 | BB76: =IF($F$6="lunch",IF(Q76=0,,(Q76/$E$5)*'Customer Info'!$D$19),) -> 0 | BC76: =IF($F$6="other",IF(S76=0,,(S76/$E$7)*'Customer Info'!$D$19),) -> 0 | BD76: 0 | BE76: =IF($F$7="breakfast",IF(P76=0,,(P76/$E$4)*'Customer Info'!$D$20),) -> 0 | BF76: =IF($F$7="lunch",IF(Q76=0,,(Q76/$E$5)*'Customer Info'!$D$20),) -> 0 | BG76: =IF($F$7="dinner",IF(R76=0,,(R76/$E$6)*'Customer Info'!$D$20),) -> 0 | BH76: 0 | BI76: =IF($F$10="lunch",IF(U76=0,,(U76/$E$11)*'Customer Info'!$F$17),) -> 0 | BJ76: =IF($F$10="dinner",IF(V76=0,,(V76/$E$12)*'Customer Info'!$F$17),) -> 0 | BK76: =IF($F$10="other",IF(W76=0,,(W76/$E$13)*'Customer Info'!$F$17),) -> 0 | BL76: 0 | BM76: =IF($F$11="breakfast",IF(T76=0,,(T76/$E$10)*'Customer Info'!$F$18),) -> 0 | BN76: =IF($F$11="dinner",IF(V76=0,,(V76/$E$12)*'Customer Info'!$F$18),) -> 0 | BO76: =IF($F$11="other",IF(W76=0,,(W76/$E$13)*'Customer Info'!$F$18),) -> 0 | BP76: 0 | BQ76: =IF($F$12="breakfast",IF(T76=0,,(T76/$E$10)*'Customer Info'!$F$19),) -> 0 | BR76: =IF($F$12="lunch",IF(U76=0,,(U76/$E$11)*'Customer Info'!$F$19),) -> 0 | BS76: =IF($F$12="other",IF(W76=0,,(W76/$E$13)*'Customer Info'!$F$19),) -> 0 | BT76: 0 | BU76: =IF($F$13="breakfast",IF(T76=0,,(T76/$E$10)*'Customer Info'!$F$20),) -> 0 | BV76: =IF($F$13="lunch",IF(U76=0,,(U76/$E$11)*'Customer Info'!$F$20),) -> 0 | BW76: =IF($F$13="dinner",IF(V76=0,,(V76/$E$12)*'Customer Info'!$F$20),) -> 0 | BX76: 0 | BY76: =IF($F$16="lunch",IF(Y76=0,,(Y76/$E$17)*'Customer Info'!$H$17),) -> 0 | BZ76: =IF($F$16="dinner",IF(Z76=0,,(Z76/$E$18)*'Customer Info'!$H$17),) -> 0 | CA76: =IF($F$16="other",IF(AA76=0,,(AA76/$E$19)*'Customer Info'!$H$17),) -> 0 | CB76: 0 | CC76: =IF($F$17="breakfast",IF(X76=0,,(X76/$E$16)*'Customer Info'!$H$18),) -> 0 | CD76: =IF($F$17="dinner",IF(Z76=0,,(Z76/$E$18)*'Customer Info'!$H$18),) -> 0 | CE76: =IF($F$17="other",IF(AA76=0,,(AA76/$E$19)*'Customer Info'!$H$18),) -> 0 | CF76: 0 | CG76: =IF($F$18="breakfast",IF(X76=0,,(X76/$E$16)*'Customer Info'!$H$19),) -> 0 | CH76: =IF($F$18="lunch",IF(Y76=0,,(Y76/$E$17)*'Customer Info'!$H$19),) -> 0 | CI76: =IF($F$18="other",IF(AA76=0,,(AA76/$E$19)*'Customer Info'!$H$19),) -> 0 | CJ76: 0 | CK76: =IF($F$19="breakfast",IF(X76=0,,(X76/$E$16)*'Customer Info'!$H$20),) -> 0 | CL76: =IF($F$19="lunch",IF(Y76=0,,(Y76/$E$17)*'Customer Info'!$H$20),) -> 0 | CM76: =IF($F$19="dinner",IF(Z76=0,,(Z76/$E$18)*'Customer Info'!$H$20),) -> 0 | CN76: 0 | CO76: 0 | CP76: 0
J77: 0 | K77: 0 | L77: 0 | M77: 0 | N77: 0 | O77: 0 | P77: 0 | Q77: 0 | R77: 0 | S77: 0 | T77: 0 | U77: 0 | V77: 0 | W77: 0 | X77: 0 | Y77: 0 | Z77: 0 | AA77: 0 | AB77: =IF((OR($F$4=0,$F$4="none")),IF(P77=0,,IF(OR($E$4='Customer Info'!$D$17,$E$4=0),P77,(P77/$E$4)*'Customer Info'!$D$17)),) -> 0 | AC77: =IF((OR($F$5=0,$F$5="none")),IF(Q77=0,,IF(OR($E$5='Customer Info'!$D$18,$E$5=0),Q77,(Q77/$E$5)*'Customer Info'!$D$18)),) -> 0 | AD77: =IF((OR($F$6=0,$F$6="none")),IF(R77=0,,IF(OR($E$6='Customer Info'!$D$19,$E$6=0),R77,(R77/$E$6)*'Customer Info'!$D$19)),) -> 0 | AE77: =IF((OR($F$7=0,$F$7="none")),IF(S77=0,,IF(OR($E$7='Customer Info'!$D$20,$E$7=0),S77,(S77/$E$7)*'Customer Info'!$D$20)),) -> 0 | AF77: =IF((OR($F$10=0,$F$10="none")),IF(T77=0,,IF(OR($E$10='Customer Info'!$F$17,$E$10=0),T77,(T77/$E$10)*'Customer Info'!$F$17)),) -> 0 | AG77: =IF((OR($F$11=0,$F$11="none")),IF(U77=0,,IF(OR($E$11='Customer Info'!$F$18,$E$11=0),U77,(U77/$E$11)*'Customer Info'!$F$18)),) -> 0 | AH77: =IF((OR($F$12=0,$F$12="none")),IF(V77=0,,IF(OR($E$12='Customer Info'!$F$19,$E$12=0),V77,(V77/$E$12)*'Customer Info'!$F$19)),) -> 0 | AI77: =IF((OR($F$13=0,$F$13="none")),IF(W77=0,,IF(OR($E$13='Customer Info'!$F$20,$E$13=0),W77,(W77/$E$13)*'Customer Info'!$F$20)),) -> 0 | AJ77: =IF((OR($F$16=0,$F$16="none")),IF(X77=0,,IF(($E$16='Customer Info'!$H$17,$E$16=0),X77,(X77/$E$16)*'Customer Info'!$H$17)),) -> 0 | AK77: =IF((OR($F$17=0,$F$17="none")),IF(Y77=0,,IF(OR($E$17='Customer Info'!$H$18, $E$17=0),Y77,(Y77/$E$17)*'Customer Info'!$H$18)),) -> 0 | AL77: =IF((OR($F$18=0,$F$18="none")),IF(Z77=0,,IF(OR($E$18='Customer Info'!$H$19, $E$18=0),Z77,(Z77/$E$18)*'Customer Info'!$H$19)),) -> 0 | AM77: =IF((OR($F$19=0,$F$19="none")),IF(AA77=0,,IF(OR($E$19='Customer Info'!$H$20,$E$19=0),AA77,(AA77/$E$19)*'Customer Info'!$H$20)),) -> 0 | AN77: 0 | AO77: 0 | AP77: =IF(E77="plate waste",,IF('Customer Info'!$M$18=0,'Log Sheet'!AO77,'Customer Info'!$M$18*'Log Sheet'!AO77)) -> 0 | AQ77: =IF(E77="plate waste",IF(C77="dining area1",IF('Customer Info'!$L$30=0,AO77*'Customer Info'!$M$18,AO77*'Customer Info'!$L$30),IF(C77="dining area2",IF('Customer Info'!$L$31=0,AO77*'Customer Info'!$M$18,AO77*'Customer Info'!$L$31),IF(C77="Dining Area3",IF('Customer Info'!$L$32=0,AO77*'Customer Info'!$M$18,AO77*'Customer Info'!$L$32),))),) -> 0 | AR77: 0 | AS77: =IF($F$4="lunch",IF(Q77=0,,(Q77/$E$5)*'Customer Info'!$D$17),) -> 0 | AT77: =IF($F$4="dinner",IF(R77=0,,(R77/$E$6)*'Customer Info'!$D$17),) -> 0 | AU77: =IF($F$4="other",IF(S77=0,,(S77/$E$7)*'Customer Info'!$D$17),) -> 0 | AV77: 0 | AW77: =IF($F$5="breakfast",IF(P77=0,,(P77/$E$4)*'Customer Info'!$D$18),) -> 0 | AX77: =IF($F$5="dinner",IF(R77=0,,(R77/$E$6)*'Customer Info'!$D$18),) -> 0 | AY77: =IF($F$5="other",IF(S77=0,,(S77/$E$7)*'Customer Info'!$D$18),) -> 0 | AZ77: 0 | BA77: =IF($F$6="breakfast",IF(P77=0,,(P77/$E$4)*'Customer Info'!$D$19),) -> 0 | BB77: =IF($F$6="lunch",IF(Q77=0,,(Q77/$E$5)*'Customer Info'!$D$19),) -> 0 | BC77: =IF($F$6="other",IF(S77=0,,(S77/$E$7)*'Customer Info'!$D$19),) -> 0 | BD77: 0 | BE77: =IF($F$7="breakfast",IF(P77=0,,(P77/$E$4)*'Customer Info'!$D$20),) -> 0 | BF77: =IF($F$7="lunch",IF(Q77=0,,(Q77/$E$5)*'Customer Info'!$D$20),) -> 0 | BG77: =IF($F$7="dinner",IF(R77=0,,(R77/$E$6)*'Customer Info'!$D$20),) -> 0 | BH77: 0 | BI77: =IF($F$10="lunch",IF(U77=0,,(U77/$E$11)*'Customer Info'!$F$17),) -> 0 | BJ77: =IF($F$10="dinner",IF(V77=0,,(V77/$E$12)*'Customer Info'!$F$17),) -> 0 | BK77: =IF($F$10="other",IF(W77=0,,(W77/$E$13)*'Customer Info'!$F$17),) -> 0 | BL77: 0 | BM77: =IF($F$11="breakfast",IF(T77=0,,(T77/$E$10)*'Customer Info'!$F$18),) -> 0 | BN77: =IF($F$11="dinner",IF(V77=0,,(V77/$E$12)*'Customer Info'!$F$18),) -> 0 | BO77: =IF($F$11="other",IF(W77=0,,(W77/$E$13)*'Customer Info'!$F$18),) -> 0 | BP77: 0 | BQ77: =IF($F$12="breakfast",IF(T77=0,,(T77/$E$10)*'Customer Info'!$F$19),) -> 0 | BR77: =IF($F$12="lunch",IF(U77=0,,(U77/$E$11)*'Customer Info'!$F$19),) -> 0 | BS77: =IF($F$12="other",IF(W77=0,,(W77/$E$13)*'Customer Info'!$F$19),) -> 0 | BT77: 0 | BU77: =IF($F$13="breakfast",IF(T77=0,,(T77/$E$10)*'Customer Info'!$F$20),) -> 0 | BV77: =IF($F$13="lunch",IF(U77=0,,(U77/$E$11)*'Customer Info'!$F$20),) -> 0 | BW77: =IF($F$13="dinner",IF(V77=0,,(V77/$E$12)*'Customer Info'!$F$20),) -> 0 | BX77: 0 | BY77: =IF($F$16="lunch",IF(Y77=0,,(Y77/$E$17)*'Customer Info'!$H$17),) -> 0 | BZ77: =IF($F$16="dinner",IF(Z77=0,,(Z77/$E$18)*'Customer Info'!$H$17),) -> 0 | CA77: =IF($F$16="other",IF(AA77=0,,(AA77/$E$19)*'Customer Info'!$H$17),) -> 0 | CB77: 0 | CC77: =IF($F$17="breakfast",IF(X77=0,,(X77/$E$16)*'Customer Info'!$H$18),) -> 0 | CD77: =IF($F$17="dinner",IF(Z77=0,,(Z77/$E$18)*'Customer Info'!$H$18),) -> 0 | CE77: =IF($F$17="other",IF(AA77=0,,(AA77/$E$19)*'Customer Info'!$H$18),) -> 0 | CF77: 0 | CG77: =IF($F$18="breakfast",IF(X77=0,,(X77/$E$16)*'Customer Info'!$H$19),) -> 0 | CH77: =IF($F$18="lunch",IF(Y77=0,,(Y77/$E$17)*'Customer Info'!$H$19),) -> 0 | CI77: =IF($F$18="other",IF(AA77=0,,(AA77/$E$19)*'Customer Info'!$H$19),) -> 0 | CJ77: 0 | CK77: =IF($F$19="breakfast",IF(X77=0,,(X77/$E$16)*'Customer Info'!$H$20),) -> 0 | CL77: =IF($F$19="lunch",IF(Y77=0,,(Y77/$E$17)*'Customer Info'!$H$20),) -> 0 | CM77: =IF($F$19="dinner",IF(Z77=0,,(Z77/$E$18)*'Customer Info'!$H$20),) -> 0 | CN77: 0 | CO77: 0 | CP77: 0
